Workbook

Sheet Examples (hidden)
B1: Teal | C1: Red | D1: Light grey | E1: Mid-grey | F1: Grey | G1: Light teal | H1: Mid-red | I1: Light red | L1: Teal solid | M1: Red solid | N1: Mid-grey | O1: Teal dashes | P1: Red dashes | Q1: Grey dashes | S1: X value | T1: 1st Y value | U1: 2nd Y value | X1: Teal | Y1: Red | Z1: Mid-red | AA1: Mid-grey
A2: 2003-04 | B2: 36.19 | C2: 36.88 | D2: 21.56 | E2: 5.36 | F2: 3.01 | G2: 10 | H2: 3.01 | I2: 10 | K2: 2003-04 | L2: 33.19 | M2: 36.88 | N2: 21.56 | O2: 5.36 | P2: 3.01 | Q2: 10 | S2: 1.8 | T2: 10 | U2: 17 | W2: 2003-04 | X2: 33.19 | Y2: 36.88 | Z2: 21.56 | AA2: 5.36
A3: 2004-05 | B3: 39.39 | C3: 32.02 | D3: 21.6 | E3: 7.01 | F3: 3.36 | G3: 12 | H3: 3.36 | I3: 12 | K3: 2004-05 | L3: 39.39 | M3: 32.02 | N3: 21.6 | O3: 7.01 | P3: 3.36 | Q3: 12 | S3: 2.3 | T3: 12 | U3: 9 | W3: 2004-05 | X3: 39.39 | Y3: 32.02 | Z3: 21.6 | AA3: 7.01
A4: 2005-06 | B4: 42.78 | C4: 29.91 | D4: 18.35 | E4: 6.33 | F4: 2.63 | G4: 14 | H4: 2.63 | I4: 14 | K4: 2005-06 | L4: 42.78 | M4: 29.91 | N4: 18.35 | O4: 6.33 | P4: 2.63 | Q4: 14 | S4: 3.7 | T4: 16 | U4: 14 | W4: 2005-06 | X4: 42.78 | Y4: 29.91 | Z4: 18.35 | AA4: 6.33
A5: 2006-07 | B5: 42.13 | C5: 26.53 | D5: 21.6 | E5: 7.01 | F5: 2.72 | G5: 16 | H5: 2.72 | I5: 16 | K5: 2006-07 | L5: 42.13 | M5: 26.53 | N5: 21.6 | O5: 7.01 | P5: 2.72 | Q5: 16 | S5: 4.1 | T5: 8 | U5: 23 | W5: 2006-07 | X5: 42.13 | Y5: 26.53 | Z5: 21.6 | AA5: 7.01
A6: 2007-08 | B6: 41.69 | C6: 24.76 | D6: 23.98 | E6: 7 | F6: 2.57 | G6: 18 | H6: 2.57 | I6: 18 | K6: 2007-08 | L6: 41.69 | M6: 24.76 | N6: 23.98 | O6: 7 | P6: 2.57 | Q6: 18 | S6: 5.5 | T6: 14 | U6: 27 | W6: 2007-08 | X6: 41.69 | Y6: 24.76 | Z6: 23.98 | AA6: 7
A7: 2008-09 | B7: 39.39 | C7: 32.02 | D7: 21.6 | E7: 7.01 | F7: 3.36 | G7: 12 | H7: 3.36 | I7: 12 | K7: 2008-09 | L7: 39.39 | M7: 32.02 | N7: 21.6 | O7: 7.01 | P7: 3.36 | Q7: 12 | W7: 2008-09 | X7: 39.39 | Y7: 32.02 | Z7: 21.6 | AA7: 7.01
A8: 2009-10 | B8: 42.13 | C8: 26.53 | D8: 21.6 | E8: 7.01 | F8: 2.72 | G8: 16 | H8: 2.72 | I8: 16 | K8: 2009-10 | L8: 42.13 | M8: 26.53 | N8: 21.6 | O8: 7.01 | P8: 2.72 | Q8: 16 | W8: 2009-10 | X8: 42.13 | Y8: 26.53 | Z8: 21.6 | AA8: 7.01
A9: 2010-11 | B9: 45 | C9: 22 | D9: 26 | E9: 8 | F9: 2 | G9: 20 | H9: 2 | I9: 20 | K9: 2010-11 | L9: 45 | M9: 22 | N9: 26 | O9: 8 | P9: 2 | Q9: 20 | W9: 2010-11 | X9: 45 | Y9: 22 | Z9: 26 | AA9: 8
A11: – en rule for when needed

Sheet Contents
A3: This workbook sets out demand forecasts for each of the Powercor and Citipower terminal stations
A5: The colour coding used is as follows
A7: Summary worksheets
A8: Individual terminal station forecasts
A9: Input data
A11: Notes:
A12: 1. The individual terminal station forecasts are copied from models from each terminal station. For clarity as to the settings in these models, these have been copied. These settings cannot be changed within this model and include block loads, technology adjustments, industrial load adjustments and load accommodated through wind farms
A13: 2. In this spreadsheet there are 2 tabs for total Powercor, 'TPC' and 'TPC reconciled'. In 'TPC reconciled' we have reconciled the forecast (post block load and solar PV adjustments) to the sum of Powercor terminal stations, so that total Powercor grows at the same rate as the sum of Powercor terminal stations. No adjustment is made to the preadjusted forecast. 'TPC' no reconcilation has been made.
A15: Summary tables
A16: Max demand 2015 forecasts (before post modelling adjustments)(Summer maxima)
A17: Max demand 2015 forecast (including block loads and post-model adjustments) (Summer Maxima)
A18: Max demand 2014 forecasts (including block loads and post-model adjustments) (Summer maxima)
A19: PoE level actual maxima winter 2014 and summer 2014/15
A20: Comparison of 2014 and 2015 maximum demand forcasts (before post modelling adjustments)(Summer maxima)
A21: Comparison of 2014 and 2015 maximum demand forcasts (including block loads and post-model adjustments)(Summer maxima)
A23: Reconciliation tables
A24: Max Demand index (before post-model adjustments)
A25: Average Demand index (before post-model adjustments)
A26: Max demand summation (before post-model adjustments)
A27: Max demand summation (after post-model adjustments)
A28: Average demand summation (before post-model adjustments)
A29: Peak-average ratio (before post-model adjustments)
A31: Reconcilation graphs
A32: Maximum demand index Powercor
A33: Maximum demand index CitiPower
A34: Average demand index Powercor
A35: Average demand index CitiPower
A36: Total Powercor reconciliation
A37: CitiPower reconciliation
A38: Powercor average demand comparisons
A39: CitiPower average demand comparisons
A40: Peak to average ratios Powercor
A41: Peak to average ratios CitiPower
A42: Total peak to average ratios

Sheet Summary
A3: Max demand 2015 forecasts (before post modelling adjustments)(Summer maxima)
B4: 50% PoE forecast, MW
B5: Powercor | C5: 2004/05 | D5: 2005/06 | E5: 2006/07 | F5: 2007/08 | G5: 2008/09 | H5: 2009/10 | I5: 2010/11 | J5: 2011/12 | K5: 2012/13 | L5: 2013/14 | M5: 2014/15 | N5: 2015/16 | O5: 2016/17 | P5: 2017/18 | Q5: 2018/19 | R5: 2019/20 | S5: 2020/21 | T5: 2021/22 | U5: 2022/23 | V5: 2023/24 | W5: 2024/25 | X5: 2025/26
B6: ATS West | G6: ='ATS West'!U$77 -> 155.2993876 | H6: ='ATS West'!V$77 -> 161.1071594 | I6: ='ATS West'!W$77 -> 164.5138382 | J6: ='ATS West'!X$77 -> 178.6998693 | K6: ='ATS West'!Y$77 -> 179.3099801 | L6: ='ATS West'!Z$77 -> 190.2306159 | M6: ='ATS West'!AA$77 -> 191.2877692 | N6: ='ATS West'!AB$77 -> 198.9392799 | O6: ='ATS West'!AC$77 -> 206.8968511 | P6: ='ATS West'!AD$77 -> 215.1727252 | Q6: ='ATS West'!AE$77 -> 223.7796342 | R6: ='ATS West'!AF$77 -> 232.7308195 | S6: ='ATS West'!AG$77 -> 242.0400523 | T6: ='ATS West'!AH$77 -> 250.4103081 | U6: ='ATS West'!AI$77 -> 260.4267205 | V6: ='ATS West'!AJ$77 -> 270.8437893 | W6: ='ATS West'!AK$77 -> 281.6775409 | X6: ='ATS West'!AL$77 -> 292.9446425
B7: BATS | D7: =BATS!R$77 -> 160.9367155 | E7: =BATS!S$77 -> 173.8811893 | F7: =BATS!T$77 -> 168.1753831 | G7: =BATS!U$77 -> 177.2269826 | H7: =BATS!V$77 -> 165.0004648 | I7: =BATS!W$77 -> 158.9209724 | J7: =BATS!X$77 -> 165.3442139 | K7: =BATS!Y$77 -> 155.8980581 | L7: =BATS!Z$77 -> 165.9315271 | M7: =BATS!AA$77 -> 156.4331564 | N7: =BATS!AB$77 -> 162.6904826 | O7: =BATS!AC$77 -> 166.2340451 | P7: =BATS!AD$77 -> 172.8834069 | Q7: =BATS!AE$77 -> 176.0651774 | R7: =BATS!AF$77 -> 181.3927801 | S7: =BATS!AG$77 -> 186.6587198 | T7: =BATS!AH$77 -> 188.652962 | U7: =BATS!AI$77 -> 195.8273252 | V7: =BATS!AJ$77 -> 203.0057501 | W7: =BATS!AK$77 -> 210.6774667 | X7: =BATS!AL$77 -> 215.1207564
B8: BETS22 | E8: =BETS22!S$77 -> 42.898912 | F8: =BETS22!T$77 -> 46.79958452 | G8: =BETS22!U$77 -> 48.47139378 | H8: =BETS22!V$77 -> 50.60349287 | I8: =BETS22!W$77 -> 51.67870079 | J8: =BETS22!X$77 -> 52.1858723 | K8: =BETS22!Y$77 -> 51.20971024 | L8: =BETS22!Z$77 -> 57.08574708 | M8: =BETS22!AA$77 -> 57.32769856 | N8: =BETS22!AB$77 -> 59.6208065 | O8: =BETS22!AC$77 -> 61.55774853 | P8: =BETS22!AD$77 -> 64.02005847 | Q8: =BETS22!AE$77 -> 66.58086081 | R8: =BETS22!AF$77 -> 69.11350144 | S8: =BETS22!AG$77 -> 71.72046444 | T8: =BETS22!AH$77 -> 74.39798998 | U8: =BETS22!AI$77 -> 77.37390958 | V8: =BETS22!AJ$77 -> 80.46886597 | W8: =BETS22!AK$77 -> 83.34635295 | X8: =BETS22!AL$77 -> 86.68020706
B9: BETS66 | D9: =BETS66!R$77 -> 158.9747724 | E9: =BETS66!S$77 -> 164.8673487 | F9: =BETS66!T$77 -> 161.3162621 | G9: =BETS66!U$77 -> 169.5065142 | H9: =BETS66!V$77 -> 172.1759048 | I9: =BETS66!W$77 -> 156.057453 | J9: =BETS66!X$77 -> 162.7832708 | K9: =BETS66!Y$77 -> 163.5966588 | L9: =BETS66!Z$77 -> 165.2506621 | M9: =BETS66!AA$77 -> 155.549464 | N9: =BETS66!AB$77 -> 158.206316 | O9: =BETS66!AC$77 -> 163.277111 | P9: =BETS66!AD$77 -> 167.9472624 | Q9: =BETS66!AE$77 -> 174.2080213 | R9: =BETS66!AF$77 -> 177.3290227 | S9: =BETS66!AG$77 -> 180.4404765 | T9: =BETS66!AH$77 -> 185.1786378 | U9: =BETS66!AI$77 -> 189.6558013 | V9: =BETS66!AJ$77 -> 196.7788953 | W9: =BETS66!AK$77 -> 200.6055409 | X9: =BETS66!AL$77 -> 208.1651307
B10: BLTS22 | D10: =BLTS22!R$77 -> 56.1953911 | E10: =BLTS22!S$77 -> 56.30416764 | F10: =BLTS22!T$77 -> 58.03542465 | G10: =BLTS22!U$77 -> 60.14683019 | H10: =BLTS22!V$77 -> 59.37853367 | I10: =BLTS22!W$77 -> 60.1404284 | J10: =BLTS22!X$77 -> 57.59186776 | L10: =BLTS22!Z$77 -> 54.81034753 | M10: =BLTS22!AA$77 -> 56.57046295 | N10: =BLTS22!AB$77 -> 56.76018607 | O10: =BLTS22!AC$77 -> 57.67663417 | P10: =BLTS22!AD$77 -> 58.88534289 | Q10: =BLTS22!AE$77 -> 59.90592167 | R10: =BLTS22!AF$77 -> 60.91793229 | S10: =BLTS22!AG$77 -> 61.87120877 | T10: =BLTS22!AH$77 -> 62.65475012 | U10: =BLTS22!AI$77 -> 63.30509079 | V10: =BLTS22!AJ$77 -> 64.2598326 | W10: =BLTS22!AK$77 -> 65.59925634 | X10: =BLTS22!AL$77 -> 66.77420265
B11: ATS-BLTS | E11: ='ATS-BLTS'!S$77 -> 147.328796 | F11: ='ATS-BLTS'!T$77 -> 151.201989 | G11: ='ATS-BLTS'!U$77 -> 158.1168928 | H11: ='ATS-BLTS'!V$77 -> 165.4527653 | I11: ='ATS-BLTS'!W$77 -> 165.7220345 | J11: ='ATS-BLTS'!X$77 -> 178.289099 | K11: ='ATS-BLTS'!Y$77 -> 172.4595595 | L11: ='ATS-BLTS'!Z$77 -> 180.1243528 | M11: ='ATS-BLTS'!AA$77 -> 177.8128897 | N11: ='ATS-BLTS'!AB$77 -> 172.3355112 | O11: ='ATS-BLTS'!AC$77 -> 179.2289316 | P11: ='ATS-BLTS'!AD$77 -> 186.3980889 | Q11: ='ATS-BLTS'!AE$77 -> 193.428429 | R11: ='ATS-BLTS'!AF$77 -> 201.1655662 | S11: ='ATS-BLTS'!AG$77 -> 208.4134558 | T11: ='ATS-BLTS'!AH$77 -> 211.3558541 | U11: ='ATS-BLTS'!AI$77 -> 219.8100883 | V11: ='ATS-BLTS'!AJ$77 -> 228.6024918 | W11: ='ATS-BLTS'!AK$77 -> 236.5795092 | X11: ='ATS-BLTS'!AL$77 -> 246.0426896
B12: GTS66 | D12: ='GTS66'!R$77 -> 349.9106041 | E12: ='GTS66'!S$77 -> 379.3976349 | F12: ='GTS66'!T$77 -> 381.0607544 | G12: ='GTS66'!U$77 -> 401.9402285 | H12: ='GTS66'!V$77 -> 404.3751439 | I12: ='GTS66'!W$77 -> 405.3959725 | J12: ='GTS66'!X$77 -> 418.3196212 | K12: ='GTS66'!Y$77 -> 406.3791121 | L12: ='GTS66'!Z$77 -> 413.739531 | M12: ='GTS66'!AA$77 -> 429.3950229 | N12: ='GTS66'!AB$77 -> 381.6002075 | O12: ='GTS66'!AC$77 -> 393.3071931 | P12: ='GTS66'!AD$77 -> 404.7683231 | Q12: ='GTS66'!AE$77 -> 417.2067133 | R12: ='GTS66'!AF$77 -> 427.1379434 | S12: ='GTS66'!AG$77 -> 440.0488892 | T12: ='GTS66'!AH$77 -> 444.8546188 | U12: ='GTS66'!AI$77 -> 458.9793446 | V12: ='GTS66'!AJ$77 -> 472.7886987 | W12: ='GTS66'!AK$77 -> 487.8013171 | X12: ='GTS66'!AL$77 -> 501.2032297
B13: HOTS66 | D13: =HOTS66!R$77 -> 77.59831533 | E13: =HOTS66!S$77 -> 86.87967372 | F13: =HOTS66!T$77 -> 90.20841619 | G13: =HOTS66!U$77 -> 93.97926123 | H13: =HOTS66!V$77 -> 91.42411908 | I13: =HOTS66!W$77 -> 90.88287563 | J13: =HOTS66!X$77 -> 94.22935038 | K13: =HOTS66!Y$77 -> 87.30430729 | L13: =HOTS66!Z$77 -> 88.63084 | M13: =HOTS66!AA$77 -> 80.83668145 | N13: =HOTS66!AB$77 -> 80.83152901 | O13: =HOTS66!AC$77 -> 84.06479017 | P13: =HOTS66!AD$77 -> 87.42738178 | Q13: =HOTS66!AE$77 -> 90.92447705 | R13: =HOTS66!AF$77 -> 94.56145613 | S13: =HOTS66!AG$77 -> 96.40857219 | T13: =HOTS66!AH$77 -> 97.46883984 | U13: =HOTS66!AI$77 -> 100.4690202 | V13: =HOTS66!AJ$77 -> 104.2683026 | W13: =HOTS66!AK$77 -> 105.9762739 | X13: =HOTS66!AL$77 -> 109.53907
B14: KTSeast | F14: =KTSeast!T$77 -> 117.126159 | G14: =KTSeast!U$77 -> 121.6397349 | H14: =KTSeast!V$77 -> 126.7802262 | I14: =KTSeast!W$77 -> 126.3347533 | J14: =KTSeast!X$77 -> 133.2871698 | K14: =KTSeast!Y$77 -> 136.3489797 | L14: =KTSeast!Z$77 -> 140.4121355 | M14: =KTSeast!AA$77 -> 143.3209371 | N14: =KTSeast!AB$77 -> 148.5272658 | O14: =KTSeast!AC$77 -> 154.3614127 | P14: =KTSeast!AD$77 -> 158.775183 | Q14: =KTSeast!AE$77 -> 164.2672083 | R14: =KTSeast!AF$77 -> 170.8378966 | S14: =KTSeast!AG$77 -> 174.8829117 | T14: =KTSeast!AH$77 -> 179.4798223 | U14: =KTSeast!AI$77 -> 186.6590151 | V14: =KTSeast!AJ$77 -> 194.1253758 | W14: =KTSeast!AK$77 -> 201.6230674 | X14: =KTSeast!AL$77 -> 209.6879901
B15: KTSwest | F15: =KTSwest!T$77 -> 175.667835 | G15: =KTSwest!U$77 -> 180.4885291 | H15: =KTSwest!V$77 -> 179.66283 | I15: =KTSwest!W$77 -> 178.6308272 | J15: =KTSwest!X$77 -> 182.5085574 | K15: =KTSwest!Y$77 -> 175.394577 | L15: =KTSwest!Z$77 -> 178.020962 | M15: =KTSwest!AA$77 -> 185.8704747 | N15: =KTSwest!AB$77 -> 193.3052937 | O15: =KTSwest!AC$77 -> 201.0375055 | P15: =KTSwest!AD$77 -> 208.7120132 | Q15: =KTSwest!AE$77 -> 215.2961006 | R15: =KTSwest!AF$77 -> 223.9079446 | S15: =KTSwest!AG$77 -> 230.4376278 | T15: =KTSwest!AH$77 -> 233.2222474 | U15: =KTSwest!AI$77 -> 242.5511373 | V15: =KTSwest!AJ$77 -> 252.2531828 | W15: =KTSwest!AK$77 -> 262.3433101 | X15: =KTSwest!AL$77 -> 272.8370425
B16: KGTS22 | D16: =KGTS22!R$77 -> 11.22701797 | E16: =KGTS22!S$77 -> 10.6896374 | F16: =KGTS22!T$77 -> 10.96725032 | G16: =KGTS22!U$77 -> 11.07158238 | H16: =KGTS22!V$77 -> 11.66129026 | I16: =KGTS22!W$77 -> 11.52210242 | J16: =KGTS22!X$77 -> 11.83467248 | K16: =KGTS22!Y$77 -> 13.21382741 | L16: =KGTS22!Z$77 -> 13.17122539 | M16: =KGTS22!AA$77 -> 11.90778888 | N16: =KGTS22!AB$77 -> 11.96246343 | O16: =KGTS22!AC$77 -> 11.99109835 | P16: =KGTS22!AD$77 -> 12.17959107 | Q16: =KGTS22!AE$77 -> 12.23694455 | R16: =KGTS22!AF$77 -> 12.44094846 | S16: =KGTS22!AG$77 -> 12.56393197 | T16: =KGTS22!AH$77 -> 13.06648925 | U16: =KGTS22!AI$77 -> 13.09220959 | V16: =KGTS22!AJ$77 -> 13.23491471 | W16: =KGTS22!AK$77 -> 13.52977543 | X16: =KGTS22!AL$77 -> 13.74111879
B17: KGTS66 | D17: =KGTS66!R$77 -> 55.29135136 | E17: =KGTS66!S$77 -> 56.39128888 | F17: =KGTS66!T$77 -> 56.14042604 | G17: =KGTS66!U$77 -> 56.12196651 | H17: =KGTS66!V$77 -> 56.9154132 | I17: =KGTS66!W$77 -> 49.24030255 | J17: =KGTS66!X$77 -> 51.61400264 | K17: =KGTS66!Y$77 -> 51.68893705 | L17: =KGTS66!Z$77 -> 54.20804957 | M17: =KGTS66!AA$77 -> 51.96211004 | N17: =KGTS66!AB$77 -> 51.31902811 | O17: =KGTS66!AC$77 -> 51.71515278 | P17: =KGTS66!AD$77 -> 52.19053299 | Q17: =KGTS66!AE$77 -> 52.82825001 | R17: =KGTS66!AF$77 -> 53.66690655 | S17: =KGTS66!AG$77 -> 53.64393934 | T17: =KGTS66!AH$77 -> 53.53432324 | U17: =KGTS66!AI$77 -> 54.59840205 | V17: =KGTS66!AJ$77 -> 55.65074246 | W17: =KGTS66!AK$77 -> 56.46182696 | X17: =KGTS66!AL$77 -> 57.00406684
B18: RCTS22 | D18: =RCTS22!R$77 -> 38.7802201 | E18: =RCTS22!S$77 -> 35.4818032 | F18: =RCTS22!T$77 -> 33.29664849 | G18: =RCTS22!U$77 -> 35.22067978 | H18: =RCTS22!V$77 -> 37.9201791 | I18: =RCTS22!W$77 -> 29.87949852 | J18: =RCTS22!X$77 -> 34.96730531 | K18: =RCTS22!Y$77 -> 39.2203253 | L18: =RCTS22!Z$77 -> 41.28451302 | M18: =RCTS22!AA$77 -> 39.57038758 | N18: =RCTS22!AB$77 -> 41.03163045 | O18: =RCTS22!AC$77 -> 41.98359997 | P18: =RCTS22!AD$77 -> 43.07411193 | Q18: =RCTS22!AE$77 -> 44.37391906 | R18: =RCTS22!AF$77 -> 46.14887582 | S18: =RCTS22!AG$77 -> 47.16184012 | T18: =RCTS22!AH$77 -> 47.10416145 | U18: =RCTS22!AI$77 -> 48.98832791 | V18: =RCTS22!AJ$77 -> 50.94786102 | W18: =RCTS22!AK$77 -> 51.32289333 | X18: =RCTS22!AL$77 -> 53.37580906
B19: RCTS66 | M19: ='RCTS66 WETS'!AP$77 -> 146.757391 | N19: ='RCTS66 WETS'!AQ$77 -> 149.0669742 | O19: ='RCTS66 WETS'!AR$77 -> 151.4614746 | P19: ='RCTS66 WETS'!AS$77 -> 155.7635789 | Q19: ='RCTS66 WETS'!AT$77 -> 160.9374175 | R19: ='RCTS66 WETS'!AU$77 -> 167.1880212 | S19: ='RCTS66 WETS'!AV$77 -> 169.9488533 | T19: ='RCTS66 WETS'!AW$77 -> 173.9733907 | U19: ='RCTS66 WETS'!AX$77 -> 180.9323264 | V19: ='RCTS66 WETS'!AY$77 -> 186.8950025 | W19: ='RCTS66 WETS'!AZ$77 -> 190.9438629 | X19: ='RCTS66 WETS'!BA$77 -> 197.3733118
B20: WETS | M20: ='RCTS66 WETS'!BG$77 -> 51.07854695 | N20: ='RCTS66 WETS'!BH$77 -> 51.88239168 | O20: ='RCTS66 WETS'!BI$77 -> 52.71579164 | P20: ='RCTS66 WETS'!BJ$77 -> 54.21312839 | Q20: ='RCTS66 WETS'!BK$77 -> 56.01387013 | R20: ='RCTS66 WETS'!BL$77 -> 58.18937728 | S20: ='RCTS66 WETS'!BM$77 -> 59.15027807 | T20: ='RCTS66 WETS'!BN$77 -> 60.55100836 | U20: ='RCTS66 WETS'!BO$77 -> 62.9730487 | V20: ='RCTS66 WETS'!BP$77 -> 65.04834339 | W20: ='RCTS66 WETS'!BQ$77 -> 66.45753923 | X20: ='RCTS66 WETS'!BR$77 -> 68.695293
B21: SHTS | D21: =SHTS!R$77 -> 282.413034 | E21: =SHTS!S$77 -> 296.5891253 | F21: =SHTS!T$77 -> 279.454348 | G21: =SHTS!U$77 -> 282.4627726 | H21: =SHTS!V$77 -> 294.5376822 | I21: =SHTS!W$77 -> 262.2549628 | J21: =SHTS!X$77 -> 271.9092124 | K21: =SHTS!Y$77 -> 277.8077074 | L21: =SHTS!Z$77 -> 282.4900122 | M21: =SHTS!AA$77 -> 268.7917847 | N21: =SHTS!AB$77 -> 269.4621063 | O21: =SHTS!AC$77 -> 273.7762556 | P21: =SHTS!AD$77 -> 278.9116838 | Q21: =SHTS!AE$77 -> 282.6639149 | R21: =SHTS!AF$77 -> 288.2703965 | S21: =SHTS!AG$77 -> 290.0382098 | T21: =SHTS!AH$77 -> 292.7559365 | U21: =SHTS!AI$77 -> 296.7724222 | V21: =SHTS!AJ$77 -> 305.440424 | W21: =SHTS!AK$77 -> 308.5294383 | X21: =SHTS!AL$77 -> 311.5201867
B22: TGTS | D22: =TGTS!R$77 -> 163.2302399 | E22: =TGTS!S$77 -> 173.9231633 | F22: =TGTS!T$77 -> 172.6972549 | G22: =TGTS!U$77 -> 181.1973127 | H22: =TGTS!V$77 -> 183.0179388 | I22: =TGTS!W$77 -> 183.0926001 | J22: =TGTS!X$77 -> 192.6783746 | K22: =TGTS!Y$77 -> 189.4595041 | L22: =TGTS!Z$77 -> 190.3416487 | M22: =TGTS!AA$77 -> 176.7229784 | N22: =TGTS!AB$77 -> 183.2889993 | O22: =TGTS!AC$77 -> 190.3087097 | P22: =TGTS!AD$77 -> 195.3349197 | Q22: =TGTS!AE$77 -> 202.9660105 | R22: =TGTS!AF$77 -> 204.7260592 | S22: =TGTS!AG$77 -> 209.1926032 | T22: =TGTS!AH$77 -> 216.0908299 | U22: =TGTS!AI$77 -> 221.4371123 | V22: =TGTS!AJ$77 -> 230.2945968 | W22: =TGTS!AK$77 -> 234.8407947 | X22: =TGTS!AL$77 -> 241.7060651
B23: TPC | D23: ='TPC reconciled'!R$77 -> 1921.000821 | E23: ='TPC reconciled'!S$77 -> 2139.058557 | F23: ='TPC reconciled'!T$77 -> 2111.366682 | G23: ='TPC reconciled'!U$77 -> 2197.096366 | H23: ='TPC reconciled'!V$77 -> 2181.707753 | I23: ='TPC reconciled'!W$77 -> 2160.506742 | J23: ='TPC reconciled'!X$77 -> 2252.423196 | K23: ='TPC reconciled'!Y$77 -> 2247.852317 | L23: ='TPC reconciled'!Z$77 -> 2300.791984 | M23: ='TPC reconciled'!AA$77 -> 2299.239102 | N23: ='TPC reconciled'!AB$77 -> 2289.230776 | O23: ='TPC reconciled'!AC$77 -> 2357.559047 | P23: ='TPC reconciled'!AD$77 -> 2430.03854 | Q23: ='TPC reconciled'!AE$77 -> 2504.412998 | R23: ='TPC reconciled'!AF$77 -> 2577.838328 | S23: ='TPC reconciled'!AG$77 -> 2640.501291 | T23: ='TPC reconciled'!AH$77 -> 2688.906038 | U23: ='TPC reconciled'!AI$77 -> 2774.938539 | V23: ='TPC reconciled'!AJ$77 -> 2872.51615 | W23: ='TPC reconciled'!AK$77 -> 2953.05407 | X23: ='TPC reconciled'!AL$77 -> 3043.910535
N24: =N23/SUM(N6:N22) -> 0.9655818091 | O24: =O23/SUM(O6:O22) -> 0.9655818091 | P24: 0.9655818091 | Q24: 0.9655818091 | R24: 0.9655818091 | S24: 0.9655818091 | T24: 0.9655818091 | U24: 0.9655818091 | V24: =V23/SUM(V6:V22) -> 0.9655818091 | W24: =W23/SUM(W6:W22) -> 0.9655818091 | X24: =X23/SUM(X6:X22) -> 0.9655818091
B25: Citipower | C25: 2004/05 | D25: 2005/06 | E25: 2006/07 | F25: 2007/08 | G25: 2008/09 | H25: 2009/10 | I25: 2010/11 | J25: 2011/12 | K25: 2012/13 | L25: 2013/14 | M25: 2014/15 | N25: 2015/16 | O25: 2016/17 | P25: 2017/18 | Q25: 2018/19 | R25: 2019/20 | S25: 2020/21 | T25: 2021/22 | U25: 2022/23 | V25: 2023/24 | W25: 2024/25 | X25: 2025/26
B26: WMTS22 | D26: =WMTS22!R$77 -> 86.19535188 | E26: =WMTS22!S$77 -> 85.2619516 | F26: =WMTS22!T$77 -> 87.46070749 | G26: =WMTS22!U$77 -> 92.59130529 | H26: =WMTS22!V$77 -> 92.82797966 | I26: =WMTS22!W$77 -> 94.11604978 | J26: =WMTS22!X$77 -> 94.01659189 | K26: =WMTS22!Y$77 -> 91.77325323 | L26: =WMTS22!Z$77 -> 91.54111346 | M26: =WMTS22!AA$77 -> 93.95256992 | N26: =WMTS22!AB$77 -> 95.43888265 | O26: =WMTS22!AC$77 -> 99.25643795 | P26: =WMTS22!AD$77 -> 103.2266955 | Q26: =WMTS22!AE$77 -> 107.3557633 | R26: =WMTS22!AF$77 -> 111.6499938 | S26: =WMTS22!AG$77 -> 115.880357 | T26: =WMTS22!AH$77 -> 118.8171317 | U26: =WMTS22!AI$77 -> 122.1838039 | V26: =WMTS22!AJ$77 -> 124.759477 | W26: =WMTS22!AK$77 -> 128.2995123 | X26: =WMTS22!AL$77 -> 132.0999287
B27: WMTS66 | E27: =WMTS66!S$77 -> 373.3827529 | F27: =WMTS66!T$77 -> 375.6604119 | G27: =WMTS66!U$77 -> 374.8171713 | H27: =WMTS66!V$77 -> 376.5002429 | I27: =WMTS66!W$77 -> 355.4468019 | J27: =WMTS66!X$77 -> 369.8463799 | K27: =WMTS66!Y$77 -> 366.897434 | L27: =WMTS66!Z$77 -> 370.9407498 | M27: =WMTS66!AA$77 -> 374.6366875 | N27: =WMTS66!AB$77 -> 389.622155 | O27: =WMTS66!AC$77 -> 403.0033424 | P27: =WMTS66!AD$77 -> 410.0719092 | Q27: =WMTS66!AE$77 -> 421.5067373 | R27: =WMTS66!AF$77 -> 430.2220127 | S27: =WMTS66!AG$77 -> 438.2549786 | T27: =WMTS66!AH$77 -> 438.930732 | U27: =WMTS66!AI$77 -> 449.9254173 | V27: =WMTS66!AJ$77 -> 463.1575817 | W27: =WMTS66!AK$77 -> 468.1546119 | X27: =WMTS66!AL$77 -> 480.3940169
B28: BTS22 | D28: ='BTS22'!R$77 -> 34.76314091 | E28: ='BTS22'!S$77 -> 34.92438091 | F28: ='BTS22'!T$77 -> 35.57808508 | G28: ='BTS22'!U$77 -> 36.35471833 | H28: ='BTS22'!V$77 -> 37.10515113 | I28: ='BTS22'!W$77 -> 37.32972918 | J28: ='BTS22'!X$77 -> 36.98683296 | K28: ='BTS22'!Y$77 -> 38.36156598 | L28: ='BTS22'!Z$77 -> 38.39891251 | M28: =(N28-L28)/2+L28 -> 37.60764995 | N28: ='BTS22'!AB$77 -> 36.8163874 | O28: ='BTS22'!AC$77 -> 38.2890429 | P28: ='BTS22'!AD$77 -> 39.74503889 | Q28: ='BTS22'!AE$77 -> 41.09743783 | R28: ='BTS22'!AF$77 -> 42.6046142 | S28: ='BTS22'!AG$77 -> 43.82543099 | T28: ='BTS22'!AH$77 -> 45.43030007 | U28: ='BTS22'!AI$77 -> 46.81001919 | V28: ='BTS22'!AJ$77 -> 48.16662364 | W28: ='BTS22'!AK$77 -> 50.00150142 | X28: ='BTS22'!AL$77 -> 52.00156148
B29: FBTS66 | D29: =FBTS66!R$77 -> 216.5838148 | E29: =FBTS66!S$77 -> 223.267144 | F29: =FBTS66!T$77 -> 219.4472451 | G29: =FBTS66!U$77 -> 237.0401589 | H29: =FBTS66!V$77 -> 231.4946774 | I29: =FBTS66!W$77 -> 233.4833327 | J29: =FBTS66!X$77 -> 243.4650215 | K29: =FBTS66!Y$77 -> 245.1068701 | L29: =FBTS66!Z$77 -> 247.0732808 | M29: =FBTS66!AA$77 -> 256.2149716 | N29: =FBTS66!AB$77 -> 249.523718 | O29: =FBTS66!AC$77 -> 251.4164813 | P29: =FBTS66!AD$77 -> 256.6544631 | Q29: =FBTS66!AE$77 -> 262.2866321 | R29: =FBTS66!AF$77 -> 267.9725951 | S29: =FBTS66!AG$77 -> 274.5282776 | T29: =FBTS66!AH$77 -> 279.3973482 | U29: =FBTS66!AI$77 -> 285.3859656 | V29: =FBTS66!AJ$77 -> 293.6047587 | W29: =FBTS66!AK$77 -> 300.3443419 | X29: =FBTS66!AL$77 -> 309.1537826
B30: RTS22 | D30: ='RTS22'!R$77 -> 77.88175485 | E30: ='RTS22'!S$77 -> 84.67145897 | F30: ='RTS22'!T$77 -> 82.66956414 | G30: ='RTS22'!U$77 -> 75.82349454 | H30: ='RTS22'!V$77 -> 75.16539401 | I30: ='RTS22'!W$77 -> 71.62092644 | J30: ='RTS22'!X$77 -> 73.43911042 | K30: ='RTS22'!Y$77 -> 69.97418045 | L30: ='RTS22'!Z$77 -> 67.85607524 | M30: ='RTS22'!AA$77 -> 70.11797169 | N30: ='RTS22'!AB$77 -> 69.05342194 | O30: ='RTS22'!AC$77 -> 71.81555882 | P30: ='RTS22'!AD$77 -> 74.68818117 | Q30: ='RTS22'!AE$77 -> 77.51748511 | R30: ='RTS22'!AF$77 -> 80.12769599 | S30: ='RTS22'!AG$77 -> 81.65585258 | T30: ='RTS22'!AH$77 -> 81.39067889 | U30: ='RTS22'!AI$77 -> 83.20994206 | V30: ='RTS22'!AJ$77 -> 84.82247898 | W30: ='RTS22'!AK$77 -> 85.63555456 | X30: ='RTS22'!AL$77 -> 87.83641364
B31: RTS66_1_2 | F31: =RTS66_1_2!T$77 -> 246.6864307 | G31: =RTS66_1_2!U$77 -> 248.1813809 | H31: =RTS66_1_2!V$77 -> 252.5404453 | I31: =RTS66_1_2!W$77 -> 243.4919921 | J31: =RTS66_1_2!X$77 -> 248.6485749 | K31: =RTS66_1_2!Y$77 -> 248.4051542 | L31: =RTS66_1_2!Z$77 -> 246.4457483 | M31: =RTS66_1_2!AA$77 -> 244.1279966 | N31: =RTS66_1_2!AB$77 -> 253.8931165 | O31: =RTS66_1_2!AC$77 -> 255.4073492 | P31: =RTS66_1_2!AD$77 -> 260.147842 | Q31: =RTS66_1_2!AE$77 -> 262.6151165 | R31: =RTS66_1_2!AF$77 -> 266.1713364 | S31: =RTS66_1_2!AG$77 -> 267.7012487 | T31: =RTS66_1_2!AH$77 -> 269.4180719 | U31: =RTS66_1_2!AI$77 -> 271.8342765 | V31: =RTS66_1_2!AJ$77 -> 275.2878569 | W31: =RTS66_1_2!AK$77 -> 277.3459171 | X31: =RTS66_1_2!AL$77 -> 280.2416141
B32: RTS66_3_4 | F32: =RTS66_3_4!T$77 -> 214.1382801 | G32: =RTS66_3_4!U$77 -> 216.7844381 | H32: =RTS66_3_4!V$77 -> 217.1882508 | I32: =RTS66_3_4!W$77 -> 213.8264256 | J32: =RTS66_3_4!X$77 -> 213.2121172 | K32: =RTS66_3_4!Y$77 -> 209.7930171 | L32: =RTS66_3_4!Z$77 -> 210.0812379 | M32: =RTS66_3_4!AA$77 -> 213.8530438 | N32: =RTS66_3_4!AB$77 -> 222.4071655 | O32: =RTS66_3_4!AC$77 -> 228.0317375 | P32: =RTS66_3_4!AD$77 -> 232.8190144 | Q32: =RTS66_3_4!AE$77 -> 238.8657957 | R32: =RTS66_3_4!AF$77 -> 245.5566407 | S32: =RTS66_3_4!AG$77 -> 249.139444 | T32: =RTS66_3_4!AH$77 -> 254.0744604 | U32: =RTS66_3_4!AI$77 -> 258.7903713 | V32: =RTS66_3_4!AJ$77 -> 265.3975836 | W32: =RTS66_3_4!AK$77 -> 272.4145701 | X32: =RTS66_3_4!AL$77 -> 279.8343578
B33: SVTS | F33: =SVTS!T$77 -> 35.33394537 | G33: =SVTS!U$77 -> 35.51954575 | H33: =SVTS!V$77 -> 37.51447866 | I33: =SVTS!W$77 -> 35.84693344 | J33: =SVTS!X$77 -> 36.2726728 | K33: =SVTS!Y$77 -> 39.54958523 | L33: =SVTS!Z$77 -> 36.19840132 | M33: =SVTS!AA$77 -> 34.37865839 | N33: =SVTS!AB$77 -> 35.75380473 | O33: =SVTS!AC$77 -> 37.18395692 | P33: =SVTS!AD$77 -> 38.6713152 | Q33: =SVTS!AE$77 -> 39.74850667 | R33: =SVTS!AF$77 -> 41.33844694 | S33: =SVTS!AG$77 -> 42.73082107 | T33: =SVTS!AH$77 -> 44.44005391 | U33: =SVTS!AI$77 -> 44.69063098 | V33: =SVTS!AJ$77 -> 46.47825622 | W33: =SVTS!AK$77 -> 48.33738647 | X33: =SVTS!AL$77 -> 49.9004845
B34: TSTS | D34: =TSTS!R$77 -> 67.09928914 | E34: =TSTS!S$77 -> 71.40366943 | F34: =TSTS!T$77 -> 70.7254418 | G34: =TSTS!U$77 -> 70.88177742 | H34: =TSTS!V$77 -> 74.11983918 | I34: =TSTS!W$77 -> 71.29072587 | J34: =TSTS!X$77 -> 73.52392916 | K34: =TSTS!Y$77 -> 75.17515961 | L34: =TSTS!Z$77 -> 72.28362382 | M34: =TSTS!AA$77 -> 71.6024723 | N34: =TSTS!AB$77 -> 74.46657119 | O34: =TSTS!AC$77 -> 76.0537562 | P34: =TSTS!AD$77 -> 78.40308226 | Q34: =TSTS!AE$77 -> 81.3439762 | R34: =TSTS!AF$77 -> 83.41120243 | S34: =TSTS!AG$77 -> 84.07045819 | T34: =TSTS!AH$77 -> 86.61404335 | U34: =TSTS!AI$77 -> 89.45985854 | V34: =TSTS!AJ$77 -> 91.38594705 | W34: =TSTS!AK$77 -> 93.6747018 | X34: =TSTS!AL$77 -> 96.93254558
B35: TCP | D35: =TCP!R$77 -> 1199.049793 | E35: =TCP!S$77 -> 1294.229457 | F35: =TCP!T$77 -> 1308.335282 | G35: =TCP!U$77 -> 1333.554892 | H35: =TCP!V$77 -> 1320.795233 | I35: =TCP!W$77 -> 1273.932567 | J35: =TCP!X$77 -> 1296.10467 | K35: =TCP!Y$77 -> 1248.800343 | L35: =TCP!Z$77 -> 1263.683447 | M35: =TCP!AA$77 -> 1301.188113 | N35: =TCP!AB$77 -> 1331.695843 | O35: =TCP!AC$77 -> 1362.942655 | P35: =TCP!AD$77 -> 1394.644359 | Q35: =TCP!AE$77 -> 1430.023017 | R35: =TCP!AF$77 -> 1464.288498 | S35: =TCP!AG$77 -> 1491.102366 | T35: =TCP!AH$77 -> 1510.444442 | U35: =TCP!AI$77 -> 1541.96658 | V35: =TCP!AJ$77 -> 1580.01462 | W35: =TCP!AK$77 -> 1609.082427 | X35: =TCP!AL$77 -> 1650.318688
A38: Max demand 2015 forecast (including block loads and post-model adjustments) (Summer Maxima)
B39: 50% PoE forecast, MW
B40: Powercor | C40: 2004/05 | D40: 2005/06 | E40: 2006/07 | F40: 2007/08 | G40: 2008/09 | H40: 2009/10 | I40: 2010/11 | J40: 2011/12 | K40: 2012/13 | L40: 2013/14 | M40: 2014/15 | N40: 2015/16 | O40: 2016/17 | P40: 2017/18 | Q40: 2018/19 | R40: 2019/20 | S40: 2020/21 | T40: 2021/22 | U40: 2022/23 | V40: 2023/24 | W40: 2024/25 | X40: 2025/26
B41: ATS West | G41: ='ATS West'!U$143 -> 155.2993876 | H41: ='ATS West'!V$143 -> 161.1071594 | I41: ='ATS West'!W$143 -> 164.5138382 | J41: ='ATS West'!X$143 -> 178.6998693 | K41: ='ATS West'!Y$143 -> 179.3099801 | L41: ='ATS West'!Z$143 -> 190.2306159 | M41: ='ATS West'!AA$143 -> 191.2877692 | N41: ='ATS West'!AB$143 -> 197.9732833 | O41: ='ATS West'!AC$143 -> 204.9599427 | P41: ='ATS West'!AD$143 -> 217.0143357 | Q41: ='ATS West'!AE$143 -> 224.6727807 | R41: ='ATS West'!AF$143 -> 232.78972 | S41: ='ATS West'!AG$143 -> 241.3386219 | T41: ='ATS West'!AH$143 -> 248.940386 | U41: ='ATS West'!AI$143 -> 258.2653117 | V41: ='ATS West'!AJ$143 -> 268.0162619 | W41: ='ATS West'!AK$143 -> 278.2851477 | X41: ='ATS West'!AL$143 -> 289.1172912
B42: BATS | D42: =BATS!R$143 -> 160.9367155 | E42: =BATS!S$143 -> 173.8811893 | F42: =BATS!T$143 -> 168.1753831 | G42: =BATS!U$143 -> 177.2269826 | H42: =BATS!V$143 -> 165.0004648 | I42: =BATS!W$143 -> 158.9209724 | J42: =BATS!X$143 -> 165.3442139 | K42: =BATS!Y$143 -> 155.8980581 | L42: =BATS!Z$143 -> 165.9315271 | M42: =BATS!AA$143 -> 156.4331564 | N42: =BATS!AB$143 -> 161.7343997 | O42: =BATS!AC$143 -> 164.404388 | P42: =BATS!AD$143 -> 170.1745719 | Q42: =BATS!AE$143 -> 172.5979455 | R42: =BATS!AF$143 -> 177.3144185 | S42: =BATS!AG$143 -> 182.0639731 | T42: =BATS!AH$143 -> 183.5661429 | U42: =BATS!AI$143 -> 190.3521633 | V42: =BATS!AJ$143 -> 197.3973516 | W42: =BATS!AK$143 -> 205.0623145 | X42: =BATS!AL$143 -> 209.6453461
B43: BETS22 | E43: =BETS22!S$143 -> 42.898912 | F43: =BETS22!T$143 -> 46.79958452 | G43: =BETS22!U$143 -> 48.47139378 | H43: =BETS22!V$143 -> 50.60349287 | I43: =BETS22!W$143 -> 51.67870079 | J43: =BETS22!X$143 -> 52.1858723 | K43: =BETS22!Y$143 -> 51.20971024 | L43: =BETS22!Z$143 -> 57.08574708 | M43: =BETS22!AA$143 -> 57.32769856 | N43: =BETS22!AB$143 -> 65.63423444 | O43: =BETS22!AC$143 -> 67.49113828 | P43: =BETS22!AD$143 -> 69.87288053 | Q43: =BETS22!AE$143 -> 72.36206392 | R43: =BETS22!AF$143 -> 74.83390352 | S43: =BETS22!AG$143 -> 77.38685547 | T43: =BETS22!AH$143 -> 80.01232665 | U43: =BETS22!AI$143 -> 82.94331896 | V43: =BETS22!AJ$143 -> 86.00922062 | W43: =BETS22!AK$143 -> 88.86625641 | X43: =BETS22!AL$143 -> 92.18966407
B44: BETS66 | D44: =BETS66!R$143 -> 158.9747724 | E44: =BETS66!S$143 -> 164.8673487 | F44: =BETS66!T$143 -> 161.3162621 | G44: =BETS66!U$143 -> 169.5065142 | H44: =BETS66!V$143 -> 172.1759048 | I44: =BETS66!W$143 -> 156.057453 | J44: =BETS66!X$143 -> 162.7832708 | K44: =BETS66!Y$143 -> 163.5966588 | L44: =BETS66!Z$143 -> 165.2506621 | M44: =BETS66!AA$143 -> 155.549464 | N44: =BETS66!AB$143 -> 151.5414833 | O44: =BETS66!AC$143 -> 161.5336149 | P44: =BETS66!AD$143 -> 165.7250114 | Q44: =BETS66!AE$143 -> 171.6215416 | R44: =BETS66!AF$143 -> 174.5140596 | S44: =BETS66!AG$143 -> 177.4819403 | T44: =BETS66!AH$143 -> 182.1039449 | U44: =BETS66!AI$143 -> 186.5491751 | V44: =BETS66!AJ$143 -> 193.7896745 | W44: =BETS66!AK$143 -> 197.833512 | X44: =BETS66!AL$143 -> 205.7260515
B45: BLTS22 | D45: =BLTS22!R$143 -> 56.1953911 | E45: =BLTS22!S$143 -> 56.30416764 | F45: =BLTS22!T$143 -> 58.03542465 | G45: =BLTS22!U$143 -> 60.14683019 | H45: =BLTS22!V$143 -> 59.37853367 | I45: =BLTS22!W$143 -> 60.1404284 | J45: =BLTS22!X$143 -> 57.59186776 | L45: =BLTS22!Z$143 -> 54.81034753 | M45: =BLTS22!AA$143 -> 56.57046295 | N45: =BLTS22!AB$143 -> 59.03218048 | O45: =BLTS22!AC$143 -> 59.56940251 | P45: =BLTS22!AD$143 -> 60.29078469 | Q45: =BLTS22!AE$143 -> 60.89858602 | R45: =BLTS22!AF$143 -> 61.50727258 | S45: =BLTS22!AG$143 -> 62.08224444 | T45: =BLTS22!AH$143 -> 62.55107771 | U45: =BLTS22!AI$143 -> 62.93837041 | V45: =BLTS22!AJ$143 -> 63.51381747 | W45: =BLTS22!AK$143 -> 64.33496017 | X45: =BLTS22!AL$143 -> 65.05528894
B46: ATS-BLTS | E46: ='ATS-BLTS'!S$143 -> 147.328796 | F46: ='ATS-BLTS'!T$143 -> 151.201989 | G46: ='ATS-BLTS'!U$143 -> 158.1168928 | H46: ='ATS-BLTS'!V$143 -> 165.4527653 | I46: ='ATS-BLTS'!W$143 -> 165.7220345 | J46: ='ATS-BLTS'!X$143 -> 178.289099 | K46: ='ATS-BLTS'!Y$143 -> 172.4595595 | L46: ='ATS-BLTS'!Z$143 -> 180.1243528 | M46: ='ATS-BLTS'!AA$143 -> 177.8128897 | N46: ='ATS-BLTS'!AB$143 -> 160.1169753 | O46: ='ATS-BLTS'!AC$143 -> 163.9818746 | P46: ='ATS-BLTS'!AD$143 -> 152.5055674 | Q46: ='ATS-BLTS'!AE$143 -> 156.4681236 | R46: ='ATS-BLTS'!AF$143 -> 160.866024 | S46: ='ATS-BLTS'!AG$143 -> 164.9927266 | T46: ='ATS-BLTS'!AH$143 -> 166.6153636 | U46: ='ATS-BLTS'!AI$143 -> 171.4607564 | V46: ='ATS-BLTS'!AJ$143 -> 176.5056915 | W46: ='ATS-BLTS'!AK$143 -> 181.0892674 | X46: ='ATS-BLTS'!AL$143 -> 186.5547864
B47: GTS66 | D47: ='GTS66'!R$143 -> 349.9106041 | E47: ='GTS66'!S$143 -> 379.3976349 | F47: ='GTS66'!T$143 -> 381.0607544 | G47: ='GTS66'!U$143 -> 401.9402285 | H47: ='GTS66'!V$143 -> 404.3751439 | I47: ='GTS66'!W$143 -> 405.3959725 | J47: ='GTS66'!X$143 -> 418.3196212 | K47: ='GTS66'!Y$143 -> 406.3791121 | L47: ='GTS66'!Z$143 -> 413.739531 | M47: ='GTS66'!AA$143 -> 429.3950229 | N47: ='GTS66'!AB$143 -> 384.4911493 | O47: ='GTS66'!AC$143 -> 370.0835598 | P47: ='GTS66'!AD$143 -> 378.9848787 | Q47: ='GTS66'!AE$143 -> 388.6516133 | R47: ='GTS66'!AF$143 -> 396.3694055 | S47: ='GTS66'!AG$143 -> 406.4115679 | T47: ='GTS66'!AH$143 -> 410.1399787 | U47: ='GTS66'!AI$143 -> 421.1324846 | V47: ='GTS66'!AJ$143 -> 431.8883129 | W47: ='GTS66'!AK$143 -> 443.5849002 | X47: ='GTS66'!AL$143 -> 454.0301573
B48: HOTS66 | D48: =HOTS66!R$143 -> 77.59831533 | E48: =HOTS66!S$143 -> 86.87967372 | F48: =HOTS66!T$143 -> 90.20841619 | G48: =HOTS66!U$143 -> 93.97926123 | H48: =HOTS66!V$143 -> 91.42411908 | I48: =HOTS66!W$143 -> 90.88287563 | J48: =HOTS66!X$143 -> 94.22935038 | K48: =HOTS66!Y$143 -> 87.30430729 | L48: =HOTS66!Z$143 -> 88.63084 | M48: =HOTS66!AA$143 -> 80.83668145 | N48: =HOTS66!AB$143 -> 80.50917344 | O48: =HOTS66!AC$143 -> 83.46256446 | P48: =HOTS66!AD$143 -> 86.55590296 | Q48: =HOTS66!AE$143 -> 89.83534162 | R48: =HOTS66!AF$143 -> 93.31174237 | S48: =HOTS66!AG$143 -> 95.03399173 | T48: =HOTS66!AH$143 -> 95.98512928 | U48: =HOTS66!AI$143 -> 98.91243447 | V48: =HOTS66!AJ$143 -> 102.6872959 | W48: =HOTS66!AK$143 -> 104.4055546 | X48: =HOTS66!AL$143 -> 108.0176424
B49: KTSeast | F49: =KTSeast!T$143 -> 117.126159 | G49: =KTSeast!U$143 -> 121.6397349 | H49: =KTSeast!V$143 -> 126.7802262 | I49: =KTSeast!W$143 -> 126.3347533 | J49: =KTSeast!X$143 -> 133.2871698 | K49: =KTSeast!Y$143 -> 136.3489797 | L49: =KTSeast!Z$143 -> 140.4121355 | M49: =KTSeast!AA$143 -> 143.3209371 | N49: =KTSeast!AB$143 -> 156.8742431 | O49: =KTSeast!AC$143 -> 162.5928241 | P49: =KTSeast!AD$143 -> 166.9009174 | Q49: =KTSeast!AE$143 -> 172.3474891 | R49: =KTSeast!AF$143 -> 178.9416274 | S49: =KTSeast!AG$143 -> 183.0511506 | T49: =KTSeast!AH$143 -> 187.721727 | U49: =KTSeast!AI$143 -> 195.0123442 | V49: =KTSeast!AJ$143 -> 202.561397 | W49: =KTSeast!AK$143 -> 210.1230674 | X49: =KTSeast!AL$143 -> 218.1879901
B50: KTSwest | F50: =KTSwest!T$143 -> 175.667835 | G50: =KTSwest!U$143 -> 180.4885291 | H50: =KTSwest!V$143 -> 179.66283 | I50: =KTSwest!W$143 -> 178.6308272 | J50: =KTSwest!X$143 -> 182.5085574 | K50: =KTSwest!Y$143 -> 175.394577 | L50: =KTSwest!Z$143 -> 178.020962 | M50: =KTSwest!AA$143 -> 185.8704747 | N50: =KTSwest!AB$143 -> 192.2785997 | O50: =KTSwest!AC$143 -> 199.0527691 | P50: =KTSwest!AD$143 -> 205.7568142 | Q50: =KTSwest!AE$143 -> 211.4973653 | R50: =KTSwest!AF$143 -> 219.4284795 | S50: =KTSwest!AG$143 -> 225.3903731 | T50: =KTSwest!AH$143 -> 227.6164141 | U50: =KTSwest!AI$143 -> 236.4919139 | V50: =KTSwest!AJ$143 -> 245.9191649 | W50: =KTSwest!AK$143 -> 255.881907 | X50: =KTSwest!AL$143 -> 266.4233871
B51: KGTS22 | D51: =KGTS22!R$143 -> 11.22701797 | E51: =KGTS22!S$143 -> 10.6896374 | F51: =KGTS22!T$143 -> 10.96725032 | G51: =KGTS22!U$143 -> 11.07158238 | H51: =KGTS22!V$143 -> 11.66129026 | I51: =KGTS22!W$143 -> 11.52210242 | J51: =KGTS22!X$143 -> 11.83467248 | K51: =KGTS22!Y$143 -> 13.21382741 | L51: =KGTS22!Z$143 -> 13.17122539 | M51: =KGTS22!AA$143 -> 11.90778888 | N51: =KGTS22!AB$143 -> 11.95505869 | O51: =KGTS22!AC$143 -> 11.97764984 | P51: =KGTS22!AD$143 -> 12.16004101 | Q51: =KGTS22!AE$143 -> 12.21298017 | R51: =KGTS22!AF$143 -> 12.4144904 | S51: =KGTS22!AG$143 -> 12.53593521 | T51: =KGTS22!AH$143 -> 13.03802744 | U51: =KGTS22!AI$143 -> 13.06428067 | V51: =KGTS22!AJ$143 -> 13.20635971 | W51: =KGTS22!AK$143 -> 13.50144527 | X51: =KGTS22!AL$143 -> 13.71400721
B52: KGTS66 | D52: =KGTS66!R$143 -> 55.29135136 | E52: =KGTS66!S$143 -> 56.39128888 | F52: =KGTS66!T$143 -> 56.14042604 | G52: =KGTS66!U$143 -> 56.12196651 | H52: =KGTS66!V$143 -> 56.9154132 | I52: =KGTS66!W$143 -> 49.24030255 | J52: =KGTS66!X$143 -> 51.61400264 | K52: =KGTS66!Y$143 -> 51.68893705 | L52: =KGTS66!Z$143 -> 54.20804957 | M52: =KGTS66!AA$143 -> 51.96211004 | N52: =KGTS66!AB$143 -> 51.08763573 | O52: =KGTS66!AC$143 -> 51.26879004 | P52: =KGTS66!AD$143 -> 51.52369849 | Q52: =KGTS66!AE$143 -> 51.96242365 | R52: =KGTS66!AF$143 -> 52.62781118 | S52: =KGTS66!AG$143 -> 52.44322178 | T52: =KGTS66!AH$143 -> 52.18093351 | U52: =KGTS66!AI$143 -> 53.10531403 | V52: =KGTS66!AJ$143 -> 54.03472484 | W52: =KGTS66!AK$143 -> 54.73511161 | X52: =KGTS66!AL$143 -> 55.18143473
B53: RCTS22 | D53: =RCTS22!R$143 -> 38.7802201 | E53: =RCTS22!S$143 -> 35.4818032 | F53: =RCTS22!T$143 -> 33.29664849 | G53: =RCTS22!U$143 -> 35.22067978 | H53: =RCTS22!V$143 -> 37.9201791 | I53: =RCTS22!W$143 -> 29.87949852 | J53: =RCTS22!X$143 -> 34.96730531 | K53: =RCTS22!Y$143 -> 39.2203253 | L53: =RCTS22!Z$143 -> 41.28451302 | M53: =RCTS22!AA$143 -> 39.57038758 | N53: =RCTS22!AB$143 -> 40.33874374 | O53: =RCTS22!AC$143 -> 40.90807828 | P53: =RCTS22!AD$143 -> 41.56602452 | Q53: =RCTS22!AE$143 -> 42.36440275 | R53: =RCTS22!AF$143 -> 43.47532818 | S53: =RCTS22!AG$143 -> 44.10022167 | T53: =RCTS22!AH$143 -> 44.03841822 | U53: =RCTS22!AI$143 -> 45.23001125 | V53: =RCTS22!AJ$143 -> 46.47831666 | W53: =RCTS22!AK$143 -> 46.71234806 | X53: =RCTS22!AL$143 -> 48.03079453
B54: RCTS66 | M54: ='RCTS66 WETS'!AP$143 -> 146.757391 | N54: ='RCTS66 WETS'!AQ$143 -> 148.7916415 | O54: ='RCTS66 WETS'!AR$143 -> 150.9253288 | P54: ='RCTS66 WETS'!AS$143 -> 154.9649217 | Q54: ='RCTS66 WETS'!AT$143 -> 159.896966 | R54: ='RCTS66 WETS'!AU$143 -> 165.9305898 | S54: ='RCTS66 WETS'!AV$143 -> 168.4885267 | T54: ='RCTS66 WETS'!AW$143 -> 172.3165063 | U54: ='RCTS66 WETS'!AX$143 -> 179.0954749 | V54: ='RCTS66 WETS'!AY$143 -> 184.9074246 | W54: ='RCTS66 WETS'!AZ$143 -> 188.8220458 | X54: ='RCTS66 WETS'!BA$143 -> 195.1365443
B55: WETS | M55: ='RCTS66 WETS'!BG$143 -> 51.07854695 | N55: ='RCTS66 WETS'!BH$143 -> 47.3037274 | O55: ='RCTS66 WETS'!BI$143 -> 47.58950164 | P55: ='RCTS66 WETS'!BJ$143 -> 48.53530556 | Q55: ='RCTS66 WETS'!BK$143 -> 49.82701523 | R55: ='RCTS66 WETS'!BL$143 -> 51.54384209 | S55: ='RCTS66 WETS'!BM$143 -> 52.07317308 | T55: ='RCTS66 WETS'!BN$143 -> 53.05467815 | U55: ='RCTS66 WETS'!BO$143 -> 55.08808233 | V55: ='RCTS66 WETS'!BP$143 -> 56.82172505 | W55: ='RCTS66 WETS'!BQ$143 -> 57.91841558 | X55: ='RCTS66 WETS'!BR$143 -> 59.87792935
B56: SHTS | D56: =SHTS!R$143 -> 282.413034 | E56: =SHTS!S$143 -> 296.5891253 | F56: =SHTS!T$143 -> 279.454348 | G56: =SHTS!U$143 -> 282.4627726 | H56: =SHTS!V$143 -> 294.5376822 | I56: =SHTS!W$143 -> 262.2549628 | J56: =SHTS!X$143 -> 271.9092124 | K56: =SHTS!Y$143 -> 277.8077074 | L56: =SHTS!Z$143 -> 282.4900122 | M56: =SHTS!AA$143 -> 268.7917847 | N56: =SHTS!AB$143 -> 268.5135068 | O56: =SHTS!AC$143 -> 275.9447634 | P56: =SHTS!AD$143 -> 282.1703353 | Q56: =SHTS!AE$143 -> 287.1055373 | R56: =SHTS!AF$143 -> 294.0108207 | S56: =SHTS!AG$143 -> 297.1389511 | T56: =SHTS!AH$143 -> 299.2525798 | U56: =SHTS!AI$143 -> 302.7430553 | V56: =SHTS!AJ$143 -> 311.0846437 | W56: =SHTS!AK$143 -> 313.9340114 | X56: =SHTS!AL$143 -> 316.7875843
B57: TGTS | D57: =TGTS!R$143 -> 163.2302399 | E57: =TGTS!S$143 -> 173.9231633 | F57: =TGTS!T$143 -> 172.6972549 | G57: =TGTS!U$143 -> 181.1973127 | H57: =TGTS!V$143 -> 183.0179388 | I57: =TGTS!W$143 -> 183.0926001 | J57: =TGTS!X$143 -> 192.6783746 | K57: =TGTS!Y$143 -> 189.4595041 | L57: =TGTS!Z$143 -> 190.3416487 | M57: =TGTS!AA$143 -> 176.7229784 | N57: =TGTS!AB$143 -> 181.7133913 | O57: =TGTS!AC$143 -> 189.8485767 | P57: =TGTS!AD$143 -> 204.8479471 | Q57: =TGTS!AE$143 -> 211.3226083 | R57: =TGTS!AF$143 -> 212.6612634 | S57: =TGTS!AG$143 -> 214.5122352 | T57: =TGTS!AH$143 -> 218.8680206 | U57: =TGTS!AI$143 -> 221.8922362 | V57: =TGTS!AJ$143 -> 228.9278938 | W57: =TGTS!AK$143 -> 231.9276525 | X57: =TGTS!AL$143 -> 237.5700244
B58: TPC | D58: ='TPC reconciled'!R$143 -> 1921.000821 | E58: ='TPC reconciled'!S$143 -> 2139.058557 | F58: ='TPC reconciled'!T$143 -> 2111.366682 | G58: ='TPC reconciled'!U$143 -> 2197.096366 | H58: ='TPC reconciled'!V$143 -> 2181.707753 | I58: ='TPC reconciled'!W$143 -> 2160.506742 | J58: ='TPC reconciled'!X$143 -> 2252.423196 | K58: ='TPC reconciled'!Y$143 -> 2247.852317 | L58: ='TPC reconciled'!Z$143 -> 2300.791984 | M58: ='TPC reconciled'!AA$143 -> 2299.239102 | N58: ='TPC reconciled'!AB$143 -> 2278.666302 | O58: ='TPC reconciled'!AC$143 -> 2322.798547 | P58: ='TPC reconciled'!AD$143 -> 2384.552497 | Q58: ='TPC reconciled'!AE$143 -> 2448.372478 | R58: ='TPC reconciled'!AF$143 -> 2512.966053 | S58: ='TPC reconciled'!AG$143 -> 2565.092901 | T58: ='TPC reconciled'!AH$143 -> 2605.141319 | U58: ='TPC reconciled'!AI$143 -> 2678.791142 | V58: ='TPC reconciled'!AJ$143 -> 2765.184207 | W58: ='TPC reconciled'!AK$143 -> 2835.931074 | X58: ='TPC reconciled'!AL$143 -> 2917.260105
B59: TPC Coincidence | M59: =M58/SUM(M41:M57) -> 0.9655818091 | N59: =N58/SUM(N41:N57) -> 0.9655818091 | O59: 0.9655818091 | P59: 0.9655818091 | Q59: 0.9655818091 | R59: 0.9655818091 | S59: 0.9655818091 | T59: 0.9655818091 | U59: 0.9655818091 | V59: 0.9655818091 | W59: 0.9655818091 | X59: 0.9655818091
B61: Citipower | C61: 2004/05 | D61: 2005/06 | E61: 2006/07 | F61: 2007/08 | G61: 2008/09 | H61: 2009/10 | I61: 2010/11 | J61: 2011/12 | K61: 2012/13 | L61: 2013/14 | M61: 2014/15 | N61: 2015/16 | O61: 2016/17 | P61: 2017/18 | Q61: 2018/19 | R61: 2019/20 | S61: 2020/21 | T61: 2021/22 | U61: 2022/23 | V61: 2023/24 | W61: 2024/25 | X61: 2025/26
B62: WMTS22 | D62: =WMTS22!R$143 -> 86.19535188 | E62: =WMTS22!S$143 -> 85.2619516 | F62: =WMTS22!T$143 -> 87.46070749 | G62: =WMTS22!U$143 -> 92.59130529 | H62: =WMTS22!V$143 -> 92.82797966 | I62: =WMTS22!W$143 -> 94.11604978 | J62: =WMTS22!X$143 -> 94.01659189 | K62: =WMTS22!Y$143 -> 91.77325323 | L62: =WMTS22!Z$143 -> 91.54111346 | M62: =WMTS22!AA$143 -> 93.95256992 | N62: =WMTS22!AB$143 -> 70.17316823 | O62: =WMTS22!AC$143 -> 77.04035251 | P62: =WMTS22!AD$143 -> 80.93113291 | Q62: =WMTS22!AE$143 -> 84.46133452 | R62: =WMTS22!AF$143 -> 88.03522923 | S62: =WMTS22!AG$143 -> 91.40980111 | T62: =WMTS22!AH$143 -> 93.46916754 | U62: =WMTS22!AI$143 -> 95.82983602 | V62: =WMTS22!AJ$143 -> 97.22956201 | W62: =WMTS22!AK$143 -> 99.43299055 | X62: =WMTS22!AL$143 -> 101.72647
B63: WMTS66 | E63: =WMTS66!S$143 -> 373.3827529 | F63: =WMTS66!T$143 -> 375.6604119 | G63: =WMTS66!U$143 -> 374.8171713 | H63: =WMTS66!V$143 -> 376.5002429 | I63: =WMTS66!W$143 -> 355.4468019 | J63: =WMTS66!X$143 -> 369.8463799 | K63: =WMTS66!Y$143 -> 366.897434 | L63: =WMTS66!Z$143 -> 370.9407498 | M63: =WMTS66!AA$143 -> 374.6366875 | N63: =WMTS66!AB$143 -> 408.1767182 | O63: =WMTS66!AC$143 -> 427.3591464 | P63: =WMTS66!AD$143 -> 456.3198293 | Q63: =WMTS66!AE$143 -> 467.0753207 | R63: =WMTS66!AF$143 -> 475.0436782 | S63: =WMTS66!AG$143 -> 482.2345446 | T63: =WMTS66!AH$143 -> 482.0705201 | U63: =WMTS66!AI$143 -> 492.1403053 | V63: =WMTS66!AJ$143 -> 504.296154 | W63: =WMTS66!AK$143 -> 508.1068059 | X63: =WMTS66!AL$143 -> 519.0459063
B64: BTS22 | D64: ='BTS22'!R$143 -> 34.76314091 | E64: ='BTS22'!S$143 -> 34.92438091 | F64: ='BTS22'!T$143 -> 35.57808508 | G64: ='BTS22'!U$143 -> 36.35471833 | H64: ='BTS22'!V$143 -> 37.10515113 | I64: ='BTS22'!W$143 -> 37.32972918 | J64: ='BTS22'!X$143 -> 36.98683296 | K64: ='BTS22'!Y$143 -> 38.36156598 | L64: ='BTS22'!Z$143 -> 38.39891251 | M64: =(N64-L64)/2+L64 -> 37.51557052 | N64: ='BTS22'!AB$143 -> 36.63222854 | O64: ='BTS22'!AC$143 -> 37.91754861 | P64: ='BTS22'!AD$143 -> 39.1648163 | Q64: ='BTS22'!AE$143 -> 40.30689325 | R64: ='BTS22'!AF$143 -> 41.60534069 | S64: ='BTS22'!AG$143 -> 42.60683367 | T64: ='BTS22'!AH$143 -> 44.00217539 | U64: ='BTS22'!AI$143 -> 45.16635785 | V64: ='BTS22'!AJ$143 -> 46.27508875 | W64: ='BTS22'!AK$143 -> 47.85189352 | X64: ='BTS22'!AL$143 -> 49.58477222
B65: FBTS66 | D65: =FBTS66!R$143 -> 216.5838148 | E65: =FBTS66!S$143 -> 223.267144 | F65: =FBTS66!T$143 -> 219.4472451 | G65: =FBTS66!U$143 -> 237.0401589 | H65: =FBTS66!V$143 -> 231.4946774 | I65: =FBTS66!W$143 -> 233.4833327 | J65: =FBTS66!X$143 -> 243.4650215 | K65: =FBTS66!Y$143 -> 245.1068701 | L65: =FBTS66!Z$143 -> 247.0732808 | M65: =FBTS66!AA$143 -> 256.2149716 | N65: =FBTS66!AB$143 -> 254.8837596 | O65: =FBTS66!AC$143 -> 256.0752832 | P65: =FBTS66!AD$143 -> 260.4840917 | Q65: =FBTS66!AE$143 -> 265.2023434 | R65: =FBTS66!AF$143 -> 269.9022378 | S65: =FBTS66!AG$143 -> 275.395883 | T65: =FBTS66!AH$143 -> 279.2323377 | U65: =FBTS66!AI$143 -> 284.1137455 | V65: =FBTS66!AJ$143 -> 291.0806874 | W65: =FBTS66!AK$143 -> 296.4711057 | X65: =FBTS66!AL$143 -> 303.8335464
B66: RTS22 | D66: ='RTS22'!R$143 -> 77.88175485 | E66: ='RTS22'!S$143 -> 84.67145897 | F66: ='RTS22'!T$143 -> 82.66956414 | G66: ='RTS22'!U$143 -> 75.82349454 | H66: ='RTS22'!V$143 -> 75.16539401 | I66: ='RTS22'!W$143 -> 71.62092644 | J66: ='RTS22'!X$143 -> 73.43911042 | K66: ='RTS22'!Y$143 -> 69.97418045 | L66: ='RTS22'!Z$143 -> 67.85607524 | M66: ='RTS22'!AA$143 -> 70.11797169 | N66: ='RTS22'!AB$143 -> 43.28342085 | O66: ='RTS22'!AC$143 -> 45.74306731 | P66: ='RTS22'!AD$143 -> 68.2518177 | Q66: ='RTS22'!AE$143 -> 70.67209334 | R66: ='RTS22'!AF$143 -> 72.83206934 | S66: ='RTS22'!AG$143 -> 73.86539453 | T66: ='RTS22'!AH$143 -> 73.11053301 | U66: ='RTS22'!AI$143 -> 74.39733792 | V66: ='RTS22'!AJ$143 -> 75.40184573 | W66: ='RTS22'!AK$143 -> 75.54995732 | X66: ='RTS22'!AL$143 -> 77.02723039
B67: RTS66_1_2 | F67: =RTS66_1_2!T$143 -> 246.6864307 | G67: =RTS66_1_2!U$143 -> 248.1813809 | H67: =RTS66_1_2!V$143 -> 252.5404453 | I67: =RTS66_1_2!W$143 -> 243.4919921 | J67: =RTS66_1_2!X$143 -> 248.6485749 | K67: =RTS66_1_2!Y$143 -> 248.4051542 | L67: =RTS66_1_2!Z$143 -> 246.4457483 | M67: =RTS66_1_2!AA$143 -> 244.1279966 | N67: =RTS66_1_2!AB$143 -> 279.0565437 | O67: =RTS66_1_2!AC$143 -> 280.1759836 | P67: =RTS66_1_2!AD$143 -> 284.4069959 | Q67: =RTS66_1_2!AE$143 -> 286.2849392 | R67: =RTS66_1_2!AF$143 -> 289.1814944 | S67: =RTS66_1_2!AG$143 -> 289.976519 | T67: =RTS66_1_2!AH$143 -> 290.9759112 | U67: =RTS66_1_2!AI$143 -> 292.6028083 | V67: =RTS66_1_2!AJ$143 -> 295.1301859 | W67: =RTS66_1_2!AK$143 -> 296.1649925 | X67: =RTS66_1_2!AL$143 -> 297.9385624
B68: RTS66_3_4 | F68: =RTS66_3_4!T$143 -> 214.1382801 | G68: =RTS66_3_4!U$143 -> 216.7844381 | H68: =RTS66_3_4!V$143 -> 217.1882508 | I68: =RTS66_3_4!W$143 -> 213.8264256 | J68: =RTS66_3_4!X$143 -> 213.2121172 | K68: =RTS66_3_4!Y$143 -> 209.7930171 | L68: =RTS66_3_4!Z$143 -> 210.0812379 | M68: =RTS66_3_4!AA$143 -> 213.8530438 | N68: =RTS66_3_4!AB$143 -> 221.6687451 | O68: =RTS66_3_4!AC$143 -> 226.5213082 | P68: =RTS66_3_4!AD$143 -> 230.4185439 | Q68: =RTS66_3_4!AE$143 -> 235.5212817 | R68: =RTS66_3_4!AF$143 -> 241.2334472 | S68: =RTS66_3_4!AG$143 -> 243.8038585 | T68: =RTS66_3_4!AH$143 -> 247.7673659 | U68: =RTS66_3_4!AI$143 -> 251.4667539 | V68: =RTS66_3_4!AJ$143 -> 256.910509 | W68: =RTS66_3_4!AK$143 -> 262.6943425 | X68: =RTS66_3_4!AL$143 -> 268.8144801
B69: SVTS | F69: =SVTS!T$143 -> 35.33394537 | G69: =SVTS!U$143 -> 35.51954575 | H69: =SVTS!V$143 -> 37.51447866 | I69: =SVTS!W$143 -> 35.84693344 | J69: =SVTS!X$143 -> 36.2726728 | K69: =SVTS!Y$143 -> 39.54958523 | L69: =SVTS!Z$143 -> 36.19840132 | M69: =SVTS!AA$143 -> 34.37865839 | N69: =SVTS!AB$143 -> 35.46790435 | O69: =SVTS!AC$143 -> 36.61654223 | P69: =SVTS!AD$143 -> 37.80100621 | Q69: =SVTS!AE$143 -> 38.57590294 | R69: =SVTS!AF$143 -> 39.87087216 | S69: =SVTS!AG$143 -> 40.97757759 | T69: =SVTS!AH$143 -> 42.41532092 | U69: =SVTS!AI$143 -> 42.39518371 | V69: =SVTS!AJ$143 -> 43.88052751 | W69: =SVTS!AK$143 -> 45.43333925 | X69: =SVTS!AL$143 -> 46.68816435
B70: TSTS | D70: =TSTS!R$143 -> 67.09928914 | E70: =TSTS!S$143 -> 71.40366943 | F70: =TSTS!T$143 -> 70.7254418 | G70: =TSTS!U$143 -> 70.88177742 | H70: =TSTS!V$143 -> 74.11983918 | I70: =TSTS!W$143 -> 71.29072587 | J70: =TSTS!X$143 -> 73.52392916 | K70: =TSTS!Y$143 -> 75.17515961 | L70: =TSTS!Z$143 -> 72.28362382 | M70: =TSTS!AA$143 -> 71.6024723 | N70: =TSTS!AB$143 -> 74.06558772 | O70: =TSTS!AC$143 -> 75.26056138 | P70: =TSTS!AD$143 -> 77.17491611 | Q70: =TSTS!AE$143 -> 79.68203784 | R70: =TSTS!AF$143 -> 81.33013925 | S70: =TSTS!AG$143 -> 81.58887489 | T70: =TSTS!AH$143 -> 83.7602983 | U70: =TSTS!AI$143 -> 86.2355022 | V70: =TSTS!AJ$143 -> 87.72784512 | W70: =TSTS!AK$143 -> 89.57478011 | X70: =TSTS!AL$143 -> 92.38689532
B71: TCP | D71: =TCP!R$143 -> 1199.049793 | E71: =TCP!S$143 -> 1294.229457 | F71: =TCP!T$143 -> 1308.335282 | G71: =TCP!U$143 -> 1333.554892 | H71: =TCP!V$143 -> 1320.795233 | I71: =TCP!W$143 -> 1273.932567 | J71: =TCP!X$143 -> 1296.10467 | K71: =TCP!Y$143 -> 1248.800343 | L71: =TCP!Z$143 -> 1263.683447 | M71: =TCP!AA$143 -> 1301.188113 | N71: =TCP!AB$143 -> 1328.366875 | O71: =TCP!AC$143 -> 1365.04441 | P71: =TCP!AD$143 -> 1432.464065 | Q71: =TCP!AE$143 -> 1463.101064 | R71: =TCP!AF$143 -> 1492.2667 | S71: =TCP!AG$143 -> 1513.567464 | T71: =TCP!AH$143 -> 1527.513971 | U71: =TCP!AI$143 -> 1553.219041 | V71: =TCP!AJ$143 -> 1584.561168 | W71: =TCP!AK$143 -> 1606.350033 | X71: =TCP!AL$143 -> 1639.727763
B72: TCP Coincidence | F72: =F71/SUM(F62:F70) -> 0.9565951415 | G72: =G71/SUM(G62:G70) -> 0.9607785779 | H72: 0.9471756713 | I72: 0.9391646042 | J72: 0.9328445323 | K72: 0.9016373183 | L72: 0.9151694146 | M72: 0.9318162179 | N72: 0.9332298286 | O72: 0.9332298286 | P72: 0.9332298286 | Q72: 0.9332298286 | R72: 0.9332298286 | S72: 0.9332298286 | T72: 0.9332298286 | U72: 0.9332298286 | V72: 0.9332298286 | W72: 0.9332298286 | X72: 0.9332298286
A75: Max demand 2014 forecasts (including block loads and post-model adjustments) (Summer maxima)
B76: 50% PoE forecast, MW
B77: Powercor | C77: 2004/05 | D77: 2005/06 | E77: 2006/07 | F77: 2007/08 | G77: 2008/09 | H77: 2009/10 | I77: 2010/11 | J77: 2011/12 | K77: 2012/13 | L77: 2013/14 | M77: 2014/15 | N77: 2015/16 | O77: 2016/17 | P77: 2017/18 | Q77: 2018/19 | R77: 2019/20 | S77: 2020/21 | T77: 2021/22 | U77: 2022/23 | V77: 2023/24
B78: ATS West | G78: 167.6444406 | H78: 163.2467403 | I78: 176.7474201 | J78: 184.3534521 | K78: 186.9059061 | L78: 186.8586361 | M78: 206.0756702 | N78: 218.6342029 | O78: 237.2423082 | P78: 248.408372 | Q78: 259.5497637 | R78: 269.7669908 | S78: 277.3203388 | T78: 291.628319 | U78: 303.7854811 | V78: 317.3624071
B79: BATS | C79: 160.8355199 | D79: 175.2719824 | E79: 167.2395912 | F79: 169.2507982 | G79: 166.8002154 | H79: 159.7876056 | I79: 166.6235609 | J79: 157.2785348 | K79: 169.471281 | L79: 168.3797255 | M79: 173.1906442 | N79: 179.4051721 | O79: 183.755765 | P79: 185.2198622 | Q79: 188.5844098 | R79: 191.9420593 | S79: 188.1254406 | T79: 195.3569037 | U79: 200.6903776 | V79: 204.2380455
B80: BETS22 | D80: 43.73973231 | E80: 46.82772825 | F80: 45.61302616 | G80: 50.00058097 | H80: 50.23166325 | I80: 49.50029861 | J80: 52.43429069 | K80: 58.83325627 | L80: 61.43496178 | M80: 62.40157513 | N80: 64.63949281 | O80: 68.13649871 | P80: 71.40887021 | Q80: 74.77159584 | R80: 77.46278803 | S80: 79.95167488 | T80: 84.26962921 | U80: 88.33985523 | V80: 92.75473951
B81: BETS66 | C81: 160.14907 | D81: 163.3958862 | E81: 161.1155213 | F81: 168.6781126 | G81: 170.7879721 | H81: 155.2145238 | I81: 164.6371237 | J81: 164.3221816 | K81: 171.5719752 | L81: 168.0500164 | M81: 175.7685592 | N81: 179.6311205 | O81: 185.4574359 | P81: 184.7260781 | Q81: 185.0385837 | R81: 185.700963 | S81: 190.8518683 | T81: 193.8731972 | U81: 200.1651846 | V81: 200.6339991
B82: BLTS22 | C82: 56.33019339 | D82: 56.97179813 | E82: 58.71132857 | F82: 58.67290591 | G82: 58.00838391 | H82: 59.26297573 | I82: 58.130903 | K82: 55.89841789 | L82: 58.40850466 | M82: 59.30734776 | N82: 60.03718264 | O82: 60.75570173 | P82: 61.29629836 | Q82: 61.84228648 | R82: 62.25593499 | S82: 62.47137584 | T82: 63.06672083 | U82: 63.91412004 | V82: 64.23109562
B83: ATS-BLTS | E83: 144.9366465 | F83: 153.3590589 | G83: 170.8073374 | H83: 170.9371448 | I83: 177.4437739 | J83: 170.8513358 | K83: 187.6569069 | L83: 235.0560273 | M83: 214.6866068 | N83: 234.8244836 | O83: 234.9487602 | P83: 237.968006 | Q83: 247.8159334 | R83: 257.8644388 | S83: 267.2633615 | T83: 279.4594325 | U83: 291.1732539 | V83: 302.0564244
B84: GTS66 | C84: 353.4524779 | D84: 377.8517097 | E84: 391.4354155 | F84: 381.9306629 | G84: 396.2436456 | H84: 398.2803481 | I84: 416.1153956 | J84: 414.8763357 | K84: 427.5139205 | L84: 455.7764675 | M84: 480.9465417 | N84: 498.118237 | O84: 526.8539911 | P84: 534.5255862 | Q84: 558.9710043 | R84: 585.8003754 | S84: 606.6826803 | T84: 634.6557564 | U84: 673.6517901 | V84: 702.2748097
B85: HOTS66 | C85: 78.34504721 | D85: 88.37558431 | E85: 91.29002769 | F85: 88.06147912 | G85: 96.44930856 | H85: 91.94991295 | I85: 94.20175654 | J85: 87.38563576 | K85: 90.55584226 | L85: 93.43920357 | M85: 93.61388348 | N85: 96.08643557 | O85: 99.66513656 | P85: 102.9589 | Q85: 103.4636914 | R85: 106.4179584 | S85: 106.4076545 | T85: 111.179089 | U85: 114.1122544 | V85: 115.5258971
B86: KTSeast | E86: 118.9996385 | F86: 118.108317 | G86: 125.8773076 | H86: 128.5068474 | I86: 130.0514356 | J86: 135.1089175 | K86: 142.9031736 | L86: 146.39094 | M86: 152.5215109 | N86: 158.1961282 | O86: 163.9832859 | P86: 169.205325 | Q86: 174.8390257 | R86: 179.8602939 | S86: 184.1814366 | T86: 192.4153405 | U86: 199.5400809 | V86: 206.5241993
B87: KTSwest | E87: 175.4210568 | F87: 172.3180255 | G87: 179.3593523 | H87: 177.3069216 | I87: 184.3455695 | J87: 178.0364796 | K87: 180.3578849 | L87: 192.5541629 | M87: 204.2326366 | N87: 208.7277471 | O87: 217.1708802 | P87: 222.0350934 | Q87: 227.6023974 | R87: 233.4729892 | S87: 235.4011472 | T87: 243.2600281 | U87: 252.3036198 | V87: 259.3906405
B88: KGTS22 | C88: 11.27404079 | D88: 11.38574995 | E88: 11.43023367 | F88: 11.11253816 | G88: 11.32252796 | H88: 12.19364157 | I88: 12.0924771 | J88: 12.45139581 | K88: 12.69089546 | L88: 12.48659548 | M88: 14.12996526 | N88: 14.84665994 | O88: 16.42849922 | P88: 17.78897413 | Q88: 18.13331306 | R88: 18.20925348 | S88: 18.65416289 | T88: 19.10240527 | U88: 20.26728225 | V88: 21.01283981
B89: KGTS66 | C89: 56.87015356 | D89: 55.57463224 | E89: 55.21531106 | F89: 54.73369336 | G89: 57.97994388 | H89: 48.31323274 | I89: 53.98850627 | J89: 51.40300417 | K89: 54.21984429 | L89: 54.04541914 | M89: 56.54124812 | N89: 56.75514547 | O89: 56.93011569 | P89: 56.31197184 | Q89: 56.38747025 | R89: 56.56297919 | S89: 56.5008119 | T89: 56.57958593 | U89: 57.83541475 | V89: 56.94429683
B90: RCTS22 | C90: 38.38396349 | D90: 34.36645426 | E90: 33.36096027 | F90: 34.16626302 | G90: 38.40750313 | H90: 30.384204 | I90: 34.97987063 | J90: 40.63036105 | K90: 40.85078631 | L90: 39.03068467 | M90: 42.63254905 | N90: 43.03905654 | O90: 43.79591755 | P90: 44.76268635 | Q90: 46.26814346 | R90: 46.94341564 | S90: 47.85400297 | T90: 48.62449763 | U90: 50.13906545 | V90: 50.53235091
B91: RCTS66 | L91: 170.3609855 | M91: 183.1461421 | N91: 204.4658701 | O91: 215.8261609 | P91: 219.7924888 | Q91: 228.8212591 | R91: 235.661735 | S91: 246.6961993 | T91: 257.4890065 | U91: 277.2072762 | V91: 285.6352544
B92: WETS | L92: 48.57665452 | M92: 50.62666046 | N92: 47.19726933 | O92: 47.42474417 | P92: 47.38623885 | Q92: 47.46890513 | R92: 47.44226924 | S92: 47.4985199 | T92: 47.49826352 | U92: 47.72351587 | V92: 44.21839102
B93: SHTS | C93: 280.039249 | D93: 293.7456354 | E93: 282.0962132 | F93: 274.9267582 | G93: 290.6498387 | H93: 261.8949406 | I93: 272.5977137 | J93: 283.4190408 | K93: 283.1773813 | L93: 274.3325706 | M93: 279.5484638 | N93: 284.4448347 | O93: 289.612476 | P93: 291.4640604 | Q93: 318.3269295 | R93: 314.8373969 | S93: 313.6758278 | T93: 318.7005544 | U93: 322.0502789 | V93: 322.1697101
B94: TGTS | C94: 161.0611296 | D94: 174.9640285 | E94: 173.0127603 | F94: 177.9005641 | G94: 183.3820183 | H94: 183.9964911 | I94: 194.2127225 | J94: 189.8555507 | K94: 194.6975621 | L94: 193.4592201 | M94: 194.6285608 | N94: 212.3310951 | O94: 224.905494 | P94: 241.3531135 | Q94: 250.6649819 | R94: 249.8680601 | S94: 248.1736429 | T94: 247.6600131 | U94: 251.7427378 | V94: 252.8013851
B95: TPC | C95: 1949.59021 | D95: 2148.490086 | E95: 2132.259932 | F95: 2154.228194 | G95: 2211.049608 | H95: 2172.975103 | I95: 2280.30319 | J95: 2281.004371 | K95: 2334.501697 | L95: 2522.439262 | M95: 2521.692917 | N95: 2634.88764 | O95: 2719.391357 | P95: 2756.125826 | Q95: 2858.98439 | R95: 2922.591889 | S95: 2975.577904 | T95: 3032.921224 | U95: 3162.446121 | V95: 3227.338532
B97: Citipower | C97: 2004/05 | D97: 2005/06 | E97: 2006/07 | F97: 2007/08 | G97: 2008/09 | H97: 2009/10 | I97: 2010/11 | J97: 2011/12 | K97: 2012/13 | L97: 2013/14 | M97: 2014/15 | N97: 2015/16 | O97: 2016/17 | P97: 2017/18 | Q97: 2018/19 | R97: 2019/20 | S97: 2020/21 | T97: 2021/22 | U97: 2022/23 | V97: 2023/24
B98: WMTS22 | C98: 86.83965017 | D98: 85.10225851 | E98: 86.945689 | F98: 90.22974253 | G98: 90.99437959 | H98: 95.39389733 | I98: 95.14126321 | J98: 95.62128662 | K98: 96.66029551 | L98: 99.19359081 | M98: 92.24972013 | N98: 98.64113699 | O98: 103.4647355 | P98: 107.4507317 | Q98: 110.6377301 | R98: 112.8623192 | S98: 113.6107338 | T98: 114.0346461 | U98: 113.8631532 | V98: 112.2760931
B99: WMTS66 | E99: 370.7842158 | F99: 363.7822283 | G99: 377.235413 | H99: 359.0088151 | I99: 370.7483293 | J99: 381.8293687 | K99: 376.8462093 | L99: 389.0463736 | M99: 407.8826963 | N99: 459.183028 | O99: 471.8188291 | P99: 483.9804637 | Q99: 494.7451702 | R99: 500.1757839 | S99: 506.4975574 | T99: 513.9895401 | U99: 523.9723753 | V99: 532.7527611
B100: BTS22 | C100: 34.90436304 | D100: 36.24491568 | E100: 35.22055615 | F100: 35.80422323 | G100: 37.31566882 | H100: 38.47005886 | I100: 37.70081195 | J100: 38.38217752 | K100: 38.84834692 | L100: 40.1439285 | M100: 41.67080403 | N100: 43.29816536 | O100: 44.72454923 | P100: 45.62810954 | Q100: 46.96368197 | R100: 47.70530654 | S100: 48.56813153 | T100: 49.43574125 | U100: 50.08975059 | V100: 50.84520022
B101: FBTS66 | C101: 214.4126798 | D101: 222.4909536 | E101: 222.1335392 | F101: 231.0440246 | G101: 230.5704142 | H101: 234.5148479 | I101: 243.3604919 | J101: 247.3807594 | K101: 249.5610065 | L101: 260.2334147 | M101: 288.5843061 | N101: 300.8372819 | O101: 317.0427446 | P101: 333.5801836 | Q101: 338.8563484 | R101: 341.9011309 | S101: 354.0194458 | T101: 356.9079345 | U101: 362.9071381 | V101: 369.2708319
B102: RTS22 | C102: 77.52621326 | D102: 82.70415047 | E102: 80.25088474 | F102: 72.96155845 | G102: 77.2260786 | H102: 72.58469302 | I102: 75.55515979 | J102: 70.56826868 | K102: 68.03966206 | L102: 74.60817628 | M102: 66.78150333 | N102: 55.09858636 | O102: 56.84855648 | P102: 57.8247646 | Q102: 58.26386843 | R102: 57.95540039 | S102: 56.38391771 | T102: 55.9421033 | U102: 55.55507823 | V102: 54.51575544
B103: RTS66_1_4 | E103: 248.000378 | F103: 243.1948042 | G103: 245.8638661 | H103: 242.5324162 | I103: 249.488489 | J103: 253.4989222 | K103: 245.0126866 | L103: 262.2606849 | M103: 274.9593519 | N103: 293.5041174 | O103: 295.9360594 | P103: 297.1467509 | Q103: 299.1956488 | R103: 298.0408296 | S103: 296.3345707 | T103: 295.4386301 | U103: 296.498167 | V103: 294.4827233
B104: RTS66_2_3 | E104: 216.4217386 | F104: 209.3301772 | G104: 213.6289359 | H104: 212.4000762 | I104: 216.4086968 | J104: 213.6103337 | K104: 214.2580585 | L104: 222.8943911 | M104: 232.7102439 | N104: 240.6460942 | O104: 245.2739114 | P104: 249.0519167 | Q104: 252.0845846 | R104: 254.01297 | S104: 252.3345063 | T104: 255.3197789 | U104: 258.3697298 | V104: 258.745393
B105: SVTS | E105: 34.01450875 | F105: 35.01833488 | G105: 37.81514555 | H105: 36.27655872 | I105: 37.75189406 | J105: 37.89225635 | K105: 38.53896689 | L105: 41.82614258 | M105: 43.64448478 | N105: 45.74630527 | O105: 47.02305869 | P105: 46.85067775 | Q105: 47.65991708 | R105: 48.62462351 | S105: 49.82073888 | T105: 50.81314269 | U105: 52.42183649 | V105: 52.69790049
B106: TSTS | C106: 67.68332388 | D106: 72.2470871 | E106: 71.46948373 | F106: 69.72714461 | G106: 72.83843084 | H106: 71.39722059 | I106: 73.86102894 | J106: 74.51920803 | K106: 73.9974889 | L106: 76.9520524 | M106: 79.46479421 | N106: 81.77725861 | O106: 83.03278331 | P106: 84.67508031 | Q106: 85.07945683 | R106: 85.64853847 | S106: 85.80120508 | T106: 85.92462272 | U106: 86.54762208 | V106: 86.81187284
B107: TCP | C107: 1287.258226 | D107: 1375.542585 | E107: 1371.354623 | F107: 1353.30124 | G107: 1387.683606 | H107: 1363.376873 | I107: 1397.758609 | J107: 1404.55785 | K107: 1401.060558 | L107: 1423.182414 | M107: 1497.668757 | N107: 1581.197702 | O107: 1641.560767 | P107: 1679.859103 | Q107: 1712.160668 | R107: 1712.725541 | S107: 1732.198836 | T107: 1741.266286 | U107: 1748.739422 | V107: 1756.622133
A110: PoE level actual maxima winter 2014 and summer 2014/15
C111: Summer PoE | D111: Winter PoE | E111: Annual PoE | G111: FA PoE | H111: Summer PoE | I111: MW 50POE | J111: MW 10POE
C112: 2014/15 | D112: 2014 | E112: 2015 | H112: 2014/15
B113: Powercor
B114: ATS West | C114: 0.783 | D114: 0.963 | E114: 0.783 | G114: ATS_WEST | H114: 0.88 | I114: 214.8 | J114: 244.6
B115: BATS | C115: 0.729 | D115: 0.971 | E115: 0.993 | G115: BATS | H115: 0.95 | I115: 178.9 | J115: 201.7
B116: BETS22 | C116: 0.64 | D116: 0.003 | E116: 0.64 | G116: BETS 22 | H116: 0.88 | I116: 57.2 | J116: 63.1
B117: BETS66 | C117: 0.679 | D117: 0.176 | E117: 0.679 | G117: BETS 66 | H117: 0.86 | I117: 172.1 | J117: 189.5
B118: BLTS22 | C118: 0.599 | D118: 0.002 | E118: 0.599 | G118: BLTS 22 | H118: 0.99 | I118: 69.7 | J118: 72.1
B119: ATS-BLTS | C119: 0.853 | D119: 0.619 | E119: 0.941 | G119: ATS_BLTS | H119: 0.8 | I119: 198 | J119: 211.5
B120: GTS66 | C120: 0.884 | D120: 0.889 | E120: 0.884 | G120: GTS | H120: 0.56 | I120: 389.4 | J120: 447.1
B121: HOTS66 | C121: 0.574 | D121: 0.02 | E121: 0.574 | G121: HOTS | H121: 0.89 | I121: 91 | J121: 105.1
B122: KTSeast | C122: 0.962 | D122: 0.02 | E122: 0.962 | G122: KTS_East | H122: 0.98 | I122: 156 | J122: 174.8
B123: KTSwest | C123: 0.967 | D123: 0.539 | E123: 0.967 | G123: KTS_West | H123: 0.87 | I123: 185.2 | J123: 213.1
B124: KGTS22 | C124: 0.67 | D124: 0.998 | E124: 0.998 | G124: KGTS 22 | H124: 0.52 | I124: 11.7 | J124: 12.8
B125: KGTS66 | C125: 0.396 | D125: 0 | E125: 0.396 | G125: KGTS 66 | H125: 0.6 | I125: 53.9 | J125: 59.3
B126: RCTS22 | C126: 0.537 | D126: 0.005 | E126: 0.537 | G126: RCTS 22 | H126: 0.62 | I126: 42.4 | J126: 48
B127: RCTS66 | C127: 0.619 | D127: 0.026 | E127: 0.619 | G127: RCTS 66 | H127: 0.76 | I127: 135.8 | J127: 147.6
B128: WETS | C128: 0.619 | D128: 0.026 | E128: 0.619 | G128: WETS | H128: 0.95 | I128: 54.9 | J128: 60.6
B129: SHTS | C129: 0.568 | D129: 0 | E129: 0.568 | G129: SHTS | H129: 0.54 | I129: 275.6 | J129: 303.9
B130: TGTS | C130: 0.688 | D130: 0.264 | E130: 0.47 | G130: TGTS | H130: 0.9 | I130: 189.2 | J130: 204.1
B131: TPC | C131: 0.96 | D131: 0.654 | E131: 0.96
B133: Citipower
B134: WMTS22 | C134: 0.99 | D134: 0 | E134: 0.827 | G134: WMTS 22 | H134: 0.96 | I134: 67.3 | J134: 72
B135: WMTS66 | C135: 1 | D135: 1 | E135: 1 | G135: WMTS 66 | H135: 0.99 | I135: 374.5 | J135: 402.4
B136: BTS22 | C136: 0.338 | D136: 0.279 | E136: 0.294 | G136: BTS 22 | H136: 0.9 | I136: 41 | J136: 46.9
B137: FBTS66 | C137: 1 | D137: 1 | E137: 1 | G137: FBTS | H137: 0.97 | I137: 249 | J137: 269.3
B138: RTS22 | C138: 1 | D138: 0.003 | E138: 1 | G138: RTS 22 | H138: 0.56 | I138: 52.5 | J138: 56.6
B139: RTS66_1_2 | C139: 0.826 | D139: 0.898 | E139: 0.829 | G139: RTS12 | H139: 0.91 | I139: 276.4 | J139: 309.7
B140: RTS66_3_4 | C140: 0.958 | D140: 0.999 | E140: 0.958 | G140: RTS34 | H140: 0.91 | I140: 211 | J140: 224.6
B141: SVTS | C141: 0.986 | D141: 0.817 | E141: 0.986 | G141: SVTS | H141: 0.82 | I141: 31.9 | J141: 40
B142: TSTS | C142: 0.925 | D142: 0.415 | E142: 0.926 | G142: TSTS | H142: 0.98 | I142: 85.6 | J142: 104.8
B143: TCP | C143: 0.864 | D143: 0.936 | E143: 0.864
A147: Comparison of 2014 and 2015 MD forcasts (before post modelling adjustments)(Summer maxima) | J147: Comparison of 2014 and 2015 MD forcasts (including block loads and post-model adjustments)(Summer maxima)
B148: 50% PoE forecast | C148: Actual growth to 2015 (%) | D148: Forecast growth 2014 to 2024 (%) | E148: Forecast growth 2015 to 2025 (%) | H148: Forecast growth 2015 to 2025 (%) | J148: 50% PoE forecast | K148: Forecast growth 2015 to 2020 (%) | L148: Forecast growth 2015 to 2020 (%) | M148: Forecast growth 2015 to 2020 (%) | N148: Forecast growth 2015 to 2020 (%) | P148: Forecast growth 2014 to 2024 (%) | Q148: Forecast growth 2014 to 2024 (%) | R148: Forecast growth 2015 to 2025 (%) | S148: Forecast growth 2015 to 2025 (%)
D149: CIE 2014 forecast | E149: CIE 2015 forecast | H149: CIE 2015 forecast | K149: CIE 2014 forecast | L149: CIE 2014 forecast | M149: CIE 2015 forecast | N149: CIE 2015 forecast | P149: CIE 2014 forecast | Q149: CIE 2014 forecast | R149: CIE 2015 forecast | S149: CIE 2015 forecast
B150: Powercor | D150: uncapped | E150: Before capping | F150: Pre Adjust Start Point Adjust | G150: Pre Adjust Growth Cap% | H150: capped 4% | J150: Powercor | K150: uncapped | L150: capped 4% | M150: Before capping | N150: capped 4% | P150: uncapped | Q150: capped 4% | R150: Before capping | S150: capped 4%
B151: ATS West | C151: =(M6/G6)^(1/6)*100-100 -> 3.534774802 | D151: 5.94179867 | E151: 6.265771392 | F151: 1 | G151: 0.04 | H151: =(W6/M6)^(1/10)*100-100 -> 3.945693673 | J151: ATS West | K151: =(R78/M78)^(1/5)*100-100 -> 5.534004385 | L151: 3.9 | M151: 7.109157722 | N151: =(R41/M41)^(1/5)*100-100 -> 4.005263614 | P151: =(V78/L78)^(1/10)*100-100 -> 5.439716778 | Q151: 3.4 | R151: 6.162691643 | S151: =(W41/M41)^(1/10)*100-100 -> 3.819822634
B152: BATS | C152: =(M7/D7)^(1/9)*100-100 -> -0.3148634112 | D152: 3.018477127 | E152: 3.427179443 | F152: 1 | G152: =G151 -> 0.04 | H152: 3.021751207 | J152: BATS | K152: 2.07729301 | L152: 2.2 | M152: 3.364514117 | N152: 2.53757655 | P152: 1.949402506 | Q152: 1.9 | R152: 3.159026842 | S152: 2.74381905
B153: BETS22 | C153: =(M8/E8)^(1/8)*100-100 -> 3.690693395 | D153: 4.204491126 | E153: 4.382485614 | F153: 1 | G153: 0.04 | H153: 3.813111832 | J153: BETS22 | K153: 4.418996302 | L153: 5.5 | M153: 6.024275244 | N153: 5.47433077 | P153: 4.205838318 | Q153: 4.7 | R153: 5.019232149 | S153: 4.480980076
B154: BETS66 | C154: =(M9/D9)^(1/9)*100-100 -> -0.2417267965 | D154: 2.483762607 | E154: 2.57639704 | F154: 1 | G154: 0.04 | H154: 2.57639704 | J154: BETS66 | K154: 1.105456089 | L154: 0.8 | M154: 2.327503922 | N154: 2.327503922 | P154: 1.788003729 | Q154: 1.3 | R154: 2.433764642 | S154: 2.433764642
B155: BLTS22 | C155: =(M10/D10)^(1/9)*100-100 -> 0.07394119357 | D155: 1.737149545 | E155: 1.491791435 | F155: 1 | G155: 0.04 | H155: 1.491791435 | J155: BLTS22 | K155: 0.9751370835 | L155: 1.1 | M155: 1.687447799 | N155: 1.687447799 | P155: 0.9547887193 | Q155: 1 | R155: 1.294468583 | S155: 1.294468583
B156: ATS-BLTS | C156: =(M11/E11)^(1/8)*100-100 -> 2.378662142 | D156: 4.414722555 | E156: 3.197214333 | F156: 1 | G156: 0.04 | H156: 2.896686244 | J156: ATS-BLTS | K156: 3.73308657 | L156: 3.1 | M156: -1.791473312 | N156: -1.983268205 | P156: 2.539611706 | Q156: 2.8 | R156: 0.4061048736 | S156: 0.182749623
B157: GTS66 | C157: =(M12/D12)^(1/9)*100-100 -> 2.300502486 | D157: 5.257119915 | E157: 1.283475656 | F157: 1 | G157: 0.04 | H157: 1.283475656 | J157: GTS66 | K157: 4.023285824 | L157: 2.9 | M157: -1.587871773 | N157: -1.587871773 | P157: 4.41803575 | Q157: 3.2 | R157: 0.3256482963 | S157: 0.3256482963
B158: HOTS66 | C158: =(M13/D13)^(1/9)*100-100 -> 0.4553125636 | D158: 2.632430556 | E158: 2.993693088 | F158: 1 | G158: 0.04 | H158: 2.744839234 | J158: HOTS66 | K158: 2.597063856 | L158: 2.2 | M158: 3.417632699 | N158: 2.911892445 | P158: 2.144508295 | Q158: 2.1 | R158: 2.843711261 | S158: 2.591531439
B159: KTSeast | C159: =(M14/F14)^(1/7)*100-100 -> 2.925325289 | D159: 3.688304276 | E159: 3.585316371 | F159: 1 | G159: 0.04 | H159: 3.472051044 | J159: KTSeast | K159: 3.35246519 | L159: 3.5 | M159: 4.616528997 | N159: 4.53948318 | P159: 3.501269041 | Q159: 3.4 | R159: 4.009361008 | S159: 3.90020616
B160: KTSwest | C160: =(M15/F15)^(1/7)*100-100 -> 0.8097631072 | D160: 3.866856847 | E160: 3.873373788 | F160: 1 | G160: 0.04 | H160: 3.506103204 | J160: KTSwest | K160: 2.712263481 | L160: 3.3 | M160: 3.645041558 | N160: 3.37523673 | P160: 3.024410676 | Q160: 2.9 | R160: 3.62375921 | S160: 3.248301758
B161: KGTS22 | C161: =(M16/D16)^(1/9)*100-100 -> 0.6562497421 | D161: 5.215185566 | E161: 1.392895501 | F161: 1 | G161: 0.04 | H161: 1.285189778 | J161: KGTS22 | K161: 5.203505068 | L161: 4.2 | M161: 0.8369158611 | N161: 0.8369158611 | P161: 5.342609115 | Q161: 4.1 | R161: 1.371869564 | S161: 1.263961542
B162: KGTS66 | C162: =(M17/D17)^(1/9)*100-100 -> -0.6876437397 | D162: 1.461817253 | E162: 0.8339580239 | F162: 1 | G162: 0.04 | H162: 0.8339580239 | J162: KGTS66 | K162: 0.007685620916 | L162: 0.8 | M162: 0.2549225698 | N162: 0.2549225698 | P162: 0.523854877 | Q162: 0.5 | R162: 0.5212598326 | S162: 0.5212598326
B163: RCTS22 | C163: =(M18/D18)^(1/9)*100-100 -> 0.2243704988 | D163: 3.57477216 | E163: 3.168639044 | F163: 1 | G163: 0.04 | H163: 2.634668226 | J163: RCTS22 | K163: 1.945175332 | L163: 3.1 | M163: 2.08253615 | N163: 1.900077187 | P163: 2.616295741 | Q163: 2.6 | R163: 2.049391391 | S163: 1.67311734
B164: RCTS66 | D164: 5.849601697 | E164: 2.737118697 | F164: 1 | G164: 0.04 | H164: 2.666929171 | J164: RCTS66 | K164: 5.171546278 | L164: 3.5 | M164: 2.48617742 | N164: 2.48617742 | P164: 5.303829846 | Q164: 3.2 | R164: 2.623165049 | S164: 2.55226851
B165: WETS | D165: 5.849601697 | E165: 2.737118697 | F165: 1 | G165: 0.04 | H165: 2.666929171 | J165: WETS | K165: -1.290890336 | L165: -0.7 | M165: 0.1815278417 | N165: 0.1815278417 | P165: -0.9356182665 | Q165: -1.3 | R165: 1.344039709 | S165: 1.264637841
B166: SHTS | C166: =(M21/D21)^(1/9)*100-100 -> -0.5477566882 | D166: 1.687245451 | E166: 1.388351493 | F166: 1 | G166: 0.04 | H166: 1.388351493 | J166: SHTS | K166: 2.406103216 | L166: 2.3 | M166: 1.809771964 | N166: 1.809771964 | P166: 1.620360987 | Q166: 1.6 | R166: 1.564570867 | S166: 1.564570867
B167: TGTS | C167: =(M22/D22)^(1/9)*100-100 -> 0.8863684512 | D167: 4.313560705 | E167: 2.889855542 | F167: 1 | G167: 0.04 | H167: 2.884050025 | J167: TGTS | K167: 5.123747585 | L167: 3.2 | M167: 3.771733931 | N167: 3.771733931 | P167: 2.711483432 | Q167: 2 | R167: 2.761577914 | S167: 2.755706828
B168: TPC | C168: =(M23/D23)^(1/9)*100-100 -> 2.017095342 | D168: 3.527107787 | E168: 2.893088753 | H168: 2.534195031 | J168: TPC | K168: 2.99477548 | L168: 2.7 | M168: 2.212065719 | N168: 1.793605457 | P168: 2.494929382 | Q168: 2.6 | R168: 2.478921868 | S168: 2.120081674
B170: Citipower | J170: Citipower
B171: WMTS22 | C171: =(M26/D26)^(1/9)*100-100 -> 0.9620855256 | D171: 4.171810499 | E171: 4.027313463 | F171: 1 | G171: =G151 -> 0.04 | H171: =(W26/M26)^(1/10)*100-100 -> 3.164822231 | J171: WMTS22 | K171: =(R98/M98)^(1/5)*100-100 -> 4.115834071 | L171: 0.7 | M171: 0.7912060145 | N171: =(R62/M62)^(1/5)*100-100 -> -1.292633059 | P171: =(V98/L98)^(1/11)*100-100 -> 1.132616543 | Q171: 1 | R171: 1.642096675 | S171: =(W62/M62)^(1/10)*100-100 -> 0.5685488986
B172: WMTS66 | C172: =(M27/E27)^(1/8)*100-100 -> 0.04191731233 | D172: 2.992864089 | E172: 2.291143005 | F172: 1 | G172: =G171 -> 0.04 | H172: 2.253433574 | J172: WMTS66 | K172: 4.163958531 | L172: 4.3 | M172: 4.933641172 | N172: 4.863572117 | P172: 2.899035359 | Q172: 3.2 | R172: 3.12929108 | S172: 3.094256457
B173: BTS22 | C173: =(L28/D28)^(1/8)*100-100 -> 1.251155811 | D173: 3.232464489 | E173: 3.438386533 | F173: 1 | G173: =G172 -> 0.04 | H173: 2.889411919 | J173: BTS22 | K173: 2.741750791 | L173: 2.1 | M173: 3.230932269 | N173: 2.091011191 | P173: 2.171556207 | Q173: 1.9 | R173: 3.055628464 | S173: 2.463398687
B174: FBTS66 | C174: =(M29/D29)^(1/9)*100-100 -> 1.884641757 | D174: 3.069463676 | E174: 1.601821768 | F174: 1 | G174: 0.04 | H174: 1.601821768 | J174: FBTS66 | K174: 3.448825804 | L174: 4.7 | M174: 1.046295515 | N174: 1.046295515 | P174: 3.232522711 | Q174: 3.6 | R174: 1.470029574 | S174: 1.470029574
B175: RTS22 | C175: =(M30/D30)^(1/9)*100-100 -> -1.160025652 | D175: 2.253027339 | E175: 2.299857379 | F175: 1 | G175: 0.04 | H175: 2.019332338 | J175: RTS22 | K175: -2.79523742 | L175: -4.1 | M175: 1.372255821 | N175: 0.7624366141 | P175: -2.812070895 | Q175: -3.1 | R175: 1.06244258 | S175: 0.7489405395
B176: RTS66_1_2 | C176: =(M31/F31)^(1/7)*100-100 -> -0.1488227866 | D176: 1.063328072 | E176: 1.432711128 | F176: 1 | G176: 0.04 | H176: 1.283900743 | J176: RTS66_1_2 | K176: 1.625209435 | L176: 2.2 | M176: 3.725377541 | N176: 3.445256808 | P176: 1.059035294 | Q176: 1.2 | R176: 2.09136014 | S176: 1.951029006
B177: RTS66_3_4 | C177: =(M32/F32)^(1/7)*100-100 -> -0.01903971967 | D177: 2.650586491 | E177: 2.548356206 | F177: 1 | G177: 0.04 | H177: 2.44988839 | J177: RTS66_3_4 | K177: 1.767259191 | L177: 2.2 | M177: 2.639310461 | N177: 2.438784676 | P177: 1.365110631 | Q177: 1.5 | R177: 2.180048183 | S177: 2.078323416
B178: SVTS | C178: =(M33/F33)^(1/7)*100-100 -> -0.3907794716 | D178: 3.878325023 | E178: 4.716392739 | F178: 1 | G178: 0.04 | H178: 3.466420367 | J178: SVTS | K178: 2.184582799 | L178: 2.5 | M178: 5.028716948 | N178: 3.008570958 | P178: 2.122706967 | Q178: 2.3 | R178: 4.144612182 | S178: 2.827333358
B179: TSTS | C179: =(M34/D34)^(1/9)*100-100 -> 0.7243458157 | D179: 2.88142483 | E179: 2.97101994 | F179: 1 | G179: 0.04 | H179: 2.723410556 | J179: TSTS | K179: 1.510049297 | L179: 1.8 | M179: 3.088144265 | N179: 2.580473546 | P179: 1.102036027 | Q179: 1.2 | R179: 2.522365428 | S179: 2.264705797
B180: TCP | C180: =(M35/D35)^(1/9)*100-100 -> 0.9124529898 | D180: 2.746818855 | E180: 2.35833746 | H180: 2.146577651 | J180: TCP | K180: 2.71985575 | L180: 3.1 | M180: 3.17028973 | N180: 2.778262647 | P180: 1.932037994 | Q180: 2.1 | R180: 2.341299422 | S180: 2.129218799

Sheet Reconciliation
A1: Max Demand index (before post-model adjustments)
B2: 50% PoE forecast index
B3: Powercor | C3: 2005 | D3: 2006 | E3: 2007 | F3: 2008 | G3: 2009 | H3: 2010 | I3: 2011 | J3: 2012 | K3: 2013 | L3: 2014 | M3: 2015 | N3: 2016 | O3: 2017 | P3: 2018 | Q3: 2019 | R3: 2020 | S3: 2021 | T3: 2022 | U3: 2023 | V3: 2024 | W3: 2025 | X3: 2026 | Z3: Maximum demand index Powercor
B4: ATS West | G4: ='ATS West'!V$89/'ATS West'!$AA$89 -> 0.8422240486 | H4: ='ATS West'!W$89/'ATS West'!$AA$89 -> 0.8600332311 | I4: ='ATS West'!X$89/'ATS West'!$AA$89 -> 0.9341939113 | J4: ='ATS West'!Y$89/'ATS West'!$AA$89 -> 0.9373834036 | K4: ='ATS West'!Z$89/'ATS West'!$AA$89 -> 0.9944734925 | L4: ='ATS West'!AA$89/'ATS West'!$AA$89 -> 1 | M4: ='ATS West'!AB$89/'ATS West'!$AA$89 -> 1.04 | N4: ='ATS West'!AC$89/'ATS West'!$AA$89 -> 1.0816 | O4: ='ATS West'!AD$89/'ATS West'!$AA$89 -> 1.124864 | P4: ='ATS West'!AE$89/'ATS West'!$AA$89 -> 1.16985856 | Q4: ='ATS West'!AF$89/'ATS West'!$AA$89 -> 1.216652902 | R4: ='ATS West'!AG$89/'ATS West'!$AA$89 -> 1.265319018 | S4: ='ATS West'!AH$89/'ATS West'!$AA$89 -> 1.309076421 | T4: ='ATS West'!AI$89/'ATS West'!$AA$89 -> 1.361439477 | U4: ='ATS West'!AJ$89/'ATS West'!$AA$89 -> 1.415897056 | V4: ='ATS West'!AK$89/'ATS West'!$AA$89 -> 1.472532939 | W4: ='ATS West'!AL$89/'ATS West'!$AA$89 -> 1.531434256 | X4: ='ATS West'!AM$89/'ATS West'!$AA$89 -> 1.592691626
B5: BATS | C5: =BATS!R$89/BATS!$AA$89 -> 1.043993629 | D5: =BATS!S$89/BATS!$AA$89 -> 1.105594695 | E5: =BATS!T$89/BATS!$AA$89 -> 1.116695104 | F5: =BATS!U$89/BATS!$AA$89 -> 1.151732919 | G5: =BATS!V$89/BATS!$AA$89 -> 1.08562645 | H5: =BATS!W$89/BATS!$AA$89 -> 1.042693338 | I5: =BATS!X$89/BATS!$AA$89 -> 1.057228055 | J5: =BATS!Y$89/BATS!$AA$89 -> 1.013543004 | K5: =BATS!Z$89/BATS!$AA$89 -> 1.034200105 | L5: =BATS!AA$89/BATS!$AA$89 -> 1 | M5: =BATS!AB$89/BATS!$AA$89 -> 1.037963226 | N5: =BATS!AC$89/BATS!$AA$89 -> 1.059367112 | O5: =BATS!AD$89/BATS!$AA$89 -> 1.101741797 | P5: =BATS!AE$89/BATS!$AA$89 -> 1.122018407 | Q5: =BATS!AF$89/BATS!$AA$89 -> 1.155969859 | R5: =BATS!AG$89/BATS!$AA$89 -> 1.189528348 | S5: =BATS!AH$89/BATS!$AA$89 -> 1.202237144 | T5: =BATS!AI$89/BATS!$AA$89 -> 1.247957528 | U5: =BATS!AJ$89/BATS!$AA$89 -> 1.293703797 | V5: =BATS!AK$89/BATS!$AA$89 -> 1.342593687 | W5: =BATS!AL$89/BATS!$AA$89 -> 1.370909637 | X5: =BATS!AM$89/BATS!$AA$89 -> 1.425746023
B6: BETS22 | D6: =BETS22!S$89/BETS22!$AA$89 -> 0.7483103819 | E6: =BETS22!T$89/BETS22!$AA$89 -> 0.8163520548 | F6: =BETS22!U$89/BETS22!$AA$89 -> 0.8455143848 | G6: =BETS22!V$89/BETS22!$AA$89 -> 0.8827058149 | H6: =BETS22!W$89/BETS22!$AA$89 -> 0.9014612846 | I6: =BETS22!X$89/BETS22!$AA$89 -> 0.9103081688 | J6: =BETS22!Y$89/BETS22!$AA$89 -> 0.8932804129 | K6: =BETS22!Z$89/BETS22!$AA$89 -> 0.9957795012 | L6: =BETS22!AA$89/BETS22!$AA$89 -> 1 | M6: =BETS22!AB$89/BETS22!$AA$89 -> 1.04 | N6: =BETS22!AC$89/BETS22!$AA$89 -> 1.072470494 | O6: =BETS22!AD$89/BETS22!$AA$89 -> 1.115140423 | P6: =BETS22!AE$89/BETS22!$AA$89 -> 1.15974604 | Q6: =BETS22!AF$89/BETS22!$AA$89 -> 1.203032935 | R6: =BETS22!AG$89/BETS22!$AA$89 -> 1.247736008 | S6: =BETS22!AH$89/BETS22!$AA$89 -> 1.293707223 | T6: =BETS22!AI$89/BETS22!$AA$89 -> 1.345455512 | U6: =BETS22!AJ$89/BETS22!$AA$89 -> 1.399273732 | V6: =BETS22!AK$89/BETS22!$AA$89 -> 1.449303103 | W6: =BETS22!AL$89/BETS22!$AA$89 -> 1.507275227 | X6: =BETS22!AM$89/BETS22!$AA$89 -> 1.567566236
B7: BETS66 | C7: =BETS66!R$89/BETS66!$AA$89 -> 1.022020703 | D7: =BETS66!S$89/BETS66!$AA$89 -> 1.059903034 | E7: =BETS66!T$89/BETS66!$AA$89 -> 1.037073726 | F7: =BETS66!U$89/BETS66!$AA$89 -> 1.089727408 | G7: =BETS66!V$89/BETS66!$AA$89 -> 1.106888449 | H7: =BETS66!W$89/BETS66!$AA$89 -> 1.003265772 | I7: =BETS66!X$89/BETS66!$AA$89 -> 1.046504865 | J7: =BETS66!Y$89/BETS66!$AA$89 -> 1.051733993 | K7: =BETS66!Z$89/BETS66!$AA$89 -> 1.062367288 | L7: =BETS66!AA$89/BETS66!$AA$89 -> 1 | M7: =BETS66!AB$89/BETS66!$AA$89 -> 1.017080432 | N7: =BETS66!AC$89/BETS66!$AA$89 -> 1.049679677 | O7: =BETS66!AD$89/BETS66!$AA$89 -> 1.079703254 | P7: =BETS66!AE$89/BETS66!$AA$89 -> 1.119952566 | Q7: =BETS66!AF$89/BETS66!$AA$89 -> 1.140016932 | R7: =BETS66!AG$89/BETS66!$AA$89 -> 1.160019918 | S7: =BETS66!AH$89/BETS66!$AA$89 -> 1.19048072 | T7: =BETS66!AI$89/BETS66!$AA$89 -> 1.219263612 | U7: =BETS66!AJ$89/BETS66!$AA$89 -> 1.265056724 | V7: =BETS66!AK$89/BETS66!$AA$89 -> 1.289657552 | W7: =BETS66!AL$89/BETS66!$AA$89 -> 1.338256818 | X7: =BETS66!AM$89/BETS66!$AA$89 -> 1.37281455
B8: BLTS22 | C8: =BLTS22!R$89/BLTS22!$AA$89 -> 0.9933698289 | D8: =BLTS22!S$89/BLTS22!$AA$89 -> 0.9967380986 | E8: =BLTS22!T$89/BLTS22!$AA$89 -> 1.026083119 | F8: =BLTS22!U$89/BLTS22!$AA$89 -> 1.063463888 | G8: =BLTS22!V$89/BLTS22!$AA$89 -> 1.04973881 | H8: =BLTS22!W$89/BLTS22!$AA$89 -> 1.063106527 | I8: =BLTS22!X$89/BLTS22!$AA$89 -> 1.019188078 | K8: =BLTS22!Z$89/BLTS22!$AA$89 -> 0.9691435511 | L8: =BLTS22!AA$89/BLTS22!$AA$89 -> 1 | M8: =BLTS22!AB$89/BLTS22!$AA$89 -> 1.003353749 | N8: =BLTS22!AC$89/BLTS22!$AA$89 -> 1.019553865 | O8: =BLTS22!AD$89/BLTS22!$AA$89 -> 1.040920293 | P8: =BLTS22!AE$89/BLTS22!$AA$89 -> 1.058961135 | Q8: =BLTS22!AF$89/BLTS22!$AA$89 -> 1.076850517 | R8: =BLTS22!AG$89/BLTS22!$AA$89 -> 1.093701652 | S8: =BLTS22!AH$89/BLTS22!$AA$89 -> 1.107552367 | T8: =BLTS22!AI$89/BLTS22!$AA$89 -> 1.119048484 | U8: =BLTS22!AJ$89/BLTS22!$AA$89 -> 1.135925521 | V8: =BLTS22!AK$89/BLTS22!$AA$89 -> 1.159602607 | W8: =BLTS22!AL$89/BLTS22!$AA$89 -> 1.180372215 | X8: =BLTS22!AM$89/BLTS22!$AA$89 -> 1.198578026
B9: ATS-BLTS | E9: ='ATS-BLTS'!T$89/'ATS-BLTS'!$AA$89 -> 0.8790168004 | F9: ='ATS-BLTS'!U$89/'ATS-BLTS'!$AA$89 -> 0.9235205833 | G9: ='ATS-BLTS'!V$89/'ATS-BLTS'!$AA$89 -> 0.9369352971 | H9: ='ATS-BLTS'!W$89/'ATS-BLTS'!$AA$89 -> 0.9697418681 | I9: ='ATS-BLTS'!X$89/'ATS-BLTS'!$AA$89 -> 1.011637152 | J9: ='ATS-BLTS'!Y$89/'ATS-BLTS'!$AA$89 -> 1.016202729 | K9: ='ATS-BLTS'!Z$89/'ATS-BLTS'!$AA$89 -> 1.008661764 | L9: ='ATS-BLTS'!AA$89/'ATS-BLTS'!$AA$89 -> 1 | M9: ='ATS-BLTS'!AB$89/'ATS-BLTS'!$AA$89 -> 1.010248685 | N9: ='ATS-BLTS'!AC$89/'ATS-BLTS'!$AA$89 -> 1.050658633 | O9: ='ATS-BLTS'!AD$89/'ATS-BLTS'!$AA$89 -> 1.092684978 | P9: ='ATS-BLTS'!AE$89/'ATS-BLTS'!$AA$89 -> 1.13054485 | Q9: ='ATS-BLTS'!AF$89/'ATS-BLTS'!$AA$89 -> 1.17509227 | R9: ='ATS-BLTS'!AG$89/'ATS-BLTS'!$AA$89 -> 1.215233534 | S9: ='ATS-BLTS'!AH$89/'ATS-BLTS'!$AA$89 -> 1.260072406 | T9: ='ATS-BLTS'!AI$89/'ATS-BLTS'!$AA$89 -> 1.292072565 | U9: ='ATS-BLTS'!AJ$89/'ATS-BLTS'!$AA$89 -> 1.343755467 | V9: ='ATS-BLTS'!AK$89/'ATS-BLTS'!$AA$89 -> 1.393482351 | W9: ='ATS-BLTS'!AL$89/'ATS-BLTS'!$AA$89 -> 1.438951533 | X9: ='ATS-BLTS'!AM$89/'ATS-BLTS'!$AA$89 -> 1.491824495
B10: GTS66 | C10: ='GTS66'!R$89/'GTS66'!$AA$89 -> 0.8156950409 | D10: ='GTS66'!S$89/'GTS66'!$AA$89 -> 0.8835631868 | E10: ='GTS66'!T$89/'GTS66'!$AA$89 -> 0.8874918973 | F10: ='GTS66'!U$89/'GTS66'!$AA$89 -> 0.9360616845 | G10: ='GTS66'!V$89/'GTS66'!$AA$89 -> 0.9417322566 | H10: ='GTS66'!W$89/'GTS66'!$AA$89 -> 0.9441096215 | I10: ='GTS66'!X$89/'GTS66'!$AA$89 -> 0.9742069631 | J10: ='GTS66'!Y$89/'GTS66'!$AA$89 -> 0.9463992139 | K10: ='GTS66'!Z$89/'GTS66'!$AA$89 -> 0.9635405835 | L10: ='GTS66'!AA$89/'GTS66'!$AA$89 -> 1 | M10: ='GTS66'!AB$89/'GTS66'!$AA$89 -> 0.8886926656 | N10: ='GTS66'!AC$89/'GTS66'!$AA$89 -> 0.9159565717 | O10: ='GTS66'!AD$89/'GTS66'!$AA$89 -> 0.9426479151 | P10: ='GTS66'!AE$89/'GTS66'!$AA$89 -> 0.9716151585 | Q10: ='GTS66'!AF$89/'GTS66'!$AA$89 -> 0.9947435824 | R10: ='GTS66'!AG$89/'GTS66'!$AA$89 -> 1.024811341 | S10: ='GTS66'!AH$89/'GTS66'!$AA$89 -> 1.036003202 | T10: ='GTS66'!AI$89/'GTS66'!$AA$89 -> 1.068897682 | U10: ='GTS66'!AJ$89/'GTS66'!$AA$89 -> 1.101057705 | V10: ='GTS66'!AK$89/'GTS66'!$AA$89 -> 1.136019961 | W10: ='GTS66'!AL$89/'GTS66'!$AA$89 -> 1.167231111 | X10: ='GTS66'!AM$89/'GTS66'!$AA$89 -> 1.202105892
B11: HOTS66 | C11: =HOTS66!R$89/HOTS66!$AA$89 -> 0.959939398 | D11: =HOTS66!S$89/HOTS66!$AA$89 -> 1.074755571 | E11: =HOTS66!T$89/HOTS66!$AA$89 -> 1.11613302 | F11: =HOTS66!U$89/HOTS66!$AA$89 -> 1.162581882 | G11: =HOTS66!V$89/HOTS66!$AA$89 -> 1.131082233 | H11: =HOTS66!W$89/HOTS66!$AA$89 -> 1.124277667 | I11: =HOTS66!X$89/HOTS66!$AA$89 -> 1.16567564 | J11: =HOTS66!Y$89/HOTS66!$AA$89 -> 1.081022186 | K11: =HOTS66!Z$89/HOTS66!$AA$89 -> 1.096418586 | L11: =HOTS66!AA$89/HOTS66!$AA$89 -> 1 | M11: =HOTS66!AB$89/HOTS66!$AA$89 -> 0.9999362611 | N11: =HOTS66!AC$89/HOTS66!$AA$89 -> 1.039933712 | O11: =HOTS66!AD$89/HOTS66!$AA$89 -> 1.08153106 | P11: =HOTS66!AE$89/HOTS66!$AA$89 -> 1.124792302 | Q11: =HOTS66!AF$89/HOTS66!$AA$89 -> 1.169783994 | R11: =HOTS66!AG$89/HOTS66!$AA$89 -> 1.192633968 | S11: =HOTS66!AH$89/HOTS66!$AA$89 -> 1.205750138 | T11: =HOTS66!AI$89/HOTS66!$AA$89 -> 1.242864234 | U11: =HOTS66!AJ$89/HOTS66!$AA$89 -> 1.289863719 | V11: =HOTS66!AK$89/HOTS66!$AA$89 -> 1.310992386 | W11: =HOTS66!AL$89/HOTS66!$AA$89 -> 1.355066388 | X11: =HOTS66!AM$89/HOTS66!$AA$89 -> 1.379792416
B12: KTSeast | C12: =KTSeast!R$89/KTSeast!$AA$89 -> 0 | D12: =KTSeast!S$89/KTSeast!$AA$89 -> 0 | E12: =KTSeast!T$89/KTSeast!$AA$89 -> 0.8172299274 | F12: =KTSeast!U$89/KTSeast!$AA$89 -> 0.8487227155 | G12: =KTSeast!V$89/KTSeast!$AA$89 -> 0.8845897098 | H12: =KTSeast!W$89/KTSeast!$AA$89 -> 0.8814814906 | I12: =KTSeast!X$89/KTSeast!$AA$89 -> 0.9299909178 | J12: =KTSeast!Y$89/KTSeast!$AA$89 -> 0.9513542298 | K12: =KTSeast!Z$89/KTSeast!$AA$89 -> 0.9797042804 | L12: =KTSeast!AA$89/KTSeast!$AA$89 -> 1 | M12: =KTSeast!AB$89/KTSeast!$AA$89 -> 1.036326365 | N12: =KTSeast!AC$89/KTSeast!$AA$89 -> 1.077033236 | O12: =KTSeast!AD$89/KTSeast!$AA$89 -> 1.107829646 | P12: =KTSeast!AE$89/KTSeast!$AA$89 -> 1.146149415 | Q12: =KTSeast!AF$89/KTSeast!$AA$89 -> 1.191995392 | R12: =KTSeast!AG$89/KTSeast!$AA$89 -> 1.220218868 | S12: =KTSeast!AH$89/KTSeast!$AA$89 -> 1.252293111 | T12: =KTSeast!AI$89/KTSeast!$AA$89 -> 1.302384836 | U12: =KTSeast!AJ$89/KTSeast!$AA$89 -> 1.354480229 | V12: =KTSeast!AK$89/KTSeast!$AA$89 -> 1.40679423 | W12: =KTSeast!AL$89/KTSeast!$AA$89 -> 1.463066 | X12: =KTSeast!AM$89/KTSeast!$AA$89 -> 1.514443179
B13: KTSwest | C13: =KTSwest!R$89/KTSwest!$AA$89 -> 0 | D13: =KTSwest!S$89/KTSwest!$AA$89 -> 0 | E13: =KTSwest!T$89/KTSwest!$AA$89 -> 0.9451088733 | F13: =KTSwest!U$89/KTSwest!$AA$89 -> 0.9710446449 | G13: =KTSwest!V$89/KTSwest!$AA$89 -> 0.9666023088 | H13: =KTSwest!W$89/KTSwest!$AA$89 -> 0.9610500402 | I13: =KTSwest!X$89/KTSwest!$AA$89 -> 0.9819125799 | J13: =KTSwest!Y$89/KTSwest!$AA$89 -> 0.9436387206 | K13: =KTSwest!Z$89/KTSwest!$AA$89 -> 0.95776891 | L13: =KTSwest!AA$89/KTSwest!$AA$89 -> 1 | M13: =KTSwest!AB$89/KTSwest!$AA$89 -> 1.04 | N13: =KTSwest!AC$89/KTSwest!$AA$89 -> 1.0816 | O13: =KTSwest!AD$89/KTSwest!$AA$89 -> 1.122889547 | P13: =KTSwest!AE$89/KTSwest!$AA$89 -> 1.158312534 | Q13: =KTSwest!AF$89/KTSwest!$AA$89 -> 1.204645036 | R13: =KTSwest!AG$89/KTSwest!$AA$89 -> 1.239775323 | S13: =KTSwest!AH$89/KTSwest!$AA$89 -> 1.254756829 | T13: =KTSwest!AI$89/KTSwest!$AA$89 -> 1.304947102 | U13: =KTSwest!AJ$89/KTSwest!$AA$89 -> 1.357144986 | V13: =KTSwest!AK$89/KTSwest!$AA$89 -> 1.411430785 | W13: =KTSwest!AL$89/KTSwest!$AA$89 -> 1.467888017 | X13: =KTSwest!AM$89/KTSwest!$AA$89 -> 1.515585252
B14: KGTS22 | C14: =KGTS22!R$89/KGTS22!$AA$89 -> 0.8340004621 | D14: =KGTS22!S$89/KGTS22!$AA$89 -> 0.8826460465 | E14: =KGTS22!T$89/KGTS22!$AA$89 -> 0.9341567688 | F14: =KGTS22!U$89/KGTS22!$AA$89 -> 0.8770336983 | G14: =KGTS22!V$89/KGTS22!$AA$89 -> 0.8800377218 | H14: =KGTS22!W$89/KGTS22!$AA$89 -> 0.9655135484 | I14: =KGTS22!X$89/KGTS22!$AA$89 -> 0.9094351989 | J14: =KGTS22!Y$89/KGTS22!$AA$89 -> 0.9832305647 | K14: =KGTS22!Z$89/KGTS22!$AA$89 -> 0.9946429362 | L14: =KGTS22!AA$89/KGTS22!$AA$89 -> 1 | M14: =KGTS22!AB$89/KGTS22!$AA$89 -> 0.9687002741 | N14: =KGTS22!AC$89/KGTS22!$AA$89 -> 0.9822598208 | O14: =KGTS22!AD$89/KGTS22!$AA$89 -> 0.995977775 | P14: =KGTS22!AE$89/KGTS22!$AA$89 -> 1.009285948 | Q14: =KGTS22!AF$89/KGTS22!$AA$89 -> 1.023622724 | R14: =KGTS22!AG$89/KGTS22!$AA$89 -> 1.046839367 | S14: =KGTS22!AH$89/KGTS22!$AA$89 -> 1.067825807 | T14: =KGTS22!AI$89/KGTS22!$AA$89 -> 1.092166007 | U14: =KGTS22!AJ$89/KGTS22!$AA$89 -> 1.115401899 | V14: =KGTS22!AK$89/KGTS22!$AA$89 -> 1.137207203 | W14: =KGTS22!AL$89/KGTS22!$AA$89 -> 1.160705484 | X14: =KGTS22!AM$89/KGTS22!$AA$89 -> 1.18563446
B15: KGTS66 | C15: =KGTS66!R$89/KGTS66!$AA$89 -> 1.064070557 | D15: =KGTS66!S$89/KGTS66!$AA$89 -> 1.085238626 | E15: =KGTS66!T$89/KGTS66!$AA$89 -> 1.080410822 | F15: =KGTS66!U$89/KGTS66!$AA$89 -> 1.080055573 | G15: =KGTS66!V$89/KGTS66!$AA$89 -> 1.095325289 | H15: =KGTS66!W$89/KGTS66!$AA$89 -> 0.9476193809 | I15: =KGTS66!X$89/KGTS66!$AA$89 -> 0.9933007454 | J15: =KGTS66!Y$89/KGTS66!$AA$89 -> 0.9947428426 | K15: =KGTS66!Z$89/KGTS66!$AA$89 -> 1.043222639 | L15: =KGTS66!AA$89/KGTS66!$AA$89 -> 1 | M15: =KGTS66!AB$89/KGTS66!$AA$89 -> 0.987624022 | N15: =KGTS66!AC$89/KGTS66!$AA$89 -> 0.9952473589 | O15: =KGTS66!AD$89/KGTS66!$AA$89 -> 1.004395952 | P15: =KGTS66!AE$89/KGTS66!$AA$89 -> 1.016668683 | Q15: =KGTS66!AF$89/KGTS66!$AA$89 -> 1.032808454 | R15: =KGTS66!AG$89/KGTS66!$AA$89 -> 1.032366455 | S15: =KGTS66!AH$89/KGTS66!$AA$89 -> 1.030256916 | T15: =KGTS66!AI$89/KGTS66!$AA$89 -> 1.050734891 | U15: =KGTS66!AJ$89/KGTS66!$AA$89 -> 1.070986964 | V15: =KGTS66!AK$89/KGTS66!$AA$89 -> 1.086596116 | W15: =KGTS66!AL$89/KGTS66!$AA$89 -> 1.09703141 | X15: =KGTS66!AM$89/KGTS66!$AA$89 -> 1.116304412
B16: RCTS22 | C16: =RCTS22!R$89/RCTS22!$AA$89 -> 0.9800313434 | D16: =RCTS22!S$89/RCTS22!$AA$89 -> 0.8966756548 | E16: =RCTS22!T$89/RCTS22!$AA$89 -> 0.8414536861 | F16: =RCTS22!U$89/RCTS22!$AA$89 -> 0.8900766944 | G16: =RCTS22!V$89/RCTS22!$AA$89 -> 0.9582968836 | H16: =RCTS22!W$89/RCTS22!$AA$89 -> 0.7550974439 | I16: =RCTS22!X$89/RCTS22!$AA$89 -> 0.8836735611 | J16: =RCTS22!Y$89/RCTS22!$AA$89 -> 0.991153428 | K16: =RCTS22!Z$89/RCTS22!$AA$89 -> 1.043318389 | L16: =RCTS22!AA$89/RCTS22!$AA$89 -> 1 | M16: =RCTS22!AB$89/RCTS22!$AA$89 -> 1.036927687 | N16: =RCTS22!AC$89/RCTS22!$AA$89 -> 1.060985311 | O16: =RCTS22!AD$89/RCTS22!$AA$89 -> 1.0885441 | P16: =RCTS22!AE$89/RCTS22!$AA$89 -> 1.121392075 | Q16: =RCTS22!AF$89/RCTS22!$AA$89 -> 1.166247759 | R16: =RCTS22!AG$89/RCTS22!$AA$89 -> 1.191846808 | S16: =RCTS22!AH$89/RCTS22!$AA$89 -> 1.190389186 | T16: =RCTS22!AI$89/RCTS22!$AA$89 -> 1.238004753 | U16: =RCTS22!AJ$89/RCTS22!$AA$89 -> 1.287524943 | V16: =RCTS22!AK$89/RCTS22!$AA$89 -> 1.297002543 | W16: =RCTS22!AL$89/RCTS22!$AA$89 -> 1.348882645 | X16: =RCTS22!AM$89/RCTS22!$AA$89 -> 1.394795409
B17: RCTS66 | C17: ='RCTS66 WETS'!R$89/'RCTS66 WETS'!$AA$89 -> 0.8363441435 | D17: ='RCTS66 WETS'!S$89/'RCTS66 WETS'!$AA$89 -> 0.821639223 | E17: ='RCTS66 WETS'!T$89/'RCTS66 WETS'!$AA$89 -> 0.8066285782 | F17: ='RCTS66 WETS'!U$89/'RCTS66 WETS'!$AA$89 -> 0.8311469652 | G17: ='RCTS66 WETS'!V$89/'RCTS66 WETS'!$AA$89 -> 0.9155128916 | H17: ='RCTS66 WETS'!W$89/'RCTS66 WETS'!$AA$89 -> 0.8021140603 | I17: ='RCTS66 WETS'!X$89/'RCTS66 WETS'!$AA$89 -> 0.8580702691 | J17: ='RCTS66 WETS'!Y$89/'RCTS66 WETS'!$AA$89 -> 0.9826119481 | K17: ='RCTS66 WETS'!Z$89/'RCTS66 WETS'!$AA$89 -> 1.03291171 | L17: ='RCTS66 WETS'!AP$89/'RCTS66 WETS'!$AP$89 -> 1 | M17: ='RCTS66 WETS'!AQ$89/'RCTS66 WETS'!$AP$89 -> 1.015737424 | N17: ='RCTS66 WETS'!AR$89/'RCTS66 WETS'!$AP$89 -> 1.03205347 | O17: ='RCTS66 WETS'!AS$89/'RCTS66 WETS'!$AP$89 -> 1.061367866 | P17: ='RCTS66 WETS'!AT$89/'RCTS66 WETS'!$AP$89 -> 1.096622231 | Q17: ='RCTS66 WETS'!AU$89/'RCTS66 WETS'!$AP$89 -> 1.139213638 | R17: ='RCTS66 WETS'!AV$89/'RCTS66 WETS'!$AP$89 -> 1.158025856 | S17: ='RCTS66 WETS'!AW$89/'RCTS66 WETS'!$AP$89 -> 1.185448921 | T17: ='RCTS66 WETS'!AX$89/'RCTS66 WETS'!$AP$89 -> 1.232866878 | U17: ='RCTS66 WETS'!AY$89/'RCTS66 WETS'!$AP$89 -> 1.273496356 | V17: ='RCTS66 WETS'!AZ$89/'RCTS66 WETS'!$AP$89 -> 1.301085156 | W17: ='RCTS66 WETS'!BA$89/'RCTS66 WETS'!$AP$89 -> 1.344895208 | X17: ='RCTS66 WETS'!BB$89/'RCTS66 WETS'!$AP$89 -> 1.394147775
B18: SHTS | C18: =SHTS!R$89/SHTS!$AA$89 -> 1.05067584 | D18: =SHTS!S$89/SHTS!$AA$89 -> 1.103415886 | E18: =SHTS!T$89/SHTS!$AA$89 -> 1.039668487 | F18: =SHTS!U$89/SHTS!$AA$89 -> 1.050860885 | G18: =SHTS!V$89/SHTS!$AA$89 -> 1.095783796 | H18: =SHTS!W$89/SHTS!$AA$89 -> 0.9756807232 | I18: =SHTS!X$89/SHTS!$AA$89 -> 1.011597928 | J18: =SHTS!Y$89/SHTS!$AA$89 -> 1.033542404 | K18: =SHTS!Z$89/SHTS!$AA$89 -> 1.050962226 | L18: =SHTS!AA$89/SHTS!$AA$89 -> 1 | M18: =SHTS!AB$89/SHTS!$AA$89 -> 1.002493832 | N18: =SHTS!AC$89/SHTS!$AA$89 -> 1.018543985 | O18: =SHTS!AD$89/SHTS!$AA$89 -> 1.037649585 | P18: =SHTS!AE$89/SHTS!$AA$89 -> 1.051609205 | Q18: =SHTS!AF$89/SHTS!$AA$89 -> 1.072467289 | R18: =SHTS!AG$89/SHTS!$AA$89 -> 1.079044176 | S18: =SHTS!AH$89/SHTS!$AA$89 -> 1.089155075 | T18: =SHTS!AI$89/SHTS!$AA$89 -> 1.104097815 | U18: =SHTS!AJ$89/SHTS!$AA$89 -> 1.136345832 | V18: =SHTS!AK$89/SHTS!$AA$89 -> 1.147838051 | W18: =SHTS!AL$89/SHTS!$AA$89 -> 1.158964688 | X18: =SHTS!AM$89/SHTS!$AA$89 -> 1.191128343
B19: TGTS | C19: =TGTS!R$89/TGTS!$AA$89 -> 0.8929656925 | D19: =TGTS!S$89/TGTS!$AA$89 -> 0.9470743098 | E19: =TGTS!T$89/TGTS!$AA$89 -> 0.9527776914 | F19: =TGTS!U$89/TGTS!$AA$89 -> 0.9905564167 | G19: =TGTS!V$89/TGTS!$AA$89 -> 0.991762196 | H19: =TGTS!W$89/TGTS!$AA$89 -> 1.014860578 | I19: =TGTS!X$89/TGTS!$AA$89 -> 1.034531817 | J19: =TGTS!Y$89/TGTS!$AA$89 -> 1.030828381 | K19: =TGTS!Z$89/TGTS!$AA$89 -> 1.024563135 | L19: =TGTS!AA$89/TGTS!$AA$89 -> 1 | M19: =TGTS!AB$89/TGTS!$AA$89 -> 1.008631602 | N19: =TGTS!AC$89/TGTS!$AA$89 -> 1.0389507 | O19: =TGTS!AD$89/TGTS!$AA$89 -> 1.066818989 | P19: =TGTS!AE$89/TGTS!$AA$89 -> 1.099315917 | Q19: =TGTS!AF$89/TGTS!$AA$89 -> 1.123312126 | R19: =TGTS!AG$89/TGTS!$AA$89 -> 1.156631746 | S19: =TGTS!AH$89/TGTS!$AA$89 -> 1.191674356 | T19: =TGTS!AI$89/TGTS!$AA$89 -> 1.212457604 | U19: =TGTS!AJ$89/TGTS!$AA$89 -> 1.260955908 | V19: =TGTS!AK$89/TGTS!$AA$89 -> 1.298994376 | W19: =TGTS!AL$89/TGTS!$AA$89 -> 1.333886261 | X19: =TGTS!AM$89/TGTS!$AA$89 -> 1.377616086
B20: TPC (unreconciled) | C20: ='TPC reconciled'!R$89/'TPC reconciled'!$AA$89 -> 0.8354941508 | D20: ='TPC reconciled'!S$89/'TPC reconciled'!$AA$89 -> 0.9303332376 | E20: ='TPC reconciled'!T$89/'TPC reconciled'!$AA$89 -> 0.9182893075 | F20: ='TPC reconciled'!U$89/'TPC reconciled'!$AA$89 -> 0.9555754181 | G20: ='TPC reconciled'!V$89/'TPC reconciled'!$AA$89 -> 0.9488825027 | H20: ='TPC reconciled'!W$89/'TPC reconciled'!$AA$89 -> 0.9396616215 | I20: ='TPC reconciled'!X$89/'TPC reconciled'!$AA$89 -> 0.9796385225 | J20: ='TPC reconciled'!Y$89/'TPC reconciled'!$AA$89 -> 0.9776505262 | K20: ='TPC reconciled'!Z$89/'TPC reconciled'!$AA$89 -> 1.00067539 | L20: ='TPC reconciled'!AA$89/'TPC reconciled'!$AA$89 -> 1 | M20: ='TPC reconciled'!AB$89/'TPC reconciled'!$AA$89 -> 0.9964107733 | N20: ='TPC reconciled'!AC$89/'TPC reconciled'!$AA$89 -> 1.025491016 | O20: ='TPC reconciled'!AD$89/'TPC reconciled'!$AA$89 -> 1.057073164 | P20: ='TPC reconciled'!AE$89/'TPC reconciled'!$AA$89 -> 1.08851903 | Q20: ='TPC reconciled'!AF$89/'TPC reconciled'!$AA$89 -> 1.121488176 | R20: ='TPC reconciled'!AG$89/'TPC reconciled'!$AA$89 -> 1.149381098 | S20: ='TPC reconciled'!AH$89/'TPC reconciled'!$AA$89 -> 1.172194832 | T20: ='TPC reconciled'!AI$89/'TPC reconciled'!$AA$89 -> 1.207777142 | U20: ='TPC reconciled'!AJ$89/'TPC reconciled'!$AA$89 -> 1.250337104 | V20: ='TPC reconciled'!AK$89/'TPC reconciled'!$AA$89 -> 1.286650161 | W20: ='TPC reconciled'!AL$89/'TPC reconciled'!$AA$89 -> 1.325273056 | X20: ='TPC reconciled'!AM$89/'TPC reconciled'!$AA$89 -> 1.368130258 | Z20: Maximum demand index CitiPower
B22: Citipower
B23: WMTS22 | C23: =WMTS22!R$89/WMTS22!$AA$89 -> 0.9174347435 | D23: =WMTS22!S$89/WMTS22!$AA$89 -> 0.9074999404 | E23: =WMTS22!T$89/WMTS22!$AA$89 -> 0.930902769 | F23: =WMTS22!U$89/WMTS22!$AA$89 -> 0.9855111507 | G23: =WMTS22!V$89/WMTS22!$AA$89 -> 0.9880302342 | H23: =WMTS22!W$89/WMTS22!$AA$89 -> 1.001740025 | I23: =WMTS22!X$89/WMTS22!$AA$89 -> 1.000681429 | J23: =WMTS22!Y$89/WMTS22!$AA$89 -> 0.9768040759 | K23: =WMTS22!Z$89/WMTS22!$AA$89 -> 0.9743332571 | L23: =WMTS22!AA$89/WMTS22!$AA$89 -> 1 | M23: =WMTS22!AB$89/WMTS22!$AA$89 -> 1.01581982 | N23: =WMTS22!AC$89/WMTS22!$AA$89 -> 1.056452613 | O23: =WMTS22!AD$89/WMTS22!$AA$89 -> 1.098710717 | P23: =WMTS22!AE$89/WMTS22!$AA$89 -> 1.142659146 | Q23: =WMTS22!AF$89/WMTS22!$AA$89 -> 1.188365512 | R23: =WMTS22!AG$89/WMTS22!$AA$89 -> 1.233392094 | S23: =WMTS22!AH$89/WMTS22!$AA$89 -> 1.264650151 | T23: =WMTS22!AI$89/WMTS22!$AA$89 -> 1.300483894 | U23: =WMTS22!AJ$89/WMTS22!$AA$89 -> 1.327898504 | V23: =WMTS22!AK$89/WMTS22!$AA$89 -> 1.365577466 | W23: =WMTS22!AL$89/WMTS22!$AA$89 -> 1.406027837 | X23: =WMTS22!AM$89/WMTS22!$AA$89 -> 1.430567509
B24: WMTS66 | E24: =WMTS66!T$89/WMTS66!$AA$89 -> 1.002732579 | F24: =WMTS66!U$89/WMTS66!$AA$89 -> 1.000481757 | G24: =WMTS66!V$89/WMTS66!$AA$89 -> 1.0049743 | H24: =WMTS66!W$89/WMTS66!$AA$89 -> 0.9487773454 | I24: =WMTS66!X$89/WMTS66!$AA$89 -> 0.9872134583 | J24: =WMTS66!Y$89/WMTS66!$AA$89 -> 0.9793419763 | K24: =WMTS66!Z$89/WMTS66!$AA$89 -> 0.9901346082 | L24: =WMTS66!AA$89/WMTS66!$AA$89 -> 1 | M24: =WMTS66!AB$89/WMTS66!$AA$89 -> 1.04 | N24: =WMTS66!AC$89/WMTS66!$AA$89 -> 1.075717771 | O24: =WMTS66!AD$89/WMTS66!$AA$89 -> 1.094585562 | P24: =WMTS66!AE$89/WMTS66!$AA$89 -> 1.125108008 | Q24: =WMTS66!AF$89/WMTS66!$AA$89 -> 1.148371281 | R24: =WMTS66!AG$89/WMTS66!$AA$89 -> 1.169813297 | S24: =WMTS66!AH$89/WMTS66!$AA$89 -> 1.171617053 | T24: =WMTS66!AI$89/WMTS66!$AA$89 -> 1.200964647 | U24: =WMTS66!AJ$89/WMTS66!$AA$89 -> 1.236284638 | V24: =WMTS66!AK$89/WMTS66!$AA$89 -> 1.249622975 | W24: =WMTS66!AL$89/WMTS66!$AA$89 -> 1.28229304 | X24: =WMTS66!AM$89/WMTS66!$AA$89 -> 1.304367122
B25: BTS22 | C25: ='BTS22'!R$89/AVERAGE('BTS22'!$Z89,'BTS22'!$AB89) -> 0.9325677638 | D25: ='BTS22'!S$89/AVERAGE('BTS22'!$Z89,'BTS22'!$AB89) -> 0.9716382274 | E25: ='BTS22'!T$89/AVERAGE('BTS22'!$Z89,'BTS22'!$AB89) -> 0.9756850346 | F25: ='BTS22'!U$89/AVERAGE('BTS22'!$Z89,'BTS22'!$AB89) -> 0.9953774146 | G25: ='BTS22'!V$89/AVERAGE('BTS22'!$Z89,'BTS22'!$AB89) -> 0.9760276694 | H25: ='BTS22'!W$89/AVERAGE('BTS22'!$Z89,'BTS22'!$AB89) -> 1.029278134 | I25: ='BTS22'!X$89/AVERAGE('BTS22'!$Z89,'BTS22'!$AB89) -> 0.9648384261 | J25: ='BTS22'!Y$89/AVERAGE('BTS22'!$Z89,'BTS22'!$AB89) -> 0.9897942403 | K25: ='BTS22'!Z$89/AVERAGE('BTS22'!$Z89,'BTS22'!$AB89) -> 0.9901096864 | L25: =AVERAGE('BTS22'!Z$89,'BTS22'!AB$89)/AVERAGE('BTS22'!$Z89,'BTS22'!$AB89) -> 1 | M25: ='BTS22'!AB$89/AVERAGE('BTS22'!$Z89,'BTS22'!$AB89) -> 1.009890314 | N25: ='BTS22'!AC$89/AVERAGE('BTS22'!$Z89,'BTS22'!$AB89) -> 1.040273369 | O25: ='BTS22'!AD$89/AVERAGE('BTS22'!$Z89,'BTS22'!$AB89) -> 1.069725979 | P25: ='BTS22'!AE$89/AVERAGE('BTS22'!$Z89,'BTS22'!$AB89) -> 1.102379351 | Q25: ='BTS22'!AF$89/AVERAGE('BTS22'!$Z89,'BTS22'!$AB89) -> 1.138367501 | R25: ='BTS22'!AG$89/AVERAGE('BTS22'!$Z89,'BTS22'!$AB89) -> 1.168256687 | S25: ='BTS22'!AH$89/AVERAGE('BTS22'!$Z89,'BTS22'!$AB89) -> 1.208418088 | T25: ='BTS22'!AI$89/AVERAGE('BTS22'!$Z89,'BTS22'!$AB89) -> 1.24558054 | U25: ='BTS22'!AJ$89/AVERAGE('BTS22'!$Z89,'BTS22'!$AB89) -> 1.281334632 | V25: ='BTS22'!AK$89/AVERAGE('BTS22'!$Z89,'BTS22'!$AB89) -> 1.32985876 | W25: ='BTS22'!AL$89/AVERAGE('BTS22'!$Z89,'BTS22'!$AB89) -> 1.383053111 | X25: ='BTS22'!AM$89/AVERAGE('BTS22'!$Z89,'BTS22'!$AB89) -> 1.433602932
B26: FBTS66 | C26: =FBTS66!R$89/FBTS66!$AA$89 -> 0.8453206831 | D26: =FBTS66!S$89/FBTS66!$AA$89 -> 0.8714055334 | E26: =FBTS66!T$89/FBTS66!$AA$89 -> 0.8565149454 | F26: =FBTS66!U$89/FBTS66!$AA$89 -> 0.9251612324 | G26: =FBTS66!V$89/FBTS66!$AA$89 -> 0.9035173704 | H26: =FBTS66!W$89/FBTS66!$AA$89 -> 0.9112790374 | I26: =FBTS66!X$89/FBTS66!$AA$89 -> 0.9502372949 | J26: =FBTS66!Y$89/FBTS66!$AA$89 -> 0.9566453847 | K26: =FBTS66!Z$89/FBTS66!$AA$89 -> 0.9643202318 | L26: =FBTS66!AA$89/FBTS66!$AA$89 -> 1 | M26: =FBTS66!AB$89/FBTS66!$AA$89 -> 0.973884221 | N26: =FBTS66!AC$89/FBTS66!$AA$89 -> 0.9812716241 | O26: =FBTS66!AD$89/FBTS66!$AA$89 -> 1.001715323 | P26: =FBTS66!AE$89/FBTS66!$AA$89 -> 1.023697524 | Q26: =FBTS66!AF$89/FBTS66!$AA$89 -> 1.045889682 | R26: =FBTS66!AG$89/FBTS66!$AA$89 -> 1.071476331 | S26: =FBTS66!AH$89/FBTS66!$AA$89 -> 1.09048018 | T26: =FBTS66!AI$89/FBTS66!$AA$89 -> 1.113853589 | U26: =FBTS66!AJ$89/FBTS66!$AA$89 -> 1.145931313 | V26: =FBTS66!AK$89/FBTS66!$AA$89 -> 1.172235721 | W26: =FBTS66!AL$89/FBTS66!$AA$89 -> 1.206618726 | X26: =FBTS66!AM$89/FBTS66!$AA$89 -> 1.240166704
B27: RTS22 | C27: ='RTS22'!R$89/'RTS22'!$AA$89 -> 1.110724583 | D27: ='RTS22'!S$89/'RTS22'!$AA$89 -> 1.207557163 | E27: ='RTS22'!T$89/'RTS22'!$AA$89 -> 1.179006782 | F27: ='RTS22'!U$89/'RTS22'!$AA$89 -> 1.081370335 | G27: ='RTS22'!V$89/'RTS22'!$AA$89 -> 1.071984717 | H27: ='RTS22'!W$89/'RTS22'!$AA$89 -> 1.021434658 | I27: ='RTS22'!X$89/'RTS22'!$AA$89 -> 1.047365014 | J27: ='RTS22'!Y$89/'RTS22'!$AA$89 -> 0.9979492955 | K27: ='RTS22'!Z$89/'RTS22'!$AA$89 -> 0.967741559 | L27: ='RTS22'!AA$89/'RTS22'!$AA$89 -> 1 | M27: ='RTS22'!AB$89/'RTS22'!$AA$89 -> 0.9848177333 | N27: ='RTS22'!AC$89/'RTS22'!$AA$89 -> 1.024210443 | O27: ='RTS22'!AD$89/'RTS22'!$AA$89 -> 1.06517886 | P27: ='RTS22'!AE$89/'RTS22'!$AA$89 -> 1.105529485 | Q27: ='RTS22'!AF$89/'RTS22'!$AA$89 -> 1.142755474 | R27: ='RTS22'!AG$89/'RTS22'!$AA$89 -> 1.164549553 | S27: ='RTS22'!AH$89/'RTS22'!$AA$89 -> 1.160767731 | T27: ='RTS22'!AI$89/'RTS22'!$AA$89 -> 1.186713478 | U27: ='RTS22'!AJ$89/'RTS22'!$AA$89 -> 1.209710962 | V27: ='RTS22'!AK$89/'RTS22'!$AA$89 -> 1.221306785 | W27: ='RTS22'!AL$89/'RTS22'!$AA$89 -> 1.25269473 | X27: ='RTS22'!AM$89/'RTS22'!$AA$89 -> 1.2722318
B28: RTS66_1_2 | E28: =RTS66_1_2!T$89/RTS66_1_2!$AA$89 -> 1.010479888 | F28: =RTS66_1_2!U$89/RTS66_1_2!$AA$89 -> 1.016603521 | G28: =RTS66_1_2!V$89/RTS66_1_2!$AA$89 -> 1.034459172 | H28: =RTS66_1_2!W$89/RTS66_1_2!$AA$89 -> 0.9978941052 | I28: =RTS66_1_2!X$89/RTS66_1_2!$AA$89 -> 1.018517247 | J28: =RTS66_1_2!Y$89/RTS66_1_2!$AA$89 -> 1.017597945 | K28: =RTS66_1_2!Z$89/RTS66_1_2!$AA$89 -> 1.009500581 | L28: =RTS66_1_2!AA$89/RTS66_1_2!$AA$89 -> 1 | M28: =RTS66_1_2!AB$89/RTS66_1_2!$AA$89 -> 1.04 | N28: =RTS66_1_2!AC$89/RTS66_1_2!$AA$89 -> 1.046202618 | O28: =RTS66_1_2!AD$89/RTS66_1_2!$AA$89 -> 1.065620681 | P28: =RTS66_1_2!AE$89/RTS66_1_2!$AA$89 -> 1.07572716 | Q28: =RTS66_1_2!AF$89/RTS66_1_2!$AA$89 -> 1.09029419 | R28: =RTS66_1_2!AG$89/RTS66_1_2!$AA$89 -> 1.096561035 | S28: =RTS66_1_2!AH$89/RTS66_1_2!$AA$89 -> 1.103593507 | T28: =RTS66_1_2!AI$89/RTS66_1_2!$AA$89 -> 1.113490793 | U28: =RTS66_1_2!AJ$89/RTS66_1_2!$AA$89 -> 1.12763739 | V28: =RTS66_1_2!AK$89/RTS66_1_2!$AA$89 -> 1.13606764 | W28: =RTS66_1_2!AL$89/RTS66_1_2!$AA$89 -> 1.147929029 | X28: =RTS66_1_2!AM$89/RTS66_1_2!$AA$89 -> 1.158664407
B29: RTS66_3_4 | E29: =RTS66_3_4!T$89/RTS66_3_4!$AA$89 -> 1.001333796 | F29: =RTS66_3_4!U$89/RTS66_3_4!$AA$89 -> 1.013707517 | G29: =RTS66_3_4!V$89/RTS66_3_4!$AA$89 -> 1.015595789 | H29: =RTS66_3_4!W$89/RTS66_3_4!$AA$89 -> 0.9998755303 | I29: =RTS66_3_4!X$89/RTS66_3_4!$AA$89 -> 0.9970029579 | J29: =RTS66_3_4!Y$89/RTS66_3_4!$AA$89 -> 0.9810148755 | K29: =RTS66_3_4!Z$89/RTS66_3_4!$AA$89 -> 0.9823626273 | L29: =RTS66_3_4!AA$89/RTS66_3_4!$AA$89 -> 1 | M29: =RTS66_3_4!AB$89/RTS66_3_4!$AA$89 -> 1.04 | N29: =RTS66_3_4!AC$89/RTS66_3_4!$AA$89 -> 1.066301108 | O29: =RTS66_3_4!AD$89/RTS66_3_4!$AA$89 -> 1.088686933 | P29: =RTS66_3_4!AE$89/RTS66_3_4!$AA$89 -> 1.116962338 | Q29: =RTS66_3_4!AF$89/RTS66_3_4!$AA$89 -> 1.148249454 | R29: =RTS66_3_4!AG$89/RTS66_3_4!$AA$89 -> 1.16500303 | S29: =RTS66_3_4!AH$89/RTS66_3_4!$AA$89 -> 1.188079702 | T29: =RTS66_3_4!AI$89/RTS66_3_4!$AA$89 -> 1.210131812 | U29: =RTS66_3_4!AJ$89/RTS66_3_4!$AA$89 -> 1.241027852 | V29: =RTS66_3_4!AK$89/RTS66_3_4!$AA$89 -> 1.273840041 | W29: =RTS66_3_4!AL$89/RTS66_3_4!$AA$89 -> 1.308535772 | X29: =RTS66_3_4!AM$89/RTS66_3_4!$AA$89 -> 1.326022748
B30: SVTS | E30: =SVTS!T$89/SVTS!$AA$89 -> 1.027787209 | F30: =SVTS!U$89/SVTS!$AA$89 -> 1.033185919 | G30: =SVTS!V$89/SVTS!$AA$89 -> 1.091214155 | H30: =SVTS!W$89/SVTS!$AA$89 -> 1.04270891 | I30: =SVTS!X$89/SVTS!$AA$89 -> 1.055092738 | J30: =SVTS!Y$89/SVTS!$AA$89 -> 1.150410955 | K30: =SVTS!Z$89/SVTS!$AA$89 -> 1.052932343 | L30: =SVTS!AA$89/SVTS!$AA$89 -> 1 | M30: =SVTS!AB$89/SVTS!$AA$89 -> 1.04 | N30: =SVTS!AC$89/SVTS!$AA$89 -> 1.0816 | O30: =SVTS!AD$89/SVTS!$AA$89 -> 1.124864 | P30: =SVTS!AE$89/SVTS!$AA$89 -> 1.156197145 | Q30: =SVTS!AF$89/SVTS!$AA$89 -> 1.20244503 | R30: =SVTS!AG$89/SVTS!$AA$89 -> 1.242946149 | S30: =SVTS!AH$89/SVTS!$AA$89 -> 1.292663995 | T30: =SVTS!AI$89/SVTS!$AA$89 -> 1.299952734 | U30: =SVTS!AJ$89/SVTS!$AA$89 -> 1.351950844 | V30: =SVTS!AK$89/SVTS!$AA$89 -> 1.406028877 | W30: =SVTS!AL$89/SVTS!$AA$89 -> 1.451495981 | X30: =SVTS!AM$89/SVTS!$AA$89 -> 1.487305375
B31: TSTS | C31: =TSTS!R$89/TSTS!$AA$89 -> 0.9371085521 | D31: =TSTS!S$89/TSTS!$AA$89 -> 0.9974228716 | E31: =TSTS!T$89/TSTS!$AA$89 -> 0.9887221825 | F31: =TSTS!U$89/TSTS!$AA$89 -> 0.9900352124 | G31: =TSTS!V$89/TSTS!$AA$89 -> 1.035157541 | H31: =TSTS!W$89/TSTS!$AA$89 -> 0.9979916594 | I31: =TSTS!X$89/TSTS!$AA$89 -> 1.026835063 | J31: =TSTS!Y$89/TSTS!$AA$89 -> 1.049896145 | K31: =TSTS!Z$89/TSTS!$AA$89 -> 1.009512961 | L31: =TSTS!AA$89/TSTS!$AA$89 -> 1 | M31: =TSTS!AB$89/TSTS!$AA$89 -> 1.04 | N31: =TSTS!AC$89/TSTS!$AA$89 -> 1.062166623 | O31: =TSTS!AD$89/TSTS!$AA$89 -> 1.094977306 | P31: =TSTS!AE$89/TSTS!$AA$89 -> 1.136049826 | Q31: =TSTS!AF$89/TSTS!$AA$89 -> 1.164920704 | R31: =TSTS!AG$89/TSTS!$AA$89 -> 1.174127869 | S31: =TSTS!AH$89/TSTS!$AA$89 -> 1.209651574 | T31: =TSTS!AI$89/TSTS!$AA$89 -> 1.249396224 | U31: =TSTS!AJ$89/TSTS!$AA$89 -> 1.276295973 | V31: =TSTS!AK$89/TSTS!$AA$89 -> 1.308260718 | W31: =TSTS!AL$89/TSTS!$AA$89 -> 1.353759758 | X31: =TSTS!AM$89/TSTS!$AA$89 -> 1.399629597
B32: TCP | C32: =TCP!R$89/TCP!$AA$89 -> 0.9215038021 | D32: =TCP!S$89/TCP!$AA$89 -> 0.9946520751 | E32: =TCP!T$89/TCP!$AA$89 -> 1.005492802 | F32: =TCP!U$89/TCP!$AA$89 -> 1.024874789 | G32: =TCP!V$89/TCP!$AA$89 -> 1.015068628 | H32: =TCP!W$89/TCP!$AA$89 -> 0.9790533392 | I32: =TCP!X$89/TCP!$AA$89 -> 0.9960932295 | J32: =TCP!Y$89/TCP!$AA$89 -> 0.9597385116 | K32: =TCP!Z$89/TCP!$AA$89 -> 0.9711765996 | L32: =TCP!AA$89/TCP!$AA$89 -> 1 | M32: =TCP!AB$89/TCP!$AA$89 -> 1.023507033 | N32: =TCP!AC$89/TCP!$AA$89 -> 1.047287063 | O32: =TCP!AD$89/TCP!$AA$89 -> 1.071399538 | P32: =TCP!AE$89/TCP!$AA$89 -> 1.098496997 | Q32: =TCP!AF$89/TCP!$AA$89 -> 1.124731023 | R32: =TCP!AG$89/TCP!$AA$89 -> 1.145281976 | S32: =TCP!AH$89/TCP!$AA$89 -> 1.160143924 | T32: =TCP!AI$89/TCP!$AA$89 -> 1.184403501 | U32: =TCP!AJ$89/TCP!$AA$89 -> 1.213634432 | V32: =TCP!AK$89/TCP!$AA$89 -> 1.236028565 | W32: =TCP!AL$89/TCP!$AA$89 -> 1.267761394 | X32: =TCP!AM$89/TCP!$AA$89 -> 1.291719431
A36: Average Demand index (before post-model adjustments)
B37: Medium scenario forecast | Z37: Average demand index Powercor
B38: Powercor | C38: 2005 | D38: 2006 | E38: 2007 | F38: 2008 | G38: 2009 | H38: 2010 | I38: 2011 | J38: 2012 | K38: 2013 | L38: 2014 | M38: 2015 | N38: 2016 | O38: 2017 | P38: 2018 | Q38: 2019 | R38: 2020 | S38: 2021 | T38: 2022 | U38: 2023 | V38: 2024 | W38: 2025 | X38: 2026
B39: ATS West | G39: ='ATS West'!V$70/'ATS West'!$AA$70 -> 0.8526676611 | H39: ='ATS West'!W$70/'ATS West'!$AA$70 -> 0.8930762474 | I39: ='ATS West'!X$70/'ATS West'!$AA$70 -> 0.9311415477 | J39: ='ATS West'!Y$70/'ATS West'!$AA$70 -> 0.952913675 | K39: ='ATS West'!Z$70/'ATS West'!$AA$70 -> 0.9532032646 | L39: ='ATS West'!AA$70/'ATS West'!$AA$70 -> 1 | M39: ='ATS West'!AB$70/'ATS West'!$AA$70 -> 1.04 | N39: ='ATS West'!AC$70/'ATS West'!$AA$70 -> 1.0816 | O39: ='ATS West'!AD$70/'ATS West'!$AA$70 -> 1.124864 | P39: ='ATS West'!AE$70/'ATS West'!$AA$70 -> 1.167133526 | Q39: ='ATS West'!AF$70/'ATS West'!$AA$70 -> 1.209770743 | R39: ='ATS West'!AG$70/'ATS West'!$AA$70 -> 1.251289232 | S39: ='ATS West'!AH$70/'ATS West'!$AA$70 -> 1.28182681 | T39: ='ATS West'!AI$70/'ATS West'!$AA$70 -> 1.310795483 | U39: ='ATS West'!AJ$70/'ATS West'!$AA$70 -> 1.350160372 | V39: ='ATS West'!AK$70/'ATS West'!$AA$70 -> 1.385935378 | W39: ='ATS West'!AL$70/'ATS West'!$AA$70 -> 1.418086123 | X39: ='ATS West'!AM$70/'ATS West'!$AA$70 -> 1.450590729
B40: BATS | C40: =BATS!R$70/BATS!$AA$70 -> 1.097176287 | D40: =BATS!S$70/BATS!$AA$70 -> 1.158133896 | E40: =BATS!T$70/BATS!$AA$70 -> 1.153914191 | F40: =BATS!U$70/BATS!$AA$70 -> 1.107077626 | G40: =BATS!V$70/BATS!$AA$70 -> 1.107077626 | H40: =BATS!W$70/BATS!$AA$70 -> 1.058952662 | I40: =BATS!X$70/BATS!$AA$70 -> 1.049354314 | J40: =BATS!Y$70/BATS!$AA$70 -> 1.010462826 | K40: =BATS!Z$70/BATS!$AA$70 -> 0.9971356053 | L40: =BATS!AA$70/BATS!$AA$70 -> 1 | M40: =BATS!AB$70/BATS!$AA$70 -> 1.017511441 | N40: =BATS!AC$70/BATS!$AA$70 -> 1.023928612 | O40: =BATS!AD$70/BATS!$AA$70 -> 1.030635618 | P40: =BATS!AE$70/BATS!$AA$70 -> 1.035064398 | Q40: =BATS!AF$70/BATS!$AA$70 -> 1.039687949 | R40: =BATS!AG$70/BATS!$AA$70 -> 1.04325826 | S40: =BATS!AH$70/BATS!$AA$70 -> 1.037861187 | T40: =BATS!AI$70/BATS!$AA$70 -> 1.030957725 | U40: =BATS!AJ$70/BATS!$AA$70 -> 1.034002817 | V40: =BATS!AK$70/BATS!$AA$70 -> 1.035547221 | W40: =BATS!AL$70/BATS!$AA$70 -> 1.034581753 | X40: =BATS!AM$70/BATS!$AA$70 -> 1.033484632
B41: BETS22 | C41: =BETS22!R$70/BETS22!$AA$70 -> 0.7449138718 | E41: =BETS22!T$70/BETS22!$AA$70 -> 0.8921436894 | F41: =BETS22!U$70/BETS22!$AA$70 -> 0.9519652987 | G41: =BETS22!V$70/BETS22!$AA$70 -> 0.9519652987 | H41: =BETS22!W$70/BETS22!$AA$70 -> 0.9848010268 | I41: =BETS22!X$70/BETS22!$AA$70 -> 0.9942984202 | J41: =BETS22!Y$70/BETS22!$AA$70 -> 0.9613468873 | K41: =BETS22!Z$70/BETS22!$AA$70 -> 0.9511432757 | L41: =BETS22!AA$70/BETS22!$AA$70 -> 1 | M41: =BETS22!AB$70/BETS22!$AA$70 -> 1.04 | N41: =BETS22!AC$70/BETS22!$AA$70 -> 1.054065719 | O41: =BETS22!AD$70/BETS22!$AA$70 -> 1.070996093 | P41: =BETS22!AE$70/BETS22!$AA$70 -> 1.088738945 | Q41: =BETS22!AF$70/BETS22!$AA$70 -> 1.10883553 | R41: =BETS22!AG$70/BETS22!$AA$70 -> 1.129289184 | S41: =BETS22!AH$70/BETS22!$AA$70 -> 1.144577929 | T41: =BETS22!AI$70/BETS22!$AA$70 -> 1.163733519 | U41: =BETS22!AJ$70/BETS22!$AA$70 -> 1.191500132 | V41: =BETS22!AK$70/BETS22!$AA$70 -> 1.214828733 | W41: =BETS22!AL$70/BETS22!$AA$70 -> 1.236399964 | X41: =BETS22!AM$70/BETS22!$AA$70 -> 1.259044044
B42: BETS66 | C42: =BETS66!R$70/BETS66!$AA$70 -> 1.042584965 | D42: =BETS66!S$70/BETS66!$AA$70 -> 1.081038781 | E42: =BETS66!T$70/BETS66!$AA$70 -> 1.070472314 | F42: =BETS66!U$70/BETS66!$AA$70 -> 1.107751495 | G42: =BETS66!V$70/BETS66!$AA$70 -> 1.107751495 | H42: =BETS66!W$70/BETS66!$AA$70 -> 1.072108093 | I42: =BETS66!X$70/BETS66!$AA$70 -> 1.050097865 | J42: =BETS66!Y$70/BETS66!$AA$70 -> 1.047825558 | K42: =BETS66!Z$70/BETS66!$AA$70 -> 1.018737862 | L42: =BETS66!AA$70/BETS66!$AA$70 -> 1 | M42: =BETS66!AB$70/BETS66!$AA$70 -> 1.012012581 | N42: =BETS66!AC$70/BETS66!$AA$70 -> 1.030676347 | O42: =BETS66!AD$70/BETS66!$AA$70 -> 1.047610082 | P42: =BETS66!AE$70/BETS66!$AA$70 -> 1.064180978 | Q42: =BETS66!AF$70/BETS66!$AA$70 -> 1.080553554 | R42: =BETS66!AG$70/BETS66!$AA$70 -> 1.098217796 | S42: =BETS66!AH$70/BETS66!$AA$70 -> 1.114523289 | T42: =BETS66!AI$70/BETS66!$AA$70 -> 1.12784977 | U42: =BETS66!AJ$70/BETS66!$AA$70 -> 1.144587075 | V42: =BETS66!AK$70/BETS66!$AA$70 -> 1.16664703 | W42: =BETS66!AL$70/BETS66!$AA$70 -> 1.188890293 | X42: =BETS66!AM$70/BETS66!$AA$70 -> 1.210713232
B43: BLTS22 | C43: =BLTS22!R$70/BLTS22!$AA$70 -> 1.035911999 | D43: =BLTS22!S$70/BLTS22!$AA$70 -> 1.0586479 | E43: =BLTS22!T$70/BLTS22!$AA$70 -> 1.065872216 | F43: =BLTS22!U$70/BLTS22!$AA$70 -> 1.092910741 | G43: =BLTS22!V$70/BLTS22!$AA$70 -> 1.092910741 | H43: =BLTS22!W$70/BLTS22!$AA$70 -> 1.092856348 | I43: =BLTS22!X$70/BLTS22!$AA$70 -> 1.06390926 | K43: =BLTS22!Z$70/BLTS22!$AA$70 -> 0.9918871382 | L43: =BLTS22!AA$70/BLTS22!$AA$70 -> 1 | M43: =BLTS22!AB$70/BLTS22!$AA$70 -> 1.006599958 | N43: =BLTS22!AC$70/BLTS22!$AA$70 -> 1.017992622 | O43: =BLTS22!AD$70/BLTS22!$AA$70 -> 1.031475805 | P43: =BLTS22!AE$70/BLTS22!$AA$70 -> 1.044447382 | Q43: =BLTS22!AF$70/BLTS22!$AA$70 -> 1.055660314 | R43: =BLTS22!AG$70/BLTS22!$AA$70 -> 1.067234726 | S43: =BLTS22!AH$70/BLTS22!$AA$70 -> 1.076729792 | T43: =BLTS22!AI$70/BLTS22!$AA$70 -> 1.079921616 | U43: =BLTS22!AJ$70/BLTS22!$AA$70 -> 1.083247558 | V43: =BLTS22!AK$70/BLTS22!$AA$70 -> 1.092183198 | W43: =BLTS22!AL$70/BLTS22!$AA$70 -> 1.100115755 | X43: =BLTS22!AM$70/BLTS22!$AA$70 -> 1.106624444
B44: ATS-BLTS | E44: ='ATS-BLTS'!T$70/'ATS-BLTS'!$AA$70 -> 0.8622419923 | F44: ='ATS-BLTS'!U$70/'ATS-BLTS'!$AA$70 -> 0.9291006291 | G44: ='ATS-BLTS'!V$70/'ATS-BLTS'!$AA$70 -> 0.9291006291 | H44: ='ATS-BLTS'!W$70/'ATS-BLTS'!$AA$70 -> 0.9403246336 | I44: ='ATS-BLTS'!X$70/'ATS-BLTS'!$AA$70 -> 0.9673561912 | J44: ='ATS-BLTS'!Y$70/'ATS-BLTS'!$AA$70 -> 0.9653546911 | K44: ='ATS-BLTS'!Z$70/'ATS-BLTS'!$AA$70 -> 0.9619985438 | L44: ='ATS-BLTS'!AA$70/'ATS-BLTS'!$AA$70 -> 1 | M44: ='ATS-BLTS'!AB$70/'ATS-BLTS'!$AA$70 -> 1.04 | N44: ='ATS-BLTS'!AC$70/'ATS-BLTS'!$AA$70 -> 1.075459949 | O44: ='ATS-BLTS'!AD$70/'ATS-BLTS'!$AA$70 -> 1.108512632 | P44: ='ATS-BLTS'!AE$70/'ATS-BLTS'!$AA$70 -> 1.139186748 | Q44: ='ATS-BLTS'!AF$70/'ATS-BLTS'!$AA$70 -> 1.171455542 | R44: ='ATS-BLTS'!AG$70/'ATS-BLTS'!$AA$70 -> 1.202759512 | S44: ='ATS-BLTS'!AH$70/'ATS-BLTS'!$AA$70 -> 1.222228813 | T44: ='ATS-BLTS'!AI$70/'ATS-BLTS'!$AA$70 -> 1.242452346 | U44: ='ATS-BLTS'!AJ$70/'ATS-BLTS'!$AA$70 -> 1.278105205 | V44: ='ATS-BLTS'!AK$70/'ATS-BLTS'!$AA$70 -> 1.310568131 | W44: ='ATS-BLTS'!AL$70/'ATS-BLTS'!$AA$70 -> 1.339908507 | X44: ='ATS-BLTS'!AM$70/'ATS-BLTS'!$AA$70 -> 1.370422089
B45: GTS66 | C45: ='GTS66'!R$70/'GTS66'!$AA$70 -> 1.016424111 | D45: ='GTS66'!S$70/'GTS66'!$AA$70 -> 1.069952352 | E45: ='GTS66'!T$70/'GTS66'!$AA$70 -> 1.068801271 | F45: ='GTS66'!U$70/'GTS66'!$AA$70 -> 1.078590134 | G45: ='GTS66'!V$70/'GTS66'!$AA$70 -> 1.078590134 | H45: ='GTS66'!W$70/'GTS66'!$AA$70 -> 1.059734645 | I45: ='GTS66'!X$70/'GTS66'!$AA$70 -> 1.05569717 | J45: ='GTS66'!Y$70/'GTS66'!$AA$70 -> 1.020462597 | K45: ='GTS66'!Z$70/'GTS66'!$AA$70 -> 0.9906433642 | L45: ='GTS66'!AA$70/'GTS66'!$AA$70 -> 1 | M45: ='GTS66'!AB$70/'GTS66'!$AA$70 -> 1.029383855 | N45: ='GTS66'!AC$70/'GTS66'!$AA$70 -> 1.04861676 | O45: ='GTS66'!AD$70/'GTS66'!$AA$70 -> 1.066349005 | P45: ='GTS66'!AE$70/'GTS66'!$AA$70 -> 1.08177805 | Q45: ='GTS66'!AF$70/'GTS66'!$AA$70 -> 1.097522515 | R45: ='GTS66'!AG$70/'GTS66'!$AA$70 -> 1.113009475 | S45: ='GTS66'!AH$70/'GTS66'!$AA$70 -> 1.119700764 | T45: ='GTS66'!AI$70/'GTS66'!$AA$70 -> 1.124340407 | U45: ='GTS66'!AJ$70/'GTS66'!$AA$70 -> 1.139914959 | V45: ='GTS66'!AK$70/'GTS66'!$AA$70 -> 1.156220776 | W45: ='GTS66'!AL$70/'GTS66'!$AA$70 -> 1.169997257 | X45: ='GTS66'!AM$70/'GTS66'!$AA$70 -> 1.183673853
B46: HOTS66 | C46: =HOTS66!R$70/HOTS66!$AA$70 -> 1.007392786 | D46: =HOTS66!S$70/HOTS66!$AA$70 -> 1.114822527 | E46: =HOTS66!T$70/HOTS66!$AA$70 -> 1.159845494 | F46: =HOTS66!U$70/HOTS66!$AA$70 -> 1.164878524 | G46: =HOTS66!V$70/HOTS66!$AA$70 -> 1.164878524 | H46: =HOTS66!W$70/HOTS66!$AA$70 -> 1.152658444 | I46: =HOTS66!X$70/HOTS66!$AA$70 -> 1.144953302 | J46: =HOTS66!Y$70/HOTS66!$AA$70 -> 1.102811437 | K46: =HOTS66!Z$70/HOTS66!$AA$70 -> 1.024247211 | L46: =HOTS66!AA$70/HOTS66!$AA$70 -> 1 | M46: =HOTS66!AB$70/HOTS66!$AA$70 -> 0.9868568316 | N46: =HOTS66!AC$70/HOTS66!$AA$70 -> 1.015371274 | O46: =HOTS66!AD$70/HOTS66!$AA$70 -> 1.031580091 | P46: =HOTS66!AE$70/HOTS66!$AA$70 -> 1.039622807 | Q46: =HOTS66!AF$70/HOTS66!$AA$70 -> 1.045935052 | R46: =HOTS66!AG$70/HOTS66!$AA$70 -> 1.050365902 | S46: =HOTS66!AH$70/HOTS66!$AA$70 -> 1.045416055 | T46: =HOTS66!AI$70/HOTS66!$AA$70 -> 1.041536014 | U46: =HOTS66!AJ$70/HOTS66!$AA$70 -> 1.049197749 | V46: =HOTS66!AK$70/HOTS66!$AA$70 -> 1.053764881 | W46: =HOTS66!AL$70/HOTS66!$AA$70 -> 1.055962598 | X46: =HOTS66!AM$70/HOTS66!$AA$70 -> 1.058943936
B47: KTSeast | E47: =KTSeast!T$70/KTSeast!$AA$70 -> 0.8481313326 | F47: =KTSeast!U$70/KTSeast!$AA$70 -> 0.9174753827 | G47: =KTSeast!V$70/KTSeast!$AA$70 -> 0.9174753827 | H47: =KTSeast!W$70/KTSeast!$AA$70 -> 0.9262273264 | I47: =KTSeast!X$70/KTSeast!$AA$70 -> 0.9503375654 | J47: =KTSeast!Y$70/KTSeast!$AA$70 -> 0.9619560107 | K47: =KTSeast!Z$70/KTSeast!$AA$70 -> 0.9770821467 | L47: =KTSeast!AA$70/KTSeast!$AA$70 -> 1 | M47: =KTSeast!AB$70/KTSeast!$AA$70 -> 1.022029012 | N47: =KTSeast!AC$70/KTSeast!$AA$70 -> 1.044521186 | O47: =KTSeast!AD$70/KTSeast!$AA$70 -> 1.065318439 | P47: =KTSeast!AE$70/KTSeast!$AA$70 -> 1.086592113 | Q47: =KTSeast!AF$70/KTSeast!$AA$70 -> 1.109836631 | R47: =KTSeast!AG$70/KTSeast!$AA$70 -> 1.13273073 | S47: =KTSeast!AH$70/KTSeast!$AA$70 -> 1.153177384 | T47: =KTSeast!AI$70/KTSeast!$AA$70 -> 1.17549465 | U47: =KTSeast!AJ$70/KTSeast!$AA$70 -> 1.205037876 | V47: =KTSeast!AK$70/KTSeast!$AA$70 -> 1.234512148 | W47: =KTSeast!AL$70/KTSeast!$AA$70 -> 1.263817234 | X47: =KTSeast!AM$70/KTSeast!$AA$70 -> 1.294474377
B48: KTSwest | E48: =KTSwest!T$70/KTSwest!$AA$70 -> 1.054667429 | F48: =KTSwest!U$70/KTSwest!$AA$70 -> 1.068050772 | G48: =KTSwest!V$70/KTSwest!$AA$70 -> 1.068050772 | H48: =KTSwest!W$70/KTSwest!$AA$70 -> 1.056084961 | I48: =KTSwest!X$70/KTSwest!$AA$70 -> 1.049915441 | J48: =KTSwest!Y$70/KTSwest!$AA$70 -> 1.022257838 | K48: =KTSwest!Z$70/KTSwest!$AA$70 -> 0.966062122 | L48: =KTSwest!AA$70/KTSwest!$AA$70 -> 1 | M48: =KTSwest!AB$70/KTSwest!$AA$70 -> 1.037483429 | N48: =KTSwest!AC$70/KTSwest!$AA$70 -> 1.062772645 | O48: =KTSwest!AD$70/KTSwest!$AA$70 -> 1.084679783 | P48: =KTSwest!AE$70/KTSwest!$AA$70 -> 1.102776666 | Q48: =KTSwest!AF$70/KTSwest!$AA$70 -> 1.123997075 | R48: =KTSwest!AG$70/KTSwest!$AA$70 -> 1.144571954 | S48: =KTSwest!AH$70/KTSwest!$AA$70 -> 1.151276275 | T48: =KTSwest!AI$70/KTSwest!$AA$70 -> 1.159125781 | U48: =KTSwest!AJ$70/KTSwest!$AA$70 -> 1.190530062 | V48: =KTSwest!AK$70/KTSwest!$AA$70 -> 1.218880798 | W48: =KTSwest!AL$70/KTSwest!$AA$70 -> 1.243382812 | X48: =KTSwest!AM$70/KTSwest!$AA$70 -> 1.269784508
B49: KGTS22 | C49: =KGTS22!R$70/KGTS22!$AA$70 -> 0.958875855 | D49: =KGTS22!S$70/KGTS22!$AA$70 -> 0.9838348052 | E49: =KGTS22!T$70/KGTS22!$AA$70 -> 0.9657884879 | F49: =KGTS22!U$70/KGTS22!$AA$70 -> 0.996799907 | G49: =KGTS22!V$70/KGTS22!$AA$70 -> 0.996799907 | H49: =KGTS22!W$70/KGTS22!$AA$70 -> 1.041465894 | I49: =KGTS22!X$70/KGTS22!$AA$70 -> 1.016752553 | J49: =KGTS22!Y$70/KGTS22!$AA$70 -> 1.082053549 | K49: =KGTS22!Z$70/KGTS22!$AA$70 -> 1.067485983 | L49: =KGTS22!AA$70/KGTS22!$AA$70 -> 1 | M49: =KGTS22!AB$70/KGTS22!$AA$70 -> 0.9976501574 | N49: =KGTS22!AC$70/KGTS22!$AA$70 -> 1.003857132 | O49: =KGTS22!AD$70/KGTS22!$AA$70 -> 1.006781043 | P49: =KGTS22!AE$70/KGTS22!$AA$70 -> 1.011917585 | Q49: =KGTS22!AF$70/KGTS22!$AA$70 -> 1.0150184 | R49: =KGTS22!AG$70/KGTS22!$AA$70 -> 1.019836266 | S49: =KGTS22!AH$70/KGTS22!$AA$70 -> 1.037926344 | T49: =KGTS22!AI$70/KGTS22!$AA$70 -> 1.051160699 | U49: =KGTS22!AJ$70/KGTS22!$AA$70 -> 1.048629122 | V49: =KGTS22!AK$70/KGTS22!$AA$70 -> 1.054978448 | W49: =KGTS22!AL$70/KGTS22!$AA$70 -> 1.06458855 | X49: =KGTS22!AM$70/KGTS22!$AA$70 -> 1.07265401
B50: KGTS66 | C50: =KGTS66!R$70/KGTS66!$AA$70 -> 1.061639202 | D50: =KGTS66!S$70/KGTS66!$AA$70 -> 1.09154904 | E50: =KGTS66!T$70/KGTS66!$AA$70 -> 1.103323007 | F50: =KGTS66!U$70/KGTS66!$AA$70 -> 1.097701098 | G50: =KGTS66!V$70/KGTS66!$AA$70 -> 1.097701098 | H50: =KGTS66!W$70/KGTS66!$AA$70 -> 1.031486764 | I50: =KGTS66!X$70/KGTS66!$AA$70 -> 1.027684334 | J50: =KGTS66!Y$70/KGTS66!$AA$70 -> 1.011643455 | K50: =KGTS66!Z$70/KGTS66!$AA$70 -> 0.9998543623 | L50: =KGTS66!AA$70/KGTS66!$AA$70 -> 1 | M50: =KGTS66!AB$70/KGTS66!$AA$70 -> 0.9847902908 | N50: =KGTS66!AC$70/KGTS66!$AA$70 -> 0.9887153338 | O50: =KGTS66!AD$70/KGTS66!$AA$70 -> 0.9925810241 | P50: =KGTS66!AE$70/KGTS66!$AA$70 -> 0.9951201897 | Q50: =KGTS66!AF$70/KGTS66!$AA$70 -> 0.9986065536 | R50: =KGTS66!AG$70/KGTS66!$AA$70 -> 1.002133188 | S50: =KGTS66!AH$70/KGTS66!$AA$70 -> 0.9996573371 | T50: =KGTS66!AI$70/KGTS66!$AA$70 -> 0.9985730485 | U50: =KGTS66!AJ$70/KGTS66!$AA$70 -> 1.005420629 | V50: =KGTS66!AK$70/KGTS66!$AA$70 -> 1.010810229 | W50: =KGTS66!AL$70/KGTS66!$AA$70 -> 1.015058704 | X50: =KGTS66!AM$70/KGTS66!$AA$70 -> 1.019888994
B51: RCTS22 | C51: =RCTS22!R$70/RCTS22!$AA$70 -> 0.9347678354 | D51: =RCTS22!S$70/RCTS22!$AA$70 -> 0.9260636579 | E51: =RCTS22!T$70/RCTS22!$AA$70 -> 0.9289898703 | F51: =RCTS22!U$70/RCTS22!$AA$70 -> 0.9444886784 | G51: =RCTS22!V$70/RCTS22!$AA$70 -> 0.9444886784 | H51: =RCTS22!W$70/RCTS22!$AA$70 -> 0.8357378599 | I51: =RCTS22!X$70/RCTS22!$AA$70 -> 0.8845829174 | J51: =RCTS22!Y$70/RCTS22!$AA$70 -> 0.9251450284 | K51: =RCTS22!Z$70/RCTS22!$AA$70 -> 0.9531977804 | L51: =RCTS22!AA$70/RCTS22!$AA$70 -> 1 | M51: =RCTS22!AB$70/RCTS22!$AA$70 -> 0.9651752129 | N51: =RCTS22!AC$70/RCTS22!$AA$70 -> 0.9794525036 | O51: =RCTS22!AD$70/RCTS22!$AA$70 -> 0.9890364393 | P51: =RCTS22!AE$70/RCTS22!$AA$70 -> 0.9988000153 | Q51: =RCTS22!AF$70/RCTS22!$AA$70 -> 1.011034365 | R51: =RCTS22!AG$70/RCTS22!$AA$70 -> 1.022465256 | S51: =RCTS22!AH$70/RCTS22!$AA$70 -> 1.02383659 | T51: =RCTS22!AI$70/RCTS22!$AA$70 -> 1.036404371 | U51: =RCTS22!AJ$70/RCTS22!$AA$70 -> 1.057958952 | V51: =RCTS22!AK$70/RCTS22!$AA$70 -> 1.069256286 | W51: =RCTS22!AL$70/RCTS22!$AA$70 -> 1.080523163 | X51: =RCTS22!AM$70/RCTS22!$AA$70 -> 1.09369318
B52: RCTS66 | C52: ='RCTS66 WETS'!R$70/'RCTS66 WETS'!$AA$70 -> 0.8648771821 | D52: ='RCTS66 WETS'!S$70/'RCTS66 WETS'!$AA$70 -> 0.9177332873 | E52: ='RCTS66 WETS'!T$70/'RCTS66 WETS'!$AA$70 -> 0.8841255778 | F52: ='RCTS66 WETS'!U$70/'RCTS66 WETS'!$AA$70 -> 0.9449943522 | G52: ='RCTS66 WETS'!V$70/'RCTS66 WETS'!$AA$70 -> 0.9449943522 | H52: ='RCTS66 WETS'!W$70/'RCTS66 WETS'!$AA$70 -> 0.9355832453 | I52: ='RCTS66 WETS'!X$70/'RCTS66 WETS'!$AA$70 -> 0.9319693553 | J52: ='RCTS66 WETS'!Y$70/'RCTS66 WETS'!$AA$70 -> 1.00353854 | K52: ='RCTS66 WETS'!Z$70/'RCTS66 WETS'!$AA$70 -> 0.9898533186 | L52: ='RCTS66 WETS'!AA$70/'RCTS66 WETS'!$AA$70 -> 1 | M52: ='RCTS66 WETS'!AB$70/'RCTS66 WETS'!$AA$70 -> 1.000678808 | N52: ='RCTS66 WETS'!AC$70/'RCTS66 WETS'!$AA$70 -> 1.008499554 | O52: ='RCTS66 WETS'!AD$70/'RCTS66 WETS'!$AA$70 -> 1.019178865 | P52: ='RCTS66 WETS'!AE$70/'RCTS66 WETS'!$AA$70 -> 1.03142951 | Q52: ='RCTS66 WETS'!AF$70/'RCTS66 WETS'!$AA$70 -> 1.043713897 | R52: ='RCTS66 WETS'!AG$70/'RCTS66 WETS'!$AA$70 -> 1.056234129 | S52: ='RCTS66 WETS'!AH$70/'RCTS66 WETS'!$AA$70 -> 1.071923146 | T52: ='RCTS66 WETS'!AI$70/'RCTS66 WETS'!$AA$70 -> 1.087151983 | U52: ='RCTS66 WETS'!AJ$70/'RCTS66 WETS'!$AA$70 -> 1.09980203 | V52: ='RCTS66 WETS'!AK$70/'RCTS66 WETS'!$AA$70 -> 1.113654879 | W52: ='RCTS66 WETS'!AL$70/'RCTS66 WETS'!$AA$70 -> 1.12835025 | X52: ='RCTS66 WETS'!AM$70/'RCTS66 WETS'!$AA$70 -> 1.143352544
B53: SHTS | C53: =SHTS!R$70/SHTS!$AA$70 -> 1.048629002 | D53: =SHTS!S$70/SHTS!$AA$70 -> 1.091460685 | E53: =SHTS!T$70/SHTS!$AA$70 -> 1.079544989 | F53: =SHTS!U$70/SHTS!$AA$70 -> 1.090996323 | G53: =SHTS!V$70/SHTS!$AA$70 -> 1.090996323 | H53: =SHTS!W$70/SHTS!$AA$70 -> 1.037418034 | I53: =SHTS!X$70/SHTS!$AA$70 -> 1.024378377 | J53: =SHTS!Y$70/SHTS!$AA$70 -> 1.025715797 | K53: =SHTS!Z$70/SHTS!$AA$70 -> 0.9944127148 | L53: =SHTS!AA$70/SHTS!$AA$70 -> 1 | M53: =SHTS!AB$70/SHTS!$AA$70 -> 0.99839258 | N53: =SHTS!AC$70/SHTS!$AA$70 -> 1.005097489 | O53: =SHTS!AD$70/SHTS!$AA$70 -> 1.012428925 | P53: =SHTS!AE$70/SHTS!$AA$70 -> 1.019261022 | Q53: =SHTS!AF$70/SHTS!$AA$70 -> 1.026496404 | R53: =SHTS!AG$70/SHTS!$AA$70 -> 1.03384507 | S53: =SHTS!AH$70/SHTS!$AA$70 -> 1.036513849 | T53: =SHTS!AI$70/SHTS!$AA$70 -> 1.038280561 | U53: =SHTS!AJ$70/SHTS!$AA$70 -> 1.045633778 | V53: =SHTS!AK$70/SHTS!$AA$70 -> 1.053643472 | W53: =SHTS!AL$70/SHTS!$AA$70 -> 1.060866328 | X53: =SHTS!AM$70/SHTS!$AA$70 -> 1.068182893
B54: TGTS | C54: =TGTS!R$70/TGTS!$AA$70 -> 0.9357286062 | D54: =TGTS!S$70/TGTS!$AA$70 -> 0.98558704 | E54: =TGTS!T$70/TGTS!$AA$70 -> 0.9786688489 | F54: =TGTS!U$70/TGTS!$AA$70 -> 1.033111664 | G54: =TGTS!V$70/TGTS!$AA$70 -> 1.033111664 | H54: =TGTS!W$70/TGTS!$AA$70 -> 1.033064705 | I54: =TGTS!X$70/TGTS!$AA$70 -> 1.03830004 | J54: =TGTS!Y$70/TGTS!$AA$70 -> 1.0265622 | K54: =TGTS!Z$70/TGTS!$AA$70 -> 1.008697176 | L54: =TGTS!AA$70/TGTS!$AA$70 -> 1 | M54: =TGTS!AB$70/TGTS!$AA$70 -> 1.010147813 | N54: =TGTS!AC$70/TGTS!$AA$70 -> 1.0235392 | O54: =TGTS!AD$70/TGTS!$AA$70 -> 1.035457372 | P54: =TGTS!AE$70/TGTS!$AA$70 -> 1.046734101 | Q54: =TGTS!AF$70/TGTS!$AA$70 -> 1.05857319 | R54: =TGTS!AG$70/TGTS!$AA$70 -> 1.07024002 | S54: =TGTS!AH$70/TGTS!$AA$70 -> 1.078855258 | T54: =TGTS!AI$70/TGTS!$AA$70 -> 1.087602929 | U54: =TGTS!AJ$70/TGTS!$AA$70 -> 1.100199864 | V54: =TGTS!AK$70/TGTS!$AA$70 -> 1.112386361 | W54: =TGTS!AL$70/TGTS!$AA$70 -> 1.124097179 | X54: =TGTS!AM$70/TGTS!$AA$70 -> 1.136067554
B55: TPC | C55: ='TPC reconciled'!R$70/'TPC reconciled'!$AA$70 -> 0.9320830311 | D55: ='TPC reconciled'!S$70/'TPC reconciled'!$AA$70 -> 0.9844832725 | E55: ='TPC reconciled'!T$70/'TPC reconciled'!$AA$70 -> 0.985458452 | F55: ='TPC reconciled'!U$70/'TPC reconciled'!$AA$70 -> 1.002909386 | G55: ='TPC reconciled'!V$70/'TPC reconciled'!$AA$70 -> 1.002909386 | H55: ='TPC reconciled'!W$70/'TPC reconciled'!$AA$70 -> 0.9993480689 | I55: ='TPC reconciled'!X$70/'TPC reconciled'!$AA$70 -> 0.9965620274 | J55: ='TPC reconciled'!Y$70/'TPC reconciled'!$AA$70 -> 0.9999544043 | K55: ='TPC reconciled'!Z$70/'TPC reconciled'!$AA$70 -> 0.9862428229 | L55: ='TPC reconciled'!AA$70/'TPC reconciled'!$AA$70 -> 1 | M55: ='TPC reconciled'!AB$70/'TPC reconciled'!$AA$70 -> 1.030241448 | N55: ='TPC reconciled'!AC$70/'TPC reconciled'!$AA$70 -> 0 | O55: ='TPC reconciled'!AD$70/'TPC reconciled'!$AA$70 -> 0 | P55: ='TPC reconciled'!AE$70/'TPC reconciled'!$AA$70 -> 0 | Q55: ='TPC reconciled'!AF$70/'TPC reconciled'!$AA$70 -> 0 | R55: ='TPC reconciled'!AG$70/'TPC reconciled'!$AA$70 -> 0 | S55: ='TPC reconciled'!AH$70/'TPC reconciled'!$AA$70 -> 0 | T55: ='TPC reconciled'!AI$70/'TPC reconciled'!$AA$70 -> 0 | U55: ='TPC reconciled'!AJ$70/'TPC reconciled'!$AA$70 -> 0 | V55: ='TPC reconciled'!AK$70/'TPC reconciled'!$AA$70 -> 0 | W55: ='TPC reconciled'!AL$70/'TPC reconciled'!$AA$70 -> 0 | X55: ='TPC reconciled'!AM$70/'TPC reconciled'!$AA$70 -> 0 | Z55: Average demand index CitiPower
B57: Citipower
B58: WMTS22 | C58: =WMTS22!R$70/WMTS22!$AA$70 -> 0.8809839595 | D58: =WMTS22!S$70/WMTS22!$AA$70 -> 0.8910634156 | E58: =WMTS22!T$70/WMTS22!$AA$70 -> 0.92896355 | F58: =WMTS22!U$70/WMTS22!$AA$70 -> 0.9861094493 | G58: =WMTS22!V$70/WMTS22!$AA$70 -> 0.9861094493 | H58: =WMTS22!W$70/WMTS22!$AA$70 -> 0.9932925345 | I58: =WMTS22!X$70/WMTS22!$AA$70 -> 0.9983425341 | J58: =WMTS22!Y$70/WMTS22!$AA$70 -> 1.01360068 | K58: =WMTS22!Z$70/WMTS22!$AA$70 -> 0.9934320104 | L58: =WMTS22!AA$70/WMTS22!$AA$70 -> 1 | M58: =WMTS22!AB$70/WMTS22!$AA$70 -> 0.9611850528 | N58: =WMTS22!AC$70/WMTS22!$AA$70 -> 0.9996324549 | O58: =WMTS22!AD$70/WMTS22!$AA$70 -> 1.039617753 | P58: =WMTS22!AE$70/WMTS22!$AA$70 -> 1.081202463 | Q58: =WMTS22!AF$70/WMTS22!$AA$70 -> 1.124450562 | R58: =WMTS22!AG$70/WMTS22!$AA$70 -> 1.169428584 | S58: =WMTS22!AH$70/WMTS22!$AA$70 -> 1.203418929 | T58: =WMTS22!AI$70/WMTS22!$AA$70 -> 1.226019591 | U58: =WMTS22!AJ$70/WMTS22!$AA$70 -> 1.249578523 | V58: =WMTS22!AK$70/WMTS22!$AA$70 -> 1.274798981 | W58: =WMTS22!AL$70/WMTS22!$AA$70 -> 1.298295134 | X58: =WMTS22!AM$70/WMTS22!$AA$70 -> 1.320032064
B59: WMTS66 | E59: =WMTS66!T$70/WMTS66!$AA$70 -> 0.9997742726 | F59: =WMTS66!U$70/WMTS66!$AA$70 -> 1.018722095 | G59: =WMTS66!V$70/WMTS66!$AA$70 -> 1.018722095 | H59: =WMTS66!W$70/WMTS66!$AA$70 -> 0.9951120086 | I59: =WMTS66!X$70/WMTS66!$AA$70 -> 0.9948917361 | J59: =WMTS66!Y$70/WMTS66!$AA$70 -> 0.9854590774 | K59: =WMTS66!Z$70/WMTS66!$AA$70 -> 0.9830892785 | L59: =WMTS66!AA$70/WMTS66!$AA$70 -> 1 | M59: =WMTS66!AB$70/WMTS66!$AA$70 -> 1.037822112 | N59: =WMTS66!AC$70/WMTS66!$AA$70 -> 1.066062506 | O59: =WMTS66!AD$70/WMTS66!$AA$70 -> 1.091208786 | P59: =WMTS66!AE$70/WMTS66!$AA$70 -> 1.111885795 | Q59: =WMTS66!AF$70/WMTS66!$AA$70 -> 1.132491942 | R59: =WMTS66!AG$70/WMTS66!$AA$70 -> 1.151243803 | S59: =WMTS66!AH$70/WMTS66!$AA$70 -> 1.159430794 | T59: =WMTS66!AI$70/WMTS66!$AA$70 -> 1.16740269 | U59: =WMTS66!AJ$70/WMTS66!$AA$70 -> 1.186053409 | V59: =WMTS66!AK$70/WMTS66!$AA$70 -> 1.201836333 | W59: =WMTS66!AL$70/WMTS66!$AA$70 -> 1.215741652 | X59: =WMTS66!AM$70/WMTS66!$AA$70 -> 1.230993282
B60: BTS22 | C60: ='BTS22'!R$70/AVERAGE('BTS22'!$Z70,'BTS22'!$AB70) -> 0.9587456977 | D60: ='BTS22'!S$70/AVERAGE('BTS22'!$Z70,'BTS22'!$AB70) -> 0.987487417 | E60: ='BTS22'!T$70/AVERAGE('BTS22'!$Z70,'BTS22'!$AB70) -> 0.9721999579 | F60: ='BTS22'!U$70/AVERAGE('BTS22'!$Z70,'BTS22'!$AB70) -> 1.001053622 | G60: ='BTS22'!V$70/AVERAGE('BTS22'!$Z70,'BTS22'!$AB70) -> 1.001053622 | H60: ='BTS22'!W$70/AVERAGE('BTS22'!$Z70,'BTS22'!$AB70) -> 1.017607597 | I60: ='BTS22'!X$70/AVERAGE('BTS22'!$Z70,'BTS22'!$AB70) -> 0.973550168 | J60: ='BTS22'!Y$70/AVERAGE('BTS22'!$Z70,'BTS22'!$AB70) -> 0.9951506408 | K60: ='BTS22'!Z$70/AVERAGE('BTS22'!$Z70,'BTS22'!$AB70) -> 0.98871061 | L60: =AVERAGE('BTS22'!$Z70,'BTS22'!$AB70)/AVERAGE('BTS22'!$Z70,'BTS22'!$AB70) -> 1 | M60: ='BTS22'!AB$70/AVERAGE('BTS22'!$Z70,'BTS22'!$AB70) -> 1.01128939 | N60: ='BTS22'!AC$70/AVERAGE('BTS22'!$Z70,'BTS22'!$AB70) -> 1.037973329 | O60: ='BTS22'!AD$70/AVERAGE('BTS22'!$Z70,'BTS22'!$AB70) -> 1.061289267 | P60: ='BTS22'!AE$70/AVERAGE('BTS22'!$Z70,'BTS22'!$AB70) -> 1.081392009 | Q60: ='BTS22'!AF$70/AVERAGE('BTS22'!$Z70,'BTS22'!$AB70) -> 1.097449292 | R60: ='BTS22'!AG$70/AVERAGE('BTS22'!$Z70,'BTS22'!$AB70) -> 1.112173901 | S60: ='BTS22'!AH$70/AVERAGE('BTS22'!$Z70,'BTS22'!$AB70) -> 1.128781408 | T60: ='BTS22'!AI$70/AVERAGE('BTS22'!$Z70,'BTS22'!$AB70) -> 1.140044453 | U60: ='BTS22'!AJ$70/AVERAGE('BTS22'!$Z70,'BTS22'!$AB70) -> 1.145039483 | V60: ='BTS22'!AK$70/AVERAGE('BTS22'!$Z70,'BTS22'!$AB70) -> 1.156257988 | W60: ='BTS22'!AL$70/AVERAGE('BTS22'!$Z70,'BTS22'!$AB70) -> 1.16892692 | X60: ='BTS22'!AM$70/AVERAGE('BTS22'!$Z70,'BTS22'!$AB70) -> 1.180888136
B61: FBTS66 | C61: =FBTS66!R$70/FBTS66!$AA$70 -> 0.9201525415 | D61: =FBTS66!S$70/FBTS66!$AA$70 -> 0.9608617446 | E61: =FBTS66!T$70/FBTS66!$AA$70 -> 0.9492805423 | F61: =FBTS66!U$70/FBTS66!$AA$70 -> 0.9799284257 | G61: =FBTS66!V$70/FBTS66!$AA$70 -> 0.9799284257 | H61: =FBTS66!W$70/FBTS66!$AA$70 -> 0.965589613 | I61: =FBTS66!X$70/FBTS66!$AA$70 -> 0.97223351 | J61: =FBTS66!Y$70/FBTS66!$AA$70 -> 0.9899166571 | K61: =FBTS66!Z$70/FBTS66!$AA$70 -> 0.9783560719 | L61: =FBTS66!AA$70/FBTS66!$AA$70 -> 1 | M61: =FBTS66!AB$70/FBTS66!$AA$70 -> 1.034055743 | N61: =FBTS66!AC$70/FBTS66!$AA$70 -> 1.047589804 | O61: =FBTS66!AD$70/FBTS66!$AA$70 -> 1.065116952 | P61: =FBTS66!AE$70/FBTS66!$AA$70 -> 1.082640059 | Q61: =FBTS66!AF$70/FBTS66!$AA$70 -> 1.101107632 | R61: =FBTS66!AG$70/FBTS66!$AA$70 -> 1.120261855 | S61: =FBTS66!AH$70/FBTS66!$AA$70 -> 1.136922668 | T61: =FBTS66!AI$70/FBTS66!$AA$70 -> 1.15163553 | U61: =FBTS66!AJ$70/FBTS66!$AA$70 -> 1.170195532 | V61: =FBTS66!AK$70/FBTS66!$AA$70 -> 1.191411274 | W61: =FBTS66!AL$70/FBTS66!$AA$70 -> 1.212756206 | X61: =FBTS66!AM$70/FBTS66!$AA$70 -> 1.233616746
B62: RTS22 | C62: ='RTS22'!R$70/'RTS22'!$AA$70 -> 1.082297315 | D62: ='RTS22'!S$70/'RTS22'!$AA$70 -> 1.156198385 | E62: ='RTS22'!T$70/'RTS22'!$AA$70 -> 1.173986502 | F62: ='RTS22'!U$70/'RTS22'!$AA$70 -> 1.062767043 | G62: ='RTS22'!V$70/'RTS22'!$AA$70 -> 1.062767043 | H62: ='RTS22'!W$70/'RTS22'!$AA$70 -> 1.02718052 | I62: ='RTS22'!X$70/'RTS22'!$AA$70 -> 1.03780188 | J62: ='RTS22'!Y$70/'RTS22'!$AA$70 -> 0.9957847746 | K62: ='RTS22'!Z$70/'RTS22'!$AA$70 -> 0.9490150714 | L62: ='RTS22'!AA$70/'RTS22'!$AA$70 -> 1 | M62: ='RTS22'!AB$70/'RTS22'!$AA$70 -> 0.9487075999 | N62: ='RTS22'!AC$70/'RTS22'!$AA$70 -> 0.9866559039 | O62: ='RTS22'!AD$70/'RTS22'!$AA$70 -> 1.02612214 | P62: ='RTS22'!AE$70/'RTS22'!$AA$70 -> 1.053917643 | Q62: ='RTS22'!AF$70/'RTS22'!$AA$70 -> 1.075977636 | R62: ='RTS22'!AG$70/'RTS22'!$AA$70 -> 1.093086443 | S62: ='RTS22'!AH$70/'RTS22'!$AA$70 -> 1.093851813 | T62: ='RTS22'!AI$70/'RTS22'!$AA$70 -> 1.09197032 | U62: ='RTS22'!AJ$70/'RTS22'!$AA$70 -> 1.105993116 | V62: ='RTS22'!AK$70/'RTS22'!$AA$70 -> 1.117286124 | W62: ='RTS22'!AL$70/'RTS22'!$AA$70 -> 1.125218736 | X62: ='RTS22'!AM$70/'RTS22'!$AA$70 -> 1.133774968
B63: RTS66_1_2 | E63: =RTS66_1_2!T$70/RTS66_1_2!$AA$70 -> 0.9851628986 | F63: =RTS66_1_2!U$70/RTS66_1_2!$AA$70 -> 1.018743421 | G63: =RTS66_1_2!V$70/RTS66_1_2!$AA$70 -> 1.018743421 | H63: =RTS66_1_2!W$70/RTS66_1_2!$AA$70 -> 1.019977469 | I63: =RTS66_1_2!X$70/RTS66_1_2!$AA$70 -> 1.001258772 | J63: =RTS66_1_2!Y$70/RTS66_1_2!$AA$70 -> 1.012917232 | K63: =RTS66_1_2!Z$70/RTS66_1_2!$AA$70 -> 1.002106239 | L63: =RTS66_1_2!AA$70/RTS66_1_2!$AA$70 -> 1 | M63: =RTS66_1_2!AB$70/RTS66_1_2!$AA$70 -> 1.04 | N63: =RTS66_1_2!AC$70/RTS66_1_2!$AA$70 -> 1.053003241 | O63: =RTS66_1_2!AD$70/RTS66_1_2!$AA$70 -> 1.068902142 | P63: =RTS66_1_2!AE$70/RTS66_1_2!$AA$70 -> 1.082731498 | Q63: =RTS66_1_2!AF$70/RTS66_1_2!$AA$70 -> 1.094617436 | R63: =RTS66_1_2!AG$70/RTS66_1_2!$AA$70 -> 1.106188374 | S63: =RTS66_1_2!AH$70/RTS66_1_2!$AA$70 -> 1.115293138 | T63: =RTS66_1_2!AI$70/RTS66_1_2!$AA$70 -> 1.121523638 | U63: =RTS66_1_2!AJ$70/RTS66_1_2!$AA$70 -> 1.130629327 | V63: =RTS66_1_2!AK$70/RTS66_1_2!$AA$70 -> 1.142944698 | W63: =RTS66_1_2!AL$70/RTS66_1_2!$AA$70 -> 1.154719399 | X63: =RTS66_1_2!AM$70/RTS66_1_2!$AA$70 -> 1.166039293
B64: RTS66_3_4 | E64: =RTS66_3_4!T$70/RTS66_3_4!$AA$70 -> 1.007785251 | F64: =RTS66_3_4!U$70/RTS66_3_4!$AA$70 -> 1.03022494 | G64: =RTS66_3_4!V$70/RTS66_3_4!$AA$70 -> 1.03022494 | H64: =RTS66_3_4!W$70/RTS66_3_4!$AA$70 -> 1.01811402 | I64: =RTS66_3_4!X$70/RTS66_3_4!$AA$70 -> 1.000241957 | J64: =RTS66_3_4!Y$70/RTS66_3_4!$AA$70 -> 0.9890576182 | K64: =RTS66_3_4!Z$70/RTS66_3_4!$AA$70 -> 0.9816399595 | L64: =RTS66_3_4!AA$70/RTS66_3_4!$AA$70 -> 1 | M64: =RTS66_3_4!AB$70/RTS66_3_4!$AA$70 -> 1.025906483 | N64: =RTS66_3_4!AC$70/RTS66_3_4!$AA$70 -> 1.052477965 | O64: =RTS66_3_4!AD$70/RTS66_3_4!$AA$70 -> 1.075755242 | P64: =RTS66_3_4!AE$70/RTS66_3_4!$AA$70 -> 1.094058583 | Q64: =RTS66_3_4!AF$70/RTS66_3_4!$AA$70 -> 1.110459915 | R64: =RTS66_3_4!AG$70/RTS66_3_4!$AA$70 -> 1.126293469 | S64: =RTS66_3_4!AH$70/RTS66_3_4!$AA$70 -> 1.13718108 | T64: =RTS66_3_4!AI$70/RTS66_3_4!$AA$70 -> 1.145358634 | U64: =RTS66_3_4!AJ$70/RTS66_3_4!$AA$70 -> 1.159257107 | V64: =RTS66_3_4!AK$70/RTS66_3_4!$AA$70 -> 1.175907141 | W64: =RTS66_3_4!AL$70/RTS66_3_4!$AA$70 -> 1.191437648 | X64: =RTS66_3_4!AM$70/RTS66_3_4!$AA$70 -> 1.206381119
B65: SVTS | E65: =SVTS!T$70/SVTS!$AA$70 -> 1.128580243 | F65: =SVTS!U$70/SVTS!$AA$70 -> 1.19481056 | G65: =SVTS!V$70/SVTS!$AA$70 -> 1.19481056 | H65: =SVTS!W$70/SVTS!$AA$70 -> 1.194454654 | I65: =SVTS!X$70/SVTS!$AA$70 -> 1.12068881 | J65: =SVTS!Y$70/SVTS!$AA$70 -> 1.135419306 | K65: =SVTS!Z$70/SVTS!$AA$70 -> 1.096139701 | L65: =SVTS!AA$70/SVTS!$AA$70 -> 1 | M65: =SVTS!AB$70/SVTS!$AA$70 -> 1.038124224 | N65: =SVTS!AC$70/SVTS!$AA$70 -> 1.068609252 | O65: =SVTS!AD$70/SVTS!$AA$70 -> 1.087549608 | P65: =SVTS!AE$70/SVTS!$AA$70 -> 1.102149789 | Q65: =SVTS!AF$70/SVTS!$AA$70 -> 1.108612045 | R65: =SVTS!AG$70/SVTS!$AA$70 -> 1.115341399 | S65: =SVTS!AH$70/SVTS!$AA$70 -> 1.125934507 | T65: =SVTS!AI$70/SVTS!$AA$70 -> 1.122485955 | U65: =SVTS!AJ$70/SVTS!$AA$70 -> 1.110086129 | V65: =SVTS!AK$70/SVTS!$AA$70 -> 1.117060051 | W65: =SVTS!AL$70/SVTS!$AA$70 -> 1.123738431 | X65: =SVTS!AM$70/SVTS!$AA$70 -> 1.149519226
B66: TSTS | C66: =TSTS!R$70/TSTS!$AA$70 -> 1.038896742 | D66: =TSTS!S$70/TSTS!$AA$70 -> 1.070946841 | E66: =TSTS!T$70/TSTS!$AA$70 -> 1.054396839 | F66: =TSTS!U$70/TSTS!$AA$70 -> 1.080370482 | G66: =TSTS!V$70/TSTS!$AA$70 -> 1.080370482 | H66: =TSTS!W$70/TSTS!$AA$70 -> 1.089283168 | I66: =TSTS!X$70/TSTS!$AA$70 -> 1.044484147 | J66: =TSTS!Y$70/TSTS!$AA$70 -> 1.065308762 | K66: =TSTS!Z$70/TSTS!$AA$70 -> 1.025273649 | L66: =TSTS!AA$70/TSTS!$AA$70 -> 1 | M66: =TSTS!AB$70/TSTS!$AA$70 -> 1.023466964 | N66: =TSTS!AC$70/TSTS!$AA$70 -> 1.03881496 | O66: =TSTS!AD$70/TSTS!$AA$70 -> 1.05234414 | P66: =TSTS!AE$70/TSTS!$AA$70 -> 1.06283495 | Q66: =TSTS!AF$70/TSTS!$AA$70 -> 1.070623027 | R66: =TSTS!AG$70/TSTS!$AA$70 -> 1.077510479 | S66: =TSTS!AH$70/TSTS!$AA$70 -> 1.081513879 | T66: =TSTS!AI$70/TSTS!$AA$70 -> 1.082047707 | U66: =TSTS!AJ$70/TSTS!$AA$70 -> 1.084442373 | V66: =TSTS!AK$70/TSTS!$AA$70 -> 1.089530667 | W66: =TSTS!AL$70/TSTS!$AA$70 -> 1.094084641 | X66: =TSTS!AM$70/TSTS!$AA$70 -> 1.097488964
B67: TCP | C67: =TCP!R$70/TCP!$AA$70 -> 0.94405904 | D67: =TCP!S$70/TCP!$AA$70 -> 0.9980744115 | E67: =TCP!T$70/TCP!$AA$70 -> 1.019381375 | F67: =TCP!U$70/TCP!$AA$70 -> 1.024907917 | G67: =TCP!V$70/TCP!$AA$70 -> 1.024907917 | H67: =TCP!W$70/TCP!$AA$70 -> 1.00926926 | I67: =TCP!X$70/TCP!$AA$70 -> 1.003532425 | J67: =TCP!Y$70/TCP!$AA$70 -> 0.9911041825 | K67: =TCP!Z$70/TCP!$AA$70 -> 0.9727042156 | L67: =TCP!AA$70/TCP!$AA$70 -> 1 | M67: =TCP!AB$70/TCP!$AA$70 -> 1.03402205 | N67: =TCP!AC$70/TCP!$AA$70 -> 1.059460413 | O67: =TCP!AD$70/TCP!$AA$70 -> 1.081818979 | P67: =TCP!AE$70/TCP!$AA$70 -> 1.099298364 | Q67: =TCP!AF$70/TCP!$AA$70 -> 1.116848414 | R67: =TCP!AG$70/TCP!$AA$70 -> 1.132821281 | S67: =TCP!AH$70/TCP!$AA$70 -> 1.137562021 | T67: =TCP!AI$70/TCP!$AA$70 -> 1.14220805 | U67: =TCP!AJ$70/TCP!$AA$70 -> 1.159230451 | V67: =TCP!AK$70/TCP!$AA$70 -> 1.173095308 | W67: =TCP!AL$70/TCP!$AA$70 -> 1.184457599 | X67: =TCP!AM$70/TCP!$AA$70 -> 1.196736673
A70: Max demand summation (before post-model adjustments)
B71: Medium scenario forecast
B72: Powercor | C72: 2005 | D72: 2006 | E72: 2007 | F72: 2008 | G72: 2009 | H72: 2010 | I72: 2011 | J72: 2012 | K72: 2013 | L72: 2014 | M72: 2015 | N72: 2016 | O72: 2017 | P72: 2018 | Q72: 2019 | R72: 2020 | S72: 2021 | T72: 2022 | U72: 2023 | V72: 2024 | W72: 2025 | X72: 2026
B73: ATS West | G73: ='ATS West'!V$89 -> 161.1071594 | H73: ='ATS West'!W$89 -> 164.5138382 | I73: ='ATS West'!X$89 -> 178.6998693 | J73: ='ATS West'!Y$89 -> 179.3099801 | K73: ='ATS West'!Z$89 -> 190.2306159 | L73: ='ATS West'!AA$89 -> 191.2877692 | M73: ='ATS West'!AB$89 -> 198.9392799 | N73: ='ATS West'!AC$89 -> 206.8968511 | O73: ='ATS West'!AD$89 -> 215.1727252 | P73: ='ATS West'!AE$89 -> 223.7796342 | Q73: ='ATS West'!AF$89 -> 232.7308195 | R73: ='ATS West'!AG$89 -> 242.0400523 | S73: ='ATS West'!AH$89 -> 250.4103081 | T73: ='ATS West'!AI$89 -> 260.4267205 | U73: ='ATS West'!AJ$89 -> 270.8437893 | V73: ='ATS West'!AK$89 -> 281.6775409 | W73: ='ATS West'!AL$89 -> 292.9446425 | X73: ='ATS West'!AM$89 -> 304.6624282
B74: BATS | C74: =BATS!R$89 -> 167.6006625 | D74: =BATS!S$89 -> 177.4899753 | E74: =BATS!T$89 -> 179.2720127 | F74: =BATS!U$89 -> 184.896914 | G74: =BATS!V$89 -> 174.2843129 | H74: =BATS!W$89 -> 167.3919164 | I74: =BATS!X$89 -> 169.7252909 | J74: =BATS!Y$89 -> 162.7121796 | K74: =BATS!Z$89 -> 166.0284295 | L74: =BATS!AA$89 -> 160.5380127 | M74: =BATS!AB$89 -> 166.6325536 | N74: =BATS!AC$89 -> 170.0686909 | O74: =BATS!AD$89 -> 176.8714386 | P74: =BATS!AE$89 -> 180.1266054 | Q74: =BATS!AF$89 -> 185.5771039 | R74: =BATS!AG$89 -> 190.964517 | S74: =BATS!AH$89 -> 193.0047618 | T74: =BATS!AI$89 -> 200.3446215 | U74: =BATS!AJ$89 -> 207.6886365 | V74: =BATS!AK$89 -> 215.5373224 | W74: =BATS!AL$89 -> 220.0831087 | X74: =BATS!AM$89 -> 228.8864331
B75: BETS22 | D75: =BETS22!S$89 -> 42.898912 | E75: =BETS22!T$89 -> 46.79958452 | F75: =BETS22!U$89 -> 48.47139378 | G75: =BETS22!V$89 -> 50.60349287 | H75: =BETS22!W$89 -> 51.67870079 | I75: =BETS22!X$89 -> 52.1858723 | J75: =BETS22!Y$89 -> 51.20971024 | K75: =BETS22!Z$89 -> 57.08574708 | L75: =BETS22!AA$89 -> 57.32769856 | M75: =BETS22!AB$89 -> 59.6208065 | N75: =BETS22!AC$89 -> 61.48226522 | O75: =BETS22!AD$89 -> 63.92843404 | P75: =BETS22!AE$89 -> 66.48557141 | Q75: =BETS22!AF$89 -> 68.96710948 | R75: =BETS22!AG$89 -> 71.52983374 | S75: =BETS22!AH$89 -> 74.1652577 | T75: =BETS22!AI$89 -> 77.13186801 | U75: =BETS22!AJ$89 -> 80.21714273 | V75: =BETS22!AK$89 -> 83.08521141 | W75: =BETS22!AL$89 -> 86.40861987 | X75: =BETS22!AM$89 -> 89.86496467
B76: BETS66 | C76: =BETS66!R$89 -> 158.9747724 | D76: =BETS66!S$89 -> 164.8673487 | E76: =BETS66!T$89 -> 161.3162621 | F76: =BETS66!U$89 -> 169.5065142 | G76: =BETS66!V$89 -> 172.1759048 | H76: =BETS66!W$89 -> 156.057453 | I76: =BETS66!X$89 -> 162.7832708 | J76: =BETS66!Y$89 -> 163.5966588 | K76: =BETS66!Z$89 -> 165.2506621 | L76: =BETS66!AA$89 -> 155.549464 | M76: =BETS66!AB$89 -> 158.206316 | N76: =BETS66!AC$89 -> 163.277111 | O76: =BETS66!AD$89 -> 167.9472624 | P76: =BETS66!AE$89 -> 174.2080213 | Q76: =BETS66!AF$89 -> 177.3290227 | R76: =BETS66!AG$89 -> 180.4404765 | S76: =BETS66!AH$89 -> 185.1786378 | T76: =BETS66!AI$89 -> 189.6558013 | U76: =BETS66!AJ$89 -> 196.7788953 | V76: =BETS66!AK$89 -> 200.6055409 | W76: =BETS66!AL$89 -> 208.1651307 | X76: =BETS66!AM$89 -> 213.5405673
B77: BLTS22 | C77: =BLTS22!R$89 -> 56.1953911 | D77: =BLTS22!S$89 -> 56.38593568 | E77: =BLTS22!T$89 -> 58.04599705 | F77: =BLTS22!U$89 -> 60.16064445 | G77: =BLTS22!V$89 -> 59.38421045 | H77: =BLTS22!W$89 -> 60.1404284 | I77: =BLTS22!X$89 -> 57.65594141 | K77: =BLTS22!Z$89 -> 54.82489935 | L77: =BLTS22!AA$89 -> 56.57046295 | M77: =BLTS22!AB$89 -> 56.76018607 | N77: =BLTS22!AC$89 -> 57.67663417 | O77: =BLTS22!AD$89 -> 58.88534289 | P77: =BLTS22!AE$89 -> 59.90592167 | Q77: =BLTS22!AF$89 -> 60.91793229 | R77: =BLTS22!AG$89 -> 61.87120877 | S77: =BLTS22!AH$89 -> 62.65475012 | T77: =BLTS22!AI$89 -> 63.30509079 | U77: =BLTS22!AJ$89 -> 64.2598326 | V77: =BLTS22!AK$89 -> 65.59925634 | W77: =BLTS22!AL$89 -> 66.77420265 | X77: =BLTS22!AM$89 -> 67.80411381
B78: ATS-BLTS | E78: ='ATS-BLTS'!T$89 -> 159.1228698 | F78: ='ATS-BLTS'!U$89 -> 167.1791091 | G78: ='ATS-BLTS'!V$89 -> 169.6074901 | H78: ='ATS-BLTS'!W$89 -> 175.5462569 | I78: ='ATS-BLTS'!X$89 -> 183.1302961 | J78: ='ATS-BLTS'!Y$89 -> 183.9567736 | K78: ='ATS-BLTS'!Z$89 -> 182.5916802 | L78: ='ATS-BLTS'!AA$89 -> 181.0236957 | M78: ='ATS-BLTS'!AB$89 -> 182.8789506 | N78: ='ATS-BLTS'!AC$89 -> 190.1941087 | O78: ='ATS-BLTS'!AD$89 -> 197.801873 | P78: ='ATS-BLTS'!AE$89 -> 204.6554069 | Q78: ='ATS-BLTS'!AF$89 -> 212.7195455 | R78: ='ATS-BLTS'!AG$89 -> 219.9860655 | S78: ='ATS-BLTS'!AH$89 -> 228.1029638 | T78: ='ATS-BLTS'!AI$89 -> 233.8957508 | U78: ='ATS-BLTS'!AJ$89 -> 243.2515809 | V78: ='ATS-BLTS'!AK$89 -> 252.2533251 | W78: ='ATS-BLTS'!AL$89 -> 260.4843244 | X78: ='ATS-BLTS'!AM$89 -> 270.0555835
B79: GTS66 | C79: ='GTS66'!R$89 -> 350.2553908 | D79: ='GTS66'!S$89 -> 379.3976349 | E79: ='GTS66'!T$89 -> 381.0846036 | F79: ='GTS66'!U$89 -> 401.9402285 | G79: ='GTS66'!V$89 -> 404.3751439 | H79: ='GTS66'!W$89 -> 405.3959725 | I79: ='GTS66'!X$89 -> 418.3196212 | J79: ='GTS66'!Y$89 -> 406.3791121 | K79: ='GTS66'!Z$89 -> 413.739531 | L79: ='GTS66'!AA$89 -> 429.3950229 | M79: ='GTS66'!AB$89 -> 381.6002075 | N79: ='GTS66'!AC$89 -> 393.3071931 | O79: ='GTS66'!AD$89 -> 404.7683231 | P79: ='GTS66'!AE$89 -> 417.2067133 | Q79: ='GTS66'!AF$89 -> 427.1379434 | R79: ='GTS66'!AG$89 -> 440.0488892 | S79: ='GTS66'!AH$89 -> 444.8546188 | T79: ='GTS66'!AI$89 -> 458.9793446 | U79: ='GTS66'!AJ$89 -> 472.7886987 | V79: ='GTS66'!AK$89 -> 487.8013171 | W79: ='GTS66'!AL$89 -> 501.2032297 | X79: ='GTS66'!AM$89 -> 516.178287
B80: HOTS66 | C80: =HOTS66!R$89 -> 77.59831533 | D80: =HOTS66!S$89 -> 86.87967372 | E80: =HOTS66!T$89 -> 90.22448942 | F80: =HOTS66!U$89 -> 93.97926123 | G80: =HOTS66!V$89 -> 91.43293419 | H80: =HOTS66!W$89 -> 90.88287563 | I80: =HOTS66!X$89 -> 94.22935038 | J80: =HOTS66!Y$89 -> 87.38624606 | K80: =HOTS66!Z$89 -> 88.63084 | L80: =HOTS66!AA$89 -> 80.83668145 | M80: =HOTS66!AB$89 -> 80.83152901 | N80: =HOTS66!AC$89 -> 84.06479017 | O80: =HOTS66!AD$89 -> 87.42738178 | P80: =HOTS66!AE$89 -> 90.92447705 | Q80: =HOTS66!AF$89 -> 94.56145613 | R80: =HOTS66!AG$89 -> 96.40857219 | S80: =HOTS66!AH$89 -> 97.46883984 | T80: =HOTS66!AI$89 -> 100.4690202 | U80: =HOTS66!AJ$89 -> 104.2683026 | V80: =HOTS66!AK$89 -> 105.9762739 | W80: =HOTS66!AL$89 -> 109.53907 | X80: =HOTS66!AM$89 -> 111.53784
B81: KTSeast | E81: =KTSeast!T$89 -> 117.126159 | F81: =KTSeast!U$89 -> 121.6397349 | G81: =KTSeast!V$89 -> 126.7802262 | H81: =KTSeast!W$89 -> 126.3347533 | I81: =KTSeast!X$89 -> 133.2871698 | J81: =KTSeast!Y$89 -> 136.3489797 | K81: =KTSeast!Z$89 -> 140.4121355 | L81: =KTSeast!AA$89 -> 143.3209371 | M81: =KTSeast!AB$89 -> 148.5272658 | N81: =KTSeast!AC$89 -> 154.3614127 | O81: =KTSeast!AD$89 -> 158.775183 | P81: =KTSeast!AE$89 -> 164.2672083 | Q81: =KTSeast!AF$89 -> 170.8378966 | R81: =KTSeast!AG$89 -> 174.8829117 | S81: =KTSeast!AH$89 -> 179.4798223 | T81: =KTSeast!AI$89 -> 186.6590151 | U81: =KTSeast!AJ$89 -> 194.1253758 | V81: =KTSeast!AK$89 -> 201.6230674 | W81: =KTSeast!AL$89 -> 209.6879901 | X81: =KTSeast!AM$89 -> 217.0514155
B82: KTSwest | E82: =KTSwest!T$89 -> 175.667835 | F82: =KTSwest!U$89 -> 180.4885291 | G82: =KTSwest!V$89 -> 179.66283 | H82: =KTSwest!W$89 -> 178.6308272 | I82: =KTSwest!X$89 -> 182.5085574 | J82: =KTSwest!Y$89 -> 175.394577 | K82: =KTSwest!Z$89 -> 178.020962 | L82: =KTSwest!AA$89 -> 185.8704747 | M82: =KTSwest!AB$89 -> 193.3052937 | N82: =KTSwest!AC$89 -> 201.0375055 | O82: =KTSwest!AD$89 -> 208.7120132 | P82: =KTSwest!AE$89 -> 215.2961006 | Q82: =KTSwest!AF$89 -> 223.9079446 | R82: =KTSwest!AG$89 -> 230.4376278 | S82: =KTSwest!AH$89 -> 233.2222474 | T82: =KTSwest!AI$89 -> 242.5511373 | U82: =KTSwest!AJ$89 -> 252.2531828 | V82: =KTSwest!AK$89 -> 262.3433101 | W82: =KTSwest!AL$89 -> 272.8370425 | X82: =KTSwest!AM$89 -> 281.7025503
B83: KGTS22 | C83: =KGTS22!R$89 -> 11.54075716 | D83: =KGTS22!S$89 -> 12.21390651 | E83: =KGTS22!T$89 -> 12.92670317 | F83: =KGTS22!U$89 -> 12.13624379 | G83: =KGTS22!V$89 -> 12.17781296 | H83: =KGTS22!W$89 -> 13.36061297 | I83: =KGTS22!X$89 -> 12.58461027 | J83: =KGTS22!Y$89 -> 13.60577804 | K83: =KGTS22!Z$89 -> 13.76370051 | L83: =KGTS22!AA$89 -> 13.83783065 | M83: =KGTS22!AB$89 -> 13.40471034 | N83: =KGTS22!AC$89 -> 13.59234505 | O83: =KGTS22!AD$89 -> 13.78217178 | P83: =KGTS22!AE$89 -> 13.96632802 | Q83: =KGTS22!AF$89 -> 14.1647179 | R83: =KGTS22!AG$89 -> 14.48598588 | S83: =KGTS22!AH$89 -> 14.77639268 | T83: =KGTS22!AI$89 -> 15.11320825 | U83: =KGTS22!AJ$89 -> 15.43474259 | V83: =KGTS22!AK$89 -> 15.73648069 | W83: =KGTS22!AL$89 -> 16.06164591 | X83: =KGTS22!AM$89 -> 16.40660887
B84: KGTS66 | C84: =KGTS66!R$89 -> 55.29135136 | D84: =KGTS66!S$89 -> 56.39128888 | E84: =KGTS66!T$89 -> 56.14042604 | F84: =KGTS66!U$89 -> 56.12196651 | G84: =KGTS66!V$89 -> 56.9154132 | H84: =KGTS66!W$89 -> 49.24030255 | I84: =KGTS66!X$89 -> 51.61400264 | J84: =KGTS66!Y$89 -> 51.68893705 | K84: =KGTS66!Z$89 -> 54.20804957 | L84: =KGTS66!AA$89 -> 51.96211004 | M84: =KGTS66!AB$89 -> 51.31902811 | N84: =KGTS66!AC$89 -> 51.71515278 | O84: =KGTS66!AD$89 -> 52.19053299 | P84: =KGTS66!AE$89 -> 52.82825001 | Q84: =KGTS66!AF$89 -> 53.66690655 | R84: =KGTS66!AG$89 -> 53.64393934 | S84: =KGTS66!AH$89 -> 53.53432324 | T84: =KGTS66!AI$89 -> 54.59840205 | U84: =KGTS66!AJ$89 -> 55.65074246 | V84: =KGTS66!AK$89 -> 56.46182696 | W84: =KGTS66!AL$89 -> 57.00406684 | X84: =KGTS66!AM$89 -> 58.00553268
B85: RCTS22 | C85: =RCTS22!R$89 -> 38.7802201 | D85: =RCTS22!S$89 -> 35.4818032 | E85: =RCTS22!T$89 -> 33.29664849 | F85: =RCTS22!U$89 -> 35.22067978 | G85: =RCTS22!V$89 -> 37.9201791 | H85: =RCTS22!W$89 -> 29.87949852 | I85: =RCTS22!X$89 -> 34.96730531 | J85: =RCTS22!Y$89 -> 39.2203253 | K85: =RCTS22!Z$89 -> 41.28451302 | L85: =RCTS22!AA$89 -> 39.57038758 | M85: =RCTS22!AB$89 -> 41.03163045 | N85: =RCTS22!AC$89 -> 41.98359997 | O85: =RCTS22!AD$89 -> 43.07411193 | P85: =RCTS22!AE$89 -> 44.37391906 | Q85: =RCTS22!AF$89 -> 46.14887582 | R85: =RCTS22!AG$89 -> 47.16184012 | S85: =RCTS22!AH$89 -> 47.10416145 | T85: =RCTS22!AI$89 -> 48.98832791 | U85: =RCTS22!AJ$89 -> 50.94786102 | V85: =RCTS22!AK$89 -> 51.32289333 | W85: =RCTS22!AL$89 -> 53.37580906 | X85: =RCTS22!AM$89 -> 55.19259492
B86: RCTS66 | C86: ='RCTS66 WETS'!R$89 -> 145.523964 | D86: ='RCTS66 WETS'!S$89 -> 142.9653064 | E86: ='RCTS66 WETS'!T$89 -> 140.3534527 | F86: ='RCTS66 WETS'!U$89 -> 144.6196545 | G86: ='RCTS66 WETS'!V$89 -> 159.299334 | H86: ='RCTS66 WETS'!W$89 -> 139.5679262 | I86: ='RCTS66 WETS'!X$89 -> 149.304312 | J86: ='RCTS66 WETS'!Y$89 -> 170.9745765 | K86: ='RCTS66 WETS'!Z$89 -> 179.7267401 | L86: ='RCTS66 WETS'!AA$89 -> 174.0000993 | M86: ='RCTS66 WETS'!AB$89 -> 176.7384126 | N86: ='RCTS66 WETS'!AC$89 -> 179.5774063 | O86: ='RCTS66 WETS'!AD$89 -> 184.6781141 | P86: ='RCTS66 WETS'!AE$89 -> 190.8123771 | Q86: ='RCTS66 WETS'!AF$89 -> 198.2232861 | R86: ='RCTS66 WETS'!AG$89 -> 201.496614 | S86: ='RCTS66 WETS'!AH$89 -> 206.2682299 | T86: ='RCTS66 WETS'!AI$89 -> 215.9900649 | U86: ='RCTS66 WETS'!AJ$89 -> 223.1080788 | V86: ='RCTS66 WETS'!AK$89 -> 227.9414529 | W86: ='RCTS66 WETS'!AL$89 -> 235.6166821 | X86: ='RCTS66 WETS'!AM$89 -> 244.2454039
B87: SHTS | C87: =SHTS!R$89 -> 282.413034 | D87: =SHTS!S$89 -> 296.5891253 | E87: =SHTS!T$89 -> 279.454348 | F87: =SHTS!U$89 -> 282.4627726 | G87: =SHTS!V$89 -> 294.5376822 | H87: =SHTS!W$89 -> 262.2549628 | I87: =SHTS!X$89 -> 271.9092124 | J87: =SHTS!Y$89 -> 277.8077074 | K87: =SHTS!Z$89 -> 282.4900122 | L87: =SHTS!AA$89 -> 268.7917847 | M87: =SHTS!AB$89 -> 269.4621063 | N87: =SHTS!AC$89 -> 273.7762556 | O87: =SHTS!AD$89 -> 278.9116838 | P87: =SHTS!AE$89 -> 282.6639149 | Q87: =SHTS!AF$89 -> 288.2703965 | R87: =SHTS!AG$89 -> 290.0382098 | S87: =SHTS!AH$89 -> 292.7559365 | T87: =SHTS!AI$89 -> 296.7724222 | U87: =SHTS!AJ$89 -> 305.440424 | V87: =SHTS!AK$89 -> 308.5294383 | W87: =SHTS!AL$89 -> 311.5201867 | X87: =SHTS!AM$89 -> 320.1655131
B88: TGTS | C88: =TGTS!R$89 -> 168.3150726 | D88: =TGTS!S$89 -> 178.514004 | E88: =TGTS!T$89 -> 179.5890342 | F88: =TGTS!U$89 -> 186.7099449 | G88: =TGTS!V$89 -> 186.9372222 | H88: =TGTS!W$89 -> 191.2910354 | I88: =TGTS!X$89 -> 194.9988666 | J88: =TGTS!Y$89 -> 194.300806 | K88: =TGTS!Z$89 -> 193.11987 | L88: =TGTS!AA$89 -> 188.4899655 | M88: =TGTS!AB$89 -> 190.1169358 | N88: =TGTS!AC$89 -> 195.8317817 | O88: =TGTS!AD$89 -> 201.0846745 | P88: =TGTS!AE$89 -> 207.2100193 | Q88: =TGTS!AF$89 -> 211.7330639 | R88: =TGTS!AG$89 -> 218.0134779 | S88: =TGTS!AH$89 -> 224.6186583 | T88: =TGTS!AI$89 -> 228.5360921 | U88: =TGTS!AJ$89 -> 237.6775357 | V88: =TGTS!AK$89 -> 244.8474052 | W88: =TGTS!AL$89 -> 251.4241753 | X88: =TGTS!AM$89 -> 259.6668085
B89: TPC | C89: =TPC!R$89 -> 1921.000821 | D89: =TPC!S$89 -> 2139.058557 | E89: =TPC!T$89 -> 2111.366682 | F89: =TPC!U$89 -> 2197.096366 | G89: =TPC!V$89 -> 2181.707753 | H89: =TPC!W$89 -> 2160.506742 | I89: =TPC!X$89 -> 2252.423196 | J89: =TPC!Y$89 -> 2247.852317 | K89: =TPC!Z$89 -> 2300.791984 | L89: =TPC!AA$89 -> 2299.239102 | M89: =TPC!AB$89 -> 2415.983872 | N89: =TPC!AC$89 -> 2534.875053 | O89: =TPC!AD$89 -> 2611.481499 | P89: =TPC!AE$89 -> 2715.982493 | Q89: =TPC!AF$89 -> 2840.848278 | R89: =TPC!AG$89 -> 2934.779586 | S89: =TPC!AH$89 -> 3016.72499 | T89: =TPC!AI$89 -> 3118.340397 | U89: =TPC!AJ$89 -> 3296.622716 | V89: =TPC!AK$89 -> 3380.514213 | W89: =TPC!AL$89 -> 3516.742677 | X89: =TPC!AM$89 -> 3682.7405
B90: Summation | G90: =SUM(G73:G88) -> 2337.201348 | H90: =SUM(H73:H88) -> 2262.167361 | I90: =SUM(I73:I88) -> 2347.903549 | K90: =SUM(K73:K88) -> 2401.408388 | L90: 2378.372397 | M90: 2369.375212 | N90: 2438.843104 | O90: 2514.011266 | P90: 2588.710468 | Q90: =SUM(Q73:Q88) -> 2666.894021 | R90: =SUM(R73:R88) -> 2733.450222 | S90: 2787.59991 | T90: 2873.416888 | U90: 2974.734822 | V90: 3061.341663 | W90: 3153.129927 | X90: 3254.966645
B93: Citipower
B94: WMTS22 | C94: =WMTS22!R$89 -> 86.19535188 | D94: =WMTS22!S$89 -> 85.2619516 | E94: =WMTS22!T$89 -> 87.46070749 | F94: =WMTS22!U$89 -> 92.59130529 | G94: =WMTS22!V$89 -> 92.82797966 | H94: =WMTS22!W$89 -> 94.11604978 | I94: =WMTS22!X$89 -> 94.01659189 | J94: =WMTS22!Y$89 -> 91.77325323 | K94: =WMTS22!Z$89 -> 91.54111346 | L94: =WMTS22!AA$89 -> 93.95256992 | M94: =WMTS22!AB$89 -> 95.43888265 | N94: =WMTS22!AC$89 -> 99.25643795 | O94: =WMTS22!AD$89 -> 103.2266955 | P94: =WMTS22!AE$89 -> 107.3557633 | Q94: =WMTS22!AF$89 -> 111.6499938 | R94: =WMTS22!AG$89 -> 115.880357 | S94: =WMTS22!AH$89 -> 118.8171317 | T94: =WMTS22!AI$89 -> 122.1838039 | U94: =WMTS22!AJ$89 -> 124.759477 | V94: =WMTS22!AK$89 -> 128.2995123 | W94: =WMTS22!AL$89 -> 132.0999287 | X94: =WMTS22!AM$89 -> 134.4054939
B95: WMTS66 | E95: =WMTS66!T$89 -> 375.6604119 | F95: =WMTS66!U$89 -> 374.8171713 | G95: =WMTS66!V$89 -> 376.5002429 | H95: =WMTS66!W$89 -> 355.4468019 | I95: =WMTS66!X$89 -> 369.8463799 | J95: =WMTS66!Y$89 -> 366.897434 | K95: =WMTS66!Z$89 -> 370.9407498 | L95: =WMTS66!AA$89 -> 374.6366875 | M95: =WMTS66!AB$89 -> 389.622155 | N95: =WMTS66!AC$89 -> 403.0033424 | O95: =WMTS66!AD$89 -> 410.0719092 | P95: =WMTS66!AE$89 -> 421.5067373 | Q95: =WMTS66!AF$89 -> 430.2220127 | R95: =WMTS66!AG$89 -> 438.2549786 | S95: =WMTS66!AH$89 -> 438.930732 | T95: =WMTS66!AI$89 -> 449.9254173 | U95: =WMTS66!AJ$89 -> 463.1575817 | V95: =WMTS66!AK$89 -> 468.1546119 | W95: =WMTS66!AL$89 -> 480.3940169 | X95: =WMTS66!AM$89 -> 488.6637778
B96: BTS22 | C96: ='BTS22'!R$89 -> 38.94814755 | D96: ='BTS22'!S$89 -> 40.57990262 | E96: ='BTS22'!T$89 -> 40.74891516 | F96: ='BTS22'!U$89 -> 41.5713559 | G96: ='BTS22'!V$89 -> 40.7632251 | H96: ='BTS22'!W$89 -> 42.98719963 | I96: ='BTS22'!X$89 -> 40.2959129 | J96: ='BTS22'!Y$89 -> 41.33817789 | K96: ='BTS22'!Z$89 -> 41.35135231 | L96: ='BTS22'!AA$89 -> 40.55526793 | M96: ='BTS22'!AB$89 -> 42.17747864 | N96: ='BTS22'!AC$89 -> 43.44640921 | O96: ='BTS22'!AD$89 -> 44.67648021 | P96: ='BTS22'!AE$89 -> 46.04022922 | Q96: ='BTS22'!AF$89 -> 47.54325327 | R96: ='BTS22'!AG$89 -> 48.79155764 | S96: ='BTS22'!AH$89 -> 50.46887512 | T96: ='BTS22'!AI$89 -> 52.02094318 | U96: ='BTS22'!AJ$89 -> 53.51419193 | V96: ='BTS22'!AK$89 -> 55.54077379 | W96: ='BTS22'!AL$89 -> 57.76240474 | X96: ='BTS22'!AM$89 -> 59.87358849
B97: FBTS66 | C97: =FBTS66!R$89 -> 216.5838148 | D97: =FBTS66!S$89 -> 223.267144 | E97: =FBTS66!T$89 -> 219.4519524 | F97: =FBTS66!U$89 -> 237.0401589 | G97: =FBTS66!V$89 -> 231.4946774 | H97: =FBTS66!W$89 -> 233.4833327 | I97: =FBTS66!X$89 -> 243.4650215 | J97: =FBTS66!Y$89 -> 245.1068701 | K97: =FBTS66!Z$89 -> 247.0732808 | L97: =FBTS66!AA$89 -> 256.2149716 | M97: =FBTS66!AB$89 -> 249.523718 | N97: =FBTS66!AC$89 -> 251.4164813 | O97: =FBTS66!AD$89 -> 256.6544631 | P97: =FBTS66!AE$89 -> 262.2866321 | Q97: =FBTS66!AF$89 -> 267.9725951 | R97: =FBTS66!AG$89 -> 274.5282776 | S97: =FBTS66!AH$89 -> 279.3973482 | T97: =FBTS66!AI$89 -> 285.3859656 | U97: =FBTS66!AJ$89 -> 293.6047587 | V97: =FBTS66!AK$89 -> 300.3443419 | W97: =FBTS66!AL$89 -> 309.1537826 | X97: =FBTS66!AM$89 -> 317.7492769
B98: RTS22 | C98: ='RTS22'!R$89 -> 77.88175485 | D98: ='RTS22'!S$89 -> 84.67145897 | E98: ='RTS22'!T$89 -> 82.66956414 | F98: ='RTS22'!U$89 -> 75.82349454 | G98: ='RTS22'!V$89 -> 75.16539401 | H98: ='RTS22'!W$89 -> 71.62092644 | I98: ='RTS22'!X$89 -> 73.43911042 | J98: ='RTS22'!Y$89 -> 69.97418045 | K98: ='RTS22'!Z$89 -> 67.85607524 | L98: ='RTS22'!AA$89 -> 70.11797169 | M98: ='RTS22'!AB$89 -> 69.05342194 | N98: ='RTS22'!AC$89 -> 71.81555882 | O98: ='RTS22'!AD$89 -> 74.68818117 | P98: ='RTS22'!AE$89 -> 77.51748511 | Q98: ='RTS22'!AF$89 -> 80.12769599 | R98: ='RTS22'!AG$89 -> 81.65585258 | S98: ='RTS22'!AH$89 -> 81.39067889 | T98: ='RTS22'!AI$89 -> 83.20994206 | U98: ='RTS22'!AJ$89 -> 84.82247898 | V98: ='RTS22'!AK$89 -> 85.63555456 | W98: ='RTS22'!AL$89 -> 87.83641364 | X98: ='RTS22'!AM$89 -> 89.20631334
B99: RTS66_1_2 | E99: =RTS66_1_2!T$89 -> 246.6864307 | F99: =RTS66_1_2!U$89 -> 248.1813809 | G99: =RTS66_1_2!V$89 -> 252.5404453 | H99: =RTS66_1_2!W$89 -> 243.6138887 | I99: =RTS66_1_2!X$89 -> 248.6485749 | J99: =RTS66_1_2!Y$89 -> 248.4241477 | K99: =RTS66_1_2!Z$89 -> 246.4473545 | L99: =RTS66_1_2!AA$89 -> 244.1279966 | M99: =RTS66_1_2!AB$89 -> 253.8931165 | N99: =RTS66_1_2!AC$89 -> 255.4073492 | O99: =RTS66_1_2!AD$89 -> 260.147842 | P99: =RTS66_1_2!AE$89 -> 262.6151165 | Q99: =RTS66_1_2!AF$89 -> 266.1713364 | R99: =RTS66_1_2!AG$89 -> 267.7012487 | S99: =RTS66_1_2!AH$89 -> 269.4180719 | T99: =RTS66_1_2!AI$89 -> 271.8342765 | U99: =RTS66_1_2!AJ$89 -> 275.2878569 | V99: =RTS66_1_2!AK$89 -> 277.3459171 | W99: =RTS66_1_2!AL$89 -> 280.2416141 | X99: =RTS66_1_2!AM$89 -> 282.8624204
B100: RTS66_3_4 | E100: =RTS66_3_4!T$89 -> 214.1382801 | F100: =RTS66_3_4!U$89 -> 216.7844381 | G100: =RTS66_3_4!V$89 -> 217.1882508 | H100: =RTS66_3_4!W$89 -> 213.8264256 | I100: =RTS66_3_4!X$89 -> 213.2121172 | J100: =RTS66_3_4!Y$89 -> 209.7930171 | K100: =RTS66_3_4!Z$89 -> 210.0812379 | L100: =RTS66_3_4!AA$89 -> 213.8530438 | M100: =RTS66_3_4!AB$89 -> 222.4071655 | N100: =RTS66_3_4!AC$89 -> 228.0317375 | O100: =RTS66_3_4!AD$89 -> 232.8190144 | P100: =RTS66_3_4!AE$89 -> 238.8657957 | Q100: =RTS66_3_4!AF$89 -> 245.5566407 | R100: =RTS66_3_4!AG$89 -> 249.139444 | S100: =RTS66_3_4!AH$89 -> 254.0744604 | T100: =RTS66_3_4!AI$89 -> 258.7903713 | U100: =RTS66_3_4!AJ$89 -> 265.3975836 | V100: =RTS66_3_4!AK$89 -> 272.4145701 | W100: =RTS66_3_4!AL$89 -> 279.8343578 | X100: =RTS66_3_4!AM$89 -> 283.5740009
B101: SVTS | E101: =SVTS!T$89 -> 35.33394537 | F101: =SVTS!U$89 -> 35.51954575 | G101: =SVTS!V$89 -> 37.51447866 | H101: =SVTS!W$89 -> 35.84693344 | I101: =SVTS!X$89 -> 36.2726728 | J101: =SVTS!Y$89 -> 39.54958523 | K101: =SVTS!Z$89 -> 36.19840132 | L101: =SVTS!AA$89 -> 34.37865839 | M101: =SVTS!AB$89 -> 35.75380473 | N101: =SVTS!AC$89 -> 37.18395692 | O101: =SVTS!AD$89 -> 38.6713152 | P101: =SVTS!AE$89 -> 39.74850667 | Q101: =SVTS!AF$89 -> 41.33844694 | R101: =SVTS!AG$89 -> 42.73082107 | S101: =SVTS!AH$89 -> 44.44005391 | T101: =SVTS!AI$89 -> 44.69063098 | U101: =SVTS!AJ$89 -> 46.47825622 | V101: =SVTS!AK$89 -> 48.33738647 | W101: =SVTS!AL$89 -> 49.9004845 | X101: =SVTS!AM$89 -> 51.1315634
B102: TSTS | C102: =TSTS!R$89 -> 67.09928914 | D102: =TSTS!S$89 -> 71.41794354 | E102: =TSTS!T$89 -> 70.79495269 | F102: =TSTS!U$89 -> 70.88896887 | G102: =TSTS!V$89 -> 74.11983918 | H102: =TSTS!W$89 -> 71.45867015 | I102: =TSTS!X$89 -> 73.52392916 | J102: =TSTS!Y$89 -> 75.17515961 | K102: =TSTS!Z$89 -> 72.28362382 | L102: =TSTS!AA$89 -> 71.6024723 | M102: =TSTS!AB$89 -> 74.46657119 | N102: =TSTS!AC$89 -> 76.0537562 | O102: =TSTS!AD$89 -> 78.40308226 | P102: =TSTS!AE$89 -> 81.3439762 | Q102: =TSTS!AF$89 -> 83.41120243 | R102: =TSTS!AG$89 -> 84.07045819 | S102: =TSTS!AH$89 -> 86.61404335 | T102: =TSTS!AI$89 -> 89.45985854 | U102: =TSTS!AJ$89 -> 91.38594705 | V102: =TSTS!AK$89 -> 93.6747018 | W102: =TSTS!AL$89 -> 96.93254558 | X102: =TSTS!AM$89 -> 100.2169394
B103: TCP | C103: =TCP!R$89 -> 1199.049793 | D103: =TCP!S$89 -> 1294.229457 | E103: =TCP!T$89 -> 1308.335282 | F103: =TCP!U$89 -> 1333.554892 | G103: =TCP!V$89 -> 1320.795233 | H103: =TCP!W$89 -> 1273.932567 | I103: =TCP!X$89 -> 1296.10467 | J103: =TCP!Y$89 -> 1248.800343 | K103: =TCP!Z$89 -> 1263.683447 | L103: =TCP!AA$89 -> 1301.188113 | M103: =TCP!AB$89 -> 1331.775186 | N103: =TCP!AC$89 -> 1362.717477 | O103: =TCP!AD$89 -> 1394.092343 | P103: =TCP!AE$89 -> 1429.351235 | Q103: =TCP!AF$89 -> 1463.486637 | R103: =TCP!AG$89 -> 1490.227293 | S103: =TCP!AH$89 -> 1509.565484 | T103: =TCP!AI$89 -> 1541.131757 | U103: =TCP!AJ$89 -> 1579.166696 | V103: =TCP!AK$89 -> 1608.305676 | W103: =TCP!AL$89 -> 1649.596056 | X103: =TCP!AM$89 -> 1680.769968
B104: Summation | E104: =SUM(E94:E102) -> 1372.94516 | F104: 1393.21782 | G104: 1398.114533 | H104: 1362.400228 | I104: 1392.720311 | J104: 1388.031825 | K104: 1383.773189 | L104: 1399.43964 | M104: 1432.336314 | N104: 1465.615029 | O104: 1499.358983 | P104: 1537.280242 | Q104: 1573.993177 | R104: 1602.752995 | S104: 1623.551395 | T104: 1657.501209 | U104: 1698.408132 | V104: 1729.74737 | W104: 1774.155549 | X104: 1807.683375
A107: Max demand summation (after post-model adjustments)
B108: Medium scenario forecast | Z108: Total Powercor reconciliation
B109: Powercor | C109: 2005 | D109: 2006 | E109: 2007 | F109: 2008 | G109: 2009 | H109: 2010 | I109: 2011 | J109: 2012 | K109: 2013 | L109: 2014 | M109: 2015 | N109: 2016 | O109: 2017 | P109: 2018 | Q109: 2019 | R109: 2020 | S109: 2021 | T109: 2022 | U109: 2023 | V109: 2024 | W109: 2025 | X109: 2026
B110: ATS West | G110: ='ATS West'!V$155 -> 161.1071594 | H110: ='ATS West'!W$155 -> 164.5138382 | I110: ='ATS West'!X$155 -> 178.6998693 | J110: ='ATS West'!Y$155 -> 179.3099801 | K110: ='ATS West'!Z$155 -> 190.2306159 | L110: ='ATS West'!AA$155 -> 191.2877692 | M110: ='ATS West'!AB$155 -> 197.9732833 | N110: ='ATS West'!AC$155 -> 204.9599427 | O110: ='ATS West'!AD$155 -> 217.0143357 | P110: ='ATS West'!AE$155 -> 224.6727807 | Q110: ='ATS West'!AF$155 -> 232.78972 | R110: ='ATS West'!AG$155 -> 241.3386219 | S110: ='ATS West'!AH$155 -> 248.940386 | T110: ='ATS West'!AI$155 -> 258.2653117 | U110: ='ATS West'!AJ$155 -> 268.0162619 | V110: ='ATS West'!AK$155 -> 278.2851477 | W110: ='ATS West'!AL$155 -> 289.1172912 | X110: ='ATS West'!AM$155 -> 300.3408152
B111: BATS | C111: =BATS!R$155 -> 167.6006625 | D111: =BATS!S$155 -> 177.4899753 | E111: =BATS!T$155 -> 179.2720127 | F111: =BATS!U$155 -> 184.896914 | G111: =BATS!V$155 -> 174.2843129 | H111: =BATS!W$155 -> 167.3919164 | I111: =BATS!X$155 -> 169.7252909 | J111: =BATS!Y$155 -> 162.7121796 | K111: =BATS!Z$155 -> 166.0284295 | L111: =BATS!AA$155 -> 160.5380127 | M111: =BATS!AB$155 -> 165.6764707 | N111: =BATS!AC$155 -> 168.2390338 | O111: =BATS!AD$155 -> 174.1626036 | P111: =BATS!AE$155 -> 176.6593735 | Q111: =BATS!AF$155 -> 181.4987423 | R111: =BATS!AG$155 -> 186.3697702 | S111: =BATS!AH$155 -> 187.9179428 | T111: =BATS!AI$155 -> 194.8694596 | U111: =BATS!AJ$155 -> 202.080238 | V111: =BATS!AK$155 -> 209.9221702 | W111: =BATS!AL$155 -> 214.6076985 | X111: =BATS!AM$155 -> 223.5377787
B112: BETS22 | D112: =BETS22!S$155 -> 42.898912 | E112: =BETS22!T$155 -> 46.79958452 | F112: =BETS22!U$155 -> 48.47139378 | G112: =BETS22!V$155 -> 50.60349287 | H112: =BETS22!W$155 -> 51.67870079 | I112: =BETS22!X$155 -> 52.1858723 | J112: =BETS22!Y$155 -> 51.20971024 | K112: =BETS22!Z$155 -> 57.08574708 | L112: =BETS22!AA$155 -> 57.32769856 | M112: =BETS22!AB$155 -> 65.63423444 | N112: =BETS22!AC$155 -> 67.41565497 | O112: =BETS22!AD$155 -> 69.7812561 | P112: =BETS22!AE$155 -> 72.26677452 | Q112: =BETS22!AF$155 -> 74.68751156 | R112: =BETS22!AG$155 -> 77.19622476 | S112: =BETS22!AH$155 -> 79.77959436 | T112: =BETS22!AI$155 -> 82.70127738 | U112: =BETS22!AJ$155 -> 85.75749738 | V112: =BETS22!AK$155 -> 88.60511488 | W112: =BETS22!AL$155 -> 91.91807688 | X112: =BETS22!AM$155 -> 95.36256059
B113: BETS66 | C113: =BETS66!R$155 -> 158.9747724 | D113: =BETS66!S$155 -> 164.8673487 | E113: =BETS66!T$155 -> 161.3162621 | F113: =BETS66!U$155 -> 169.5065142 | G113: =BETS66!V$155 -> 172.1759048 | H113: =BETS66!W$155 -> 156.057453 | I113: =BETS66!X$155 -> 162.7832708 | J113: =BETS66!Y$155 -> 163.5966588 | K113: =BETS66!Z$155 -> 165.2506621 | L113: =BETS66!AA$155 -> 155.549464 | M113: =BETS66!AB$155 -> 151.5414833 | N113: =BETS66!AC$155 -> 161.5336149 | O113: =BETS66!AD$155 -> 166.7250114 | P113: =BETS66!AE$155 -> 172.6215416 | Q113: =BETS66!AF$155 -> 175.5140596 | R113: =BETS66!AG$155 -> 178.4819403 | S113: =BETS66!AH$155 -> 183.1039449 | T113: =BETS66!AI$155 -> 187.5491751 | U113: =BETS66!AJ$155 -> 194.7896745 | V113: =BETS66!AK$155 -> 198.833512 | W113: =BETS66!AL$155 -> 206.7260515 | X113: =BETS66!AM$155 -> 212.4133452
B114: BLTS22 | C114: =BLTS22!R$155 -> 56.1953911 | D114: =BLTS22!S$155 -> 56.38593568 | E114: =BLTS22!T$155 -> 58.04599705 | F114: =BLTS22!U$155 -> 60.16064445 | G114: =BLTS22!V$155 -> 59.38421045 | H114: =BLTS22!W$155 -> 60.1404284 | I114: =BLTS22!X$155 -> 57.65594141 | K114: =BLTS22!Z$155 -> 54.82489935 | L114: =BLTS22!AA$155 -> 56.57046295 | M114: =BLTS22!AB$155 -> 59.03218048 | N114: =BLTS22!AC$155 -> 59.56940251 | O114: =BLTS22!AD$155 -> 60.29078469 | P114: =BLTS22!AE$155 -> 60.89858602 | Q114: =BLTS22!AF$155 -> 61.50727258 | R114: =BLTS22!AG$155 -> 62.08224444 | S114: =BLTS22!AH$155 -> 62.55107771 | T114: =BLTS22!AI$155 -> 62.93837041 | U114: =BLTS22!AJ$155 -> 63.51381747 | V114: =BLTS22!AK$155 -> 64.33496017 | W114: =BLTS22!AL$155 -> 65.05528894 | X114: =BLTS22!AM$155 -> 65.68000124
B115: ATS-BLTS | E115: ='ATS-BLTS'!T$155 -> 159.1228698 | F115: ='ATS-BLTS'!U$155 -> 167.1791091 | G115: ='ATS-BLTS'!V$155 -> 169.6074901 | H115: ='ATS-BLTS'!W$155 -> 175.5462569 | I115: ='ATS-BLTS'!X$155 -> 183.1302961 | J115: ='ATS-BLTS'!Y$155 -> 183.9567736 | K115: ='ATS-BLTS'!Z$155 -> 182.5916802 | L115: ='ATS-BLTS'!AA$155 -> 181.0236957 | M115: ='ATS-BLTS'!AB$155 -> 166.2583235 | N115: ='ATS-BLTS'!AC$155 -> 170.8688767 | O115: ='ATS-BLTS'!AD$155 -> 175.1480496 | P115: ='ATS-BLTS'!AE$155 -> 163.1076196 | Q115: ='ATS-BLTS'!AF$155 -> 167.695992 | R115: ='ATS-BLTS'!AG$155 -> 171.8335464 | S115: ='ATS-BLTS'!AH$155 -> 176.4702289 | T115: ='ATS-BLTS'!AI$155 -> 179.7653805 | U115: ='ATS-BLTS'!AJ$155 -> 185.1385007 | V115: ='ATS-BLTS'!AK$155 -> 190.3189599 | W115: ='ATS-BLTS'!AL$155 -> 195.0667575 | X115: ='ATS-BLTS'!AM$155 -> 200.5857678
B116: GTS66 | C116: ='GTS66'!R$155 -> 350.2553908 | D116: ='GTS66'!S$155 -> 379.3976349 | E116: ='GTS66'!T$155 -> 381.0846036 | F116: ='GTS66'!U$155 -> 401.9402285 | G116: ='GTS66'!V$155 -> 404.3751439 | H116: ='GTS66'!W$155 -> 405.3959725 | I116: ='GTS66'!X$155 -> 418.3196212 | J116: ='GTS66'!Y$155 -> 406.3791121 | K116: ='GTS66'!Z$155 -> 413.739531 | L116: ='GTS66'!AA$155 -> 429.3950229 | M116: ='GTS66'!AB$155 -> 384.4911493 | N116: ='GTS66'!AC$155 -> 393.5835598 | O116: ='GTS66'!AD$155 -> 379.6848787 | P116: ='GTS66'!AE$155 -> 389.3516133 | Q116: ='GTS66'!AF$155 -> 397.0694055 | R116: ='GTS66'!AG$155 -> 407.1115679 | S116: ='GTS66'!AH$155 -> 410.8399787 | T116: ='GTS66'!AI$155 -> 421.8324846 | U116: ='GTS66'!AJ$155 -> 432.5883129 | V116: ='GTS66'!AK$155 -> 444.2849002 | W116: ='GTS66'!AL$155 -> 454.7301573 | X116: ='GTS66'!AM$155 -> 466.4008729
B117: HOTS66 | C117: =HOTS66!R$155 -> 77.59831533 | D117: =HOTS66!S$155 -> 86.87967372 | E117: =HOTS66!T$155 -> 90.22448942 | F117: =HOTS66!U$155 -> 93.97926123 | G117: =HOTS66!V$155 -> 91.43293419 | H117: =HOTS66!W$155 -> 90.88287563 | I117: =HOTS66!X$155 -> 94.22935038 | J117: =HOTS66!Y$155 -> 87.38624606 | K117: =HOTS66!Z$155 -> 88.63084 | L117: =HOTS66!AA$155 -> 80.83668145 | M117: =HOTS66!AB$155 -> 80.50917344 | N117: =HOTS66!AC$155 -> 83.46256446 | O117: =HOTS66!AD$155 -> 86.55590296 | P117: =HOTS66!AE$155 -> 89.83534162 | Q117: =HOTS66!AF$155 -> 93.31174237 | R117: =HOTS66!AG$155 -> 95.03399173 | S117: =HOTS66!AH$155 -> 95.98512928 | T117: =HOTS66!AI$155 -> 98.91243447 | U117: =HOTS66!AJ$155 -> 102.6872959 | V117: =HOTS66!AK$155 -> 104.4055546 | W117: =HOTS66!AL$155 -> 108.0176424 | X117: =HOTS66!AM$155 -> 110.0591781
B118: KTSeast | E118: =KTSeast!T$155 -> 117.126159 | F118: =KTSeast!U$155 -> 121.6397349 | G118: =KTSeast!V$155 -> 126.7802262 | H118: =KTSeast!W$155 -> 126.3347533 | I118: =KTSeast!X$155 -> 133.2871698 | J118: =KTSeast!Y$155 -> 136.3489797 | K118: =KTSeast!Z$155 -> 140.4121355 | L118: =KTSeast!AA$155 -> 143.3209371 | M118: =KTSeast!AB$155 -> 156.8742431 | N118: =KTSeast!AC$155 -> 162.5928241 | O118: =KTSeast!AD$155 -> 166.9009174 | P118: =KTSeast!AE$155 -> 172.3474891 | Q118: =KTSeast!AF$155 -> 178.9416274 | R118: =KTSeast!AG$155 -> 183.0511506 | S118: =KTSeast!AH$155 -> 187.721727 | T118: =KTSeast!AI$155 -> 195.0123442 | U118: =KTSeast!AJ$155 -> 202.561397 | V118: =KTSeast!AK$155 -> 210.1230674 | W118: =KTSeast!AL$155 -> 218.1879901 | X118: =KTSeast!AM$155 -> 225.5514155
B119: KTSwest | E119: =KTSwest!T$155 -> 175.667835 | F119: =KTSwest!U$155 -> 180.4885291 | G119: =KTSwest!V$155 -> 179.66283 | H119: =KTSwest!W$155 -> 178.6308272 | I119: =KTSwest!X$155 -> 182.5085574 | J119: =KTSwest!Y$155 -> 175.394577 | K119: =KTSwest!Z$155 -> 178.020962 | L119: =KTSwest!AA$155 -> 185.8704747 | M119: =KTSwest!AB$155 -> 192.2785997 | N119: =KTSwest!AC$155 -> 199.0527691 | O119: =KTSwest!AD$155 -> 205.7568142 | P119: =KTSwest!AE$155 -> 211.4973653 | Q119: =KTSwest!AF$155 -> 219.4284795 | R119: =KTSwest!AG$155 -> 225.3903731 | S119: =KTSwest!AH$155 -> 227.6164141 | T119: =KTSwest!AI$155 -> 236.4919139 | U119: =KTSwest!AJ$155 -> 245.9191649 | V119: =KTSwest!AK$155 -> 255.881907 | W119: =KTSwest!AL$155 -> 266.4233871 | X119: =KTSwest!AM$155 -> 275.3163419
B120: KGTS22 | C120: =KGTS22!R$155 -> 11.54075716 | D120: =KGTS22!S$155 -> 12.21390651 | E120: =KGTS22!T$155 -> 12.92670317 | F120: =KGTS22!U$155 -> 12.13624379 | G120: =KGTS22!V$155 -> 12.17781296 | H120: =KGTS22!W$155 -> 13.36061297 | I120: =KGTS22!X$155 -> 12.58461027 | J120: =KGTS22!Y$155 -> 13.60577804 | K120: =KGTS22!Z$155 -> 13.76370051 | L120: =KGTS22!AA$155 -> 13.83783065 | M120: =KGTS22!AB$155 -> 13.39730561 | N120: =KGTS22!AC$155 -> 13.57889654 | O120: =KGTS22!AD$155 -> 13.76262172 | P120: =KGTS22!AE$155 -> 13.94236364 | Q120: =KGTS22!AF$155 -> 14.13825984 | R120: =KGTS22!AG$155 -> 14.45798912 | S120: =KGTS22!AH$155 -> 14.74793088 | T120: =KGTS22!AI$155 -> 15.08527933 | U120: =KGTS22!AJ$155 -> 15.40618759 | V120: =KGTS22!AK$155 -> 15.70815053 | W120: =KGTS22!AL$155 -> 16.03453434 | X120: =KGTS22!AM$155 -> 16.37963465
B121: KGTS66 | C121: =KGTS66!R$155 -> 55.29135136 | D121: =KGTS66!S$155 -> 56.39128888 | E121: =KGTS66!T$155 -> 56.14042604 | F121: =KGTS66!U$155 -> 56.12196651 | G121: =KGTS66!V$155 -> 56.9154132 | H121: =KGTS66!W$155 -> 49.24030255 | I121: =KGTS66!X$155 -> 51.61400264 | J121: =KGTS66!Y$155 -> 51.68893705 | K121: =KGTS66!Z$155 -> 54.20804957 | L121: =KGTS66!AA$155 -> 51.96211004 | M121: =KGTS66!AB$155 -> 51.08763573 | N121: =KGTS66!AC$155 -> 51.26879004 | O121: =KGTS66!AD$155 -> 51.52369849 | P121: =KGTS66!AE$155 -> 51.96242365 | Q121: =KGTS66!AF$155 -> 52.62781118 | R121: =KGTS66!AG$155 -> 52.44322178 | S121: =KGTS66!AH$155 -> 52.18093351 | T121: =KGTS66!AI$155 -> 53.10531403 | U121: =KGTS66!AJ$155 -> 54.03472484 | V121: =KGTS66!AK$155 -> 54.73511161 | W121: =KGTS66!AL$155 -> 55.18143473 | X121: =KGTS66!AM$155 -> 56.07234829
B122: RCTS22 | C122: =RCTS22!R$155 -> 38.7802201 | D122: =RCTS22!S$155 -> 35.4818032 | E122: =RCTS22!T$155 -> 33.29664849 | F122: =RCTS22!U$155 -> 35.22067978 | G122: =RCTS22!V$155 -> 37.9201791 | H122: =RCTS22!W$155 -> 29.87949852 | I122: =RCTS22!X$155 -> 34.96730531 | J122: =RCTS22!Y$155 -> 39.2203253 | K122: =RCTS22!Z$155 -> 41.28451302 | L122: =RCTS22!AA$155 -> 39.57038758 | M122: =RCTS22!AB$155 -> 40.33874374 | N122: =RCTS22!AC$155 -> 40.90807828 | O122: =RCTS22!AD$155 -> 41.56602452 | P122: =RCTS22!AE$155 -> 42.36440275 | Q122: =RCTS22!AF$155 -> 43.47532818 | R122: =RCTS22!AG$155 -> 44.10022167 | S122: =RCTS22!AH$155 -> 44.03841822 | T122: =RCTS22!AI$155 -> 45.23001125 | U122: =RCTS22!AJ$155 -> 46.47831666 | V122: =RCTS22!AK$155 -> 46.71234806 | W122: =RCTS22!AL$155 -> 48.03079453 | X122: =RCTS22!AM$155 -> 49.19563959
B123: RCTS66 | C123: ='RCTS66 WETS'!R89 -> 145.523964 | D123: ='RCTS66 WETS'!S89 -> 142.9653064 | E123: ='RCTS66 WETS'!T89 -> 140.3534527 | F123: ='RCTS66 WETS'!U89*('RCTS66 WETS'!$AO$70+'RCTS66 WETS'!$BF$70) -> 164.4307394 | G123: ='RCTS66 WETS'!V89*('RCTS66 WETS'!$AO$70+'RCTS66 WETS'!$BF$70) -> 181.1213516 | H123: ='RCTS66 WETS'!W89*('RCTS66 WETS'!$AO$70+'RCTS66 WETS'!$BF$70) -> 158.6869874 | I123: ='RCTS66 WETS'!X89*('RCTS66 WETS'!$AO$70+'RCTS66 WETS'!$BF$70) -> 169.7571365 | J123: ='RCTS66 WETS'!Y89*('RCTS66 WETS'!$AO$70+'RCTS66 WETS'!$BF$70) -> 194.3959563 | K123: ='RCTS66 WETS'!Z89*('RCTS66 WETS'!$AO$70+'RCTS66 WETS'!$BF$70) -> 204.3470569 | L123: ='RCTS66 WETS'!AA89*('RCTS66 WETS'!$AO$70+'RCTS66 WETS'!$BF$70) -> 197.8359379 | M123: ='RCTS66 WETS'!AQ155+'RCTS66 WETS'!BH155 -> 196.0953689 | N123: ='RCTS66 WETS'!AR155+'RCTS66 WETS'!BI155 -> 198.5148304 | O123: ='RCTS66 WETS'!AS155+'RCTS66 WETS'!BJ155 -> 203.5002273 | P123: ='RCTS66 WETS'!AT155+'RCTS66 WETS'!BK155 -> 209.7239813 | Q123: ='RCTS66 WETS'!AU155+'RCTS66 WETS'!BL155 -> 217.4744318 | R123: ='RCTS66 WETS'!AV155+'RCTS66 WETS'!BM155 -> 220.5616998 | S123: ='RCTS66 WETS'!AW155+'RCTS66 WETS'!BN155 -> 225.3711844 | T123: ='RCTS66 WETS'!AX155+'RCTS66 WETS'!BO155 -> 234.1835572 | U123: ='RCTS66 WETS'!AY155+'RCTS66 WETS'!BP155 -> 241.7291496 | V123: ='RCTS66 WETS'!AZ155+'RCTS66 WETS'!BQ155 -> 246.7404613 | W123: ='RCTS66 WETS'!BA155+'RCTS66 WETS'!BR155 -> 255.0144737 | X123: ='RCTS66 WETS'!BB155+'RCTS66 WETS'!BS155 -> 264.3419283
B124: SHTS | C124: =SHTS!R$155 -> 282.413034 | D124: =SHTS!S$155 -> 296.5891253 | E124: =SHTS!T$155 -> 279.454348 | F124: =SHTS!U$155 -> 282.4627726 | G124: =SHTS!V$155 -> 294.5376822 | H124: =SHTS!W$155 -> 262.2549628 | I124: =SHTS!X$155 -> 271.9092124 | J124: =SHTS!Y$155 -> 277.8077074 | K124: =SHTS!Z$155 -> 282.4900122 | L124: =SHTS!AA$155 -> 268.7917847 | M124: =SHTS!AB$155 -> 268.5135068 | N124: =SHTS!AC$155 -> 275.9447634 | O124: =SHTS!AD$155 -> 282.1703353 | P124: =SHTS!AE$155 -> 287.1055373 | Q124: =SHTS!AF$155 -> 294.0108207 | R124: =SHTS!AG$155 -> 297.1389511 | S124: =SHTS!AH$155 -> 299.2525798 | T124: =SHTS!AI$155 -> 302.7430553 | U124: =SHTS!AJ$155 -> 311.0846437 | V124: =SHTS!AK$155 -> 313.9340114 | W124: =SHTS!AL$155 -> 316.7875843 | X124: =SHTS!AM$155 -> 325.2635674
B125: TGTS | C125: =TGTS!R$155 -> 168.3150726 | D125: =TGTS!S$155 -> 178.514004 | E125: =TGTS!T$155 -> 179.5890342 | F125: =TGTS!U$155 -> 186.7099449 | G125: =TGTS!V$155 -> 186.9372222 | H125: =TGTS!W$155 -> 191.2910354 | I125: =TGTS!X$155 -> 194.9988666 | J125: =TGTS!Y$155 -> 194.300806 | K125: =TGTS!Z$155 -> 193.11987 | L125: =TGTS!AA$155 -> 188.4899655 | M125: =TGTS!AB$155 -> 188.5413278 | N125: =TGTS!AC$155 -> 195.3716486 | O125: =TGTS!AD$155 -> 210.5977019 | P125: =TGTS!AE$155 -> 215.5666171 | Q125: =TGTS!AF$155 -> 219.6682681 | R125: =TGTS!AG$155 -> 223.3331099 | S125: =TGTS!AH$155 -> 227.395849 | T125: =TGTS!AI$155 -> 228.9912159 | U125: =TGTS!AJ$155 -> 236.3108327 | V125: =TGTS!AK$155 -> 241.934263 | W125: =TGTS!AL$155 -> 247.2881346 | X125: =TGTS!AM$155 -> 254.2528756
B126: TPC | C126: =TPC!R$155 -> 1921.000821 | D126: =TPC!S$155 -> 2139.058557 | E126: =TPC!T$155 -> 2111.366682 | F126: =TPC!U$155 -> 2197.096366 | G126: =TPC!V$155 -> 2181.707753 | H126: =TPC!W$155 -> 2160.506742 | I126: =TPC!X$155 -> 2252.423196 | J126: =TPC!Y$155 -> 2247.852317 | K126: =TPC!Z$155 -> 2300.791984 | L126: =TPC!AA$155 -> 2299.239102 | M126: =TPC!AB$155 -> 2400.092986 | N126: =TPC!AC$155 -> 2501.480787 | O126: =TPC!AD$155 -> 2556.533354 | P126: =TPC!AE$155 -> 2647.64309 | Q126: =TPC!AF$155 -> 2761.156056 | R126: =TPC!AG$155 -> 2843.185019 | S126: =TPC!AH$155 -> 2913.239325 | T126: =TPC!AI$155 -> 3000.851552 | U126: =TPC!AJ$155 -> 3165.335354 | V126: =TPC!AK$155 -> 3237.32501 | W126: =TPC!AL$155 -> 3362.226411 | X126: =TPC!AM$155 -> 3515.587735
B127: Summation | G127: =SUM(G110:G125) -> 2359.023366 | H127: =SUM(H110:H125) -> 2281.286422 | I127: =SUM(I110:I125) -> 2368.356373 | K127: =SUM(K110:K125) -> 2426.028705 | L127: 2402.208236 | M127: 2378.24303 | N127: 2446.86525 | O127: 2505.141164 | P127: 2553.923811 | Q127: =SUM(Q110:Q125) -> 2623.839472 | R127: 2679.924625 | S127: 2723.91332 | T127: 2797.676585 | U127: 2888.096016 | V127: 2964.75964 | W127: =SUM(W110:W125) -> 3048.187298 | X127: 3140.754071
B128: TPC reconciled | L128: ='TPC reconciled'!AA$155 -> 2299.239102 | M128: ='TPC reconciled'!AB$155 -> 2276.301149 | N128: ='TPC reconciled'!AC$155 -> 2341.981922 | O128: ='TPC reconciled'!AD$155 -> 2397.759875 | P128: ='TPC reconciled'!AE$155 -> 2444.451485 | Q128: ='TPC reconciled'!AF$155 -> 2511.370256 | R128: ='TPC reconciled'!AG$155 -> 2565.051354 | S128: ='TPC reconciled'!AH$155 -> 2607.154501 | T128: ='TPC reconciled'!AI$155 -> 2677.755951 | U128: ='TPC reconciled'!AJ$155 -> 2764.29961 | V128: ='TPC reconciled'!AK$155 -> 2837.677096 | W128: ='TPC reconciled'!AL$155 -> 2917.52868 | X128: ='TPC reconciled'!AM$155 -> 3006.127638 | Z128: CitiPower reconciliation
B130: Citipower
B131: WMTS22 | C131: =WMTS22!R$155 -> 86.19535188 | D131: =WMTS22!S$155 -> 85.2619516 | E131: =WMTS22!T$155 -> 87.46070749 | F131: =WMTS22!U$155 -> 92.59130529 | G131: =WMTS22!V$155 -> 92.82797966 | H131: =WMTS22!W$155 -> 94.11604978 | I131: =WMTS22!X$155 -> 94.01659189 | J131: =WMTS22!Y$155 -> 91.77325323 | K131: =WMTS22!Z$155 -> 91.54111346 | L131: =WMTS22!AA$155 -> 93.95256992 | M131: =WMTS22!AB$155 -> 70.17316823 | N131: =WMTS22!AC$155 -> 77.04035251 | O131: =WMTS22!AD$155 -> 80.93113291 | P131: =WMTS22!AE$155 -> 84.46133452 | Q131: =WMTS22!AF$155 -> 88.03522923 | R131: =WMTS22!AG$155 -> 91.40980111 | S131: =WMTS22!AH$155 -> 93.46916754 | T131: =WMTS22!AI$155 -> 95.82983602 | U131: =WMTS22!AJ$155 -> 97.22956201 | V131: =WMTS22!AK$155 -> 99.43299055 | W131: =WMTS22!AL$155 -> 101.72647 | X131: =WMTS22!AM$155 -> 101.1583835
B132: WMTS66 | E132: =WMTS66!T$155 -> 375.6604119 | F132: =WMTS66!U$155 -> 374.8171713 | G132: =WMTS66!V$155 -> 376.5002429 | H132: =WMTS66!W$155 -> 355.4468019 | I132: =WMTS66!X$155 -> 369.8463799 | J132: =WMTS66!Y$155 -> 366.897434 | K132: =WMTS66!Z$155 -> 370.9407498 | L132: =WMTS66!AA$155 -> 374.6366875 | M132: =WMTS66!AB$155 -> 408.1767182 | N132: =WMTS66!AC$155 -> 427.3591464 | O132: =WMTS66!AD$155 -> 456.3198293 | P132: =WMTS66!AE$155 -> 467.0753207 | Q132: =WMTS66!AF$155 -> 475.0436782 | R132: =WMTS66!AG$155 -> 482.2345446 | S132: =WMTS66!AH$155 -> 482.0705201 | T132: =WMTS66!AI$155 -> 492.1403053 | U132: =WMTS66!AJ$155 -> 504.296154 | V132: =WMTS66!AK$155 -> 508.1068059 | W132: =WMTS66!AL$155 -> 519.0459063 | X132: =WMTS66!AM$155 -> 525.2573261
B133: BTS22 | C133: ='BTS22'!R$155 -> 38.94814755 | D133: ='BTS22'!S$155 -> 40.57990262 | E133: ='BTS22'!T$155 -> 40.74891516 | F133: ='BTS22'!U$155 -> 41.5713559 | G133: ='BTS22'!V$155 -> 40.7632251 | H133: ='BTS22'!W$155 -> 42.98719963 | I133: ='BTS22'!X$155 -> 40.2959129 | J133: ='BTS22'!Y$155 -> 41.33817789 | K133: ='BTS22'!Z$155 -> 41.35135231 | L133: ='BTS22'!AA$155 -> 40.55526793 | M133: ='BTS22'!AB$155 -> 41.99331978 | N133: ='BTS22'!AC$155 -> 43.07491493 | O133: ='BTS22'!AD$155 -> 44.09625762 | P133: ='BTS22'!AE$155 -> 45.24968463 | Q133: ='BTS22'!AF$155 -> 46.54397976 | R133: ='BTS22'!AG$155 -> 47.57296032 | S133: ='BTS22'!AH$155 -> 49.04075043 | T133: ='BTS22'!AI$155 -> 50.37728183 | U133: ='BTS22'!AJ$155 -> 51.62265705 | V133: ='BTS22'!AK$155 -> 53.39116589 | W133: ='BTS22'!AL$155 -> 55.34561548 | X133: ='BTS22'!AM$155 -> 49.50057781
B134: FBTS66 | C134: =FBTS66!R$155 -> 216.5838148 | D134: =FBTS66!S$155 -> 223.267144 | E134: =FBTS66!T$155 -> 219.4519524 | F134: =FBTS66!U$155 -> 237.0401589 | G134: =FBTS66!V$155 -> 231.4946774 | H134: =FBTS66!W$155 -> 233.4833327 | I134: =FBTS66!X$155 -> 243.4650215 | J134: =FBTS66!Y$155 -> 245.1068701 | K134: =FBTS66!Z$155 -> 247.0732808 | L134: =FBTS66!AA$155 -> 256.2149716 | M134: =FBTS66!AB$155 -> 254.8837596 | N134: =FBTS66!AC$155 -> 256.0752832 | O134: =FBTS66!AD$155 -> 260.4840917 | P134: =FBTS66!AE$155 -> 265.2023434 | Q134: =FBTS66!AF$155 -> 269.9022378 | R134: =FBTS66!AG$155 -> 275.395883 | S134: =FBTS66!AH$155 -> 279.2323377 | T134: =FBTS66!AI$155 -> 284.1137455 | U134: =FBTS66!AJ$155 -> 291.0806874 | V134: =FBTS66!AK$155 -> 296.4711057 | W134: =FBTS66!AL$155 -> 303.8335464 | X134: =FBTS66!AM$155 -> 320.4385372
B135: RTS22 | C135: ='RTS22'!R$155 -> 77.88175485 | D135: ='RTS22'!S$155 -> 84.67145897 | E135: ='RTS22'!T$155 -> 82.66956414 | F135: ='RTS22'!U$155 -> 75.82349454 | G135: ='RTS22'!V$155 -> 75.16539401 | H135: ='RTS22'!W$155 -> 71.62092644 | I135: ='RTS22'!X$155 -> 73.43911042 | J135: ='RTS22'!Y$155 -> 69.97418045 | K135: ='RTS22'!Z$155 -> 67.85607524 | L135: ='RTS22'!AA$155 -> 70.11797169 | M135: ='RTS22'!AB$155 -> 43.28342085 | N135: ='RTS22'!AC$155 -> 45.74306731 | O135: ='RTS22'!AD$155 -> 68.2518177 | P135: ='RTS22'!AE$155 -> 70.67209334 | Q135: ='RTS22'!AF$155 -> 72.83206934 | R135: ='RTS22'!AG$155 -> 73.86539453 | S135: ='RTS22'!AH$155 -> 73.11053301 | T135: ='RTS22'!AI$155 -> 74.39733792 | U135: ='RTS22'!AJ$155 -> 75.40184573 | V135: ='RTS22'!AK$155 -> 75.54995732 | W135: ='RTS22'!AL$155 -> 77.02723039 | X135: ='RTS22'!AM$155 -> 68.47236264
B136: RTS66_1_2 | E136: =RTS66_1_2!T$155 -> 246.6864307 | F136: =RTS66_1_2!U$155 -> 248.1813809 | G136: =RTS66_1_2!V$155 -> 252.5404453 | H136: =RTS66_1_2!W$155 -> 243.6138887 | I136: =RTS66_1_2!X$155 -> 248.6485749 | J136: =RTS66_1_2!Y$155 -> 248.4241477 | K136: =RTS66_1_2!Z$155 -> 246.4473545 | L136: =RTS66_1_2!AA$155 -> 244.1279966 | M136: =RTS66_1_2!AB$155 -> 279.0565437 | N136: =RTS66_1_2!AC$155 -> 280.1759836 | O136: =RTS66_1_2!AD$155 -> 284.4069959 | P136: =RTS66_1_2!AE$155 -> 286.2849392 | Q136: =RTS66_1_2!AF$155 -> 289.1814944 | R136: =RTS66_1_2!AG$155 -> 289.976519 | S136: =RTS66_1_2!AH$155 -> 290.9759112 | T136: =RTS66_1_2!AI$155 -> 292.6028083 | U136: =RTS66_1_2!AJ$155 -> 295.1301859 | V136: =RTS66_1_2!AK$155 -> 296.1649925 | W136: =RTS66_1_2!AL$155 -> 297.9385624 | X136: =RTS66_1_2!AM$155 -> 297.9458658
B137: RTS66_3_4 | E137: =RTS66_3_4!T$155 -> 214.1382801 | F137: =RTS66_3_4!U$155 -> 216.7844381 | G137: =RTS66_3_4!V$155 -> 217.1882508 | H137: =RTS66_3_4!W$155 -> 213.8264256 | I137: =RTS66_3_4!X$155 -> 213.2121172 | J137: =RTS66_3_4!Y$155 -> 209.7930171 | K137: =RTS66_3_4!Z$155 -> 210.0812379 | L137: =RTS66_3_4!AA$155 -> 213.8530438 | M137: =RTS66_3_4!AB$155 -> 221.6687451 | N137: =RTS66_3_4!AC$155 -> 226.5213082 | O137: =RTS66_3_4!AD$155 -> 230.4185439 | P137: =RTS66_3_4!AE$155 -> 235.5212817 | Q137: =RTS66_3_4!AF$155 -> 241.2334472 | R137: =RTS66_3_4!AG$155 -> 243.8038585 | S137: =RTS66_3_4!AH$155 -> 247.7673659 | T137: =RTS66_3_4!AI$155 -> 251.4667539 | U137: =RTS66_3_4!AJ$155 -> 256.910509 | V137: =RTS66_3_4!AK$155 -> 262.6943425 | W137: =RTS66_3_4!AL$155 -> 268.8144801 | X137: =RTS66_3_4!AM$155 -> 274.4447327
B138: SVTS | E138: =SVTS!T$155 -> 35.33394537 | F138: =SVTS!U$155 -> 35.51954575 | G138: =SVTS!V$155 -> 37.51447866 | H138: =SVTS!W$155 -> 35.84693344 | I138: =SVTS!X$155 -> 36.2726728 | J138: =SVTS!Y$155 -> 39.54958523 | K138: =SVTS!Z$155 -> 36.19840132 | L138: =SVTS!AA$155 -> 34.37865839 | M138: =SVTS!AB$155 -> 35.46790435 | N138: =SVTS!AC$155 -> 36.61654223 | O138: =SVTS!AD$155 -> 37.80100621 | P138: =SVTS!AE$155 -> 38.57590294 | Q138: =SVTS!AF$155 -> 39.87087216 | R138: =SVTS!AG$155 -> 40.97757759 | S138: =SVTS!AH$155 -> 42.41532092 | T138: =SVTS!AI$155 -> 42.39518371 | U138: =SVTS!AJ$155 -> 43.88052751 | V138: =SVTS!AK$155 -> 45.43333925 | W138: =SVTS!AL$155 -> 46.68816435 | X138: =SVTS!AM$155 -> 45.34623964
B139: TSTS | C139: =TSTS!R$155 -> 67.09928914 | D139: =TSTS!S$155 -> 71.41794354 | E139: =TSTS!T$155 -> 70.79495269 | F139: =TSTS!U$155 -> 70.88896887 | G139: =TSTS!V$155 -> 74.11983918 | H139: =TSTS!W$155 -> 71.45867015 | I139: =TSTS!X$155 -> 73.52392916 | J139: =TSTS!Y$155 -> 75.17515961 | K139: =TSTS!Z$155 -> 72.28362382 | L139: =TSTS!AA$155 -> 71.6024723 | M139: =TSTS!AB$155 -> 74.06558772 | N139: =TSTS!AC$155 -> 75.26056138 | O139: =TSTS!AD$155 -> 77.17491611 | P139: =TSTS!AE$155 -> 79.68203784 | Q139: =TSTS!AF$155 -> 81.33013925 | R139: =TSTS!AG$155 -> 81.58887489 | S139: =TSTS!AH$155 -> 83.7602983 | T139: =TSTS!AI$155 -> 86.2355022 | U139: =TSTS!AJ$155 -> 87.72784512 | V139: =TSTS!AK$155 -> 89.57478011 | W139: =TSTS!AL$155 -> 92.38689532 | X139: =TSTS!AM$155 -> 99.19608388
B140: TCP | C140: =TCP!R$155 -> 1199.049793 | D140: =TCP!S$155 -> 1294.229457 | E140: =TCP!T$155 -> 1308.335282 | F140: =TCP!U$155 -> 1333.554892 | G140: =TCP!V$155 -> 1320.795233 | H140: =TCP!W$155 -> 1273.932567 | I140: =TCP!X$155 -> 1296.10467 | J140: =TCP!Y$155 -> 1248.800343 | K140: =TCP!Z$155 -> 1263.683447 | L140: =TCP!AA$155 -> 1301.188113 | M140: =TCP!AB$155 -> 1328.45848 | N140: =TCP!AC$155 -> 1364.81149 | O140: =TCP!AD$155 -> 1431.772739 | P140: =TCP!AE$155 -> 1462.307438 | Q140: =TCP!AF$155 -> 1491.361781 | R140: =TCP!AG$155 -> 1512.60964 | S140: =TCP!AH$155 -> 1526.572136 | T140: =TCP!AI$155 -> 1552.342769 | U140: =TCP!AJ$155 -> 1583.696497 | V140: =TCP!AK$155 -> 1605.583347 | W140: =TCP!AL$155 -> 1639.044144 | X140: =TCP!AM$155 -> 1656.666718
B141: Summation | E141: =SUM(E131:E139) -> 1372.94516 | F141: 1393.21782 | G141: 1398.114533 | H141: 1362.400228 | I141: 1392.720311 | J141: 1388.031825 | K141: 1383.773189 | L141: 1399.43964 | M141: 1428.769168 | N141: 1467.86716 | O141: 1539.884591 | P141: 1572.724938 | Q141: 1603.973147 | R141: 1626.825414 | S141: 1641.842205 | T141: 1669.558755 | U141: 1703.279974 | V141: 1726.81948 | W141: =SUM(W131:W139) -> 1762.806871 | X141: 1781.760109
A144: Average demand summation (before post-model adjustments) | Z144: Powercor average demand comparisons
B145: Powercor | C145: 2005 | D145: 2006 | E145: 2007 | F145: 2008 | G145: 2009 | H145: 2010 | I145: 2011 | J145: 2012 | K145: 2013 | L145: 2014 | M145: 2015 | N145: 2016 | O145: 2017 | P145: 2018 | Q145: 2019 | R145: 2020 | S145: 2021 | T145: 2022 | U145: 2023 | V145: 2024 | W145: 2025 | X145: 2026
B146: ATS West | G146: ='ATS West'!V$70 -> 78.91134517 | H146: ='ATS West'!W$70 -> 82.65101544 | I146: ='ATS West'!X$70 -> 86.17382296 | J146: ='ATS West'!Y$70 -> 88.18875554 | K146: ='ATS West'!Z$70 -> 88.21555603 | L146: ='ATS West'!AA$70 -> 92.54642667 | M146: ='ATS West'!AB$70 -> 96.24828373 | N146: ='ATS West'!AC$70 -> 100.0982151 | O146: ='ATS West'!AD$70 -> 104.1021437 | P146: ='ATS West'!AE$70 -> 108.0140373 | Q146: ='ATS West'!AF$70 -> 111.9599594 | R146: ='ATS West'!AG$70 -> 115.8023471 | S146: ='ATS West'!AH$70 -> 118.6284909 | T146: ='ATS West'!AI$70 -> 121.309438 | U146: ='ATS West'!AJ$70 -> 124.9525179 | V146: ='ATS West'!AK$70 -> 128.2633668 | W146: ='ATS West'!AL$70 -> 131.2388034 | X146: ='ATS West'!AM$70 -> 134.2469885
B147: BATS | C147: =BATS!R$70 -> 104.6021832 | D147: =BATS!S$70 -> 110.4137369 | E147: =BATS!T$70 -> 110.0114402 | F147: =BATS!U$70 -> 105.5461533 | G147: =BATS!V$70 -> 105.5461533 | H147: =BATS!W$70 -> 100.9580334 | I147: =BATS!X$70 -> 100.0429497 | J147: =BATS!Y$70 -> 96.33512759 | K147: =BATS!Z$70 -> 95.06454196 | L147: =BATS!AA$70 -> 95.33762655 | M147: =BATS!AB$70 -> 97.00712577 | N147: =BATS!AC$70 -> 97.61892362 | O147: =BATS!AD$70 -> 98.25835364 | P147: =BATS!AE$70 -> 98.68058308 | Q147: =BATS!AF$70 -> 99.12138139 | R147: =BATS!AG$70 -> 99.46176637 | S147: =BATS!AH$70 -> 98.94722228 | T147: =BATS!AI$70 -> 98.28906258 | U147: =BATS!AJ$70 -> 98.5793744 | V147: =BATS!AK$70 -> 98.72661428 | W147: =BATS!AL$70 -> 98.63456877 | X147: =BATS!AM$70 -> 98.52997193
B148: BETS22 | C148: =BETS22!R$70 -> 18.16042465 | E148: =BETS22!T$70 -> 21.74977385 | F148: =BETS22!U$70 -> 23.20817847 | G148: =BETS22!V$70 -> 23.20817847 | H148: =BETS22!W$70 -> 24.00868815 | I148: =BETS22!X$70 -> 24.24022726 | J148: =BETS22!Y$70 -> 23.43689435 | K148: =BETS22!Z$70 -> 23.18813818 | L148: =BETS22!AA$70 -> 24.37922737 | M148: =BETS22!AB$70 -> 25.35439647 | N148: =BETS22!AC$70 -> 25.69730782 | O148: =BETS22!AD$70 -> 26.11005726 | P148: =BETS22!AE$70 -> 26.54261429 | Q148: =BETS22!AF$70 -> 27.0325535 | R148: =BETS22!AG$70 -> 27.53119777 | S148: =BETS22!AH$70 -> 27.90392558 | T148: =BETS22!AI$70 -> 28.37092405 | U148: =BETS22!AJ$70 -> 29.04785262 | V148: =BETS22!AK$70 -> 29.61658589 | W148: =BETS22!AL$70 -> 30.14247583 | X148: =BETS22!AM$70 -> 30.69452101
B149: BETS66 | C149: =BETS66!R$70 -> 80.2128392 | D149: =BETS66!S$70 -> 83.17134125 | E149: =BETS66!T$70 -> 82.35839428 | F149: =BETS66!U$70 -> 85.22652399 | G149: =BETS66!V$70 -> 85.22652399 | H149: =BETS66!W$70 -> 82.48424538 | I149: =BETS66!X$70 -> 80.79085543 | J149: =BETS66!Y$70 -> 80.61603208 | K149: =BETS66!Z$70 -> 78.37812656 | L149: =BETS66!AA$70 -> 76.936501 | M149: =BETS66!AB$70 -> 77.86070694 | N149: =BETS66!AC$70 -> 79.29663181 | O149: =BETS66!AD$70 -> 80.59945413 | P149: =BETS66!AE$70 -> 81.8743609 | Q149: =BETS66!AF$70 -> 83.13400956 | R149: =BETS66!AG$70 -> 84.49303459 | S149: =BETS66!AH$70 -> 85.74752216 | T149: =BETS66!AI$70 -> 86.77281496 | U149: =BETS66!AJ$70 -> 88.06052463 | V149: =BETS66!AK$70 -> 89.75774042 | W149: =BETS66!AL$70 -> 91.4690592 | X149: =BETS66!AM$70 -> 93.14803977
B150: BLTS22 | C150: =BLTS22!R$70 -> 40.60577415 | D150: =BLTS22!S$70 -> 41.4969781 | E150: =BLTS22!T$70 -> 41.78015751 | F150: =BLTS22!U$70 -> 42.84001613 | G150: =BLTS22!V$70 -> 42.84001613 | H150: =BLTS22!W$70 -> 42.83788402 | I150: =BLTS22!X$70 -> 41.7032134 | K150: =BLTS22!Z$70 -> 38.88008361 | L150: =BLTS22!AA$70 -> 39.19809231 | M150: =BLTS22!AB$70 -> 39.45679807 | N150: =BLTS22!AC$70 -> 39.90336879 | O150: =BLTS22!AD$70 -> 40.43188384 | P150: =BLTS22!AE$70 -> 40.94034489 | Q150: =BLTS22!AF$70 -> 41.37987046 | R150: =BLTS22!AG$70 -> 41.83356533 | S150: =BLTS22!AH$70 -> 42.20575379 | T150: =BLTS22!AI$70 -> 42.33086719 | U150: =BLTS22!AJ$70 -> 42.46123777 | V150: =BLTS22!AK$70 -> 42.81149782 | W150: =BLTS22!AL$70 -> 43.12243891 | X150: =BLTS22!AM$70 -> 43.37756711
B151: ATS-BLTS | E151: ='ATS-BLTS'!T$70 -> 108.5729344 | F151: ='ATS-BLTS'!U$70 -> 116.9917292 | G151: ='ATS-BLTS'!V$70 -> 116.9917292 | H151: ='ATS-BLTS'!W$70 -> 118.4050484 | I151: ='ATS-BLTS'!X$70 -> 121.808844 | J151: ='ATS-BLTS'!Y$70 -> 121.5568165 | K151: ='ATS-BLTS'!Z$70 -> 121.1342126 | L151: ='ATS-BLTS'!AA$70 -> 125.9193305 | M151: ='ATS-BLTS'!AB$70 -> 130.9561038 | N151: ='ATS-BLTS'!AC$70 -> 135.4211968 | O151: ='ATS-BLTS'!AD$70 -> 139.5831686 | P151: ='ATS-BLTS'!AE$70 -> 143.4456326 | Q151: ='ATS-BLTS'!AF$70 -> 147.5088976 | R151: ='ATS-BLTS'!AG$70 -> 151.4506726 | S151: ='ATS-BLTS'!AH$70 -> 153.9022339 | T151: ='ATS-BLTS'!AI$70 -> 156.4487676 | U151: ='ATS-BLTS'!AJ$70 -> 160.9381518 | V151: ='ATS-BLTS'!AK$70 -> 165.0258617 | W151: ='ATS-BLTS'!AL$70 -> 168.7203821 | X151: ='ATS-BLTS'!AM$70 -> 172.562632
B152: GTS66 | C152: ='GTS66'!R$70 -> 217.4531091 | D152: ='GTS66'!S$70 -> 228.9049061 | E152: ='GTS66'!T$70 -> 228.6586444 | F152: ='GTS66'!U$70 -> 230.7528675 | G152: ='GTS66'!V$70 -> 230.7528675 | H152: ='GTS66'!W$70 -> 226.7189365 | I152: ='GTS66'!X$70 -> 225.8551618 | J152: ='GTS66'!Y$70 -> 218.3171003 | K152: ='GTS66'!Z$70 -> 211.9375931 | L152: ='GTS66'!AA$70 -> 213.9393456 | M152: ='GTS66'!AB$70 -> 220.2257083 | N152: ='GTS66'!AC$70 -> 224.3403835 | O152: ='GTS66'!AD$70 -> 228.1340083 | P152: ='GTS66'!AE$70 -> 231.4348881 | Q152: ='GTS66'!AF$70 -> 234.8032487 | R152: ='GTS66'!AG$70 -> 238.1165188 | S152: ='GTS66'!AH$70 -> 239.5480488 | T152: ='GTS66'!AI$70 -> 240.540651 | U152: ='GTS66'!AJ$70 -> 243.8726605 | V152: ='GTS66'!AK$70 -> 247.3611161 | W152: ='GTS66'!AL$70 -> 250.3084475 | X152: ='GTS66'!AM$70 -> 253.2344096
B153: HOTS66 | C153: =HOTS66!R$70 -> 40.20114494 | D153: =HOTS66!S$70 -> 44.48824991 | E153: =HOTS66!T$70 -> 46.28494216 | F153: =HOTS66!U$70 -> 46.48579089 | G153: =HOTS66!V$70 -> 46.48579089 | H153: =HOTS66!W$70 -> 45.99813484 | I153: =HOTS66!X$70 -> 45.69065244 | J153: =HOTS66!Y$70 -> 44.0089338 | K153: =HOTS66!Z$70 -> 40.87373978 | L153: =HOTS66!AA$70 -> 39.9061275 | M153: =HOTS66!AB$70 -> 39.38163454 | N153: =HOTS66!AC$70 -> 40.51953551 | O153: =HOTS66!AD$70 -> 41.16636663 | P153: =HOTS66!AE$70 -> 41.48732028 | Q153: =HOTS66!AF$70 -> 41.73921754 | R153: =HOTS66!AG$70 -> 41.91603562 | S153: =HOTS66!AH$70 -> 41.71850637 | T153: =HOTS66!AI$70 -> 41.56366896 | U153: =HOTS66!AJ$70 -> 41.86941913 | V153: =HOTS66!AK$70 -> 42.05167571 | W153: =HOTS66!AL$70 -> 42.13937805 | X153: =HOTS66!AM$70 -> 42.25835171
B154: KTSeast | E154: =KTSeast!T$70 -> 61.26224994 | F154: =KTSeast!U$70 -> 66.27111161 | G154: =KTSeast!V$70 -> 66.27111161 | H154: =KTSeast!W$70 -> 66.9032823 | I154: =KTSeast!X$70 -> 68.64481386 | J154: =KTSeast!Y$70 -> 69.48403778 | K154: =KTSeast!Z$70 -> 70.57662933 | L154: =KTSeast!AA$70 -> 72.23203245 | M154: =KTSeast!AB$70 -> 73.82323275 | N154: =KTSeast!AC$70 -> 75.44788823 | O154: =KTSeast!AD$70 -> 76.95011604 | P154: =KTSeast!AE$70 -> 78.48675678 | Q154: =KTSeast!AF$70 -> 80.16575553 | R154: =KTSeast!AG$70 -> 81.81944284 | S154: =KTSeast!AH$70 -> 83.29634622 | T154: =KTSeast!AI$70 -> 84.90836774 | U154: =KTSeast!AJ$70 -> 87.04233493 | V154: =KTSeast!AK$70 -> 89.17132151 | W154: =KTSeast!AL$70 -> 91.28808744 | X154: =KTSeast!AM$70 -> 93.50251524
B155: KTSwest | E155: =KTSwest!T$70 -> 86.60330987 | F155: =KTSwest!U$70 -> 87.70227411 | G155: =KTSwest!V$70 -> 87.70227411 | H155: =KTSwest!W$70 -> 86.71970956 | I155: =KTSwest!X$70 -> 86.21310357 | J155: =KTSwest!Y$70 -> 83.94201802 | K155: =KTSwest!Z$70 -> 79.32754442 | L155: =KTSwest!AA$70 -> 82.11433055 | M155: =KTSwest!AB$70 -> 85.19225719 | N155: =KTSwest!AC$70 -> 87.26886431 | O155: =KTSwest!AD$70 -> 89.06775427 | P155: =KTSwest!AE$70 -> 90.55376771 | Q155: =KTSwest!AF$70 -> 92.29626736 | R155: =KTSwest!AG$70 -> 93.98575976 | S155: =KTSwest!AH$70 -> 94.53628062 | T155: =KTSwest!AI$70 -> 95.18083755 | U155: =KTSwest!AJ$70 -> 97.75957908 | V155: =KTSwest!AK$70 -> 100.0875808 | W155: =KTSwest!AL$70 -> 102.0995473 | X155: =KTSwest!AM$70 -> 104.2675048
B156: KGTS22 | C156: =KGTS22!R$70 -> 5.769368886 | D156: =KGTS22!S$70 -> 5.919542018 | E156: =KGTS22!T$70 -> 5.810960848 | F156: =KGTS22!U$70 -> 5.997550505 | G156: =KGTS22!V$70 -> 5.997550505 | H156: =KGTS22!W$70 -> 6.266297034 | I156: =KGTS22!X$70 -> 6.117601684 | J156: =KGTS22!Y$70 -> 6.510505032 | K156: =KGTS22!Z$70 -> 6.422854827 | L156: =KGTS22!AA$70 -> 6.01680484 | M156: =KGTS22!AB$70 -> 6.002666296 | N156: =KGTS22!AC$70 -> 6.040012452 | O156: =KGTS22!AD$70 -> 6.057605052 | P156: =KGTS22!AE$70 -> 6.088510621 | Q156: =KGTS22!AF$70 -> 6.107167625 | R156: =KGTS22!AG$70 -> 6.136155781 | S156: =KGTS22!AH$70 -> 6.245000248 | T156: =KGTS22!AI$70 -> 6.32462878 | U156: =KGTS22!AJ$70 -> 6.30939678 | V156: =KGTS22!AK$70 -> 6.34759943 | W156: =KGTS22!AL$70 -> 6.405421542 | X156: =KGTS22!AM$70 -> 6.453949841
B157: KGTS66 | C157: =KGTS66!R$70 -> 26.43283017 | D157: =KGTS66!S$70 -> 27.17752918 | E157: =KGTS66!T$70 -> 27.47067894 | F157: =KGTS66!U$70 -> 27.33070394 | G157: =KGTS66!V$70 -> 27.33070394 | H157: =KGTS66!W$70 -> 25.68209088 | I157: =KGTS66!X$70 -> 25.58741749 | J157: =KGTS66!Y$70 -> 25.1880296 | K157: =KGTS66!Z$70 -> 24.89450325 | L157: =KGTS66!AA$70 -> 24.89812935 | M157: =KGTS66!AB$70 -> 24.51943605 | N157: =KGTS66!AC$70 -> 24.61716228 | O157: =KGTS66!AD$70 -> 24.71341073 | P157: =KGTS66!AE$70 -> 24.77663121 | Q157: =KGTS66!AF$70 -> 24.86343514 | R157: =KGTS66!AG$70 -> 24.95124175 | S157: =KGTS66!AH$70 -> 24.88959769 | T157: =KGTS66!AI$70 -> 24.86260093 | U157: =KGTS66!AJ$70 -> 25.03309287 | V157: =KGTS66!AK$70 -> 25.16728383 | W157: =KGTS66!AL$70 -> 25.2730629 | X157: =KGTS66!AM$70 -> 25.3933281
B158: RCTS22 | C158: =RCTS22!R$70 -> 16.08958539 | D158: =RCTS22!S$70 -> 15.93976572 | E158: =RCTS22!T$70 -> 15.99013282 | F158: =RCTS22!U$70 -> 16.2569043 | G158: =RCTS22!V$70 -> 16.2569043 | H158: =RCTS22!W$70 -> 14.38504317 | I158: =RCTS22!X$70 -> 15.22578318 | J158: =RCTS22!Y$70 -> 15.92395392 | K158: =RCTS22!Z$70 -> 16.40680873 | L158: =RCTS22!AA$70 -> 17.21238663 | M158: =RCTS22!AB$70 -> 16.61296893 | N158: =RCTS22!AC$70 -> 16.85871518 | O158: =RCTS22!AD$70 -> 17.02367758 | P158: =RCTS22!AE$70 -> 17.19173203 | Q158: =RCTS22!AF$70 -> 17.40231439 | R158: =RCTS22!AG$70 -> 17.59906729 | S158: =RCTS22!AH$70 -> 17.62267123 | T158: =RCTS22!AI$70 -> 17.83899273 | U158: =RCTS22!AJ$70 -> 18.20999851 | V158: =RCTS22!AK$70 -> 18.4044526 | W158: =RCTS22!AL$70 -> 18.59838245 | X158: =RCTS22!AM$70 -> 18.82506986
B159: RCTS66 | C159: ='RCTS66 WETS'!R$70 -> 65.19220254 | D159: ='RCTS66 WETS'!S$70 -> 69.17635889 | E159: ='RCTS66 WETS'!T$70 -> 66.64309678 | F159: ='RCTS66 WETS'!U$70 -> 71.23122738 | G159: ='RCTS66 WETS'!V$70 -> 71.23122738 | H159: ='RCTS66 WETS'!W$70 -> 70.52184251 | I159: ='RCTS66 WETS'!X$70 -> 70.24943684 | J159: ='RCTS66 WETS'!Y$70 -> 75.64413665 | K159: ='RCTS66 WETS'!Z$70 -> 74.61258012 | L159: ='RCTS66 WETS'!AA$70 -> 75.37741069 | M159: ='RCTS66 WETS'!AB$70 -> 75.42857751 | N159: ='RCTS66 WETS'!AC$70 -> 76.01808509 | O159: ='RCTS66 WETS'!AD$70 -> 76.82306389 | P159: ='RCTS66 WETS'!AE$70 -> 77.7464858 | Q159: ='RCTS66 WETS'!AF$70 -> 78.67245108 | R159: ='RCTS66 WETS'!AG$70 -> 79.61619372 | S159: ='RCTS66 WETS'!AH$70 -> 80.79879123 | T159: ='RCTS66 WETS'!AI$70 -> 81.94670152 | U159: ='RCTS66 WETS'!AJ$70 -> 82.90022931 | V159: ='RCTS66 WETS'!AK$70 -> 83.94442117 | W159: ='RCTS66 WETS'!AL$70 -> 85.05212019 | X159: ='RCTS66 WETS'!AM$70 -> 86.18295425
B160: SHTS | C160: =SHTS!R$70 -> 142.4715324 | D160: =SHTS!S$70 -> 148.2908408 | E160: =SHTS!T$70 -> 146.6719198 | F160: =SHTS!U$70 -> 148.2277504 | G160: =SHTS!V$70 -> 148.2277504 | H160: =SHTS!W$70 -> 140.948359 | I160: =SHTS!X$70 -> 139.1767316 | J160: =SHTS!Y$70 -> 139.3584396 | K160: =SHTS!Z$70 -> 135.1054597 | L160: =SHTS!AA$70 -> 135.8645738 | M160: =SHTS!AB$70 -> 135.6461824 | N160: =SHTS!AC$70 -> 136.557142 | O160: =SHTS!AD$70 -> 137.5532244 | P160: =SHTS!AE$70 -> 138.4814644 | Q160: =SHTS!AF$70 -> 139.4644964 | R160: =SHTS!AG$70 -> 140.4629198 | S160: =SHTS!AH$70 -> 140.8255123 | T160: =SHTS!AI$70 -> 141.0655459 | U160: =SHTS!AJ$70 -> 142.0645876 | V160: =SHTS!AK$70 -> 143.1528213 | W160: =SHTS!AL$70 -> 144.1341515 | X160: =SHTS!AM$70 -> 145.1282135
B161: TGTS | C161: =TGTS!R$70 -> 105.0382153 | D161: =TGTS!S$70 -> 110.6349672 | E161: =TGTS!T$70 -> 109.8583805 | F161: =TGTS!U$70 -> 115.9697423 | G161: =TGTS!V$70 -> 115.9697423 | H161: =TGTS!W$70 -> 115.9644711 | I161: =TGTS!X$70 -> 116.5521524 | J161: =TGTS!Y$70 -> 115.2345463 | K161: =TGTS!Z$70 -> 113.2291462 | L161: =TGTS!AA$70 -> 112.2528633 | M161: =TGTS!AB$70 -> 113.3919844 | N161: =TGTS!AC$70 -> 114.8952058 | O161: =TGTS!AD$70 -> 116.2330548 | P161: =TGTS!AE$70 -> 117.4989 | Q161: =TGTS!AF$70 -> 118.8278715 | R161: =TGTS!AG$70 -> 120.1375066 | S161: =TGTS!AH$70 -> 121.1045918 | T161: =TGTS!AI$70 -> 122.0865429 | U161: =TGTS!AJ$70 -> 123.5005848 | V161: =TGTS!AK$70 -> 124.868554 | W161: =TGTS!AL$70 -> 126.1831269 | X161: =TGTS!AM$70 -> 127.5268358
B162: TPC | C162: ='TPC reconciled'!R$70 -> 1198.405216 | D162: ='TPC reconciled'!S$70 -> 1265.777672 | E162: ='TPC reconciled'!T$70 -> 1267.031487 | F162: ='TPC reconciled'!U$70 -> 1289.468641 | G162: ='TPC reconciled'!V$70 -> 1289.468641 | H162: ='TPC reconciled'!W$70 -> 1284.889756 | I162: ='TPC reconciled'!X$70 -> 1281.307665 | J162: ='TPC reconciled'!Y$70 -> 1285.669338 | K162: ='TPC reconciled'!Z$70 -> 1268.039975 | L162: ='TPC reconciled'!AA$70 -> 1285.727962 | M162: ='TPC reconciled'!AB$70 -> 1324.610237 | N162: ='TPC reconciled'!AC$70 -> 0 | O162: ='TPC reconciled'!AD$70 -> 0 | P162: ='TPC reconciled'!AE$70 -> 0 | Q162: ='TPC reconciled'!AF$70 -> 0 | R162: ='TPC reconciled'!AG$70 -> 0 | S162: ='TPC reconciled'!AH$70 -> 0 | T162: ='TPC reconciled'!AI$70 -> 0 | U162: ='TPC reconciled'!AJ$70 -> 0 | V162: ='TPC reconciled'!AK$70 -> 0 | W162: ='TPC reconciled'!AL$70 -> 0 | X162: ='TPC reconciled'!AM$70 -> 0
B163: Summation | G163: =SUM(G146:G161) -> 1268.949869 | H163: =SUM(H146:H161) -> 1251.453082 | I163: =SUM(I146:I161) -> 1254.072768 | K163: =SUM(K146:K161) -> 1218.247518 | L163: 1234.131209 | M163: 1257.108063 | N163: 1280.598638 | O163: 1302.807343 | P163: 1323.24403 | Q163: 1344.478897 | R163: 1365.313426 | S163: 1377.920495 | T163: 1389.840412 | U163: 1412.601543 | V163: 1434.758493 | W163: 1454.809454 | X163: 1475.332853 | Z163: CitiPower average demand comparisons
B165: Citipower
B166: WMTS22 | C166: =WMTS22!R$70 -> 50.25136797 | D166: =WMTS22!S$70 -> 50.82630064 | E166: =WMTS22!T$70 -> 52.98812615 | F166: =WMTS22!U$70 -> 56.24773104 | G166: =WMTS22!V$70 -> 56.24773104 | H166: =WMTS22!W$70 -> 56.65745457 | I166: =WMTS22!X$70 -> 56.94550679 | J166: =WMTS22!Y$70 -> 57.81583215 | K166: =WMTS22!Z$70 -> 56.66541028 | L166: =WMTS22!AA$70 -> 57.04004872 | M166: =WMTS22!AB$70 -> 54.82604225 | N166: =WMTS22!AC$70 -> 57.01908394 | O166: =WMTS22!AD$70 -> 59.29984729 | P166: =WMTS22!AE$70 -> 61.67184118 | Q166: =WMTS22!AF$70 -> 64.13871483 | R166: =WMTS22!AG$70 -> 66.70426343 | S166: =WMTS22!AH$70 -> 68.64307432 | T166: =WMTS22!AI$70 -> 69.9322172 | U166: =WMTS22!AJ$70 -> 71.27601984 | V166: =WMTS22!AK$70 -> 72.71459597 | W166: =WMTS22!AL$70 -> 74.05481773 | X166: =WMTS22!AM$70 -> 75.29469325
B167: WMTS66 | E167: =WMTS66!T$70 -> 179.7605544 | F167: =WMTS66!U$70 -> 183.1673945 | G167: =WMTS66!V$70 -> 183.1673945 | H167: =WMTS66!W$70 -> 178.922274 | I167: =WMTS66!X$70 -> 178.8826687 | J167: =WMTS66!Y$70 -> 177.186666 | K167: =WMTS66!Z$70 -> 176.7605734 | L167: =WMTS66!AA$70 -> 179.8011404 | M167: =WMTS66!AB$70 -> 186.6015993 | N167: =WMTS66!AC$70 -> 191.6792543 | O167: =WMTS66!AD$70 -> 196.2005842 | P167: =WMTS66!AE$70 -> 199.918334 | Q167: =WMTS66!AF$70 -> 203.6233427 | R167: =WMTS66!AG$70 -> 206.9949487 | S167: =WMTS66!AH$70 -> 208.466979 | T167: =WMTS66!AI$70 -> 209.900335 | U167: =WMTS66!AJ$70 -> 213.2537555 | V167: =WMTS66!AK$70 -> 216.0915433 | W167: =WMTS66!AL$70 -> 218.5917354 | X167: =WMTS66!AM$70 -> 221.333996
B168: BTS22 | C168: ='BTS22'!R$70 -> 20.77967712 | D168: ='BTS22'!S$70 -> 21.40261984 | E168: ='BTS22'!T$70 -> 21.07128227 | F168: ='BTS22'!U$70 -> 21.69665126 | G168: ='BTS22'!V$70 -> 21.69665126 | H168: ='BTS22'!W$70 -> 22.05543905 | I168: ='BTS22'!X$70 -> 21.10054648 | J168: ='BTS22'!Y$70 -> 21.56871113 | K168: ='BTS22'!Z$70 -> 21.4291311 | L168: ='BTS22'!AA$70 -> 21.4291311 | M168: ='BTS22'!AB$70 -> 21.9184994 | N168: ='BTS22'!AC$70 -> 22.49684216 | O168: ='BTS22'!AD$70 -> 23.0021875 | P168: ='BTS22'!AE$70 -> 23.4378906 | Q168: ='BTS22'!AF$70 -> 23.78591319 | R168: ='BTS22'!AG$70 -> 24.10505166 | S168: ='BTS22'!AH$70 -> 24.4649997 | T168: ='BTS22'!AI$70 -> 24.70911284 | U168: ='BTS22'!AJ$70 -> 24.81737421 | V168: ='BTS22'!AK$70 -> 25.060522 | W168: ='BTS22'!AL$70 -> 25.33510609 | X168: ='BTS22'!AM$70 -> 25.59435129
B169: FBTS66 | C169: =FBTS66!R$70 -> 115.5829767 | D169: =FBTS66!S$70 -> 120.6965754 | E169: =FBTS66!T$70 -> 119.2418277 | F169: =FBTS66!U$70 -> 123.0915954 | G169: =FBTS66!V$70 -> 123.0915954 | H169: =FBTS66!W$70 -> 121.2904564 | I169: =FBTS66!X$70 -> 122.1250152 | J169: =FBTS66!Y$70 -> 124.3462456 | K169: =FBTS66!Z$70 -> 122.8940876 | L169: =FBTS66!AA$70 -> 125.6128429 | M169: =FBTS66!AB$70 -> 129.8906817 | N169: =FBTS66!AC$70 -> 131.5907335 | O169: =FBTS66!AD$70 -> 133.7923684 | P169: =FBTS66!AE$70 -> 135.9934957 | Q169: =FBTS66!AF$70 -> 138.31326 | R169: =FBTS66!AG$70 -> 140.7192764 | S169: =FBTS66!AH$70 -> 142.8120885 | T169: =FBTS66!AI$70 -> 144.6602129 | U169: =FBTS66!AJ$70 -> 146.9915875 | V169: =FBTS66!AK$70 -> 149.6565572 | W169: =FBTS66!AL$70 -> 152.3377549 | X169: =FBTS66!AM$70 -> 154.9581066
B170: RTS22 | C170: ='RTS22'!R$70 -> 37.20841785 | D170: ='RTS22'!S$70 -> 39.74907084 | E170: ='RTS22'!T$70 -> 40.36061045 | F170: ='RTS22'!U$70 -> 36.5369845 | G170: ='RTS22'!V$70 -> 36.5369845 | H170: ='RTS22'!W$70 -> 35.31355154 | I170: ='RTS22'!X$70 -> 35.67870444 | J170: ='RTS22'!Y$70 -> 34.23419376 | K170: ='RTS22'!Z$70 -> 32.62629302 | L170: ='RTS22'!AA$70 -> 34.37910946 | M170: ='RTS22'!AB$70 -> 32.61572242 | N170: ='RTS22'!AC$70 -> 33.92035132 | O170: ='RTS22'!AD$70 -> 35.27716537 | P170: ='RTS22'!AE$70 -> 36.23275 | Q170: ='RTS22'!AF$70 -> 36.99115293 | R170: ='RTS22'!AG$70 -> 37.57933846 | S170: ='RTS22'!AH$70 -> 37.60565122 | T170: ='RTS22'!AI$70 -> 37.54096715 | U170: ='RTS22'!AJ$70 -> 38.02305839 | V170: ='RTS22'!AK$70 -> 38.41130195 | W170: ='RTS22'!AL$70 -> 38.6840181 | X170: ='RTS22'!AM$70 -> 38.97817373
B171: RTS66_1_2 | E171: =RTS66_1_2!T$70 -> 120.6416743 | F171: =RTS66_1_2!U$70 -> 124.7538983 | G171: =RTS66_1_2!V$70 -> 124.7538983 | H171: =RTS66_1_2!W$70 -> 124.905018 | I171: =RTS66_1_2!X$70 -> 122.6127525 | J171: =RTS66_1_2!Y$70 -> 124.0404312 | K171: =RTS66_1_2!Z$70 -> 122.7165321 | L171: =RTS66_1_2!AA$70 -> 122.458605 | M171: =RTS66_1_2!AB$70 -> 127.3569492 | N171: =RTS66_1_2!AC$70 -> 128.949308 | O171: =RTS66_1_2!AD$70 -> 130.8962652 | P171: =RTS66_1_2!AE$70 -> 132.5897889 | Q171: =RTS66_1_2!AF$70 -> 134.0453243 | R171: =RTS66_1_2!AG$70 -> 135.4622851 | S171: =RTS66_1_2!AH$70 -> 136.5772419 | T171: =RTS66_1_2!AI$70 -> 137.3402202 | U171: =RTS66_1_2!AJ$70 -> 138.4552902 | V171: =RTS66_1_2!AK$70 -> 139.9634134 | W171: =RTS66_1_2!AL$70 -> 141.4053268 | X171: =RTS66_1_2!AM$70 -> 142.7915452
B172: RTS66_3_4 | E172: =RTS66_3_4!T$70 -> 107.0987037 | F172: =RTS66_3_4!U$70 -> 109.4833998 | G172: =RTS66_3_4!V$70 -> 109.4833998 | H172: =RTS66_3_4!W$70 -> 108.1963559 | I172: =RTS66_3_4!X$70 -> 106.2970676 | J172: =RTS66_3_4!Y$70 -> 105.1084928 | K172: =RTS66_3_4!Z$70 -> 104.3202081 | L172: =RTS66_3_4!AA$70 -> 106.2713545 | M172: =RTS66_3_4!AB$70 -> 109.0244716 | N172: =RTS66_3_4!AC$70 -> 111.8482589 | O172: =RTS66_3_4!AD$70 -> 114.3219666 | P172: =RTS66_3_4!AE$70 -> 116.2670876 | Q172: =RTS66_3_4!AF$70 -> 118.0100794 | R172: =RTS66_3_4!AG$70 -> 119.6927326 | S172: =RTS66_3_4!AH$70 -> 120.8497737 | T172: =RTS66_3_4!AI$70 -> 121.7188135 | U172: =RTS66_3_4!AJ$70 -> 123.195823 | V172: =RTS66_3_4!AK$70 -> 124.9652447 | W172: =RTS66_3_4!AL$70 -> 126.6156927 | X172: =RTS66_3_4!AM$70 -> 128.2037556
B173: SVTS | E173: =SVTS!T$70 -> 13.95906967 | F173: =SVTS!U$70 -> 14.77825255 | G173: =SVTS!V$70 -> 14.77825255 | H173: =SVTS!W$70 -> 14.77385046 | I173: =SVTS!X$70 -> 13.86146291 | J173: =SVTS!Y$70 -> 14.04365998 | K173: =SVTS!Z$70 -> 13.55782237 | L173: =SVTS!AA$70 -> 12.36869931 | M173: =SVTS!AB$70 -> 12.84024637 | N173: =SVTS!AC$70 -> 13.21730651 | O173: =SVTS!AD$70 -> 13.45157409 | P173: =SVTS!AE$70 -> 13.63215934 | Q173: =SVTS!AF$70 -> 13.71208904 | R173: =SVTS!AG$70 -> 13.79532239 | S173: =SVTS!AH$70 -> 13.92634536 | T173: =SVTS!AI$70 -> 13.88369126 | U173: =SVTS!AJ$70 -> 13.73032153 | V173: =SVTS!AK$70 -> 13.81657988 | W173: =SVTS!AL$70 -> 13.89918275 | X173: =SVTS!AM$70 -> 14.21805766
B174: TSTS | C174: =TSTS!R$70 -> 31.34506616 | D174: =TSTS!S$70 -> 32.31206552 | E174: =TSTS!T$70 -> 31.81272723 | F174: =TSTS!U$70 -> 32.59639083 | G174: =TSTS!V$70 -> 32.59639083 | H174: =TSTS!W$70 -> 32.86529987 | I174: =TSTS!X$70 -> 31.51364652 | J174: =TSTS!Y$70 -> 32.14195625 | K174: =TSTS!Z$70 -> 30.93403709 | L174: =TSTS!AA$70 -> 30.17149337 | M174: =TSTS!AB$70 -> 30.87952672 | N174: =TSTS!AC$70 -> 31.34259867 | O174: =TSTS!AD$70 -> 31.75079424 | P174: =TSTS!AE$70 -> 32.06731766 | Q174: =TSTS!AF$70 -> 32.30229556 | R174: =TSTS!AG$70 -> 32.51010028 | S174: =TSTS!AH$70 -> 32.63088884 | T174: =TSTS!AI$70 -> 32.64699523 | U174: =TSTS!AJ$70 -> 32.71924587 | V174: =TSTS!AK$70 -> 32.87276728 | W174: =TSTS!AL$70 -> 33.01016749 | X174: =TSTS!AM$70 -> 33.11288099
B175: TCP | C175: =TCP!R$70 -> 662.6534387 | D175: =TCP!S$70 -> 700.5678806 | E175: =TCP!T$70 -> 715.5236533 | F175: =TCP!U$70 -> 719.402841 | G175: =TCP!V$70 -> 719.402841 | H175: =TCP!W$70 -> 708.4257629 | I175: =TCP!X$70 -> 704.3989664 | J175: =TCP!Y$70 -> 695.675341 | K175: =TCP!Z$70 -> 682.7600457 | L175: =TCP!AA$70 -> 701.9194887 | M175: =TCP!AB$70 -> 725.8002286 | N175: =TCP!AC$70 -> 743.6559113 | O175: =TCP!AD$70 -> 759.3498243 | P175: =TCP!AE$70 -> 771.6189458 | Q175: =TCP!AF$70 -> 783.9376675 | R175: =TCP!AG$70 -> 795.1493346 | S175: =TCP!AH$70 -> 798.4769523 | T175: =TCP!AI$70 -> 801.7380903 | U175: =TCP!AJ$70 -> 813.6864451 | V175: =TCP!AK$70 -> 823.4184588 | W175: =TCP!AL$70 -> 831.3938723 | X175: =TCP!AM$70 -> 840.0127936
B176: Summation | E176: =SUM(E166:E174) -> 686.9345758 | F176: 702.3522982 | G176: 702.3522982 | H176: 694.9796998 | I176: 689.0173711 | J176: 690.4861888 | K176: 681.9040951 | L176: 689.5324249 | M176: 705.9537389 | N176: 722.0637373 | O176: 737.992753 | P176: 751.810665 | Q176: 764.9221719 | R176: 777.563319 | S176: 785.9770424 | T176: 792.3325653 | U176: 802.4624761 | V176: 813.5525256 | W176: =SUM(W166:W174) -> 823.933802 | X176: 834.4855604
A180: Peak-average ratio (before post-model adjustments) | Z180: Peak to average ratios Powercor
B181: Powercor | C181: 2005 | D181: 2006 | E181: 2007 | F181: 2008 | G181: 2009 | H181: 2010 | I181: 2011 | J181: 2012 | K181: 2013 | L181: 2014 | M181: 2015 | N181: 2016 | O181: 2017 | P181: 2018 | Q181: 2019 | R181: 2020 | S181: 2021 | T181: 2022 | U181: 2023 | V181: 2024 | W181: 2025 | X181: 2026
B182: ATS West | G182: =(G73/G146) -> 2.041622267 | H182: =(H73/H146) -> 1.990463605 | I182: 2.073714071 | J182: 2.033252188 | K182: 2.15642937 | L182: 2.066938466 | M182: 2.066938466 | N182: 2.066938466 | O182: 2.066938466 | P182: 2.071764373 | Q182: 2.078696892 | R182: 2.090113528 | S182: 2.110878309 | T182: 2.146796859 | U182: 2.167573682 | V182: 2.196087221 | W182: 2.2321496 | X182: 2.269417225
B183: BATS | C183: =(C74/C147) -> 1.602267347 | D183: 1.607499033 | E183: 1.629576092 | F183: 1.751811015 | G183: 1.651261628 | H183: 1.658034638 | I183: 1.696524256 | J183: 1.689022309 | K183: 1.746481139 | L183: 1.683889336 | M183: 1.71773519 | N183: 1.742169291 | O183: 1.800065155 | P183: 1.825350031 | Q183: 1.872220719 | R183: 1.919979143 | S183: 1.950582921 | T183: 2.038320605 | U183: 2.106816338 | V183: 2.183173442 | W183: 2.231297926 | X183: 2.323013278
B184: BETS22 | E184: =(E75/E148) -> 2.151727408 | F184: 2.08854796 | G184: 2.180416397 | H184: 2.152499981 | I184: 2.152862337 | J184: 2.1850041 | K184: 2.461851255 | L184: 2.35149776 | M184: 2.35149776 | N184: 2.39255667 | O184: 2.448421824 | P184: 2.504861454 | Q184: 2.55126137 | R184: 2.598137369 | S184: 2.657878996 | T184: 2.718694248 | U184: 2.76155156 | V184: 2.805360879 | W184: 2.866672942 | X184: 2.927720052
B185: BETS66 | C185: =(C76/C149) -> 1.981911799 | D185: 1.982261513 | E185: 1.958710627 | F185: 1.988893906 | G185: 2.020215031 | H185: 1.891966791 | I185: 2.014872474 | J185: 2.029331569 | K185: 2.108377291 | L185: 2.021790203 | M185: 2.031914713 | N185: 2.059067419 | O185: 2.083727045 | P185: 2.127748167 | Q185: 2.133050284 | R185: 2.135566291 | S185: 2.159580046 | T185: 2.185659199 | U185: 2.234586906 | V185: 2.234966477 | W185: 2.275798313 | X185: 2.292485895
B186: BLTS22 | C186: =(C77/C150) -> 1.383926111 | D186: 1.358796189 | E186: 1.389319728 | F186: 1.404309566 | G186: 1.38618553 | H186: 1.403907541 | I186: 1.382529947 | K186: 1.410102404 | L186: 1.443194288 | M186: 1.438540096 | N186: 1.445407642 | O186: 1.456408589 | P186: 1.463249072 | Q186: 1.472163437 | R186: 1.478984836 | S186: 1.484507312 | T186: 1.495482965 | U186: 1.51337634 | V186: 1.532281272 | W186: 1.548479268 | X186: 1.563114723
B187: ATS-BLTS | E187: =(E78/E151) -> 1.465585052 | F187: 1.428982289 | G187: 1.449739151 | H187: 1.482590982 | I187: 1.503423644 | J187: 1.513339843 | K187: 1.507350205 | L187: 1.437616408 | M187: 1.396490468 | N187: 1.404463357 | O187: 1.417089718 | P187: 1.426710616 | Q187: 1.44207942 | R187: 1.45252617 | S187: 1.482128999 | T187: 1.495030957 | U187: 1.511460012 | V187: 1.528568447 | W187: 1.543881783 | X187: 1.564971398
B188: GTS66 | C188: =(C79/C152) -> 1.610716868 | D188: 1.657446497 | E188: 1.666609214 | F188: 1.741864501 | G188: 1.75241655 | H188: 1.788099304 | I188: 1.852158781 | J188: 1.861416772 | K188: 1.952176228 | L188: 2.007087671 | M188: 1.73276867 | N188: 1.753171618 | O188: 1.774256834 | P188: 1.802695854 | Q188: 1.819131319 | R188: 1.848040159 | S188: 1.857057993 | T188: 1.908115501 | U188: 1.938670361 | V188: 1.972021006 | W188: 2.002342449 | X188: 2.038341819
B189: HOTS66 | C189: =(C80/C153) -> 1.930251376 | D189: 1.952867867 | E189: 1.949327043 | F189: 2.02167715 | G189: 1.96690069 | H189: 1.9757948 | I189: 2.06233322 | J189: 1.985647879 | K189: 2.168405447 | L189: 2.025670906 | M189: 2.052518387 | N189: 2.074673096 | O189: 2.123757546 | P189: 2.191620872 | Q189: 2.265530159 | R189: 2.300040325 | S189: 2.336345385 | T189: 2.417231749 | U189: 2.490321212 | V189: 2.520143897 | W189: 2.599446766 | X189: 2.63942713
B190: KTSeast | E190: =(E81/E154) -> 1.911881446 | F190: 1.835486563 | G190: 1.913054166 | H190: 1.888319211 | I190: 1.941693222 | J190: 1.962306511 | K190: 1.989499029 | L190: 1.984174226 | M190: 2.011931207 | N190: 2.045934172 | O190: 2.063352093 | P190: 2.092928986 | Q190: 2.131058274 | R190: 2.137424867 | S190: 2.154714227 | T190: 2.198358302 | U190: 2.230240904 | V190: 2.261075242 | W190: 2.29699182 | X190: 2.321343067
B191: KTSwest | E191: =(E82/E155) -> 2.028419413 | F191: 2.057968633 | G191: 2.048553836 | H191: 2.059864224 | I191: 2.116946842 | J191: 2.089472962 | K191: 2.244125459 | L191: 2.263557085 | M191: 2.269047682 | N191: 2.303656717 | O191: 2.343294888 | P191: 2.377549892 | Q191: 2.425969663 | R191: 2.451835559 | S191: 2.46701315 | T191: 2.548319006 | U191: 2.580342358 | V191: 2.621137489 | W191: 2.67226496 | X191: 2.701729085
B192: KGTS22 | C192: =(C83/C156) -> 2.000350018 | D192: 2.063319506 | E192: 2.22453799 | F192: 2.023533404 | G192: 2.030464428 | H192: 2.13213847 | I192: 2.057115013 | J192: 2.089819142 | K192: 2.142925674 | L192: 2.299863634 | M192: 2.233126028 | N192: 2.250383614 | O192: 2.275184939 | P192: 2.293882509 | Q192: 2.319359607 | R192: 2.360759145 | S192: 2.366115628 | T192: 2.389580286 | U192: 2.446310341 | V192: 2.479123149 | W192: 2.507508024 | X192: 2.54210356
B193: KGTS66 | C193: =(C84/C157) -> 2.091768116 | D193: 2.074923313 | E193: 2.043649018 | F193: 2.053440213 | G193: 2.082471543 | H193: 1.917301156 | I193: 2.017163423 | J193: 2.052123087 | K193: 2.177510796 | L193: 2.086988517 | M193: 2.09299382 | N193: 2.100776369 | O193: 2.111830437 | P193: 2.132180504 | Q193: 2.158467092 | R193: 2.149950687 | S193: 2.150871376 | T193: 2.196005245 | U193: 2.223086965 | V193: 2.243461286 | W193: 2.255526647 | X193: 2.284282409
B194: RCTS22 | C194: =(C85/C158) -> 2.410268454 | D194: 2.225992766 | E194: 2.082324698 | F194: 2.166505943 | G194: 2.332558426 | H194: 2.077122618 | I194: 2.296585003 | J194: 2.462976564 | K194: 2.51630367 | L194: 2.298948335 | M194: 2.469855366 | N194: 2.49032026 | O194: 2.530247164 | P194: 2.581119749 | Q194: 2.651881514 | R194: 2.679792022 | S194: 2.672929707 | T194: 2.746137556 | U194: 2.797796001 | V194: 2.788612867 | W194: 2.869916737 | X194: 2.931866672
B195: RCTS66 | C195: =(C86/C159) -> 2.232229597 | D195: 2.066678684 | E195: 2.10604638 | F195: 2.030284466 | G195: 2.236369355 | H195: 1.979073734 | I195: 2.125345323 | J195: 2.260248898 | K195: 2.408799425 | L195: 2.308385201 | M195: 2.343122705 | N195: 2.362298473 | O195: 2.403941014 | P195: 2.454289415 | Q195: 2.519602267 | R195: 2.530849625 | S195: 2.552862819 | T195: 2.635738363 | U195: 2.691284218 | V195: 2.715385367 | W195: 2.7702623 | X195: 2.834033783
B196: SHTS | C196: =(C87/C160) -> 1.982241851 | D196: 2.000050197 | E196: 1.905302313 | F196: 1.905599807 | G196: 1.987061676 | H196: 1.860645734 | I196: 1.953697356 | J196: 1.993476019 | K196: 2.090885245 | L196: 1.978380214 | M196: 1.986507114 | N196: 2.004847579 | O196: 2.027663728 | P196: 2.041167865 | Q196: 2.066980514 | R196: 2.064873848 | S196: 2.078855825 | T196: 2.103790974 | U196: 2.150010986 | V196: 2.155245252 | W196: 2.161321126 | X196: 2.206087331
B197: TGTS | C197: =(C88/C161) -> 1.602417484 | D197: 1.613540533 | E197: 1.63473222 | F197: 1.609988443 | G197: 1.611948241 | H197: 1.649565886 | I197: 1.67306105 | J197: 1.686133302 | K197: 1.705566778 | L197: 1.67915508 | M197: 1.676634701 | N197: 1.704438234 | O197: 1.730012817 | P197: 1.763506036 | Q197: 1.781846811 | R197: 1.81469954 | S197: 1.854749312 | T197: 1.871918777 | U197: 1.924505346 | V197: 1.960841199 | W197: 1.992534037 | X197: 2.036173852
B198: TPC (unreconciled) | C198: =(C89/C162) -> 1.602964335 | D198: 1.689916488 | E198: 1.666388487 | F198: 1.703877315 | G198: 1.691943242 | H198: 1.681472463 | I198: 1.757909719 | J198: 1.748390702 | K198: 1.814447517 | L198: 1.788278057 | M198: 1.82392058 | Z198: Peak to average ratios CitiPower
B201: Citipower
B202: WMTS22 | C202: =(C94/C166) -> 1.71528369 | D202: =(D94/D166) -> 1.677516375 | E202: =(E94/E166) -> 1.650571814 | F202: =(F94/F166) -> 1.64613405 | G202: 1.650341764 | H202: 1.661141513 | I202: 1.650992277 | J202: 1.587337755 | K202: 1.615467231 | L202: 1.647133409 | M202: 1.740758201 | N202: 1.740758201 | O202: 1.740758201 | P202: 1.740758201 | Q202: 1.740758201 | R202: 1.737225644 | S202: 1.730941291 | T202: 1.747174748 | U202: 1.750370985 | V202: 1.764425843 | W202: 1.783812759 | X202: 1.785059319
B203: WMTS66 | E203: =(E95/E167) -> 2.089782228 | F203: 2.046309455 | G203: 2.055498163 | H203: 1.986598951 | I203: 2.067536126 | J203: 2.070683096 | K203: 2.098549143 | L203: 2.083616859 | M203: 2.087989366 | N203: 2.102488054 | O203: 2.09006467 | P203: 2.108394607 | Q203: 2.112832482 | R203: 2.117225475 | S203: 2.105516826 | T203: 2.143519291 | U203: 2.171861315 | V203: 2.16646429 | W203: 2.197676943 | X203: 2.207811663
B204: BTS22 | C204: =(C96/C168) -> 1.874338437 | D204: 1.896025016 | E204: =(E96/E168) -> 1.933860248 | F204: 1.916026368 | G204: 1.878779569 | H204: 1.949052092 | I204: 1.909709445 | J204: 1.916580812 | K204: 1.929679376 | M204: 1.92428678 | N204: 1.931222565 | O204: 1.942270935 | P204: 1.964350376 | Q204: 1.998798738 | R204: 2.02412168 | S204: 2.062901113 | T204: 2.105334316 | U204: 2.156319661 | V204: 2.216265638 | W204: 2.27993538 | X204: 2.339328229
B205: FBTS66 | C205: =(C97/C169) -> 1.873838354 | D205: 1.849821697 | E205: =(E97/E169) -> 1.840394069 | F205: 1.92572172 | G205: 1.880670054 | H205: 1.924993438 | I205: 1.993572088 | J205: 1.971164219 | K205: 2.010457017 | L205: 2.039719551 | M205: 1.921028628 | N205: 1.910594118 | O205: 1.918304207 | P205: 1.928670417 | Q205: 1.937432428 | R205: 1.950893187 | S205: 1.956398448 | T205: 1.972802057 | U205: 1.997425592 | V205: 2.006890627 | W205: 2.029396999 | X205: 2.050549558
B206: RTS22 | C206: =(C98/C170) -> 2.093121916 | D206: 2.130149389 | E206: =(E98/E170) -> 2.048273384 | F206: 2.075253215 | G206: 2.057241314 | H206: 2.028142832 | I206: 2.058345772 | J206: 2.043985056 | K206: 2.079797273 | L206: 2.039551716 | M206: 2.117182046 | N206: 2.117182046 | O206: 2.117182046 | P206: 2.139431457 | Q206: 2.166131349 | R206: 2.172892231 | S206: 2.164320421 | T206: 2.216510345 | U206: 2.23081684 | V206: 2.229436396 | W206: 2.270612464 | X206: 2.288622191
B207: RTS66_1_2 | E207: =(E99/E171) -> 2.044786199 | F207: 1.989367742 | G207: 2.02430905 | H207: 1.950393128 | I207: 2.027917731 | J207: 2.002767527 | K207: 2.008265311 | L207: 1.993555263 | M207: 1.993555263 | N207: 1.980680263 | O207: 1.987435177 | P207: 1.980658682 | Q207: 1.985681618 | R207: 1.976205026 | S207: 1.9726425 | T207: 1.979276545 | U207: 1.988279801 | V207: 1.981560112 | W207: 1.981832088 | X207: 1.98094656
B208: RTS66_3_4 | E208: =(E100/E172) -> 1.999447918 | F208: 1.980066735 | G208: 1.983755081 | H208: 1.976281214 | I208: 2.005813726 | J208: 1.995966373 | K208: 2.01381153 | L208: 2.012330084 | M208: 2.039974717 | N208: 2.038759831 | O208: 2.036520375 | P208: 2.054457548 | Q208: 2.080810741 | R208: 2.081491822 | S208: 2.102399141 | T208: 2.126132879 | U208: 2.154274204 | V208: 2.179922672 | W208: 2.210108019 | X208: 2.211900888
B209: SVTS | E209: =(E101/E173) -> 2.531253601 | F209: 2.403501066 | G209: 2.538492189 | H209: 2.426377168 | I209: 2.616799759 | J209: 2.816187895 | K209: 2.669927393 | L209: 2.779488573 | M209: 2.784510804 | N209: 2.813277946 | O209: 2.87485427 | P209: 2.915789472 | Q209: 3.01474464 | R209: 3.097486224 | S209: 3.191077973 | T209: 3.218930048 | U209: 3.385081413 | V209: 3.498505918 | W209: 3.590173997 | X209: 3.596241106
B210: TSTS | C210: =(C102/C174) -> 2.140665099 | D210: 2.210256212 | E210: =(E102/E174) -> 2.225365721 | F210: 2.174749016 | G210: 2.27386644 | H210: 2.174289309 | I210: 2.333082244 | J210: 2.338848297 | K210: 2.336701919 | L210: 2.373182906 | M210: 2.411519188 | N210: 2.426530008 | O210: 2.469326646 | P210: 2.536662937 | Q210: 2.582206651 | R210: 2.585979664 | S210: 2.654357464 | T210: 2.740217221 | U210: 2.793033416 | V210: 2.849614119 | W210: 2.93644513 | X210: 3.026524314
B211: TCP | C211: =(C103/C175) -> 1.809467398 | D211: 1.847400506 | E211: =(E103/E175) -> 1.828500394 | F211: 1.853697006 | G211: 1.835960546 | H211: 1.798258383 | I211: 1.840015008 | J211: 1.795090712 | K211: 1.85084563 | L211: 1.853756925 | M211: 1.834905988 | N211: 1.832456995 | O211: 1.835902634 | P211: 1.852405573 | Q211: 1.866840564 | R211: 1.874147695 | S211: 1.890556113 | T211: 1.922238416 | U211: 1.940755811 | V211: 1.95320576 | W211: 1.984133046 | X211: 2.000886155
Z215: Total peak to average ratios

Sheet Industrial adjustments
B1: Summer industrial max demand contribution (MW)
B3: Terminal Station | C3: 2014 | E3: Notes:
B4: RCTS 22kV | C4: 14 | E4: For terminal stations that have a substantial industrial load, the per capita approach will be less reliable.
B5: RCTS 66kV | C5: 0 | E5: For these TSs, the industrial load has been excluded and given a zero growth rate
B6: WETS 66kV | C6: 45 | E6: The remaining peak load has been allocated the growth rate from the statistical model
B7: KGTS 22kV | C7: 0 | E7: Updated information on industrial loads was not availble for 2015, so are based on information provided for the 2014 forecasts
B8: KGTS 66kV | C8: 0
B9: HOTS 66kV | C9: 0
B10: BETS 22kV | C10: 0
B11: BETS 66kV | C11: 0
B12: SHTS/GNTS | C12: 0
B13: HYTS/TGTS/APD | C13: 0
B14: BATS/ELTS | C14: 0
B15: MLTS/GTS/PTH | C15: 84.2
B16: ATS West | C16: 0
B17: ATS-BLTS | C17: 70.9
B18: BLTS 22kV | C18: 20.7
B19: KTS East | C19: 0
B20: KTS West | C20: 0
B21: WMTS 66kV | C21: 0
B22: WMTS 22kV | C22: 0
B23: BTS 22kV | C23: 0
B24: FBTS 66kV | C24: 0
B25: RTS 66kV Bus 1&4 | C25: 0
B26: RTS 66kV Bus 2&3 | C26: 0
B27: RTS 22kV | C27: 0
B28: SVTS 66kV | C28: 0
B29: TSTS 66kV | C29: 0
B30: Powercor
B31: Citipower
B33: Winter industrial max demand contribution (MW)
B35: Terminal Station | C35: 2013
B36: RCTS 22kV | C36: 0
B37: RCTS 66kV | C37: 0
B38: WETS 66kV | C38: 12
B39: KGTS 22kV | C39: 0
B40: KGTS 66kV | C40: 0
B41: HOTS 66kV | C41: 0
B42: BETS 22kV | C42: 0
B43: BETS 66kV | C43: 0
B44: SHTS/GNTS | C44: 0
B45: HYTS/TGTS/APD | C45: 0
B46: BATS/ELTS | C46: 0
B47: MLTS/GTS/PTH | C47: 84.2
B48: ATS West | C48: 0
B49: ATS-BLTS | C49: 64.2
B50: BLTS 22kV | C50: 19
B51: KTS East | C51: 0
B52: KTS West | C52: 0
B53: WMTS 66kV | C53: 0
B54: WMTS 22kV | C54: 0
B55: BTS 22kV | C55: 0
B56: FBTS 66kV | C56: 0
B57: RTS 66kV Bus 1&4 | C57: 0
B58: RTS 66kV Bus 2&3 | C58: 0
B59: RTS 22kV | C59: 0
B60: SVTS 66kV | C60: 0
B61: TSTS 66kV | C61: 0
B62: Powercor
B63: Citipower

Sheet Technology Adjustments
B1: Technology impacts on maximum demand are projected by Oakley Greenwood and may be included or excluded from the demand forecasts using the options on the 'Scenarios' sheet.
G3: SOLAR ONLY
C4: Cumulative Demand Impacts (KW) | P4: Solar capacity increase per year (trend)
B5: Terminal Station | C5: 2015 | D5: 2016 | E5: 2017 | F5: 2018 | G5: 2019 | H5: 2020 | I5: 2021 | J5: 2022 | K5: 2023 | L5: 2024 | M5: 2025 | N5: 2026 | P5: GWh
B6: RCTS 22kV | C6: 77.65793111 | D6: 151.2206202 | E6: 225.2622892 | F6: 293.4606794 | G6: 354.6601494 | H6: 411.8870049 | I6: 467.3263935 | J6: 518.0863155 | K6: 560.5989099 | L6: 598.461254 | M6: 630.8831223 | N6: 665.0614577 | P6: 0.1101130189
B7: RCTS 66kV | C7: 275.3326648 | D7: 536.1458354 | E7: 798.657207 | F7: 1040.4515 | G7: 1257.431439 | H7: 1460.326654 | I7: 1656.884486 | J7: 1836.851482 | K7: 1987.577953 | L7: 2121.817173 | M7: 2236.767434 | N7: 2357.945168 | P7: 0.6730509007
B8: WETS 66kV | C8: 578.6642716 | D8: 1126.290003 | E8: 1677.822832 | F8: 2186.854896 | G8: 2645.535191 | H8: 3077.104989 | I8: 3496.330216 | J8: 3884.966362 | K8: 4226.618339 | L8: 4539.123651 | M8: 4817.363651 | N8: 5112.659255 | P8: 0.6730509007
B9: KGTS 22kV | C9: 22.57540758 | D9: 43.78986151 | E9: 65.0620859 | F9: 84.64708635 | G9: 102.3114341 | H9: 119.0208036 | I9: 134.6565262 | J9: 149.294322 | K9: 165.0910689 | L9: 180.0369067 | M9: 193.9889962 | N9: 209.022313 | P9: 0.05436618213
B10: KGTS 66kV | C10: 337.4493721 | D10: 658.4767334 | E10: 985.0054759 | F10: 1290.054341 | G10: 1569.380345 | H10: 1837.059537 | I10: 2095.788689 | J10: 2341.543979 | K10: 2570.53058 | L10: 2787.285301 | M10: 2989.259048 | N10: 3205.868324 | P10: 0.3800697045
B11: HOTS 66kV | C11: 524.8268542 | D11: 1007.168269 | E11: 1478.892661 | F11: 1899.02055 | G11: 2262.070158 | H11: 2589.408141 | I11: 2901.009514 | J11: 3176.355973 | K11: 3403.248213 | L11: 3595.43214 | M11: 3748.611668 | N11: 3908.317246 | P11: 0.7255834394
B12: BETS 22kV | C12: 110.0848915 | D12: 213.6359183 | E12: 317.7164394 | F12: 412.848211 | G12: 497.1620756 | H12: 574.6859602 | I12: 650.2531531 | J12: 718.6932741 | K12: 771.2608189 | L12: 815.2248416 | M12: 849.1841317 | N12: 884.5580419 | P12: 0.08426143494
B13: BETS 66kV | C13: 1356.878804 | D13: 2627.588286 | E13: 3898.389283 | F13: 5054.66409 | G13: 6075.193555 | H13: 7010.812718 | I13: 7919.015577 | J13: 8742.994913 | K13: 9417.635616 | L13: 9992.489864 | M13: 10451.58615 | N13: 10931.77521 | P13: 2.838405183
B14: SHTS/GNTS | C14: 1412.60675 | D14: 2759.506692 | E14: 4133.370219 | F14: 5414.406585 | G14: 6579.611921 | H14: 7683.302096 | I14: 8751.407267 | J14: 9741.424797 | K14: 10531.84543 | L14: 11235.49916 | M14: 11836.68192 | N14: 12470.03242 | P14: 1.662833175
B15: HYTS/TGTS/APD | C15: 3576.171987 | D15: 6961.26108 | E15: 10388.66457 | F15: 13545.65816 | G15: 16367.61583 | H15: 18983.75192 | I15: 21526.75731 | J15: 23849.38808 | K15: 25671.77895 | L15: 27218.78212 | M15: 28442.24466 | N15: 29720.70086 | P15: 0.002021152216
B16: BATS/ELTS | C16: 1469.430066 | D16: 2856.35152 | E16: 4248.876523 | F16: 5520.620606 | G16: 6645.09756 | H16: 7674.829877 | I16: 8680.249322 | J16: 9581.939341 | K16: 10228.52318 | L16: 10748.62395 | M16: 11122.2293 | N16: 11508.82058 | P16: 1.839649632
B17: MLTS/GTS/PTH | C17: 44.25257807 | D17: 85.32643885 | E17: 125.9339005 | F17: 162.5568345 | G17: 194.671002 | H17: 224.0574734 | I17: 252.0246717 | J17: 276.78294 | K17: 292.4972665 | L17: 304.9747761 | M17: 313.802745 | N17: 322.8862531 | P17: 0.04299948648
B18: ATS West | C18: 1389.531534 | D18: 2783.978287 | E18: 4228.994217 | F18: 5600.993134 | G18: 6858.774116 | H18: 8042.639904 | I18: 9234.666482 | J18: 10349.68805 | K18: 11439.34156 | L18: 12427.74229 | M18: 13286.23529 | N18: 14204.03192 | P18: 1.517795111
B19: ATS-BLTS | C19: 257.2889027 | D19: 499.857702 | E19: 744.2442044 | F19: 968.9090785 | G19: 1169.925312 | H19: 1357.162173 | I19: 1540.599694 | J19: 1711.818565 | K19: 1880.472096 | L19: 2035.538392 | M19: 2174.322535 | N19: 2322.569059 | P19: 0.3303569995
B20: BLTS 22kV | C20: 72.09157682 | D20: 139.9513381 | E20: 208.3908033 | F20: 271.4929588 | G20: 328.2938924 | H20: 381.6832936 | I20: 433.9206047 | J20: 483.5014668 | K20: 537.3419128 | L20: 588.6466658 | M20: 636.7981049 | N20: 688.8883435 | P20: 0.09241837201
B21: KTS East | C21: 691.0770584 | D21: 1344.697423 | E21: 1988.428746 | F21: 2571.936769 | G21: 3086.541206 | H21: 3560.087406 | I21: 4024.476037 | J21: 4451.10606 | K21: 4906.468289 | L21: 5330.459167 | M21: 5717.569664 | N21: 6132.793037 | P21: 1.928191286
B22: KTS West | C22: 1564.748451 | D22: 3060.845168 | E22: 4569.362222 | F22: 5950.952911 | G22: 7169.73714 | H22: 8275.58102 | I22: 9372.214058 | J22: 10363.65852 | K22: 11176.50742 | L22: 11841.94707 | M22: 12332.25374 | N22: 12842.86117 | P22: 1.928191286
B23: WMTS 66kV | C23: 581.8043063 | D23: 1216.930857 | E23: 1961.182221 | F23: 2776.886485 | G23: 3660.171726 | H23: 4638.638763 | I23: 5614.784082 | J23: 6676.051589 | K23: 7888.73485 | L23: 9211.480527 | M23: 10648.15251 | N23: 12842.86117 | P23: 0.4886913637
B24: WMTS 22kV | C24: 287.5298457 | D24: 659.7163081 | E24: 1161.008853 | F24: 1781.690496 | G24: 2523.841744 | H24: 3401.448439 | I24: 4300.672182 | J24: 5328.491365 | K24: 6526.253901 | L24: 7884.676074 | M24: 9413.428457 | N24: 12308.89558 | P24: 0.07817857197
B25: BTS 22kV | C25: 256.2904059 | D25: 515.7573702 | E25: 796.6172225 | F25: 1079.070757 | G25: 1359.931225 | H25: 1651.386579 | I25: 1933.045485 | J25: 2220.713691 | K25: 2540.718769 | L25: 2870.923334 | M25: 3210.236235 | N25: 11238.58919 | P25: 0.2584932206
B26: FBTS 66kV | C26: 663.2010941 | D26: 1387.683555 | E26: 2240.099596 | F26: 3177.259604 | G26: 4186.570933 | H26: 5271.850958 | I26: 6327.709599 | J26: 7458.161813 | K26: 8733.255727 | L26: 10105.66338 | M26: 11575.90611 | N26: 3589.652347 | P26: 0.08329345518
B27: RTS 66kV Bus 1&2 | C27: 573.5307702 | D27: 1205.281589 | E27: 1951.719954 | F27: 2778.009106 | G27: 3674.631753 | H27: 4646.477416 | I27: 5600.866366 | J27: 6627.131816 | K27: 7790.292573 | L27: 9050.504078 | M27: 10409.58914 | N27: 13260.05005 | P27: 0.849171144
B28: RTS 66kV Bus 3&4 | C28: 975.3783791 | D28: 1984.345211 | E28: 3111.344342 | F28: 4292.345802 | G28: 5507.983231 | H28: 6757.33321 | I28: 7965.8002 | J28: 9219.281015 | K28: 10619.69617 | L28: 12089.80718 | M28: 13626.41525 | N28: 11972.76364 | P28: 0.849171144
B29: RTS 22kV | C29: 280.3656455 | D29: 593.220618 | E29: 967.4571395 | F29: 1386.849995 | G29: 1847.449436 | H29: 2352.645398 | I29: 2852.697782 | J29: 3395.520593 | K29: 4013.914256 | L29: 4689.242809 | M29: 5423.193377 | N29: 15358.32538 | P29: 0.03714280287
B30: SVTS 66kV | C30: 326.4584258 | D30: 648.530787 | E30: 991.9831384 | F30: 1334.835929 | G30: 1670.36503 | H30: 1996.591776 | I30: 2308.639338 | J30: 2619.911673 | K30: 2962.751159 | L30: 3309.62772 | M30: 3658.458698 | N30: 6272.020367 | P30: 0.1453453032
B31: TSTS 66kV | C31: 652.9168516 | D31: 1297.061574 | E31: 1983.966277 | F31: 2669.671858 | G31: 3340.730059 | H31: 3993.183552 | I31: 4617.278677 | J31: 5239.823345 | K31: 5925.502318 | L31: 6619.25544 | M31: 7316.917396 | N31: 4044.056062 | P31: 0.9028376066
B32: Powercor | C32: 13760.6691 | D32: 26856.09118 | E32: 40083.07368 | F32: 52269.52839 | G32: 63164.01233 | H32: 73263.40097 | I32: 83137.58 | J32: 92178.09444 | K32: 99767.3376 | L32: 106362.0847 | M32: 111779.7821 | N32: 117488.7907 | P32: 13.09621527
B33: Citipower | C33: 4597.475724 | D33: 9508.527869 | E33: 15165.37874 | F33: 21276.62003 | G33: 27771.67514 | H33: 34709.55609 | I33: 41521.49371 | J33: 48785.0869 | K33: 57001.11972 | L33: 65831.18054 | M33: 75282.29717 | N33: 90887.21378 | P33: 2.845665658
G35: ENERGY EFFICIENCY ONLY
C36: Cumulative Demand Impacts (KW)
B37: Terminal Station | C37: 2015 | D37: 2016 | E37: 2017 | F37: 2018 | G37: 2019 | H37: 2020 | I37: 2021 | J37: 2022 | K37: 2023 | L37: 2024 | M37: 2025 | N37: 2026
B38: RCTS 22kV | C38: 0 | D38: 51.26495312 | E38: 153.1355208 | F38: 265.5261638 | G38: 266.2054566 | H38: 257.792458 | I38: 247.9931534 | J38: 235.5782348 | K38: 222.1186005 | L38: 211.2940632 | M38: 202.7468761 | N38: 194.5454365
B39: RCTS 66kV | C39: 0 | D39: 181.757561 | E39: 542.9350281 | F39: 941.4109444 | G39: 943.8193463 | H39: 913.991442 | I39: 879.2484531 | J39: 835.2319233 | K39: 787.5114017 | L39: 749.1334967 | M39: 718.8298333 | N39: 689.7520022
B40: WETS 66kV | C40: 0 | D40: 381.5291953 | E40: 1136.860546 | F40: 1966.46157 | G40: 1966.85988 | H40: 1900.405269 | I40: 1824.113191 | J40: 1729.625728 | K40: 1632.675678 | L40: 1555.195443 | M40: 1494.905795 | N40: 1436.953372
B41: KGTS 22kV | C41: 0 | D41: 15.62575378 | E41: 46.20104775 | F41: 79.30211019 | G41: 78.71886043 | H41: 75.49951603 | I41: 71.93679726 | J41: 67.84005805 | K41: 65.0928661 | L41: 63.08309155 | M41: 61.84308729 | N41: 60.6274574
B42: KGTS 66kV | C42: 0 | D42: 228.0937988 | E42: 677.6485685 | F42: 1168.695502 | G42: 1165.543241 | H42: 1122.984861 | I42: 1074.870852 | J42: 1017.2472 | K42: 961.5782016 | L42: 917.3699224 | M42: 883.523154 | N42: 850.9251772
B43: HOTS 66kV | C43: 0 | D43: 337.4387676 | E43: 1000.823975 | F43: 1723.303931 | G43: 1716.072869 | H43: 1651.10063 | I43: 1578.25365 | J43: 1490.698177 | K43: 1402.960079 | L43: 1332.781655 | M43: 1278.071889 | N43: 1225.607921
B44: BETS 22kV | C44: 0 | D44: 71.03673388 | E44: 213.2616255 | F44: 371.5801406 | G44: 374.281026 | H44: 364.0787003 | I44: 351.7760413 | J44: 335.8418469 | K44: 316.8358383 | L44: 301.351099 | M44: 288.8197439 | N44: 276.8094915
B45: BETS 66kV | C45: 0 | D45: 875.2885184 | E45: 2621.11485 | F45: 4555.828124 | G45: 4578.217784 | H45: 4443.535102 | I45: 4284.103174 | J45: 4083.553863 | K45: 3867.33844 | L45: 3694.034999 | M45: 3558.466656 | N45: 3427.87357
B46: SHTS/GNTS | C46: 0 | D46: 949.6052531 | E46: 2841.784973 | F46: 4936.017172 | G46: 4956.824415 | H46: 4807.628682 | I46: 4631.793015 | J46: 4406.941909 | K46: 4136.086601 | L46: 3913.688396 | M46: 3730.999286 | N46: 3556.838015
B47: HYTS/TGTS/APD | C47: 0 | D47: 2342.726444 | E47: 7042.366296 | F47: 12285.73297 | G47: 12389.73539 | H47: 12065.46057 | I47: 11670.27454 | J47: 11156.33214 | K47: 10546.37581 | L47: 10052.24742 | M47: 9656.276958 | N47: 9275.904266
B48: BATS/ELTS | C48: 0 | D48: 945.8753141 | E48: 2845.448451 | F48: 4967.639098 | G48: 5013.232408 | H48: 4885.33147 | I48: 4728.465383 | J48: 4519.571611 | K48: 4251.366034 | L48: 4029.956859 | M48: 3846.315746 | N48: 3671.042976
B49: MLTS/GTS/PTH | C49: 0 | D49: 28.98216959 | E49: 86.12237635 | F49: 148.5657074 | G49: 148.204391 | H49: 142.8336196 | I49: 136.7561827 | J49: 129.2225236 | K49: 119.2576631 | L49: 110.9030554 | M49: 103.749474 | N49: 97.05732017
B50: ATS West | C50: 0 | D50: 908.651499 | E50: 2788.814369 | F50: 4962.199656 | G50: 5097.921477 | H50: 5050.999659 | I50: 4966.779469 | J50: 4826.410248 | K50: 4724.986201 | L50: 4666.215548 | M50: 4653.38681 | N50: 4640.593343
B51: ATS-BLTS | C51: 0 | D51: 166.2748814 | E51: 497.4721319 | F51: 863.9270322 | G51: 867.4703285 | H51: 841.3162749 | I51: 810.5486399 | J51: 772.75624 | K51: 742.9080841 | L51: 720.919768 | M51: 706.8403468 | N51: 693.0358939
B52: BLTS 22kV | C52: 0 | D52: 46.8668711 | E52: 139.6882619 | F52: 241.6902776 | G52: 241.8133341 | H52: 233.7200865 | I52: 224.4181244 | J52: 213.4169273 | K52: 206.7718434 | L52: 202.3509647 | M52: 200.3397426 | N52: 198.3485107
B53: KTS East | C53: 0 | D53: 440.9234525 | E53: 1312.995907 | F53: 2269.949846 | G53: 2269.399888 | H53: 2191.916616 | I53: 2103.285013 | J53: 1995.519702 | K53: 1927.30934 | L53: 1880.169636 | M53: 1855.52553 | N53: 1831.204444
B54: KTS West | C54: 0 | D54: 990.2827215 | E54: 3008.647194 | F54: 5302.614779 | G54: 5399.744418 | H54: 5306.79492 | I54: 5178.538216 | J54: 4997.550398 | K54: 4800.797182 | L54: 4649.803417 | M54: 4541.463719 | N54: 4435.64832
B55: WMTS 66kV | C55: 0 | D55: 791.5280083 | E55: 2418.517582 | F55: 4288.20401 | G55: 4394.333058 | H55: 4346.901158 | I55: 4270.99989 | J55: 4146.923935 | K55: 4034.195938 | L55: 3959.406069 | M55: 3922.969649 | N55: 4435.64832
B56: WMTS 22kV | C56: 0 | D56: 796.0402289 | E56: 2466.795921 | F56: 4433.313117 | G56: 4602.065772 | H56: 4608.441044 | I56: 4582.132974 | J56: 4496.385368 | K56: 4389.483082 | L56: 4321.021639 | M56: 4290.286128 | N56: 3886.868535
B57: BTS 22kV | C57: 0 | D57: 198.8092241 | E57: 594.1346624 | F57: 1030.455299 | G57: 1033.159377 | H57: 1000.366035 | I57: 961.9915704 | J57: 915.5440597 | K57: 884.12192 | L57: 862.1316333 | M57: 850.0695543 | N57: 4259.769239
B58: FBTS 66kV | C58: 0 | D58: 261.0769497 | E58: 778.4165474 | F58: 1346.246276 | G58: 1345.188015 | H58: 1297.314841 | I58: 1241.72223 | J58: 1174.63489 | K58: 1105.254595 | L58: 1048.306069 | M58: 1002.169498 | N58: 838.1762357
B59: RTS 66kV Bus 1&2 | C59: 0 | D59: 329.7355362 | E59: 1001.283176 | F59: 1764.035362 | G59: 1795.856406 | H59: 1764.622484 | I59: 1721.754144 | J59: 1659.217831 | K59: 1591.107362 | L59: 1538.798577 | M59: 1501.038363 | N59: 958.063424
B60: RTS 66kV Bus 3&4 | C60: 0 | D60: 253.0868273 | E60: 751.9219236 | F60: 1295.666356 | G60: 1289.789854 | H60: 1239.155989 | I60: 1181.371203 | J60: 1112.701731 | K60: 1042.394225 | L60: 984.2553907 | M60: 936.5946223 | N60: 1464.204739
B61: RTS 22kV | C61: 0 | D61: 229.3456665 | E61: 702.0984252 | F61: 1246.953929 | G61: 1279.649903 | H61: 1267.35074 | I61: 1246.457101 | J61: 1210.465887 | K61: 1169.737643 | L61: 1140.054039 | M61: 1120.810607 | N61: 891.2417395
B62: SVTS 66kV | C62: 0 | D62: 58.55108534 | E62: 172.6302724 | F62: 295.217184 | G62: 291.6953591 | H62: 278.2261041 | I62: 263.3627712 | J62: 246.3769702 | K62: 229.2667081 | L62: 215.0520836 | M62: 203.3056061 | N62: 1101.891992
B63: TSTS 66kV | C63: 0 | D63: 117.1021707 | E63: 345.2605448 | F63: 590.4343681 | G63: 583.3907182 | H63: 556.4522082 | I63: 526.7255424 | J63: 492.7539404 | K63: 458.5334162 | L63: 430.1041671 | M63: 406.6112121 | N63: 192.2007394
B64: Powercor | C64: 0 | D64: 8962.223888 | E64: 26955.32112 | F64: 47050.44503 | G64: 47474.06452 | H64: 46255.38988 | I64: 44763.1539 | J64: 42813.33873 | K64: 40711.96986 | L64: 39050.49883 | M64: 37782.10465 | N64: 36562.76752
B65: Citipower | C65: 0 | D65: 3035.275697 | E65: 9231.059054 | F65: 16290.5259 | G65: 16615.12846 | H65: 16358.8306 | I65: 15996.51742 | J65: 15455.00461 | K65: 14904.09489 | L65: 14499.12967 | M65: 14233.85524 | N65: 18028.06496
G67: BATTERY STORAGE (DEMAND ONLY)
C68: Cumulative Demand Impacts (KW)
B69: Terminal Station | C69: 2015 | D69: 2016 | E69: 2017 | F69: 2018 | G69: 2019 | H69: 2020 | I69: 2021 | J69: 2022 | K69: 2023 | L69: 2024 | M69: 2025 | N69: 2026
B70: RCTS 22kV | C70: 0 | D70: 0 | E70: 0 | F70: 0 | G70: 0 | H70: 0 | I70: 22.32667012 | J70: 319.5633761 | K70: 636.3855761 | L70: 972.9074759 | M70: 1329.194779 | N70: 1815.957636
B71: RCTS 66kV | C71: 0 | D71: 0 | E71: 0 | F71: 0 | G71: 0 | H71: 0 | I71: 79.15819405 | J71: 1132.997424 | K71: 2256.276133 | L71: 3449.399233 | M71: 4712.59967 | N71: 6438.395254
B72: WETS 66kV | C72: 0 | D72: 0 | E72: 0 | F72: 0 | G72: 0 | H72: 0 | I72: 144.4900136 | J72: 2066.312614 | K72: 4111.248559 | L72: 6280.142133 | M72: 8573.4621 | N72: 11704.23389
B73: KGTS 22kV | C73: 0 | D73: 0 | E73: 0 | F73: 0 | G73: 0 | H73: 0 | I73: 0 | J73: 0 | K73: 0 | L73: 0 | M73: 0 | N73: 0
B74: KGTS 66kV | C74: 0 | D74: 0 | E74: 0 | F74: 0 | G74: 0 | H74: 0 | I74: 69.94644078 | J74: 1000.236585 | K74: 1989.898148 | L74: 3039.364271 | M74: 4148.856632 | N74: 5663.359117
B75: HOTS 66kV | C75: 0 | D75: 0 | E75: 0 | F75: 0 | G75: 0 | H75: 0 | I75: 122.9599501 | J75: 1749.298109 | K75: 3461.877611 | L75: 5261.951744 | M75: 7150.133565 | N75: 9715.86447
B76: BETS 22kV | C76: 0 | D76: 0 | E76: 0 | F76: 0 | G76: 0 | H76: 0 | I76: 37.68331657 | J76: 542.5853914 | K76: 1086.982885 | L76: 1670.902991 | M76: 2294.367019 | N76: 3150.464176
B77: BETS 66kV | C77: 0 | D77: 0 | E77: 0 | F77: 0 | G77: 0 | H77: 0 | I77: 377.6106067 | J77: 5437.39969 | K77: 10893.50969 | L77: 16746.24335 | M77: 22995.76176 | N77: 31577.53341
B78: SHTS/GNTS | C78: 0 | D78: 0 | E78: 0 | F78: 0 | G78: 0 | H78: 0 | I78: 507.4644601 | J78: 7284.645597 | K78: 14549.27164 | L78: 22302.87493 | M78: 30546.35923 | N78: 41836.76165
B79: HYTS/TGTS/APD | C79: 0 | D79: 0 | E79: 0 | F79: 0 | G79: 0 | H79: 0 | I79: 1212.332749 | J79: 17464.78134 | K79: 35005.54137 | L79: 53835.12741 | M79: 73953.86191 | N79: 101591.1721
B80: BATS/ELTS | C80: 0 | D80: 0 | E80: 0 | F80: 0 | G80: 0 | H80: 0 | I80: 575.2791802 | J80: 8290.996979 | K80: 16625.63677 | L80: 25579.16879 | M80: 35151.6899 | N80: 48306.54636
B81: MLTS/GTS/PTH | C81: 0 | D81: 0 | E81: 0 | F81: 0 | G81: 0 | H81: 0 | I81: 19.67897447 | J81: 280.4256218 | K81: 555.8984601 | L81: 846.2727079 | M81: 1151.635905 | N81: 1567.184247
B82: ATS West | C82: 0 | D82: 0 | E82: 0 | F82: 0 | G82: 0 | H82: 0 | I82: 203.7131565 | J82: 2983.110901 | K82: 6077.343481 | L82: 9483.863221 | M82: 13201.27828 | N82: 18375.81839
B83: ATS-BLTS | C83: 0 | D83: 0 | E83: 0 | F83: 0 | G83: 0 | H83: 0 | I83: 29.57899542 | J83: 428.6038974 | K83: 864.1141139 | L83: 1335.983735 | M83: 1844.152025 | N83: 2545.612346
B84: BLTS 22kV | C84: 0 | D84: 0 | E84: 0 | F84: 0 | G84: 0 | H84: 0 | I84: 0.01513063462 | J84: 0.2162548177 | K84: 0.4299979325 | L84: 0.6564589464 | M84: 0.8956891763 | N84: 1.222100948
B85: KTS East | C85: 0 | D85: 0 | E85: 0 | F85: 0 | G85: 0 | H85: 0 | I85: 11.37860884 | J85: 162.1385776 | K85: 321.4311498 | L85: 489.3528139 | M85: 665.9557761 | N85: 906.2931346
B86: KTS West | C86: 0 | D86: 0 | E86: 0 | F86: 0 | G86: 0 | H86: 0 | I86: 438.8154914 | J86: 6379.831741 | K86: 12904.61737 | L86: 20010.33815 | M86: 27695.32995 | N86: 38331.75108
B87: WMTS 66kV | C87: 0 | D87: 0 | E87: 0 | F87: 0 | G87: 0 | H87: 0 | I87: 0.06776302913 | J87: 0.9831129428 | K87: 1.98415409 | L87: 3.069551142 | M87: 4.239800661 | N87: 38331.75108
B88: WMTS 22kV | C88: 0 | D88: 0 | E88: 0 | F88: 0 | G88: 0 | H88: 0 | I88: 0.06078472224 | J88: 0.8912840255 | K88: 1.817403194 | L88: 2.836678255 | M88: 3.94980549 | N88: 5.856201384
B89: BTS 22kV | C89: 0 | D89: 0 | E89: 0 | F89: 0 | G89: 0 | H89: 0 | I89: 0.01852575435 | J89: 0.2653197738 | K89: 0.5286630249 | L89: 0.808645331 | M89: 1.105316465 | N89: 5.499729616
B90: FBTS 66kV | C90: 0 | D90: 0 | E90: 0 | F90: 0 | G90: 0 | H90: 0 | I90: 0.01631289578 | J90: 0.234546226 | K90: 0.4690608585 | L90: 0.7194684016 | M90: 0.9861646995 | N90: 1.510828594
B91: RTS 66kV Bus 1&2 | C91: 0 | D91: 0 | E91: 0 | F91: 0 | G91: 0 | H91: 0 | I91: 0.04829009279 | J91: 0.6959102629 | K91: 1.394974966 | L91: 2.144245963 | M91: 2.94481861 | N91: 1.351721371
B92: RTS 66kV Bus 3&4 | C92: 0 | D92: 0 | E92: 0 | F92: 0 | G92: 0 | H92: 0 | I92: 0.04754335652 | J92: 0.6801380075 | K92: 1.353275213 | L92: 2.066037728 | M92: 2.819724473 | N92: 4.044291931
B93: RTS 22kV | C93: 0 | D93: 0 | E93: 0 | F93: 0 | G93: 0 | H93: 0 | I93: 0.02750470266 | J93: 0.3979924963 | K93: 0.8010509928 | L93: 1.235879407 | M93: 1.703029071 | N93: 3.848354749
B94: SVTS 66kV | C94: 0 | D94: 0 | E94: 0 | F94: 0 | G94: 0 | H94: 0 | I94: 0.01141020817 | J94: 0.1624845498 | K94: 0.3217808858 | L94: 0.4891274161 | M94: 0.6648669606 | N94: 2.346756488
B95: TSTS 66kV | C95: 0 | D95: 0 | E95: 0 | F95: 0 | G95: 0 | H95: 0 | I95: 0.02282041635 | J95: 0.3249690995 | K95: 0.6435617717 | L95: 0.9782548321 | M95: 1.329733921 | N95: 0.9037483092
B96: Powercor | C96: 0 | D96: 0 | E96: 0 | F96: 0 | G96: 0 | H96: 0 | I96: 3852.431938 | J96: 55523.1441 | K96: 111340.463 | L96: 171304.5494 | M96: 235415.5342 | N96: 323528.1693
B97: Citipower | C97: 0 | D97: 0 | E97: 0 | F97: 0 | G97: 0 | H97: 0 | I97: 0.320955178 | J97: 4.635757384 | K97: 9.313924997 | L97: 14.34788848 | M97: 19.74326035 | N97: 38357.11271
G99: EV (DEMAND ONLY)
C100: Cumulative Demand Impacts (KW)
B101: Terminal Station | C101: 2015 | D101: 2016 | E101: 2017 | F101: 2018 | G101: 2019 | H101: 2020 | I101: 2021 | J101: 2022 | K101: 2023 | L101: 2024 | M101: 2025 | N101: 2026
B102: RCTS 22kV | C102: 0 | D102: 0.6976874015 | E102: 1.55414864 | F102: 2.559790652 | G102: 3.709893382 | H102: 5.024860135 | I102: 6.458684745 | J102: 8.002216127 | K102: 9.659720713 | L102: 11.42575616 | M102: 13.30061687 | N102: 15.48312484
B103: RCTS 66kV | C103: 0 | D103: 2.473618969 | E103: 5.51016336 | F103: 9.075621402 | G103: 13.15325835 | H103: 17.8154132 | I103: 22.89897319 | J103: 28.37149354 | K103: 34.24810071 | L103: 40.50949913 | M103: 47.15673253 | N103: 54.89471532
B104: WETS 66kV | C104: 0 | D104: 4.698280752 | E104: 10.45297367 | F104: 17.19634092 | G104: 24.89413325 | H104: 33.68121108 | I104: 43.24620613 | J104: 53.53166546 | K104: 64.56056719 | L104: 76.29524273 | M104: 88.73640105 | N104: 103.206289
B105: KGTS 22kV | C105: 0 | D105: 0 | E105: 0 | F105: 0 | G105: 0 | H105: 0 | I105: 0 | J105: 0 | K105: 0 | L105: 0 | M105: 0 | N105: 0
B106: KGTS 66kV | C106: 0 | D106: 1.662578744 | E106: 3.690698547 | F106: 6.058339218 | G106: 8.751785609 | H106: 11.81711331 | I106: 15.14312587 | J106: 18.71585923 | K106: 22.53721063 | L106: 26.59348911 | M106: 30.88418946 | N106: 35.86716864
B107: HOTS 66kV | C107: 0 | D107: 3.113495634 | E107: 6.907702219 | F107: 11.33298078 | G107: 16.36290782 | H107: 22.08301358 | I107: 28.28459462 | J107: 34.92894857 | K107: 42.02733577 | L107: 49.55267591 | M107: 57.50337489 | N107: 66.72975905
B108: BETS 22kV | C108: 0 | D108: 0.575519852 | E108: 1.290343459 | F108: 2.138546206 | G108: 3.117859472 | H108: 4.246763363 | I108: 5.488315771 | J108: 6.843864793 | K108: 8.312736107 | L108: 9.89205324 | M108: 11.58310861 | N108: 13.56325142
B109: BETS 66kV | C109: 0 | D109: 5.448029157 | E109: 12.20723501 | F109: 20.2197184 | G109: 29.46254916 | H109: 40.10917744 | I109: 51.80898608 | J109: 64.57284498 | K109: 78.3939608 | L109: 93.244151 | M109: 109.1348199 | N109: 127.7335767
B110: SHTS/GNTS | C110: 0 | D110: 7.616906635 | E110: 17.01058137 | F110: 28.08657461 | G110: 40.80181318 | H110: 55.38761988 | I110: 71.34697642 | J110: 88.59660184 | K110: 107.1815084 | L110: 127.0482464 | M110: 148.204918 | N110: 172.884698
B111: HYTS/TGTS/APD | C111: 0 | D111: 24.95267291 | E111: 56.01800421 | F111: 92.95668595 | G111: 135.6846416 | H111: 185.0175963 | I111: 239.3626619 | J111: 298.9124005 | K111: 363.5625187 | L111: 433.2069487 | M111: 507.9119884 | N111: 595.4996539
B112: BATS/ELTS | C112: 0 | D112: 5.610120751 | E112: 12.58192116 | F112: 20.8587848 | G112: 30.4192835 | H112: 41.44433198 | I112: 53.57429628 | J112: 66.80155669 | K112: 81.13459536 | L112: 96.54409012 | M112: 113.0426416 | N112: 132.360653
B113: MLTS/GTS/PTH | C113: 0 | D113: 0.0004896416968 | E113: 0.001084293081 | F113: 0.001775652241 | G113: 0.002559169543 | H113: 0.003447891508 | I113: 0.004408747837 | J113: 0.005438365806 | K113: 0.006536198794 | L113: 0.007697994795 | M113: 0.008923339615 | N113: 0.01034373132
B114: ATS West | C114: 0 | D114: 25.4228763 | E114: 58.20251707 | F114: 98.38007234 | G114: 146.0904612 | H114: 202.3914245 | I114: 265.7969903 | J114: 336.3086473 | K114: 414.2098042 | L114: 499.4966243 | M114: 592.3524251 | N114: 702.4700038
B115: ATS-BLTS | C115: 0 | D115: 4.735286851 | E115: 10.51964425 | F115: 17.2807081 | G115: 24.98098416 | H115: 33.75325368 | I115: 43.28176367 | J115: 53.54858801 | K115: 64.54597948 | L115: 76.23758226 | M115: 88.62320939 | N115: 103.0210168
B116: BLTS 22kV | C116: 0 | D116: 1.721885091 | E116: 3.825240686 | F116: 6.283752801 | G116: 9.083787182 | H116: 12.2736266 | I116: 15.7384541 | J116: 19.47175092 | K116: 23.47069985 | L116: 27.7220807 | M116: 32.22582533 | N116: 37.46125082
B117: KTS East | C117: 0 | D117: 16.08323483 | E117: 35.67355849 | F117: 58.51593304 | G117: 84.47137761 | H117: 113.9803367 | I117: 145.9639358 | J117: 180.0452708 | K117: 216.4018843 | L117: 254.8785223 | M117: 295.4627846 | N117: 342.5092717
B118: KTS West | C118: 0 | D118: 17.41509903 | E118: 39.38935223 | F118: 65.83144417 | G118: 96.74030249 | H118: 132.744527 | I118: 172.7678678 | J118: 217.0165867 | K118: 265.4360572 | L118: 317.988728 | M118: 374.7533118 | N118: 441.6510158
B119: WMTS 66kV | C119: 0 | D119: 18.43685663 | E119: 41.86086441 | F119: 70.40359897 | G119: 104.1814289 | H119: 143.2071737 | I119: 186.6027111 | J119: 234.5385736 | K119: 286.9783943 | L119: 344.0329011 | M119: 405.6898237 | N119: 478.3967828
B120: WMTS 22kV | C120: 0 | D120: 14.58871746 | E120: 33.81386507 | F120: 58.1166604 | G120: 87.79939641 | H120: 122.4111055 | I120: 161.5521555 | J120: 205.5546459 | K120: 254.3705855 | L120: 308.2967515 | M120: 367.3023459 | N120: 437.6011509
B121: BTS 22kV | C121: 0 | D121: 6.047305207 | E121: 13.46821697 | F121: 22.17876102 | G121: 32.13764089 | H121: 43.52113423 | I121: 55.9301737 | J121: 69.33348608 | K121: 83.73464752 | L121: 99.09013293 | M121: 115.4031871 | N121: 134.4018339
B122: FBTS 66kV | C122: 0 | D122: 16.06987013 | E122: 36.07072797 | F122: 60.14135566 | G122: 88.30759173 | H122: 119.8858791 | I122: 154.3448029 | J122: 191.7247301 | K122: 231.9527434 | L122: 275.0938134 | M122: 321.1191257 | N122: 374.8448269
B123: RTS 66kV Bus 1&2 | C123: 0 | D123: 15.34522432 | E123: 34.61798919 | F123: 58.00359481 | G123: 85.5723381 | H123: 116.6991939 | I123: 150.8897148 | J123: 188.1272825 | K123: 228.4128033 | L123: 271.843006 | M123: 318.3848317 | N123: 372.8950122
B124: RTS 66kV Bus 3&4 | C124: 0 | D124: 23.39762829 | E124: 52.29924239 | F124: 86.84798356 | G124: 127.0261235 | H124: 171.8038066 | I124: 220.3870629 | J124: 272.6851663 | K124: 328.6463161 | L124: 388.3227759 | M124: 451.6562826 | N124: 525.3191681
B125: RTS 22kV | C125: 0 | D125: 8.342940954 | E125: 18.91662923 | F125: 31.84998408 | G125: 47.20597307 | H125: 64.6596346 | I125: 83.9490903 | J125: 105.0967259 | K125: 128.1010044 | L125: 153.0365655 | M125: 179.884065 | N125: 211.4414731
B126: SVTS 66kV | C126: 0 | D126: 7.701139918 | E126: 17.13890257 | F126: 28.33998922 | G126: 41.27979838 | H126: 55.60756184 | I126: 71.05503543 | J126: 87.59023887 | K126: 105.1828206 | L126: 123.8383881 | M126: 143.5332113 | N126: 166.36023
B127: TSTS 66kV | C127: 0 | D127: 15.40227984 | E127: 34.27780515 | F127: 56.67997845 | G127: 82.55959677 | H127: 111.2151237 | I127: 142.1100709 | J127: 175.1804777 | K127: 210.3656412 | L127: 247.6767763 | M127: 287.0664225 | N127: 332.72046
B128: Powercor | C128: 0 | D128: 122.2277825 | E128: 274.8351687 | F128: 456.777069 | G128: 667.7275972 | H128: 911.7737166 | I128: 1181.166241 | J128: 1475.673734 | K128: 1795.689216 | L128: 2140.643388 | M128: 2510.885271 | N128: 2945.345792
B129: Citipower | C129: 0 | D129: 125.3319627 | E129: 282.464243 | F129: 472.5619062 | G129: 696.0698877 | H129: 949.0106131 | I129: 1226.820817 | J129: 1529.831327 | K129: 1857.744956 | L129: 2211.231111 | M129: 2590.039295 | N129: 3033.980938

Sheet Block Loads
A1: Summer adjustments | O1: Winter adjustments | AC1: Annual adjustments
B2: 2014/15 | C2: 2015/16 | D2: 2016/17 | E2: 2017/18 | F2: 2018/19 | G2: 2019/20 | H2: 2020/21 | I2: 2021/22 | J2: 2022/23 | K2: 2023/24 | L2: 2024/25 | M2: 2025/26 | N2: 2026/27 | P2: 2014 | Q2: 2015 | R2: 2016 | S2: 2017 | T2: 2018 | U2: 2019 | V2: 2020 | W2: 2021 | X2: 2022 | Y2: 2023 | Z2: 2024 | AA2: 2025 | AB2: 2026 | AD2: 2014 | AE2: 2015 | AF2: 2016 | AG2: 2017 | AH2: 2018 | AI2: 2019 | AJ2: 2020 | AK2: 2021 | AL2: 2022 | AM2: 2023 | AN2: 2024 | AO2: 2025 | AP2: 2026
A3: RCTS 22kV | O3: RCTS 22kV | AC3: RCTS 22kV | AD3: =MAX(P3,B3) -> 0 | AE3: =MAX(Q3,C3) -> 0 | AF3: =MAX(R3,D3) -> 0 | AG3: =MAX(S3,E3) -> 0 | AH3: =MAX(T3,F3) -> 0 | AI3: =MAX(U3,G3) -> 0 | AJ3: =MAX(V3,H3) -> 0 | AK3: =MAX(W3,I3) -> 0 | AL3: =MAX(X3,J3) -> 0 | AM3: =MAX(Y3,K3) -> 0 | AN3: =MAX(Z3,L3) -> 0 | AO3: =MAX(AA3,M3) -> 0 | AP3: =MAX(AB3,N3) -> 0
A4: RCTS 66kV | O4: RCTS 66kV | AC4: RCTS 66kV | AD4: =MAX(P4,B4) -> 0 | AE4: 0 | AF4: 0 | AG4: 0 | AH4: 0 | AI4: 0 | AJ4: 0 | AK4: 0 | AL4: 0 | AM4: 0 | AN4: 0 | AO4: 0 | AP4: 0
A5: WETS 66kV | C5: -4 | D5: -4 | E5: -4 | F5: -4 | G5: -4 | H5: -4 | I5: -4 | J5: -4 | K5: -4 | L5: -4 | M5: -4 | N5: -4 | O5: WETS 66kV | R5: -4 | S5: -4 | T5: -4 | U5: -4 | V5: -4 | W5: -4 | X5: -4 | Y5: -4 | Z5: -4 | AA5: -4 | AB5: -4 | AC5: WETS 66kV | AD5: 0 | AE5: -4 | AF5: -4 | AG5: -4 | AH5: -4 | AI5: -4 | AJ5: -4 | AK5: -4 | AL5: -4 | AM5: -4 | AN5: -4 | AO5: -4 | AP5: -4
A6: KGTS 22kV | O6: KGTS 22kV | AC6: KGTS 22kV | AD6: 0 | AE6: 0 | AF6: 0 | AG6: 0 | AH6: 0 | AI6: 0 | AJ6: 0 | AK6: 0 | AL6: 0 | AM6: 0 | AN6: 0 | AO6: 0 | AP6: 0
A7: KGTS 66kV | O7: KGTS 66kV | AC7: KGTS 66kV | AD7: 0 | AE7: 0 | AF7: 0 | AG7: 0 | AH7: 0 | AI7: 0 | AJ7: 0 | AK7: 0 | AL7: 0 | AM7: 0 | AN7: 0 | AO7: 0 | AP7: 0
A8: HOTS 66kV | O8: HOTS 66kV | AC8: HOTS 66kV | AD8: 0 | AE8: 0 | AF8: 0 | AG8: 0 | AH8: 0 | AI8: 0 | AJ8: 0 | AK8: 0 | AL8: 0 | AM8: 0 | AN8: 0 | AO8: 0 | AP8: 0
A9: BETS 22kV | C9: 6.1 | D9: 6.1 | E9: 6.1 | F9: 6.1 | G9: 6.1 | H9: 6.1 | I9: 6.1 | J9: 6.1 | K9: 6.1 | L9: 6.1 | M9: 6.1 | N9: 6.1 | O9: BETS 22kV | R9: 5.1 | S9: 5.1 | T9: 5.1 | U9: 5.1 | V9: 5.1 | W9: 5.1 | X9: 5.1 | Y9: 5.1 | Z9: 5.1 | AA9: 5.1 | AB9: 5.1 | AC9: BETS 22kV | AD9: 0 | AE9: 6.1 | AF9: 6.1 | AG9: 6.1 | AH9: 6.1 | AI9: 6.1 | AJ9: 6.1 | AK9: 6.1 | AL9: 6.1 | AM9: 6.1 | AN9: 6.1 | AO9: 6.1 | AP9: 6.1
A10: BETS 66kV | C10: -6.1 | D10: =-6.1+5.4 -> -0.7 | E10: =-6.1+5.4 -> -0.7 | F10: -0.7 | G10: -0.7 | H10: -0.7 | I10: -0.7 | J10: -0.7 | K10: -0.7 | L10: -0.7 | M10: -0.7 | N10: -0.7 | O10: BETS 66kV | R10: -5.1 | S10: =-5.1+5.4 -> 0.3 | T10: =-5.1+5.4 -> 0.3 | U10: 0.3 | V10: 0.3 | W10: 0.3 | X10: 0.3 | Y10: 0.3 | Z10: 0.3 | AA10: 0.3 | AB10: 0.3 | AC10: BETS 66kV | AD10: 0 | AE10: -6.1 | AF10: -0.7 | AG10: 0.3 | AH10: 0.3 | AI10: 0.3 | AJ10: 0.3 | AK10: 0.3 | AL10: 0.3 | AM10: 0.3 | AN10: 0.3 | AO10: 0.3 | AP10: 0.3
A11: SHTS/GNTS | D11: =-8+12 -> 4 | E11: =-8+12+2 -> 6 | F11: =-8+12+2+2 -> 8 | G11: =-8+12+2+2+2 -> 10 | H11: =-8+12+2+2+2+2 -> 12 | I11: =-8+12+2+2+2+2 -> 12 | J11: 12 | K11: 12 | L11: 12 | M11: 12 | N11: 12 | O11: SHTS/GNTS | S11: =-8+12 -> 4 | T11: =-8+12+2 -> 6 | U11: =-8+12+2+2 -> 8 | V11: =-8+12+2+2+2 -> 10 | W11: =-8+12+2+2+2+2 -> 12 | X11: =-8+12+2+2+2+2 -> 12 | Y11: 12 | Z11: 12 | AA11: 12 | AB11: 12 | AC11: SHTS/GNTS | AD11: 0 | AE11: 0 | AF11: 4 | AG11: 6 | AH11: 8 | AI11: 10 | AJ11: 12 | AK11: 12 | AL11: 12 | AM11: 12 | AN11: 12 | AO11: 12 | AP11: 12
A12: HYTS/TGTS/APD | C12: 2 | D12: =2+2.5+2 -> 6.5 | E12: =2+2.5+2+2.5-7.5+18+0.4 -> 19.9 | F12: =2+2.5+2+2.5-7.5+18+0.4+2 -> 21.9 | G12: =2+2.5+2+2.5-7.5+18+0.4+2+2.4 -> 24.3 | H12: =2+2.5+2+2.5-7.5+18+0.4+2+2.4 -> 24.3 | I12: 24.3 | J12: 24.3 | K12: 24.3 | L12: 24.3 | M12: 24.3 | N12: 24.3 | O12: HYTS/TGTS/APD | Q12: 2 | R12: 2 | S12: =2+2.5+2 -> 6.5 | T12: =2+2.5+2+2.5-7.5+18+0.4 -> 19.9 | U12: =2+2.5+2+2.5-7.5+18+0.4+2 -> 21.9 | V12: =2+2.5+2+2.5-7.5+18+0.4+2+2.4 -> 24.3 | W12: =2+2.5+2+2.5-7.5+18+0.4+2+2.4 -> 24.3 | X12: 24.3 | Y12: 24.3 | Z12: 24.3 | AA12: 24.3 | AB12: 24.3 | AC12: HYTS/TGTS/APD | AD12: 0 | AE12: 2 | AF12: 6.5 | AG12: 19.9 | AH12: 21.9 | AI12: 24.3 | AJ12: 24.3 | AK12: 24.3 | AL12: 24.3 | AM12: 24.3 | AN12: 24.3 | AO12: 24.3 | AP12: 24.3
A13: BATS/ELTS | O13: BATS/ELTS | AC13: BATS/ELTS | AD13: 0 | AE13: 0 | AF13: 0 | AG13: 0 | AH13: 0 | AI13: 0 | AJ13: 0 | AK13: 0 | AL13: 0 | AM13: 0 | AN13: 0 | AO13: 0 | AP13: 0
A14: MLTS/GTS/PTH | C14: 3 | D14: =3-11.5-3-9 -> -20.5 | E14: =3-11.5-3-9 -> -20.5 | F14: -20.5 | G14: -20.5 | H14: -20.5 | I14: -20.5 | J14: -20.5 | K14: -20.5 | L14: -20.5 | M14: -20.5 | N14: -20.5 | O14: MLTS/GTS/PTH | R14: 3 | S14: =3-10.9-2.9-9 -> -19.8 | T14: =3-10.9-2.9-9 -> -19.8 | U14: -19.8 | V14: -19.8 | W14: -19.8 | X14: -19.8 | Y14: -19.8 | Z14: -19.8 | AA14: -19.8 | AB14: -19.8 | AC14: MLTS/GTS/PTH | AD14: 0 | AE14: 3 | AF14: 3 | AG14: -19.8 | AH14: -19.8 | AI14: -19.8 | AJ14: -19.8 | AK14: -19.8 | AL14: -19.8 | AM14: -19.8 | AN14: -19.8 | AO14: -19.8 | AP14: -19.8
A15: ATS West | E15: 4.8 | F15: 4.8 | G15: 4.8 | H15: 4.8 | I15: 4.8 | J15: 4.8 | K15: 4.8 | L15: 4.8 | M15: 4.8 | N15: 4.8 | O15: ATS West | S15: 4.8 | T15: 4.8 | U15: 4.8 | V15: 4.8 | W15: 4.8 | X15: 4.8 | Y15: 4.8 | Z15: 4.8 | AA15: 4.8 | AB15: 4.8 | AC15: ATS West | AD15: 0 | AE15: 0 | AF15: 0 | AG15: 4.8 | AH15: 4.8 | AI15: 4.8 | AJ15: 4.8 | AK15: 4.8 | AL15: 4.8 | AM15: 4.8 | AN15: 4.8 | AO15: 4.8 | AP15: 4.8
A16: ATS-BLTS | C16: =-15+4 -> -11 | D16: =-15+4 -> -11 | E16: =-15+4-15.5 -> -26.5 | F16: =-15+4-15.5 -> -26.5 | G16: -26.5 | H16: -26.5 | I16: -26.5 | J16: -26.5 | K16: -26.5 | L16: -26.5 | M16: -26.5 | N16: -26.5 | O16: ATS-BLTS | R16: =-13.5+3 -> -10.5 | S16: =-13.5+3 -> -10.5 | T16: =-13.5+3-15.9 -> -26.4 | U16: =-13.5+3-15.9 -> -26.4 | V16: -26.4 | W16: -26.4 | X16: -26.4 | Y16: -26.4 | Z16: -26.4 | AA16: -26.4 | AB16: -26.4 | AC16: ATS-BLTS | AD16: 0 | AE16: -11 | AF16: -10.5 | AG16: -10.5 | AH16: -26.4 | AI16: -26.4 | AJ16: -26.4 | AK16: -26.4 | AL16: -26.4 | AM16: -26.4 | AN16: -26.4 | AO16: -26.4 | AP16: -26.4
A17: BLTS 22kV | C17: 2.5 | D17: 2.5 | E17: 2.5 | F17: 2.5 | G17: 2.5 | H17: 2.5 | I17: 2.5 | J17: 2.5 | K17: 2.5 | L17: 2.5 | M17: 2.5 | N17: 2.5 | O17: BLTS 22kV | R17: 2 | S17: 2 | T17: 2 | U17: 2 | V17: 2 | W17: 2 | X17: 2 | Y17: 2 | Z17: 2 | AA17: 2 | AB17: 2 | AC17: BLTS 22kV | AD17: 0 | AE17: 2.5 | AF17: 2.5 | AG17: 2.5 | AH17: 2.5 | AI17: 2.5 | AJ17: 2.5 | AK17: 2.5 | AL17: 2.5 | AM17: 2.5 | AN17: 2.5 | AO17: 2.5 | AP17: 2.5
A18: KTS East | C18: =15-4-2.5 -> 8.5 | D18: =15-4-2.5 -> 8.5 | E18: 8.5 | F18: 8.5 | G18: 8.5 | H18: 8.5 | I18: 8.5 | J18: 8.5 | K18: 8.5 | L18: 8.5 | M18: 8.5 | N18: 8.5 | O18: KTS East | R18: =13.5-3-2 -> 8.5 | S18: =13.5-3-2 -> 8.5 | T18: 8.5 | U18: 8.5 | V18: 8.5 | W18: 8.5 | X18: 8.5 | Y18: 8.5 | Z18: 8.5 | AA18: 8.5 | AB18: 8.5 | AC18: KTS East | AD18: 0 | AE18: 8.5 | AF18: 8.5 | AG18: 8.5 | AH18: 8.5 | AI18: 8.5 | AJ18: 8.5 | AK18: 8.5 | AL18: 8.5 | AM18: 8.5 | AN18: 8.5 | AO18: 8.5 | AP18: 8.5
A19: KTS West | O19: KTS West | AC19: KTS West | AD19: 0 | AE19: 0 | AF19: 0 | AG19: 0 | AH19: 0 | AI19: 0 | AJ19: 0 | AK19: 0 | AL19: 0 | AM19: 0 | AN19: 0 | AO19: 0 | AP19: 0
A20: WMTS 66kV | C20: =14+5 -> 19 | D20: =14+5+2+4.3 -> 25.3 | E20: =14+5+2+4.3+2+0.5+20 -> 47.8 | F20: =14+5+2+4.3+2+0.5+20 -> 47.8 | G20: 47.8 | H20: 47.8 | I20: 47.8 | J20: 47.8 | K20: 47.8 | L20: 47.8 | M20: 47.8 | N20: 47.8 | O20: WMTS 66kV | Q20: =14+5 -> 19 | R20: =14+5+2.4 -> 21.4 | S20: =14+5+2.4+3.5+2.4 -> 27.3 | T20: =14+5+2.4+3.5+2.4+0.4+20 -> 47.7 | U20: =14+5+2.4+3.5+2.4+0.4+20 -> 47.7 | V20: 47.7 | W20: 47.7 | X20: 47.7 | Y20: 47.7 | Z20: 47.7 | AA20: 47.7 | AB20: 47.7 | AC20: WMTS 66kV | AD20: 0 | AE20: 19 | AF20: 25.3 | AG20: 47.8 | AH20: 47.8 | AI20: 47.8 | AJ20: 47.8 | AK20: 47.8 | AL20: 47.8 | AM20: 47.8 | AN20: 47.8 | AO20: 47.8 | AP20: 47.8
A21: WMTS 22kV | C21: =-6-14-5 -> -25 | D21: =-6-14-5+3.4 -> -21.6 | E21: =-6-14-5+3.4+0.4 -> -21.2 | F21: =-6-14-5+3.4+0.4 -> -21.2 | G21: -21.2 | H21: -21.2 | I21: -21.2 | J21: -21.2 | K21: -21.2 | L21: -21.2 | M21: -21.2 | N21: -21.2 | O21: WMTS 22kV | Q21: =-6-14-5 -> -25 | R21: =-6-14-5+1.9 -> -23.1 | S21: =-6-14-5+1.9+1.9 -> -21.2 | T21: =-6-14-5+1.9+1.9 -> -21.2 | U21: -21.2 | V21: -21.2 | W21: -21.2 | X21: -21.2 | Y21: -21.2 | Z21: -21.2 | AA21: -21.2 | AB21: -21.2 | AC21: WMTS 22kV | AD21: 0 | AE21: -25 | AF21: -21.6 | AG21: -21.2 | AH21: -21.2 | AI21: -21.2 | AJ21: -21.2 | AK21: -21.2 | AL21: -21.2 | AM21: -21.2 | AN21: -21.2 | AO21: -21.2 | AP21: -21.2
A22: BTS 22kV | O22: BTS 22kV | AC22: BTS 22kV | AD22: 0 | AE22: 0 | AF22: 0 | AG22: 0 | AH22: 0 | AI22: 0 | AJ22: 0 | AK22: 0 | AL22: 0 | AM22: 0 | AN22: 0 | AO22: 0 | AP22: 0
A23: FBTS 66kV | C23: 6 | D23: =6 -> 6 | E23: =6 -> 6 | F23: =6 -> 6 | G23: =6 -> 6 | H23: =6 -> 6 | I23: =6 -> 6 | J23: =6 -> 6 | K23: =6 -> 6 | L23: =6 -> 6 | M23: =6 -> 6 | N23: =6 -> 6 | O23: FBTS 66kV | Q23: 6 | R23: =6 -> 6 | S23: =6 -> 6 | T23: =6 -> 6 | U23: =6 -> 6 | V23: =6 -> 6 | W23: =6 -> 6 | X23: =6 -> 6 | Y23: =6 -> 6 | Z23: =6 -> 6 | AA23: =6 -> 6 | AB23: =6 -> 6 | AC23: FBTS 66kV | AD23: 0 | AE23: 6 | AF23: 6 | AG23: 6 | AH23: 6 | AI23: 6 | AJ23: 6 | AK23: 6 | AL23: 6 | AM23: 6 | AN23: 6 | AO23: 6 | AP23: 6
A24: RTS 66kV Bus 1&2 | C24: =12+13.5 -> 25.5 | D24: =12+13.5 -> 25.5 | E24: 25.5 | F24: 25.5 | G24: 25.5 | H24: 25.5 | I24: 25.5 | J24: 25.5 | K24: 25.5 | L24: 25.5 | M24: 25.5 | N24: 25.5 | O24: RTS 66kV Bus 1&2 | Q24: =12+13.5 -> 25.5 | R24: =12+13.5 -> 25.5 | S24: 25.5 | T24: 25.5 | U24: 25.5 | V24: 25.5 | W24: 25.5 | X24: 25.5 | Y24: 25.5 | Z24: 25.5 | AA24: 25.5 | AB24: 25.5 | AC24: RTS 66kV Bus 1&2 | AD24: 0 | AE24: 25.5 | AF24: 25.5 | AG24: 25.5 | AH24: 25.5 | AI24: 25.5 | AJ24: 25.5 | AK24: 25.5 | AL24: 25.5 | AM24: 25.5 | AN24: 25.5 | AO24: 25.5 | AP24: 25.5
A25: RTS 66kV Bus 3&4 | O25: RTS 66kV Bus 3&4 | AC25: RTS 66kV Bus 3&4 | AD25: 0 | AE25: 0 | AF25: 0 | AG25: 0 | AH25: 0 | AI25: 0 | AJ25: 0 | AK25: 0 | AL25: 0 | AM25: 0 | AN25: 0 | AO25: 0 | AP25: 0
A26: RTS 22kV | C26: =-12-13.5 -> -25.5 | D26: =-12-13.5 -> -25.5 | E26: =-12-13.5+20 -> -5.5 | F26: =-12-13.5+20 -> -5.5 | G26: -5.5 | H26: -5.5 | I26: -5.5 | J26: -5.5 | K26: -5.5 | L26: -5.5 | M26: -5.5 | N26: =-12-13.5+20 -> -5.5 | O26: RTS 22kV | Q26: =-12-13.5 -> -25.5 | R26: =-12-13.5 -> -25.5 | S26: -25.5 | T26: =-12-13.5+20 -> -5.5 | U26: =-12-13.5+20 -> -5.5 | V26: -5.5 | W26: -5.5 | X26: -5.5 | Y26: -5.5 | Z26: -5.5 | AA26: -5.5 | AB26: -5.5 | AC26: RTS 22kV | AD26: 0 | AE26: -25.5 | AF26: -25.5 | AG26: -5.5 | AH26: -5.5 | AI26: -5.5 | AJ26: -5.5 | AK26: -5.5 | AL26: -5.5 | AM26: -5.5 | AN26: -5.5 | AO26: -5.5 | AP26: -5.5
A27: SVTS 66kV | O27: SVTS 66kV | AC27: SVTS 66kV | AD27: 0 | AE27: 0 | AF27: 0 | AG27: 0 | AH27: 0 | AI27: 0 | AJ27: 0 | AK27: 0 | AL27: 0 | AM27: 0 | AN27: 0 | AO27: 0 | AP27: 0
A28: TSTS 66kV | O28: TSTS 66kV | AC28: TSTS 66kV | AD28: 0 | AE28: 0 | AF28: 0 | AG28: 0 | AH28: 0 | AI28: 0 | AJ28: 0 | AK28: 0 | AL28: 0 | AM28: 0 | AN28: 0 | AO28: 0 | AP28: 0
A29: Total Powercor | B29: =SUM(B3:B19) -> 0 | C29: =SUM(C3:C19) -> 1 | D29: -8.6 | E29: -3.9 | F29: 0.1 | G29: 4.5 | H29: 6.5 | I29: 6.5 | J29: 6.5 | K29: 6.5 | L29: 6.5 | M29: 6.5 | N29: 6.5 | O29: Total Powercor | P29: =SUM(P3:P19) -> 0 | Q29: =SUM(Q3:Q19) -> 2 | R29: 1 | S29: -3.1 | T29: -3.6 | U29: 0.4 | V29: 4.8 | W29: 6.8 | X29: 6.8 | Y29: 6.8 | Z29: 6.8 | AA29: 6.8 | AB29: 6.8 | AC29: Total Powercor | AD29: 0 | AE29: 2 | AF29: 1 | AG29: -3.1 | AH29: 0.1 | AI29: 4.5 | AJ29: 6.5 | AK29: 6.8 | AL29: 6.8 | AM29: 6.8 | AN29: 6.8 | AO29: 6.8 | AP29: 6.8
A30: Total Citipower | B30: =SUM(B20:B28) -> 0 | C30: =SUM(C20:C28) -> 0 | D30: 9.7 | E30: 52.6 | F30: 52.6 | G30: 52.6 | H30: 52.6 | I30: 52.6 | J30: 52.6 | K30: 52.6 | L30: 52.6 | M30: 52.6 | N30: 52.6 | O30: Total Citipower | P30: =SUM(P20:P28) -> 0 | Q30: =SUM(Q20:Q28) -> 0 | R30: 4.3 | S30: 12.1 | T30: 52.5 | U30: 52.5 | V30: 52.5 | W30: 52.5 | X30: 52.5 | Y30: 52.5 | Z30: 52.5 | AA30: 52.5 | AB30: 52.5 | AC30: Total Citipower | AD30: 0 | AE30: 0 | AF30: 9.7 | AG30: 52.6 | AH30: 52.6 | AI30: 52.6 | AJ30: 52.6 | AK30: 52.6 | AL30: 52.6 | AM30: 52.6 | AN30: 52.6 | AO30: 52.6 | AP30: 52.6

Sheet ATS West
A1: Terminal station: | C1: ATS West | G1: AVERAGE DEMAND | X1: MAXIMUM DEMAND
B2: Which terminal station?
C3: RCTS 22kV | D3: 13
C4: RCTS 66kV
C5: WETS 66kV
C6: KGTS 22kV
C7: KGTS 66kV
C8: HOTS 66kV
C9: BETS 22kV
C10: BETS 66kV
C11: SHTS/GNTS
C12: HYTS/TGTS/APD
C13: BATS/ELTS
C14: MLTS/GTS/PTH
C15: ATS West
C16: ATS-BLTS
C17: BLTS 22kV
C18: KTS East
C19: KTS West
C20: WMTS 66kV
C21: WMTS 22kV
C22: BTS 22kV
C23: FBTS 66kV
C24: RTS 66kV Bus 1&2
C25: RTS 66kV Bus 3&4
C26: RTS 22kV
C27: SVTS 66kV
C28: TSTS 66kV
C29: Total Powercor
C30: Total Citipower
A33: Scenarios
B34: Population | C34: Low | D34: 2
C35: Medium
C36: High
B38: Electricity Prices | C38: Low | D38: 2
C39: Medium
C40: High
B42: Income | C42: Low | D42: 2
C43: Medium | G43: SUMMER MAXIMUM | X43: WINTER MAXIMUM
C44: High
A46: Technology adjustments
B47: Adjust for solar? | C47: Include | D47: 1
C48: Exclude
B51: Adjust for efficiency? | C51: Include | D51: 2
C52: Exclude
B55: Adjust for battery storage? | C55: Include | D55: 2
C56: Exclude
B59: Adjust for EV? | C59: Include | D59: 2
C60: Exclude
G66: Number of simulations | Q66: 1000 | AB66: Starting Point adjust. | AD66: =Summary!$F$151 -> 1
A67: Parameter selection | AB67: Growth Cap | AC67: =Summary!$G$151 -> 0.04 | AD67: =AC67+1 -> 1.04
B68: Model elasticities | C68: Terminal station estimate | D68: 1 | Q68: 2004 | R68: 2005 | S68: 2006 | T68: 2007 | U68: 2008 | V68: 2009 | W68: 2010 | X68: 2011 | Y68: 2012 | Z68: 2013 | AA68: 2014 | AB68: 2015 | AC68: 2016 | AD68: 2017 | AE68: 2018 | AF68: 2019 | AG68: 2020 | AH68: 2021 | AI68: 2022 | AJ68: 2023 | AK68: 2024 | AL68: 2025 | AM68: 2026
C69: AEMO income elasticity | G69: Average energy use | U69: 76.34984811 | V69: 79.75836976 | W69: 82.67696857 | X69: 87.04480553 | Y69: 88.82189178 | Z69: 90.37358316 | AA69: 88.93606917
G70: Forecast average energy use | U70: 78.91134517 | V70: 78.91134517 | W70: 82.65101544 | X70: 86.17382296 | Y70: 88.18875554 | Z70: 88.21555603 | AA70: 92.54642667 | AB70: =AD$66*IF(AB207>$AD$67,$AD$67*AA70,AB207*AA70) -> 96.24828373 | AC70: =IF(AC207>$AD$67,$AD$67*AB70,AC207*AB70) -> 100.0982151 | AD70: 104.1021437 | AE70: 108.0140373 | AF70: 111.9599594 | AG70: 115.8023471 | AH70: 118.6284909 | AI70: 121.309438 | AJ70: 124.9525179 | AK70: 128.2633668 | AL70: 131.2388034 | AM70: 134.2469885
G71: Low forecast | AA71: =AA70 -> 92.54642667 | AB71: =AB70*AB233 -> 95.51873325 | AC71: =AC70*AC233 -> 98.78042416 | AD71: =AD70*AD233 -> 102.2613014 | AE71: =AE70*AE233 -> 105.1252115 | AF71: 107.370657 | AG71: 109.1530632 | AH71: 110.4535022 | AI71: 112.066724 | AJ71: 114.3787636 | AK71: 116.5684885 | AL71: 118.6551799 | AM71: 120.7574975
G72: High forecast | AA72: =AA71 -> 92.54642667 | AB72: =AB70*AB234 -> 96.82767207 | AC72: =AC70*AC234 -> 102.8654353 | AD72: =AD70*AD234 -> 109.6073719 | AE72: =AE70*AE234 -> 114.7548987 | AF72: 120.025519 | AG72: 125.1448026 | AH72: 129.5785789 | AI72: 133.7477216 | AJ72: 138.3458191 | AK72: 142.6160202 | AL72: 146.3372849 | AM72: 149.9229093
A73: Average demand model used
B74: Long run model only | Q74: 2004/05 | R74: 2005/06 | S74: 2006/07 | T74: 2007/08 | U74: 2008/09 | V74: 2009/10 | W74: 2010/11 | X74: 2011/12 | Y74: 2012/13 | Z74: 2013/14 | AA74: 2014/15 | AB74: 2015/16 | AC74: 2016/17 | AD74: 2017/18 | AE74: 2018/19 | AF74: 2019/20 | AG74: 2020/21 | AH74: 2021/22 | AI74: 2022/23 | AJ74: 2023/24 | AK74: 2024/25 | AL74: 2025/26 | AM74: 2026/27
G75: Summer maxima | T75: 154.2657166 | U75: 174.2139282 | V75: 171.8561554 | W75: 167.9761047 | X75: 165.661438 | Y75: 189.5263977 | Z75: 205.0396271 | AA75: 181.6613312
G76: Forecast - 90% PoE | U76: 142.0346463 | V76: 148.3606273 | W76: 152.514269 | X76: 164.8226541 | Y76: 165.6023286 | Z76: 174.6527767 | AA76: 175.2714341 | AB76: =AB77*AB238 -> 180.1205655 | AC76: =AC77*AC238 -> 186.4196023 | AD76: 192.1045403 | AE76: 200.2480366 | AF76: 207.6557992 | AG76: 214.2885524 | AH76: 223.508263 | AI76: 230.4926615 | AJ76: 239.4326209 | AK76: 244.3772828 | AL76: 254.7928089 | AM76: 261.1793663
G77: Forecast - 50% PoE | U77: 155.2993876 | V77: 161.1071594 | W77: 164.5138382 | X77: 178.6998693 | Y77: 179.3099801 | Z77: 190.2306159 | AA77: 191.2877692 | AB77: =AD$66*IF(AB214>$AD$67,$AD$67*AA77,AB214*AA77) -> 198.9392799 | AC77: =IF(AC214>$AD$67,$AD$67*AB77,AC214*AB77) -> 206.8968511 | AD77: 215.1727252 | AE77: 223.7796342 | AF77: 232.7308195 | AG77: 242.0400523 | AH77: 250.4103081 | AI77: 260.4267205 | AJ77: 270.8437893 | AK77: 281.6775409 | AL77: 292.9446425 | AM77: 304.6624282
G78: Forecast - 10% PoE | U78: 173.3186714 | V78: 181.48489 | W78: 182.1772308 | X78: 197.3566516 | Y78: 195.5679824 | Z78: 206.73649 | AA78: 208.0066037 | AB78: =AB77*AB240 -> 220.7429228 | AC78: =AC77*AC240 -> 230.2707716 | AD78: 236.5490126 | AE78: 247.3978315 | AF78: 255.2490272 | AG78: 264.3763631 | AH78: 276.175566 | AI78: 288.0759408 | AJ78: 300.5083085 | AK78: 312.506682 | AL78: 327.2818114 | AM78: 343.1582986
A79: Climatic adjustments
B80: Temperature | C80: Stable | D80: 2 | Q80: 2004 | R80: 2005 | S80: 2006 | T80: 2007 | U80: 2008 | V80: 2009 | W80: 2010 | X80: 2011 | Y80: 2012 | Z80: 2013 | AA80: 2014 | AB80: 2015 | AC80: 2016 | AD80: 2017 | AE80: 2018 | AF80: 2019 | AG80: 2020 | AH80: 2021 | AI80: 2022 | AJ80: 2023 | AK80: 2024 | AL80: 2025 | AM80: 2026
C81: CSIRO trends | G81: Winter maxima | U81: 119.7899323 | V81: 135.7650757 | W81: 124.5681152 | X81: 127.3487549 | Y81: 139.0238342 | Z81: 143.6216278 | AA81: 140.5656433
G82: Forecast - 90% PoE | V82: 121.4353863 | W82: 133.1524456 | X82: 136.9497424 | Y82: 144.7869791 | Z82: 141.0990163 | AA82: 141.8050012 | AB82: =AB83*AB244 -> 147.058148 | AC82: =AC83*AC244 -> 153.2255612 | AD82: =AD83*AD244 -> 159.2851848 | AE82: =AE83*AE244 -> 165.4149019 | AF82: =AF83*AF244 -> 171.9841281 | AG82: =AG83*AG244 -> 178.8367575 | AH82: =AH83*AH244 -> 185.0923773 | AI82: =AI83*AI244 -> 189.2669996 | AJ82: =AJ83*AJ244 -> 195.486173 | AK82: =AK83*AK244 -> 202.2338674 | AL82: =AL83*AL244 -> 207.7425545 | AM82: =AM83*AM244 -> 213.7261173
G83: Forecast - 50% PoE | V83: 124.669092 | W83: 136.5335014 | X83: 140.3058451 | Y83: 148.5682698 | Z83: 144.732895 | AA83: 145.8048924 | AB83: =AD$66*IF(AB220>$AD$67,$AD$67*AA83,AB220*AA83) -> 151.6370881 | AC83: =IF(AC220>$AD$67,$AD$67*AB83,AC220*AB83) -> 157.7025716 | AD83: =IF(AD220>$AD$67,$AD$67*AC83,AD220*AC83) -> 164.0106745 | AE83: =IF(AE220>$AD$67,$AD$67*AD83,AE220*AD83) -> 170.5711015 | AF83: =IF(AF220>$AD$67,$AD$67*AE83,AF220*AE83) -> 177.0702788 | AG83: =IF(AG220>$AD$67,$AD$67*AF83,AG220*AF83) -> 184.1530899 | AH83: =IF(AH220>$AD$67,$AD$67*AG83,AH220*AG83) -> 190.7292461 | AI83: =IF(AI220>$AD$67,$AD$67*AH83,AI220*AH83) -> 194.8209551 | AJ83: =IF(AJ220>$AD$67,$AD$67*AI83,AJ220*AI83) -> 201.4129281 | AK83: =IF(AK220>$AD$67,$AD$67*AJ83,AK220*AJ83) -> 208.2637362 | AL83: =IF(AL220>$AD$67,$AD$67*AK83,AL220*AK83) -> 214.2569977 | AM83: =IF(AM220>$AD$67,$AD$67*AL83,AM220*AL83) -> 219.9199478
G84: Forecast - 10% PoE | V84: 131.8516397 | W84: 144.6392218 | X84: 148.0827498 | Y84: 157.9029509 | Z84: 152.6363506 | AA84: 154.6390041 | AB84: =AB83*AB246 -> 162.5770601 | AC84: =AC83*AC246 -> 166.8993992 | AD84: =AD83*AD246 -> 172.8385319 | AE84: =AE83*AE246 -> 181.8397615 | AF84: =AF83*AF246 -> 186.6187277 | AG84: =AG83*AG246 -> 196.5327957 | AH84: =AH83*AH246 -> 200.8561099 | AI84: =AI83*AI246 -> 207.863856 | AJ84: =AJ83*AJ246 -> 211.5723754 | AK84: =AK83*AK246 -> 220.260529 | AL84: =AL83*AL246 -> 227.3394137 | AM84: =AM83*AM246 -> 231.5921493
Q86: 2004 | R86: 2005 | S86: 2006 | T86: 2007 | U86: 2008 | V86: 2009 | W86: 2010 | X86: 2011 | Y86: 2012 | Z86: 2013 | AA86: 2014 | AB86: 2015 | AC86: 2016 | AD86: 2017 | AE86: 2018 | AF86: 2019 | AG86: 2020 | AH86: 2021 | AI86: 2022 | AJ86: 2023 | AK86: 2024 | AL86: 2025 | AM86: 2026
G87: Annual maxima | U87: =MAX(U75,U81) -> 174.2139282 | V87: 171.8561554 | W87: 167.9761047 | X87: 165.661438 | Y87: 189.5263977 | Z87: 205.0396271 | AA87: =MAX(AA75,AA81) -> 181.6613312
G88: Forecast - 90% PoE | V88: 148.3606273 | W88: 152.8067171 | X88: 164.8320367 | Y88: 166.1618272 | Z88: 174.6527767 | AA88: 175.2714341 | AB88: =AB89*AB250 -> 180.1205655 | AC88: =AC89*AC250 -> 186.4196023 | AD88: =AD89*AD250 -> 192.1045403 | AE88: =AE89*AE250 -> 200.2480366 | AF88: =AF89*AF250 -> 207.6557992 | AG88: =AG89*AG250 -> 214.2885524 | AH88: =AH89*AH250 -> 223.508263 | AI88: =AI89*AI250 -> 230.4926615 | AJ88: =AJ89*AJ250 -> 239.4326209 | AK88: =AK89*AK250 -> 244.3772828 | AL88: =AL89*AL250 -> 254.7928089 | AM88: =AM89*AM250 -> 261.1793663
G89: Forecast - 50% PoE | V89: 161.1071594 | W89: 164.5138382 | X89: 178.6998693 | Y89: 179.3099801 | Z89: 190.2306159 | AA89: 191.2877692 | AB89: =AD$66*IF(AB226>$AD$67,$AD$67*AA89,AB226*AA89) -> 198.9392799 | AC89: =IF(AC226>$AD$67,$AD$67*AB89,AC226*AB89) -> 206.8968511 | AD89: =IF(AD226>$AD$67,$AD$67*AC89,AD226*AC89) -> 215.1727252 | AE89: =IF(AE226>$AD$67,$AD$67*AD89,AE226*AD89) -> 223.7796342 | AF89: =IF(AF226>$AD$67,$AD$67*AE89,AF226*AE89) -> 232.7308195 | AG89: =IF(AG226>$AD$67,$AD$67*AF89,AG226*AF89) -> 242.0400523 | AH89: =IF(AH226>$AD$67,$AD$67*AG89,AH226*AG89) -> 250.4103081 | AI89: =IF(AI226>$AD$67,$AD$67*AH89,AI226*AH89) -> 260.4267205 | AJ89: =IF(AJ226>$AD$67,$AD$67*AI89,AJ226*AI89) -> 270.8437893 | AK89: =IF(AK226>$AD$67,$AD$67*AJ89,AK226*AJ89) -> 281.6775409 | AL89: =IF(AL226>$AD$67,$AD$67*AK89,AL226*AK89) -> 292.9446425 | AM89: =IF(AM226>$AD$67,$AD$67*AL89,AM226*AL89) -> 304.6624282
A90: Time of use tariffs | G90: Forecast - 10% PoE | V90: 181.48489 | W90: 182.1772308 | X90: 197.3566516 | Y90: 195.5679824 | Z90: 206.73649 | AA90: 208.0066037 | AB90: =AB89*AB252 -> 220.7429228 | AC90: =AC89*AC252 -> 230.2707716 | AD90: =AD89*AD252 -> 236.5490126 | AE90: =AE89*AE252 -> 247.3978315 | AF90: =AF89*AF252 -> 255.2490272 | AG90: =AG89*AG252 -> 264.3763631 | AH90: =AH89*AH252 -> 276.175566 | AI90: =AI89*AI252 -> 288.0759408 | AJ90: =AJ89*AJ252 -> 300.5083085 | AK90: =AK89*AK252 -> 312.506682 | AL90: =AL89*AL252 -> 327.2818114 | AM90: =AM89*AM252 -> 343.1582986
B91: Current | C91: 0.2396818553
B92: Residential demand on time of use tariffs by 2025 | C92: 0.5
G93: Summer block load adjustments
B94: CDD critical temperature | C94: 18.5 | Q94: 2014/15 | R94: 2015/16 | S94: 2016/17 | T94: 2017/18 | U94: 2018/19 | V94: 2019/20 | W94: 2020/21 | X94: 2021/22 | Y94: 2022/23 | Z94: 2023/24 | AA94: 2024/25 | AB94: 2025/26 | AC94: 2026/27
B95: HDD critical temperature | C95: 16.5 | G95: Average energy use
G96: Maximum demand | Q96: =INDEX('Block Loads'!B$3:B$30,$D$3) -> 0 | R96: =INDEX('Block Loads'!C$3:C$30,$D$3) -> 0 | S96: =INDEX('Block Loads'!D$3:D$30,$D$3) -> 0 | T96: =INDEX('Block Loads'!E$3:E$30,$D$3) -> 4.8 | U96: =INDEX('Block Loads'!F$3:F$30,$D$3) -> 4.8 | V96: =INDEX('Block Loads'!G$3:G$30,$D$3) -> 4.8 | W96: =INDEX('Block Loads'!H$3:H$30,$D$3) -> 4.8 | X96: =INDEX('Block Loads'!I$3:I$30,$D$3) -> 4.8 | Y96: =INDEX('Block Loads'!J$3:J$30,$D$3) -> 4.8 | Z96: =INDEX('Block Loads'!K$3:K$30,$D$3) -> 4.8 | AA96: =INDEX('Block Loads'!L$3:L$30,$D$3) -> 4.8 | AB96: =INDEX('Block Loads'!M$3:M$30,$D$3) -> 4.8 | AC96: =INDEX('Block Loads'!N$3:N$30,$D$3) -> 4.8
G97: Forecast - 90% PoE | Q97: =Q96 -> 0 | R97: =R96 -> 0 | S97: 0 | T97: 4.8 | U97: 4.8 | V97: 4.8 | W97: 4.8 | X97: 4.8 | Y97: 4.8 | Z97: 4.8 | AA97: 4.8 | AB97: 4.8 | AC97: 4.8
G98: Forecast - 50% PoE | Q98: =Q97 -> 0 | R98: 0 | S98: 0 | T98: 4.8 | U98: 4.8 | V98: 4.8 | W98: 4.8 | X98: 4.8 | Y98: 4.8 | Z98: 4.8 | AA98: 4.8 | AB98: 4.8 | AC98: 4.8
G99: Forecast - 10% PoE | Q99: =Q98 -> 0 | R99: 0 | S99: 0 | T99: 4.8 | U99: 4.8 | V99: 4.8 | W99: 4.8 | X99: 4.8 | Y99: 4.8 | Z99: 4.8 | AA99: 4.8 | AB99: 4.8 | AC99: 4.8
G101: Winter block load adjustments
Q102: 2014 | R102: 2015 | S102: 2016 | T102: 2017 | U102: 2018 | V102: 2019 | W102: 2020 | X102: 2021 | Y102: 2022 | Z102: 2023 | AA102: 2024 | AB102: 2025 | AC102: 2026
G103: Average energy use
G104: Maximum demand | Q104: =INDEX('Block Loads'!P$3:P$30,$D$3) -> 0 | R104: =INDEX('Block Loads'!Q$3:Q$30,$D$3) -> 0 | S104: =INDEX('Block Loads'!R$3:R$30,$D$3) -> 0 | T104: =INDEX('Block Loads'!S$3:S$30,$D$3) -> 4.8 | U104: =INDEX('Block Loads'!T$3:T$30,$D$3) -> 4.8 | V104: =INDEX('Block Loads'!U$3:U$30,$D$3) -> 4.8 | W104: =INDEX('Block Loads'!V$3:V$30,$D$3) -> 4.8 | X104: =INDEX('Block Loads'!W$3:W$30,$D$3) -> 4.8 | Y104: =INDEX('Block Loads'!X$3:X$30,$D$3) -> 4.8 | Z104: =INDEX('Block Loads'!Y$3:Y$30,$D$3) -> 4.8 | AA104: =INDEX('Block Loads'!Z$3:Z$30,$D$3) -> 4.8 | AB104: =INDEX('Block Loads'!AA$3:AA$30,$D$3) -> 4.8 | AC104: =INDEX('Block Loads'!AB$3:AB$30,$D$3) -> 4.8
G105: Forecast - 90% PoE | Q105: =Q104 -> 0 | R105: =R104 -> 0 | S105: 0 | T105: 4.8 | U105: 4.8 | V105: 4.8 | W105: 4.8 | X105: 4.8 | Y105: 4.8 | Z105: 4.8 | AA105: 4.8 | AB105: 4.8 | AC105: 4.8
G106: Forecast - 50% PoE | Q106: =Q105 -> 0 | R106: 0 | S106: 0 | T106: 4.8 | U106: 4.8 | V106: 4.8 | W106: 4.8 | X106: 4.8 | Y106: 4.8 | Z106: 4.8 | AA106: 4.8 | AB106: 4.8 | AC106: 4.8
G107: Forecast - 10% PoE | Q107: 0 | R107: 0 | S107: 0 | T107: 4.8 | U107: 4.8 | V107: 4.8 | W107: 4.8 | X107: 4.8 | Y107: 4.8 | Z107: 4.8 | AA107: 4.8 | AB107: 4.8 | AC107: 4.8
G109: Annual block load adjustments
Q110: 2014 | R110: 2015 | S110: 2016 | T110: 2017 | U110: 2018 | V110: 2019 | W110: 2020 | X110: 2021 | Y110: 2022 | Z110: 2023 | AA110: 2024 | AB110: 2025 | AC110: 2026
G111: Average energy use
G112: Maximum demand | Q112: =INDEX('Block Loads'!AD$3:AD$30,$D$3) -> 0 | R112: =INDEX('Block Loads'!AE$3:AE$30,$D$3) -> 0 | S112: =INDEX('Block Loads'!AF$3:AF$30,$D$3) -> 0 | T112: =INDEX('Block Loads'!AG$3:AG$30,$D$3) -> 4.8 | U112: =INDEX('Block Loads'!AH$3:AH$30,$D$3) -> 4.8 | V112: =INDEX('Block Loads'!AI$3:AI$30,$D$3) -> 4.8 | W112: =INDEX('Block Loads'!AJ$3:AJ$30,$D$3) -> 4.8 | X112: =INDEX('Block Loads'!AK$3:AK$30,$D$3) -> 4.8 | Y112: =INDEX('Block Loads'!AL$3:AL$30,$D$3) -> 4.8 | Z112: =INDEX('Block Loads'!AM$3:AM$30,$D$3) -> 4.8 | AA112: =INDEX('Block Loads'!AN$3:AN$30,$D$3) -> 4.8 | AB112: =INDEX('Block Loads'!AO$3:AO$30,$D$3) -> 4.8 | AC112: =INDEX('Block Loads'!AP$3:AP$30,$D$3) -> 4.8
G113: Forecast - 90% PoE | Q113: =Q112 -> 0 | R113: =R112 -> 0 | S113: 0 | T113: 4.8 | U113: 4.8 | V113: 4.8 | W113: 4.8 | X113: 4.8 | Y113: 4.8 | Z113: 4.8 | AA113: 4.8 | AB113: 4.8 | AC113: 4.8
G114: Forecast - 50% PoE | Q114: =Q112 -> 0 | R114: =R112 -> 0 | S114: 0 | T114: 4.8 | U114: 4.8 | V114: 4.8 | W114: 4.8 | X114: 4.8 | Y114: 4.8 | Z114: 4.8 | AA114: 4.8 | AB114: 4.8 | AC114: 4.8
G115: Forecast - 10% PoE | Q115: =Q112 -> 0 | R115: =R112 -> 0 | S115: 0 | T115: 4.8 | U115: 4.8 | V115: 4.8 | W115: 4.8 | X115: 4.8 | Y115: 4.8 | Z115: 4.8 | AA115: 4.8 | AB115: 4.8 | AC115: 4.8
G117: Windfarm Adjustment
Q118: 2014 | R118: 2015 | S118: 2016 | T118: 2017 | U118: 2018 | V118: 2019 | W118: 2020 | X118: 2021 | Y118: 2022 | Z118: 2023 | AA118: 2024 | AB118: 2025 | AC118: 2026
G119: Average energy use
G120: Maximum demand | Q120: =$R$120 -> -8.463222968 | R120: -8.463222968 | S120: =$R$120 -> -8.463222968 | T120: -8.463222968 | U120: -8.463222968 | V120: -8.463222968 | W120: -8.463222968 | X120: -8.463222968 | Y120: -8.463222968 | Z120: -8.463222968 | AA120: -8.463222968 | AB120: -8.463222968 | AC120: -8.463222968
G122: Solar Adjustment
G123: New major customers | Q123: 2014 | R123: 2015 | S123: 2016 | T123: 2017 | U123: 2018 | V123: 2019 | W123: 2020 | X123: 2021 | Y123: 2022 | Z123: 2023 | AA123: 2024 | AB123: 2025 | AC123: 2026
G124: Average energy use
G125: Maximum demand | R125: =(INDEX('Technology Adjustments'!C$6:C$33,$D$3)/1000)-INDEX('Technology Adjustments'!$P$6:$P$33,$D$3)*0.44/(0.18*8.76)*R129 -> 0.9659966225 | S125: =(INDEX('Technology Adjustments'!D$6:D$33,$D$3)/1000)-INDEX('Technology Adjustments'!$P$6:$P$33,$D$3)*0.44/(0.18*8.76)*S129 -> 1.936908463 | T125: =(INDEX('Technology Adjustments'!E$6:E$33,$D$3)/1000)-INDEX('Technology Adjustments'!$P$6:$P$33,$D$3)*0.44/(0.18*8.76)*T129 -> 2.958389482 | U125: =(INDEX('Technology Adjustments'!F$6:F$33,$D$3)/1000)-INDEX('Technology Adjustments'!$P$6:$P$33,$D$3)*0.44/(0.18*8.76)*U129 -> 3.906853487 | V125: =(INDEX('Technology Adjustments'!G$6:G$33,$D$3)/1000)-INDEX('Technology Adjustments'!$P$6:$P$33,$D$3)*0.44/(0.18*8.76)*V129 -> 4.741099557 | W125: =(INDEX('Technology Adjustments'!H$6:H$33,$D$3)/1000)-INDEX('Technology Adjustments'!$P$6:$P$33,$D$3)*0.44/(0.18*8.76)*W129 -> 5.501430435 | X125: =(INDEX('Technology Adjustments'!I$6:I$33,$D$3)/1000)-INDEX('Technology Adjustments'!$P$6:$P$33,$D$3)*0.44/(0.18*8.76)*X129 -> 6.269922101 | Y125: =(INDEX('Technology Adjustments'!J$6:J$33,$D$3)/1000)-INDEX('Technology Adjustments'!$P$6:$P$33,$D$3)*0.44/(0.18*8.76)*Y129 -> 6.961408754 | Z125: =(INDEX('Technology Adjustments'!K$6:K$33,$D$3)/1000)-INDEX('Technology Adjustments'!$P$6:$P$33,$D$3)*0.44/(0.18*8.76)*Z129 -> 7.627527359 | AA125: =(INDEX('Technology Adjustments'!L$6:L$33,$D$3)/1000)-INDEX('Technology Adjustments'!$P$6:$P$33,$D$3)*0.44/(0.18*8.76)*AA129 -> 8.192393169 | AB125: =(INDEX('Technology Adjustments'!M$6:M$33,$D$3)/1000)-INDEX('Technology Adjustments'!$P$6:$P$33,$D$3)*0.44/(0.18*8.76)*AB129 -> 8.627351261 | AC125: =(INDEX('Technology Adjustments'!N$6:N$33,$D$3)/1000)-(INDEX('Technology Adjustments'!$P$6:$P$33,$D$3)*AC129)*0.44/(0.18*8.76) -> 9.121612982
G126: Forecast - 90% PoE | R126: =R$125 -> 0.9659966225 | S126: 1.936908463 | T126: 2.958389482 | U126: 3.906853487 | V126: 4.741099557 | W126: 5.501430435 | X126: 6.269922101 | Y126: 6.961408754 | Z126: 7.627527359 | AA126: 8.192393169 | AB126: 8.627351261 | AC126: 9.121612982
G127: Forecast - 50% PoE | R127: 0.9659966225 | S127: 1.936908463 | T127: 2.958389482 | U127: 3.906853487 | V127: 4.741099557 | W127: 5.501430435 | X127: 6.269922101 | Y127: 6.961408754 | Z127: 7.627527359 | AA127: 8.192393169 | AB127: 8.627351261 | AC127: 9.121612982
G128: Forecast - 10% PoE | R128: 0.9659966225 | S128: 1.936908463 | T128: 2.958389482 | U128: 3.906853487 | V128: 4.741099557 | W128: 5.501430435 | X128: 6.269922101 | Y128: 6.961408754 | Z128: 7.627527359 | AA128: 8.192393169 | AB128: 8.627351261 | AC128: 9.121612982
G129: Used to subtract historical trend | R129: 1 | S129: 2 | T129: 3 | U129: 4 | V129: 5 | W129: 6 | X129: 7 | Y129: 8 | Z129: 9 | AA129: 10 | AB129: 11 | AC129: 12
G131: Technology Adjustment
G132: New major customers | Q132: 2014 | R132: 2015 | S132: 2016 | T132: 2017 | U132: 2018 | V132: 2019 | W132: 2020 | X132: 2021 | Y132: 2022 | Z132: 2023 | AA132: 2024 | AB132: 2025 | AC132: 2026
G133: Average energy use
G134: Maximum demand | R134: 0 | S134: 0 | T134: 0 | U134: 0 | V134: 0 | W134: 0 | X134: 0 | Y134: 0 | Z134: 0 | AA134: 0 | AB134: 0 | AC134: 0
G135: Forecast - 90% PoE | R135: =R$134 -> 0 | S135: 0 | T135: 0 | U135: 0 | V135: 0 | W135: 0 | X135: 0 | Y135: 0 | Z135: 0 | AA135: 0 | AB135: 0 | AC135: 0
G136: Forecast - 50% PoE | R136: 0 | S136: 0 | T136: 0 | U136: 0 | V136: 0 | W136: 0 | X136: 0 | Y136: 0 | Z136: 0 | AA136: 0 | AB136: 0 | AC136: 0
G137: Forecast - 10% PoE | R137: 0 | S137: 0 | T137: 0 | U137: 0 | V137: 0 | W137: 0 | X137: 0 | Y137: 0 | Z137: 0 | AA137: 0 | AB137: 0 | AC137: 0
G139: Including Block Loads
Q140: 2004/05 | R140: 2005/06 | S140: 2006/07 | T140: 2007/08 | U140: 2008/09 | V140: 2009/10 | W140: 2010/11 | X140: 2011/12 | Y140: 2012/13 | Z140: 2013/14 | AA140: 2014/15 | AB140: 2015/16 | AC140: 2016/17 | AD140: 2017/18 | AE140: 2018/19 | AF140: 2019/20 | AG140: 2020/21 | AH140: 2021/22 | AI140: 2022/23 | AJ140: 2023/24 | AK140: 2024/25 | AL140: 2025/26 | AM140: 2026/27
G141: Summer maxima | T141: =T75 -> 154.2657166 | U141: 174.2139282 | V141: 171.8561554 | W141: 167.9761047 | X141: 165.661438 | Y141: 189.5263977 | Z141: 205.0396271 | AA141: =AA75 -> 181.6613312
G142: Forecast - 90% PoE | U142: =U76+K97-SUM(K125,K135) -> 142.0346463 | V142: 148.3606273 | W142: 152.514269 | X142: 164.8226541 | Y142: 165.6023286 | Z142: 174.6527767 | AA142: 175.2714341 | AB142: =AB76+R97-SUM(R125,R135)+S161 -> 179.1545688 | AC142: =AC76+S97-SUM(S125,S135)+T161 -> 184.4826938 | AD142: 193.9461509 | AE142: 201.1411831 | AF142: 207.7146997 | AG142: 213.587122 | AH142: 222.0383409 | AI142: 228.3312528 | AJ142: 236.6050935 | AK142: 240.9848896 | AL142: 250.9654577 | AM142: 256.8577533
G143: Forecast - 50% PoE | R143: =R77+H98-SUM(H126,H136) -> 0 | S143: 0 | T143: 0 | U143: 155.2993876 | V143: 161.1071594 | W143: 164.5138382 | X143: 178.6998693 | Y143: 179.3099801 | Z143: 190.2306159 | AA143: 191.2877692 | AB143: =AB77+R98-SUM(R126,R136)+S162 -> 197.9732833 | AC143: 204.9599427 | AD143: 217.0143357 | AE143: 224.6727807 | AF143: 232.78972 | AG143: 241.3386219 | AH143: 248.940386 | AI143: 258.2653117 | AJ143: 268.0162619 | AK143: 278.2851477 | AL143: 289.1172912 | AM143: =AM77+AC98-SUM(AC126,AC136)+AD162 -> 300.3408152
G144: Forecast - 10% PoE | R144: 0 | S144: 0 | T144: 0 | U144: 173.3186714 | V144: 181.48489 | W144: 182.1772308 | X144: 197.3566516 | Y144: 195.5679824 | Z144: 206.73649 | AA144: 208.0066037 | AB144: 219.7769262 | AC144: 228.3338631 | AD144: 238.3906231 | AE144: 248.290978 | AF144: 255.3079277 | AG144: 263.6749326 | AH144: 274.7056439 | AI144: 285.9145321 | AJ144: 297.6807811 | AK144: 309.1142889 | AL144: 323.4544602 | AM144: 338.8366856
Q146: 2004 | R146: 2005 | S146: 2006 | T146: 2007 | U146: 2008 | V146: 2009 | W146: 2010 | X146: 2011 | Y146: 2012 | Z146: 2013 | AA146: 2014 | AB146: 2015 | AC146: 2016 | AD146: 2017 | AE146: 2018 | AF146: 2019 | AG146: 2020 | AH146: 2021 | AI146: 2022 | AJ146: 2023 | AK146: 2024 | AL146: 2025 | AM146: 2026
G147: Winter maxima | Q147: =Q81 -> 0 | R147: 0 | S147: 0 | T147: 0 | U147: 119.7899323 | V147: 135.7650757 | W147: 124.5681152 | X147: 127.3487549 | Y147: 139.0238342 | Z147: 143.6216278 | AA147: =AA81 -> 140.5656433
G148: Forecast - 90% PoE | R148: =R82+H105-SUM(H126,H135) -> 0 | S148: 0 | T148: 0 | U148: 0 | V148: 121.4353863 | W148: 133.1524456 | X148: 136.9497424 | Y148: 144.7869791 | Z148: 141.0990163 | AA148: 141.8050012 | AB148: =AB82+R105-SUM(R126,R135)+S168 -> 146.0921514 | AC148: =AC82+S105-SUM(S126,S135)+T168 -> 151.2886528 | AD148: 161.1267954 | AE148: 166.3080485 | AF148: 172.0430285 | AG148: 178.135327 | AH148: 183.6224552 | AI148: 187.1055908 | AJ148: 192.6586457 | AK148: 198.8414742 | AL148: 203.9152032 | AM148: 209.4045043
G149: Forecast - 50% PoE | R149: 0 | S149: 0 | T149: 0 | U149: 0 | V149: 124.669092 | W149: 136.5335014 | X149: 140.3058451 | Y149: 148.5682698 | Z149: 144.732895 | AA149: 145.8048924 | AB149: =AB83+R106-SUM(R127,R136)+S169 -> 150.6710915 | AC149: 155.7656632 | AD149: 165.852285 | AE149: 171.464248 | AF149: 177.1291792 | AG149: 183.4516595 | AH149: 189.259324 | AI149: 192.6595463 | AJ149: 198.5854007 | AK149: 204.871343 | AL149: 210.4296464 | AM149: 215.5983348
G150: Forecast - 10% PoE | R150: 0 | S150: 0 | T150: 0 | U150: 0 | V150: 131.8516397 | W150: 144.6392218 | X150: 148.0827498 | Y150: 157.9029509 | Z150: 152.6363506 | AA150: 154.6390041 | AB150: 161.6110635 | AC150: 164.9624908 | AD150: 174.6801425 | AE150: 182.732908 | AF150: 186.6776282 | AG150: 195.8313653 | AH150: 199.3861878 | AI150: 205.7024473 | AJ150: 208.7448481 | AK150: 216.8681358 | AL150: 223.5120625 | AM150: 227.2705363
Q152: 2004 | R152: 2005 | S152: 2006 | T152: 2007 | U152: 2008 | V152: 2009 | W152: 2010 | X152: 2011 | Y152: 2012 | Z152: 2013 | AA152: 2014 | AB152: 2015 | AC152: 2016 | AD152: 2017 | AE152: 2018 | AF152: 2019 | AG152: 2020 | AH152: 2021 | AI152: 2022 | AJ152: 2023 | AK152: 2024 | AL152: 2025 | AM152: 2026
G153: Annual maxima | Q153: =MAX(Q75,Q81) -> 0 | R153: 0 | S153: 0 | T153: 154.2657166 | U153: 174.2139282 | V153: 171.8561554 | W153: 167.9761047 | X153: 165.661438 | Y153: 189.5263977 | Z153: 205.0396271 | AA153: 181.6613312
G154: Forecast - 90% PoE | R154: =R88+H113-SUM(H126,H135) -> 0 | S154: 0 | T154: 0 | U154: 0 | V154: 148.3606273 | W154: 152.8067171 | X154: 164.8320367 | Y154: 166.1618272 | Z154: 174.6527767 | AA154: 175.2714341 | AB154: =AB88+R113-SUM(R126,R135)+S175 -> 179.1545688 | AC154: =AC88+S113-SUM(S126,S135)+T175 -> 184.4826938 | AD154: 193.9461509 | AE154: 201.1411831 | AF154: 207.7146997 | AG154: 213.587122 | AH154: 222.0383409 | AI154: 228.3312528 | AJ154: 236.6050935 | AK154: 240.9848896 | AL154: 250.9654577 | AM154: 256.8577533
G155: Forecast - 50% PoE | R155: 0 | S155: 0 | T155: 0 | U155: 0 | V155: 161.1071594 | W155: 164.5138382 | X155: 178.6998693 | Y155: 179.3099801 | Z155: 190.2306159 | AA155: 191.2877692 | AB155: =AB89+R114-SUM(R127,R136)+S176 -> 197.9732833 | AC155: 204.9599427 | AD155: 217.0143357 | AE155: 224.6727807 | AF155: 232.78972 | AG155: 241.3386219 | AH155: 248.940386 | AI155: 258.2653117 | AJ155: 268.0162619 | AK155: 278.2851477 | AL155: 289.1172912 | AM155: 300.3408152
G156: Forecast - 10% PoE | R156: 0 | S156: 0 | T156: 0 | U156: 0 | V156: 181.48489 | W156: 182.1772308 | X156: 197.3566516 | Y156: 195.5679824 | Z156: 206.73649 | AA156: 208.0066037 | AB156: 219.7769262 | AC156: 228.3338631 | AD156: 238.3906231 | AE156: 248.290978 | AF156: 255.3079277 | AG156: 263.6749326 | AH156: =AH90+X115-SUM(X128,X137)+Y177 -> 274.7056439 | AI156: 285.9145321 | AJ156: 297.6807811 | AK156: 309.1142889 | AL156: 323.4544602 | AM156: 338.8366856
G158: Summer industrial adjustments (MW) | AF158: Summer industrial adjustments
Q159: 2013/14 | R159: 2014/15 | S159: 2015/16 | T159: 2016/17 | U159: 2017/18 | V159: 2018/19 | W159: 2019/20 | X159: 2020/21 | Y159: 2021/22 | Z159: 2022/23 | AA159: 2023/24 | AB159: 2024/25 | AC159: 2025/26 | AD159: 2026/27 | AF159: Peak industrial load | AH159: =CHOOSE($D$3,'Industrial adjustments'!C4,'Industrial adjustments'!C5,'Industrial adjustments'!C6,'Industrial adjustments'!C7,'Industrial adjustments'!C8,'Industrial adjustments'!C9,'Industrial adjustments'!C10,'Industrial adjustments'!C11,'Industrial adjustments'!C12,'Industrial adjustments'!C13,'Industrial adjustments'!C14,'Industrial adjustments'!C15,'Industrial adjustments'!C16,'Industrial adjustments'!C17,'Industrial adjustments'!C18,'Industrial adjustments'!C19,'Industrial adjustments'!C20,'Industrial adjustments'!C21,'Industrial adjustments'!C22,'Industrial adjustments'!C23,'Industrial adjustments'!C24,'Industrial adjustments'!C25,'Industrial adjustments'!C26,'Industrial adjustments'!C27,'Industrial adjustments'!C28,'Industrial adjustments'!C29,'Industrial adjustments'!C30,'Industrial adjustments'!C31) -> 0
G160: Peak industrial load | S160: =$AH$159 -> 0 | T160: 0 | U160: 0 | V160: 0 | W160: 0 | X160: 0 | Y160: 0 | Z160: 0 | AA160: 0 | AB160: 0 | AC160: =$AH$159 -> 0 | AD160: 0 | AF160: Proportion of MD | AH160: =AH159/AA75 -> 0
G161: Forecast - 90% PoE | S161: =-AB76*$AH$160+S$160 -> 0 | T161: 0 | U161: 0 | V161: 0 | W161: 0 | X161: 0 | Y161: 0 | Z161: 0 | AA161: 0 | AB161: 0 | AC161: =-AL76*$AH$160+AC$160 -> 0 | AD161: 0
G162: Forecast - 50% PoE | S162: 0 | T162: 0 | U162: 0 | V162: 0 | W162: 0 | X162: 0 | Y162: 0 | Z162: 0 | AA162: 0 | AB162: 0 | AC162: 0 | AD162: 0
G163: Forecast - 10% PoE | S163: 0 | T163: 0 | U163: 0 | V163: 0 | W163: 0 | X163: 0 | Y163: 0 | Z163: 0 | AA163: 0 | AB163: 0 | AC163: 0 | AD163: 0
G165: Winter industrial adjustments (MW) | AF165: Winter industrial adjustments
Q166: 2013 | R166: 2014 | S166: 2015 | T166: 2016 | U166: 2017 | V166: 2018 | W166: 2019 | X166: 2020 | Y166: 2021 | Z166: 2022 | AA166: 2023 | AB166: 2024 | AC166: 2025 | AD166: 2026 | AF166: Peak industrial load | AH166: =CHOOSE($D$3,'Industrial adjustments'!C36,'Industrial adjustments'!C37,'Industrial adjustments'!C38,'Industrial adjustments'!C39,'Industrial adjustments'!C40,'Industrial adjustments'!C41,'Industrial adjustments'!C42,'Industrial adjustments'!C43,'Industrial adjustments'!C44,'Industrial adjustments'!C45,'Industrial adjustments'!C46,'Industrial adjustments'!C47,'Industrial adjustments'!C48,'Industrial adjustments'!C49,'Industrial adjustments'!C50,'Industrial adjustments'!C51,'Industrial adjustments'!C52,'Industrial adjustments'!C53,'Industrial adjustments'!C54,'Industrial adjustments'!C55,'Industrial adjustments'!C56,'Industrial adjustments'!C57,'Industrial adjustments'!C58,'Industrial adjustments'!C59,'Industrial adjustments'!C60,'Industrial adjustments'!C61,'Industrial adjustments'!C62,'Industrial adjustments'!C63) -> 0
G167: Peak industrial load | R167: =$AH$166 -> 0 | S167: 0 | T167: 0 | U167: 0 | V167: 0 | W167: 0 | X167: 0 | Y167: 0 | Z167: 0 | AA167: 0 | AB167: 0 | AC167: =$AH$166 -> 0 | AD167: 0 | AF167: Maximum demand | AH167: =AH166/Z81 -> 0
G168: Forecast - 90% PoE | R168: =-AA82*$AH$167+R$167 -> 0 | S168: 0 | T168: 0 | U168: 0 | V168: 0 | W168: 0 | X168: 0 | Y168: 0 | Z168: 0 | AA168: 0 | AB168: 0 | AC168: =-AL82*$AH$167+AC$167 -> 0 | AD168: 0
G169: Forecast - 50% PoE | R169: 0 | S169: 0 | T169: 0 | U169: 0 | V169: 0 | W169: 0 | X169: 0 | Y169: 0 | Z169: 0 | AA169: 0 | AB169: 0 | AC169: 0 | AD169: 0
G170: Forecast - 10% PoE | R170: 0 | S170: 0 | T170: 0 | U170: 0 | V170: 0 | W170: 0 | X170: 0 | Y170: 0 | Z170: 0 | AA170: 0 | AB170: 0 | AC170: 0 | AD170: 0
G172: Annual industrial adjustments (MW)
Q173: 2013 | R173: 2014 | S173: 2015 | T173: 2016 | U173: 2017 | V173: 2018 | W173: 2019 | X173: 2020 | Y173: 2021 | Z173: 2022 | AA173: 2023 | AB173: 2024 | AC173: 2025 | AD173: 2026
G174: Peak industrial load | S174: =$AH$159 -> 0 | T174: 0 | U174: 0 | V174: 0 | W174: 0 | X174: 0 | Y174: 0 | Z174: 0 | AA174: 0 | AB174: 0 | AC174: =$AH$159 -> 0 | AD174: 0
G175: Forecast - 90% PoE | S175: =-$AH$160*AB88+S$174 -> 0 | T175: 0 | U175: 0 | V175: 0 | W175: 0 | X175: 0 | Y175: 0 | Z175: 0 | AA175: 0 | AB175: 0 | AC175: =-$AH$160*AL88+AC$174 -> 0 | AD175: 0
G176: Forecast - 50% PoE | S176: 0 | T176: 0 | U176: 0 | V176: 0 | W176: 0 | X176: 0 | Y176: 0 | Z176: 0 | AA176: 0 | AB176: 0 | AC176: 0 | AD176: 0
G177: Forecast - 10% PoE | S177: 0 | T177: 0 | U177: 0 | V177: 0 | W177: 0 | X177: 0 | Y177: 0 | Z177: 0 | AA177: 0 | AB177: 0 | AC177: 0 | AD177: 0
G179: Original Pre Adjustment B4 cap
Q180: 2004 | R180: 2005 | S180: 2006 | T180: 2007 | U180: 2008 | V180: 2009 | W180: 2010 | X180: 2011 | Y180: 2012 | Z180: 2013 | AA180: 2014 | AB180: 2015 | AC180: 2016 | AD180: 2017 | AE180: 2018 | AF180: 2019 | AG180: 2020 | AH180: 2021 | AI180: 2022 | AJ180: 2023 | AK180: 2024 | AL180: 2025 | AM180: 2026
G181: Average energy use | U181: 76.34984811 | V181: 79.75836976 | W181: 82.67696857 | X181: 87.04480553 | Y181: 88.82189178 | Z181: 90.37358316 | AA181: 88.93606917
G182: Forecast average energy use | U182: 78.91134517 | V182: 78.91134517 | W182: 82.65101544 | X182: 86.17382296 | Y182: 88.18875554 | Z182: 88.21555603 | AA182: 92.54642667 | AB182: 97.61553693 | AC182: 101.8767688 | AD182: 106.0504644 | AE182: 110.0355709 | AF182: 114.0553428 | AG182: 117.9696427 | AH182: 120.848679 | AI182: 123.5798013 | AJ182: 127.2910632 | AK182: 130.6638762 | AL182: 133.6949995 | AM182: 136.7594842
G183: Low forecast | AA183: =AA182 -> 92.54642667 | AB183: 96.87562283 | AC183: 100.5355632 | AD183: 104.1751699 | AE183: 107.0926794 | AF183: 109.3801495 | AG183: 111.1959143 | AH183: 112.5206915 | AI183: 114.1641056 | AJ183: 116.5194161 | AK183: 118.7501227 | AL183: 120.8758676 | AM183: 123.017531
G184: High forecast | AA184: =AA183 -> 92.54642667 | AB184: 98.20315575 | AC184: 104.6931571 | AD184: 111.6587256 | AE184: 116.9025907 | AF184: 122.2718532 | AG184: 127.4869466 | AH184: 132.0037031 | AI184: 136.2508733 | AJ184: 140.9350264 | AK184: 145.2851463 | AL184: 149.0760562 | AM184: 152.7287873
Q186: 2004/05 | R186: 2005/06 | S186: 2006/07 | T186: 2007/08 | U186: 2008/09 | V186: 2009/10 | W186: 2010/11 | X186: 2011/12 | Y186: 2012/13 | Z186: 2013/14 | AA186: 2014/15 | AB186: 2015/16 | AC186: 2016/17 | AD186: 2017/18 | AE186: 2018/19 | AF186: 2019/20 | AG186: 2020/21 | AH186: 2021/22 | AI186: 2022/23 | AJ186: 2023/24 | AK186: 2024/25 | AL186: 2025/26 | AM186: 2026/27
G187: Summer maxima | T187: 154.2657166 | U187: 174.2139282 | V187: 171.8561554 | W187: 167.9761047 | X187: 165.661438 | Y187: 189.5263977 | Z187: 205.0396271 | AA187: 181.6613312
G188: Forecast - 90% PoE | U188: 142.0346463 | V188: 148.3606273 | W188: 152.514269 | X188: 164.8226541 | Y188: 165.6023286 | Z188: 174.6527767 | AA188: 175.2714341 | AB188: 188.8375993 | AC188: 200.3799491 | AD188: 212.1876673 | AE188: 226.7274139 | AF188: 240.5556259 | AG188: 252.5274353 | AH188: 263.3923642 | AI188: 277.8448063 | AJ188: 294.5730889 | AK188: 304.7402398 | AL188: 323.5965537 | AM188: 335.1149337
G189: Forecast - 50% PoE | U189: 155.2993876 | V189: 161.1071594 | W189: 164.5138382 | X189: 178.6998693 | Y189: 179.3099801 | Z189: 190.2306159 | AA189: 191.2877692 | AB189: 208.5670558 | AC189: 222.3906712 | AD189: 237.6674624 | AE189: 253.3706627 | AF189: 269.6033926 | AG189: 285.2310727 | AH189: 295.0949651 | AI189: 313.9284835 | AJ189: 333.218136 | AK189: 351.2539315 | AL189: 372.0508327 | AM189: 390.9073327
G190: Forecast - 10% PoE | U190: 173.3186714 | V190: 181.48489 | W190: 182.1772308 | X190: 197.3566516 | Y190: 195.5679824 | Z190: 206.73649 | AA190: 208.0066037 | AB190: 231.425898 | AC190: 247.5149872 | AD190: 261.2784846 | AE190: 280.1119627 | AF190: 295.6892595 | AG190: 311.5532033 | AH190: 325.457924 | AI190: 347.2579276 | AJ190: 369.7142868 | AK190: 389.6980936 | AL190: 415.6603427 | AM190: 440.3007486
Q192: 2004 | R192: 2005 | S192: 2006 | T192: 2007 | U192: 2008 | V192: 2009 | W192: 2010 | X192: 2011 | Y192: 2012 | Z192: 2013 | AA192: 2014 | AB192: 2015 | AC192: 2016 | AD192: 2017 | AE192: 2018 | AF192: 2019 | AG192: 2020 | AH192: 2021 | AI192: 2022 | AJ192: 2023 | AK192: 2024 | AL192: 2025 | AM192: 2026
G193: Winter maxima | U193: 119.7899323 | V193: 135.7650757 | W193: 124.5681152 | X193: 127.3487549 | Y193: 139.0238342 | Z193: 143.6216278 | AA193: 140.5656433
G194: Forecast - 90% PoE | V194: 121.4353863 | W194: 133.1524456 | X194: 136.9497424 | Y194: 144.7869791 | Z194: 141.0990163 | AA194: 141.8050012 | AB194: 149.1177489 | AC194: 156.0697998 | AD194: 163.1192704 | AE194: 169.7079497 | AF194: 176.4476683 | AG194: 184.2481551 | AH194: 190.6930629 | AI194: 194.9940045 | AJ194: 201.4013631 | AK194: 208.3532351 | AL194: 214.0286088 | AM194: 220.1932274
G195: Forecast - 50% PoE | V195: 124.669092 | W195: 136.5335014 | X195: 140.3058451 | Y195: 148.5682698 | Z195: 144.732895 | AA195: 145.8048924 | AB195: 153.7608187 | AC195: 160.6299144 | AD195: 167.9585053 | AE195: 174.9979691 | AF195: 181.6658209 | AG195: 189.7253537 | AH195: 196.500497 | AI195: 200.7160164 | AJ195: 207.5074551 | AK195: 214.5655609 | AL195: 220.7401716 | AM195: 226.5744762
G196: Forecast - 10% PoE | V196: 131.8516397 | W196: 144.6392218 | X196: 148.0827498 | Y196: 157.9029509 | Z196: 152.6363506 | AA196: 154.6390041 | AB196: 164.8540088 | AC196: 169.9974574 | AD196: 176.9988543 | AE196: 186.559087 | AF196: 191.4620828 | AG196: 202.4796554 | AH196: 206.9337882 | AI196: 214.1535808 | AJ196: 217.9743158 | AK196: 226.925363 | AL196: 234.2184468 | AM196: 238.5998653
Q198: 2004 | R198: 2005 | S198: 2006 | T198: 2007 | U198: 2008 | V198: 2009 | W198: 2010 | X198: 2011 | Y198: 2012 | Z198: 2013 | AA198: 2014 | AB198: 2015 | AC198: 2016 | AD198: 2017 | AE198: 2018 | AF198: 2019 | AG198: 2020 | AH198: 2021 | AI198: 2022 | AJ198: 2023 | AK198: 2024 | AL198: 2025 | AM198: 2026
G199: Annual maxima | U199: =MAX(U187,U193) -> 174.2139282 | V199: 171.8561554 | W199: 167.9761047 | X199: 165.661438 | Y199: 189.5263977 | Z199: 205.0396271 | AA199: =MAX(AA187,AA193) -> 181.6613312
G200: Forecast - 90% PoE | V200: 148.3606273 | W200: 152.8067171 | X200: 164.8320367 | Y200: 166.1618272 | Z200: 174.6527767 | AA200: 175.2714341 | AB200: 188.8375993 | AC200: 200.3799491 | AD200: 212.1876673 | AE200: 226.7274139 | AF200: 240.5556259 | AG200: 252.5274353 | AH200: 263.3923642 | AI200: 277.8448063 | AJ200: 294.5730889 | AK200: 304.7402398 | AL200: 323.5965537 | AM200: 335.1149337
G201: Forecast - 50% PoE | V201: 161.1071594 | W201: 164.5138382 | X201: 178.6998693 | Y201: 179.3099801 | Z201: 190.2306159 | AA201: 191.2877692 | AB201: 208.5670558 | AC201: 222.3906712 | AD201: 237.6674624 | AE201: 253.3706627 | AF201: 269.6033926 | AG201: 285.2310727 | AH201: 295.0949651 | AI201: 313.9284835 | AJ201: 333.218136 | AK201: 351.2539315 | AL201: 372.0508327 | AM201: 390.9073327
G202: Forecast - 10% PoE | V202: 181.48489 | W202: 182.1772308 | X202: 197.3566516 | Y202: 195.5679824 | Z202: 206.73649 | AA202: 208.0066037 | AB202: 231.425898 | AC202: 247.5149872 | AD202: 261.2784846 | AE202: 280.1119627 | AF202: 295.6892595 | AG202: 311.5532033 | AH202: 325.457924 | AI202: 347.2579276 | AJ202: 369.7142868 | AK202: 389.6980936 | AL202: 415.6603427 | AM202: 440.3007486
G204: Original Pre Adjustment growth p.a. B4 cap
Q205: 2004 | R205: 2005 | S205: 2006 | T205: 2007 | U205: 2008 | V205: 2009 | W205: 2010 | X205: 2011 | Y205: 2012 | Z205: 2013 | AA205: 2014 | AB205: 2015 | AC205: 2016 | AD205: 2017 | AE205: 2018 | AF205: 2019 | AG205: 2020 | AH205: 2021 | AI205: 2022 | AJ205: 2023 | AK205: 2024 | AL205: 2025 | AM205: 2026
G206: Average energy use
G207: Forecast average energy use | AB207: =AB182/AA182 -> 1.054773701 | AC207: =AC182/AB182 -> 1.043653213 | AD207: 1.04096808 | AE207: 1.037577455 | AF207: 1.036531568 | AG207: 1.034319303 | AH207: 1.024404891 | AI207: 1.022599522 | AJ207: 1.030031298 | AK207: 1.026496856 | AL207: 1.023197867 | AM207: 1.022921461
G208: Low forecast | AB208: =AB183/AA183 -> 1.046778642 | AC208: 1.037779787 | AD208: 1.036202181 | AE208: 1.028005804 | AF208: 1.021359725 | AG208: 1.016600496 | AH208: 1.011913902 | AI208: 1.014605438 | AJ208: 1.02063092 | AK208: 1.019144505 | AL208: 1.017900991 | AM208: 1.017717875
G209: High forecast | AB209: =AB184/AA184 -> 1.06112315 | AC209: 1.066087503 | AD209: 1.066533178 | AE209: 1.046963326 | AF209: 1.045929371 | AG209: 1.042651627 | AH209: 1.035429168 | AI209: 1.032174629 | AJ209: 1.034378885 | AK209: 1.030866138 | AL209: 1.026092894 | AM209: 1.024502467
Q211: 2004/05 | R211: 2005/06 | S211: 2006/07 | T211: 2007/08 | U211: 2008/09 | V211: 2009/10 | W211: 2010/11 | X211: 2011/12 | Y211: 2012/13 | Z211: 2013/14 | AA211: 2014/15 | AB211: 2015/16 | AC211: 2016/17 | AD211: 2017/18 | AE211: 2018/19 | AF211: 2019/20 | AG211: 2020/21 | AH211: 2021/22 | AI211: 2022/23 | AJ211: 2023/24 | AK211: 2024/25 | AL211: 2025/26 | AM211: 2026/27
G212: Summer maxima
G213: Forecast - 90% PoE | AB213: =AB188/AA188 -> 1.077400891 | AC213: =AC188/AB188 -> 1.061123154 | AD213: 1.058926645 | AE213: 1.068523052 | AF213: 1.060990472 | AG213: 1.049767323 | AH213: 1.043024746 | AI213: 1.054870391 | AJ213: 1.060207289 | AK213: 1.034514867 | AL213: 1.061876679 | AM213: 1.035594878
G214: Forecast - 50% PoE | AB214: =AB189/AA189 -> 1.090331372 | AC214: 1.066278998 | AD214: 1.068693489 | AE214: 1.066072151 | AF214: 1.064067125 | AG214: 1.057965443 | AH214: 1.03458211 | AI214: 1.06382189 | AJ214: 1.061446009 | AK214: 1.054126092 | AL214: 1.059207597 | AM214: 1.05068259
G215: Forecast - 10% PoE | AB215: =AB190/AA190 -> 1.112589186 | AC215: 1.069521559 | AD215: 1.055606723 | AE215: 1.072082009 | AF215: 1.055610966 | AG215: 1.053650727 | AH215: 1.044630325 | AI215: 1.066982556 | AJ215: 1.064667665 | AK215: 1.054052027 | AL215: 1.066621442 | AM215: 1.059280146
Q217: 2004 | R217: 2005 | S217: 2006 | T217: 2007 | U217: 2008 | V217: 2009 | W217: 2010 | X217: 2011 | Y217: 2012 | Z217: 2013 | AA217: 2014 | AB217: 2015 | AC217: 2016 | AD217: 2017 | AE217: 2018 | AF217: 2019 | AG217: 2020 | AH217: 2021 | AI217: 2022 | AJ217: 2023 | AK217: 2024 | AL217: 2025 | AM217: 2026
G218: Winter maxima
G219: Forecast - 90% PoE | AB219: =AB194/AA194 -> 1.051569039 | AC219: =AC194/AB194 -> 1.046621217 | AD219: 1.045168704 | AE219: 1.04039179 | AF219: 1.039713629 | AG219: 1.0442085 | AH219: 1.034979497 | AI219: 1.022554264 | AJ219: 1.03285926 | AK219: 1.034517502 | AL219: 1.027239192 | AM219: 1.028802778
G220: Forecast - 50% PoE | AB220: =AB195/AA195 -> 1.054565564 | AC220: 1.044673902 | AD220: 1.045624073 | AE220: 1.041911923 | AF220: 1.038102452 | AG220: 1.044364607 | AH220: 1.035710268 | AI220: 1.021452971 | AJ220: 1.033836057 | AK220: 1.034013746 | AL220: 1.028777269 | AM220: 1.026430642
G221: Forecast - 10% PoE | AB221: =AB196/AA196 -> 1.066057103 | AC221: 1.031200022 | AD221: 1.041185303 | AE221: 1.054012964 | AF221: 1.026281195 | AG221: 1.05754441 | AH221: 1.021997928 | AI221: 1.034889385 | AJ221: 1.017841098 | AK221: 1.041064688 | AL221: 1.03213869 | AM221: 1.018706548
Q223: 2004 | R223: 2005 | S223: 2006 | T223: 2007 | U223: 2008 | V223: 2009 | W223: 2010 | X223: 2011 | Y223: 2012 | Z223: 2013 | AA223: 2014 | AB223: 2015 | AC223: 2016 | AD223: 2017 | AE223: 2018 | AF223: 2019 | AG223: 2020 | AH223: 2021 | AI223: 2022 | AJ223: 2023 | AK223: 2024 | AL223: 2025 | AM223: 2026
G224: Annual maxima
G225: Forecast - 90% PoE | AB225: =AB200/AA200 -> 1.077400891 | AC225: =AC200/AB200 -> 1.061123154 | AD225: 1.058926645 | AE225: 1.068523052 | AF225: 1.060990472 | AG225: 1.049767323 | AH225: 1.043024746 | AI225: 1.054870391 | AJ225: 1.060207289 | AK225: 1.034514867 | AL225: 1.061876679 | AM225: 1.035594878
G226: Forecast - 50% PoE | AB226: =AB201/AA201 -> 1.090331372 | AC226: 1.066278998 | AD226: 1.068693489 | AE226: 1.066072151 | AF226: 1.064067125 | AG226: 1.057965443 | AH226: 1.03458211 | AI226: 1.06382189 | AJ226: 1.061446009 | AK226: 1.054126092 | AL226: 1.059207597 | AM226: 1.05068259
G227: Forecast - 10% PoE | AB227: =AB202/AA202 -> 1.112589186 | AC227: 1.069521559 | AD227: 1.055606723 | AE227: 1.072082009 | AF227: 1.055610966 | AG227: 1.053650727 | AH227: 1.044630325 | AI227: 1.066982556 | AJ227: 1.064667665 | AK227: 1.054052027 | AL227: 1.066621442 | AM227: 1.059280146
G229: Original Pre Adjustment 90% & 10% ration to 50% PoE B4 cap
Q230: 2004 | R230: 2005 | S230: 2006 | T230: 2007 | U230: 2008 | V230: 2009 | W230: 2010 | X230: 2011 | Y230: 2012 | Z230: 2013 | AA230: 2014 | AB230: 2015 | AC230: 2016 | AD230: 2017 | AE230: 2018 | AF230: 2019 | AG230: 2020 | AH230: 2021 | AI230: 2022 | AJ230: 2023 | AK230: 2024 | AL230: 2025 | AM230: 2026
G231: Average energy use
G232: Forecast average energy use
G233: Low forecast | AB233: =AB183/AB182 -> 0.9924201196 | AC233: =AC183/AC182 -> 0.9868350208 | AD233: 0.9823169613 | AE233: 0.9732550889 | AF233: 0.9590094319 | AG233: 0.94258075 | AH233: 0.9310874763 | AI233: 0.9238087804 | AJ233: 0.9153778214 | AK233: 0.9088213679 | AL233: 0.9041165941 | AM233: 0.8995173662
G234: High forecast | AB234: =AB184/AB182 -> 1.006019726 | AC234: =AC184/AC182 -> 1.02764505 | AD234: 1.052882948 | AE234: 1.062407272 | AF234: 1.07203968 | AG234: 1.080675873 | AH234: 1.092305718 | AI234: 1.10253352 | AJ234: 1.107187126 | AK234: 1.111899865 | AL234: 1.115045864 | AM234: 1.116769255
